Workbook

Sheet Introduction
A44: Document History
A45: Version | B45: Comment | I45: Date
A46: Version 0 | B46: First edition | I46: 2009-12-01
A47: Version 1 | B47: Editorial adjustments applied | I47: 2010-02-01
B48: Worksheet 0. 'Introduction and Contents'
B49: Under 'References': added weblink to draft up-dates to ECHA guidance and adjusted identified Version numbers.
B50: Worksheet 2. 'Worker CSA Template'
B51: a. Column 'C' Revised life cycle stage for 'Manufacture of Substance A' to reflect 'Industrial - SU3'
B52: b. Annotation added to the cell for the short term inhalation DNEL to highlight that an adjustment to the worksheet is required if a short term DNEL is to be applied in place of/alongside the long term inhalation DNEL.
B53: Worksheet 3. 'Worker - Ex ES Annex'
B54: a. Row 2, Revised reference to ECHA ES Template to reflect Draft Version 2
B55: Ref 1 Example GES Titles
B56: a. Additional comment included to indicate that Use Descriptors and scope statements may be expected for Substances of Very High Concern (SVHC)
B57: b. Some adjustments to Use Descriptor details.
B58: c. Deleted entries for 'Propellant' and 'Polymer Production' which are not in the Solvents GES Library of titles
B59: Ref 3 TRA Worker Expo modifers
B60: a. Updated entries to clarify where LEV efficiencies are applicable only to 'Solids' or 'Volatiles' for certain PROCs.
B61: b. Deleted row 18 detailing 95% efficiency for LEV Professional for PROC17 and 18. Entry included in error. 95% efficiency not relevant for any PROCs applicable to professional activities within the TRA.
A62: Version 2 | B62: Editorial adjustments to the 'Introduction and Contents' worksheet | I62: 2011-09-01
A63: Version 3 | B63: Fully revised and semi-automated tool, which incorporates the ECETOC TRA v3 tool | I63: mar-13
A64: Version 4 | B64: PROC 3 added to CSA | I64: 2020-11-01

Sheet Technical User Guide

Sheet CSA
A1: Use in functional fluids (Industrial) - medium volatility, low DNEL
A2: Worksheet 2. Worker Chemical Safety Assessment Template: Tables 1 and 2 - Worker Chemical Safety Assessment (CSA)- LIQUIDS ONLY
D3: Title (1st field predefined, 2nd field is free text) | E3: Functional Fluids [GEST13_I].
D4: Life cycle stage | E4: Use at industrial sites
A5: SETTINGS | C5: Substance specific information
C6: Substance:Trade name in col D and chemical name in col E (translated) | E6: medium volatility substance | F6: liquid
A7: Model modifications: | D7: CAS:
A8: Cap at saturated conc? | B8: NO | C8: Substance volatility (Pa) at 20-25C: | E8: 900
A9: Reduce dermal exposure | B9: YES | C9: TRA volatility range | E9: =IF(E8>10000,"high",IF(E8>500,"medium",IF(E8>0.01,"low","very low"))) -> medium | F9: =IF(E8>10000,WPG!F339,IF(E8>500,WPG!F338,IF(E8>0.01,WPG!F365,WPG!F364))) -> Liquid, vapour pressure 0.5 - 10 kPa at STP [OC4].
A10: with use of LEV? | C10: molecular weight (g/mol) | E10: 120 | BA10: Saturated vapour concentration (ppm): | BB10: =ROUND(E8/0.101325,2-1-INT(LOG10(ABS(E8/0.101325)))) -> 8900
A12: Output formatting: | C12: Reference Values | F12: Suppress RCR calculation in ES annex sheet
A13: Suppress inhalation exposure predictions | B13: YES | C13: DNEL worker - inhalation (long term) | D13: mg/m3 | E13: 50 | F13: YES
A14: Suppress dermal exposure predictions | B14: YES | C14: DNEL worker - inhalation (short term) | D14: mg/m3 | F14: YES
A15: Use reference nos? | B15: YES | C15: DNEL worker - inhalation (long term) aerosol | D15: mg/m3 | E15: 5 | F15: YES | H15: Colour coding for cells
C16: DNEL worker - dermal (long term) | D16: mg/kg/day | E16: 5 | F16: YES | H16: Cells of this colour require direct numeric entries
D17: Classified as a CMR under GHS category 1? | E17: NO | H17: cells like this are drop down boxes
A18: TIDY ES ANNEX SHEET (SUPPRESS UNUSED ROWS, AUTOFIT ROW HEIGHT ETC ) | C18: Classification | D18: Classification in contact with skin (irritant, corrosive, sensitiser) | E18: Any of: H310-H311-H312-H314-H315-H317 | H18: cells like this permit multiple choices (use list box or ctrl+M)
D19: Classified as an eye irritant | E19: YES | H19: Text in red is free text
A20: Flags to determine text to use to make us contributing scenarios - At least one must be set as Yes | C20: Exposure scenario number | E20: 11 | H20: Empty white background cells are automatically filled
A21: Use contributing scenario descriptors in ES Annex sheet contributing scenarios | B21: YES | C21: Scope of assessment. Processes, tasks, activities covered. First box is a predefined list. Second box can be used for free text as an addition or alternative | E21: Use as functional fluids e.g. cable oils, transfer oils, coolants, insulators, refrigerants, hydraulic fluids in industrial equipment including maintenance and related material transfers [GES13_I]. | H21: Warning messages are in red bold on white background
A22: Use Proc numbers only without descriptors in contributing scenario descriptors | B22: YES | H22: Instructions, field descriptions, comments are in bold
A23: Use Proc descriptors in contributing scenario descriptions | B23: NO | C23: Applicable Use Descriptors (PROC) Enter in the form eg PROC1. (Do not leave a space between the characters otherwise autotext allocation will not function correctly) | E23: PROC1, PROC2, PROC3, PROC4, PROC8a, PROC8b, PROC9. | H23: Please note some comments included in cell annotations
A24: =IF(AND(B21="NO",B22="NO",B23="NO"),"At least one of these must be set to YES","") ->  | C24: Environmental release categories | E24: ERC7. | H24: Some section headings look like this | BA24: PROCs include spraying activities or activities that can lead to significant aerosol production (PROC 7, 11, 17, 18) | BB24: =NOT(IF(AND(ISERR(SEARCH("PROC7",E23,1)),ISERR(SEARCH("PROC11",E23,1)),ISERR(SEARCH("PROC17",E23,1)),ISERR(SEARCH("PROC18",E23,1))),TRUE,FALSE)) -> FALSE
C28: Assessment method | D28: Worker | E28: =WPG!F331 -> The ECETOC TRA v3 tool has been used to estimate workplace exposures unless otherwise indicated [G46].
C29: Default Operational Conditions | G29: Text used in ES Annex
J30: Maximum concentration
C31: concentration of substance in product | D31: Covers percentage in product up to: | E31: 25-100% | G31: =IF(E31="<1%",WPG!F291,IF(E31="1-5%",WPG!F295,IF(E31="5-25%",WPG!F296,WPG!F297))) -> Covers percentage substance in the product up to 100 % (unless stated differently) [G13 ]. | J31: =IF(E31="<1%",1,IF(E31="1-5%",5,IF(E31="5-25%",25,100))) -> 100
C32: physical form of product | E32: =F9 -> Liquid, vapour pressure 0.5 - 10 kPa at STP [OC4].
C33: frequency and duration of use (worker) | E33: Covers daily exposures up to 8 hours (unless stated differently) [G2]
E34: Phrase
C35: other Operational Conditions of use. [G1] and [G15] are good practice as standard phrases | E35: Assumes use at not more than 20°C above ambient temperature, unless stated differently [G15]. ; Assumes a good basic standard of occupational hygiene is implemented [G1].
C36: Human factors not influenced by risk management | E36: Not applicable.
C37: Technical conditions and measures at a process level to prevent release and technical conditions and measures to control dispersion from source towards workers (often related to classification). | D37: These measures are integrated into the type of RMM phrase(s) selected. | E37: Not applicable.
C38: Risk management measures common to all contributing scenarios. SOME ARE AUTOMATICALLY ALLOCATED BY CLASSIFICATION - SEE ES Annex. | D38: Manually selected measures
O40: Choice of phrase for 30% effective ventilation | P40: Provide a good standard of general ventilation (not less than 3 to 5 air changes per hour)
AQ41: You can suppress the automatic text allocation cell by cell by setting flags in this row and col AY to NO. Intersecting 'NO' cells are suppressed
AP42: Allocate auto text? | AQ42: NO | AR42: YES | AS42: YES | AT42: YES
D44: Table 1: Mapping Uses in the Supply Chain | N44: Table 2: Characterizing the risk - Chemical Safety Assessment - Evaluation of Safe Use | AQ44: GES RMM phrases to build RMM advice (ref: GES Phrases ESIG/ESVOC 2009-12-07) - REACH ADVISED
A45: Add ES number to row to activate cells | B45: Generic Exposure Scenario | D45: Contributing Scenarios | G45: Fugacity band at operating temperature (blank if ambient or aerosol) | L45: General measures | N45: Inhalatory exposure | X45: Alternative exposure estimates from tier 2 tools or measured data. | AA45: Dermal exposure | AI45: Alternative exposure estimates from tier 2 tools or measured data. | AK45: Risk Characterization (When RCR ≥ 1 the cell background will change to pink) | AO45: Risk Management Measures (RMMs) | AS45: AUTOMATICALLY POPULATED | AU45: Technical Measures and Conditions (ref: GES Phrases 2.1.1_2.1.2 ) | AW45: Organizational Measures (ref: GES Phrases 2.1.3 ) | AY45: Environmental Measures (ref: GES Phrases 2.2 ) | BP45: Calculations to set correct flags for concentration
A46: CS # | B46: Vapour or aerosol exposure | C46: Exposure model to use | D46: Name (After selecting first phrases, use CTRL + m to permit addition of extra phrases) | E46: Typical mapped operating conditions (free text) | F46: Typical mapped RMM (free text) | G46: Select higher band than default if required | H46: Fugacity band selected for CSA | I46: Process Category [scroll list] | J46: LEV (Yes/No] Empty = No | K46: Manually set TRA concentration factor | L46: Automatically set worse case TRA concentration factor. This is the lowest of the values set in cell E31 or the adjacent column K | M46: TRA duration factor | N46: TRA Predicted Exposure - (mg/m3) aerosol in purple) - no modifiers | O46: TRA LEV efficiency | P46: Dilution ventilation effectiveness (%) | Q46: TRA RPE factor | R46: Extra exposure modifier: [optional] | S46: Free text - comment to clarify additional modifier (inhalation) | T46: Data validation warning messages | U46: Multiplier for Long term to short term exposure | V46: Predicted 8hr Exposure - (mg/m3) aerosol in purple font) - modified | W46: Predicted short term Exposure - (mg/m3 - aerosol in purple font) - modified | X46: Tier 2/measured 8hr Exposure - (mg/m3) | Y46: Predicted short term Exposure - (mg/m3) | Z46: Free text - comment to explain where data comes from | AA46: TRA Predicted Dermal exposure (mg/kg/d) - no modifiers | AB46: TRA Predicted Dermal exposure (mg/cm2) - no modifiers | AC46: TRA Dermal exposure LEV reduction factor IF SWITCHED ON | AD46: Manually set PPE | AE46: extra exposure modifier: [optional] to be defined by exposure assessor | AF46: Free text - comment to clarify additional modifier (dermal) | AG46: Data validation warning messages | AH46: Predicted Dermal Exposure (mg/kg/d) - modified | AI46: Tier 2/measured 8hr Exposure - (mg/kg/day) | AJ46: Free text - comment to explain where data comes from | AK46: RCR (inhalation) - Short term | AL46: RCR (inhalation) - long term | AM46: RCR (dermal) long term | AN46: RCR (long term inhalation + dermal combined) | AO46: RMMs for communication - Consolidate into GES or e-SDS | AP46: Automatic allocation (see explanation above | AQ46: Automatically prescribed inhalation RRMs | AR46: Automatically prescribed PPE measures (gloves if dermal exposure) | AS46: Automatically prescribed duration RRMS | AT46: Automatically prescribed product concentration RRMs | AU46: Technical measures at process level (source) to prevent release | AV46: Additional Technical conditions and measures to control dispersion from source towards the worker | AW46: Additional Organisational measures to prevent/limit releases, dispersion and exposure | AX46: (respiratory & dermal protection) | AY46: Environment | BL46: PROC code | BM46: PROC text | BN46: PROC descriptor | BP46: Default | BQ46: Manually set for scenario | BR46: Automatically determined
A47: 1-1 | B47: Vapour exposure | C47: =IF(E$4="Widespread use by professional workers","Professional ","Industrial") -> Industrial | D47: Bulk transfers [CS14].; (closed systems) [CS107]. | E47: Daily; 15 min - 1 hour; ambient temp | F47: Enclosed transfers; clear lines prior to decoupling | H47: =IF(B47="Aerosol exposure","not applicable for aerosols",IF(G47="",F$9,G47)) -> Liquid, vapour pressure 0.5 - 10 kPa at STP [OC4]. | I47: 1 - Use in closed process, no likelihood of exposure | L47: =IF(BR47=25,"5-25%",IF(BR47=5,"1-5%",IF(BR47=1,"<1%",""))) ->  | N47: =IF(AND(OR(I47=A$124,I47=A$133),E$8<0.01,J47="Yes"),IF(B$8="YES",MIN(0.1*E$10/24,BB$10),0.1*E$10/24),IF(I47="","",IF(B47="Vapour exposure",IF(C47="Industrial",VLOOKUP(I47,'Inhalation data'!A$3:I$24,IF(H47=WPG!F$339,2,IF(H47=WPG!F$338,3,5)),FALSE),VLOOKUP(I47,'Inhalation data'!A$3:I$24,IF(H47=WPG!F$339,6,IF(H47=WPG!F$338,7,9)),FALSE))*E$10/24,IF(C47="Industrial",VLOOKUP(I47,'Inhalation data'!A$3:X$24,23,FALSE),VLOOKUP(I47,'Inhalation data'!A$3:X$24,24,FALSE))))) -> 0.05 | O47: =IF(OR(I47="",J47="No",J47=""),"",VLOOKUP(I47,'Inhalation data'!A$3:O$24,IF(C47="Industrial",14,15),FALSE)) ->  | T47: =IF(AND(P47="30 (outdoor)",J47="Yes"),"You cannot have LEV and outdoor together. ","")&IF(AND(C47="Professional - SU22",I47="7 -Industrial Spraying"),"PROC 7 is for Industrial use only. ","")&IF(AND(TRIM(I47)="20 - Heat and pressure transfer fluids (closed systems) in dispersive use",C47="Industrial - SU3"),"PROC 20 is for Professional use only. ","")&IF(AND(I47="11 - Non industrial spraying",C47="Industrial - SU3"),"PROC 11 is for Professional Use only. ","")&IF(AND(I47="1 - Use in closed process, no likelihood of exposure",J47="Yes"),"LEV with Proc 1 will be ignored. ","")&IF(AND(C47="Professional - (SU22)",J47="Yes",P47="70 (ventilation)"),"It is not valid to have forced ventilation and LEV with a professional scenario. ","") ->  | U47: =IF(I47="","",VLOOKUP(I47,'Inhalation data'!A$3:AS$24,45,FALSE)) -> 4 | V47: =IF(N47="",0,N47*(100-IF(P47="",0,IF(P47="70 (ventilation)",70,30)))/100*(IF(L47=">25%",1,(IF(L47="5-25%",0.6,(IF(L47="1-5%",0.2,(IF(L47="<1%",0.1,1))))))))*IF(M47="",1,(IF(M47=">4 hours",1,(IF(M47="1-4 hours",0.6,(IF(M47="15 min-1 hour",0.2,0.1)))))))*IF(R47="",1,R47))*IF(Q47="half mask",0.1,(IF(Q47="full face",0.05,1)))*(100-IF(O47="",0,O47))/100 -> 0.05 | W47: =IF(OR(U47="",V47=""),"",IF(AND($B$8="YES",B47="Vapour exposure"),MIN(N47*U47,$BB$10*E$10/24),N47*U47)*(100-IF(P47="",0,IF(P47="70 (ventilation)",70,30)))/100*(IF(L47=">25%",1,(IF(L47="5-25%",0.6,(IF(L47="1-5%",0.2,(IF(L47="<1%",0.1,1)))))))*IF(R47="",1,R47))*IF(Q47="half mask",0.1,(IF(Q47="full face",0.05,1)))*(100-IF(O47="",0,O47))/100) -> 0.2 | AA47: =IF(I47="","",VLOOKUP(I47,'Dermal data'!A$4:F$25,6,FALSE)) -> 0.03 | AB47: =IF(I47="","",VLOOKUP(I47,'Dermal data'!A$4:F$25,5,FALSE)/1000) -> 0.01 | AC47: =IF(AND(J47="Yes",B$9="YES"),IF(C47="Industrial - SU3",VLOOKUP(I47,'Dermal data'!A$4:G$25,7,),VLOOKUP(I47,'Dermal data'!A$4:H$25,8,)),"") ->  | AG47: =IF(AND(AD47="gloves-intensive controls",C47="Professional - SU22"),"Intensive glove controls cannot usually be operated in a professional environment","") ->  | AH47: =IF(AA47="",0,AA47*(IF(AC47="",1,AC47))*(IF(L47=">25%",1,(IF(L47="5-25%",0.6,(IF(L47="1-5%",0.2,(IF(L47="<1%",0.1,1))))))))*(IF(AD47="gloves",0.2,(IF(AD47="gloves-basic training",0.1,(IF(AD47="gloves-specific training",0.05,(IF(AD47="gloves-intensive controls",0.02,1))))))))*(IF(AE47="",1,AE47))*IF(E$8<500,1,IF(OR(M47=">4 hours",M47=""),1,IF(M47="1-4 hours",0.6,IF(M47="15 min-1 hour",0.2,0.1))))) -> 0.03 | AK47: =IF(OR($E$14="",$E$14=0,W47=""),0,IF(Y47="",W47,Y47)/$E$14) -> 0 | AL47: =IF(B47="Vapour exposure",IF(OR(ISBLANK($E$13),$E$13=0,ISBLANK(V47)),0,IF(X47="",V47,X47)/E$13),IF(OR(ISBLANK($E$15),$E$15=0,ISBLANK(V47)),0,IF(X47="",V47,X47)/E$15)) -> 0.001 | AM47: =IF(OR($E$16="",$E$16=0),0,IF(AI47="",AH47,AI47)/$E$16) -> 0.006 | AN47: =AL47+AM47 -> 0.007 | AO47: =AQ47&AS47&AT47&AU47&AV47&AW47&AY47&AR47&AX47 ->  | AP47: YES | AQ47: =IF(AND(AQ$42="NO",AP47="NO"),"",IF(OR(J47="No",J47=""),"",VLOOKUP(I47,'Inhalation data'!A$3:S$24,IF(C47="Industrial",16,17),FALSE))&IF(P47="","",IF(P47="70 (ventilation)",WPG!F$383,IF(P47="30 (ventilation)",Findandtranslate_WPG(P$40),IF(OR(D47=WPG!F$228,E47=WPG!F$228,F47=WPG!F$228),WPG!F$367,WPG!F$412))))) ->  | AR47: =IF(AND(AR$42="NO",AP47="NO"),"",IF(Q47="half mask",WPG!F$465,IF(Q47="full face",WPG!F$467&WPG!F$468,""))&IF(AD47="gloves",WPG!F$458,IF(AD47="gloves-basic training",WPG!F$459,IF(AD47="gloves-specific training",WPG!F$460,IF(AD47="gloves-intensive controls",WPG!F$461,""))))&IF(AD47="","",VLOOKUP(I47,'Inhalation data'!A$3:V$24,22,FALSE))) ->  | AS47: =IF(AND(AS$42="NO",AP47="NO"),"",IF(M47="<15 min",WPG!F$360,IF(M47="1-4 hours",WPG!F$362,IF(M47="15 min-1 hour",WPG!F$361,"")))) ->  | AT47: =IF(OR(AND(AT$42="NO",AP47="NO"),BQ47>BP47),"",IF(L47="5-25%",WPG!F$352,IF(L47="1-5%",WPG!F$351,IF(L47="<1%",WPG!F$350,"")))) ->  | BI47: =BB47&BC47&BD47&BE47&BF47&BG47&BH47 ->  | BL47: =IF(ISERROR(VLOOKUP(I47,'Dermal data'!A$3:K$25,1,FALSE)),"",LEFT(VLOOKUP(I47,'Dermal data'!A$3:K$25,1,FALSE),2)) -> 1 | BM47: =IF(ISERROR(VLOOKUP(I47,'Dermal data'!A$3:K$25,11,FALSE)),"",VLOOKUP(I47,'Dermal data'!A$3:K$25,11,FALSE)) -> Use in closed process, no likelihood of exposure [PROC 1]. | BN47: =IF(ISERROR(VLOOKUP(I47,'Dermal data'!A$3:L$25,12,FALSE)),"",VLOOKUP(I47,'Dermal data'!A$3:L$25,12,FALSE)) -> Use of the substances in high integrity contained systemwhere little potential exists for exposures, e.g. any sam-pling via closed loop systems. | BP47: =J$31 -> 100 | BQ47: =IF(K47="<1%",1,IF(K47="1-5%",5,IF(K47="5-25%",25,100))) -> 100 | BR47: =IF(OR(A47="",AND(BP47=100,BQ47=100)),"",MIN(BP47,BQ47)) ->  | CK47: =IF(H47=WPG!F$339,2,IF(H47=WPG!F$338,3,5)) -> 3
A48: 1-2 | B48: Vapour exposure | C48: =IF(E$4="Widespread use by professional workers","Professional ","Industrial") -> Industrial | D48: Bulk transfers [CS14].; (closed systems) [CS107]. | E48: Daily; 15 min - 1 hour; ambient temp | F48: Enclosed transfers; clear lines prior to decoupling | H48: Liquid, vapour pressure 0.5 - 10 kPa at STP [OC4]. | I48: 2 - Use in closed, continuous process with occasional controlled exposure | L48: =IF(BR48=25,"5-25%",IF(BR48=5,"1-5%",IF(BR48=1,"<1%",""))) ->  | N48: =IF(AND(OR(I48=A$124,I48=A$133),E$8<0.01,J48="Yes"),IF(B$8="YES",MIN(0.1*E$10/24,BB$10),0.1*E$10/24),IF(I48="","",IF(B48="Vapour exposure",IF(C48="Industrial",VLOOKUP(I48,'Inhalation data'!A$3:I$24,IF(H48=WPG!F$339,2,IF(H48=WPG!F$338,3,5)),FALSE),VLOOKUP(I48,'Inhalation data'!A$3:I$24,IF(H48=WPG!F$339,6,IF(H48=WPG!F$338,7,9)),FALSE))*E$10/24,IF(C48="Industrial",VLOOKUP(I48,'Inhalation data'!A$3:X$24,23,FALSE),VLOOKUP(I48,'Inhalation data'!A$3:X$24,24,FALSE))))) -> 25 | O48: =IF(OR(I48="",J48="No",J48=""),"",VLOOKUP(I48,'Inhalation data'!A$3:O$24,IF(C48="Industrial",14,15),FALSE)) ->  | T48: =IF(AND(P48="30 (outdoor)",J48="Yes"),"You cannot have LEV and outdoor together. ","")&IF(AND(C48="Professional - SU22",I48="7 -Industrial Spraying"),"PROC 7 is for Industrial use only. ","")&IF(AND(TRIM(I48)="20 - Heat and pressure transfer fluids (closed systems) in dispersive use",C48="Industrial - SU3"),"PROC 20 is for Professional use only. ","")&IF(AND(I48="11 - Non industrial spraying",C48="Industrial - SU3"),"PROC 11 is for Professional Use only. ","")&IF(AND(I48="1 - Use in closed process, no likelihood of exposure",J48="Yes"),"LEV with Proc 1 will be ignored. ","")&IF(AND(C48="Professional - (SU22)",J48="Yes",P48="70 (ventilation)"),"It is not valid to have forced ventilation and LEV with a professional scenario. ","") ->  | U48: =IF(I48="","",VLOOKUP(I48,'Inhalation data'!A$3:AS$24,45,FALSE)) -> 4 | V48: =IF(N48="",0,N48*(100-IF(P48="",0,IF(P48="70 (ventilation)",70,30)))/100*(IF(L48=">25%",1,(IF(L48="5-25%",0.6,(IF(L48="1-5%",0.2,(IF(L48="<1%",0.1,1))))))))*IF(M48="",1,(IF(M48=">4 hours",1,(IF(M48="1-4 hours",0.6,(IF(M48="15 min-1 hour",0.2,0.1)))))))*IF(R48="",1,R48))*IF(Q48="half mask",0.1,(IF(Q48="full face",0.05,1)))*(100-IF(O48="",0,O48))/100 -> 25 | W48: =IF(OR(U48="",V48=""),"",IF(AND($B$8="YES",B48="Vapour exposure"),MIN(N48*U48,$BB$10*E$10/24),N48*U48)*(100-IF(P48="",0,IF(P48="70 (ventilation)",70,30)))/100*(IF(L48=">25%",1,(IF(L48="5-25%",0.6,(IF(L48="1-5%",0.2,(IF(L48="<1%",0.1,1)))))))*IF(R48="",1,R48))*IF(Q48="half mask",0.1,(IF(Q48="full face",0.05,1)))*(100-IF(O48="",0,O48))/100) -> 100 | AA48: =IF(I48="","",VLOOKUP(I48,'Dermal data'!A$4:F$25,6,FALSE)) -> 1.37 | AB48: =IF(I48="","",VLOOKUP(I48,'Dermal data'!A$4:F$25,5,FALSE)/1000) -> 0.2 | AC48: =IF(AND(J48="Yes",B$9="YES"),IF(C48="Industrial - SU3",VLOOKUP(I48,'Dermal data'!A$4:G$25,7,),VLOOKUP(I48,'Dermal data'!A$4:H$25,8,)),"") ->  | AH48: 1.37 | AK48: =IF(OR($E$14="",$E$14=0,W48=""),0,IF(Y48="",W48,Y48)/$E$14) -> 0 | AL48: =IF(B48="Vapour exposure",IF(OR(ISBLANK($E$13),$E$13=0,ISBLANK(V48)),0,IF(X48="",V48,X48)/E$13),IF(OR(ISBLANK($E$15),$E$15=0,ISBLANK(V48)),0,IF(X48="",V48,X48)/E$15)) -> 0.5 | AM48: =IF(OR($E$16="",$E$16=0),0,IF(AI48="",AH48,AI48)/$E$16) -> 0.274 | AN48: =AL48+AM48 -> 0.774 | AO48: =AQ48&AS48&AT48&AU48&AV48&AW48&AY48&AR48&AX48 ->  | AP48: YES | AQ48: =IF(AND(AQ$42="NO",AP48="NO"),"",IF(OR(J48="No",J48=""),"",VLOOKUP(I48,'Inhalation data'!A$3:S$24,IF(C48="Industrial",16,17),FALSE))&IF(P48="","",IF(P48="70 (ventilation)",WPG!F$383,IF(P48="30 (ventilation)",Findandtranslate_WPG(P$40),IF(OR(D48=WPG!F$228,E48=WPG!F$228,F48=WPG!F$228),WPG!F$367,WPG!F$412))))) ->  | AR48: =IF(AND(AR$42="NO",AP48="NO"),"",IF(Q48="half mask",WPG!F$465,IF(Q48="full face",WPG!F$467&WPG!F$468,""))&IF(AD48="gloves",WPG!F$458,IF(AD48="gloves-basic training",WPG!F$459,IF(AD48="gloves-specific training",WPG!F$460,IF(AD48="gloves-intensive controls",WPG!F$461,""))))&IF(AD48="","",VLOOKUP(I48,'Inhalation data'!A$3:V$24,22,FALSE))) ->  | AS48: =IF(AND(AS$42="NO",AP48="NO"),"",IF(M48="<15 min",WPG!F$360,IF(M48="1-4 hours",WPG!F$362,IF(M48="15 min-1 hour",WPG!F$361,"")))) ->  | AT48: =IF(OR(AND(AT$42="NO",AP48="NO"),BQ48>BP48),"",IF(L48="5-25%",WPG!F$352,IF(L48="1-5%",WPG!F$351,IF(L48="<1%",WPG!F$350,"")))) ->  | BI48: =BB48&BC48&BD48&BE48&BF48&BG48&BH48 ->  | BL48: =IF(ISERROR(VLOOKUP(I48,'Dermal data'!A$3:K$25,1,FALSE)),"",LEFT(VLOOKUP(I48,'Dermal data'!A$3:K$25,1,FALSE),2)) -> 2 | BM48: =IF(ISERROR(VLOOKUP(I48,'Dermal data'!A$3:K$25,11,FALSE)),"",VLOOKUP(I48,'Dermal data'!A$3:K$25,11,FALSE)) -> Use in closed, continuous process with occasional controlled exposure [PROC 2]. | BN48: =IF(ISERROR(VLOOKUP(I48,'Dermal data'!A$3:L$25,12,FALSE)),"",VLOOKUP(I48,'Dermal data'!A$3:L$25,12,FALSE)) -> Continuous process but where the design philosophy is not specifically aimed at minimizing emissions It is not high integrity and occasional expose will arise e.g. through maintenance, sampling and equipment breakages. | BP48: =J$31 -> 100 | BQ48: =IF(K48="<1%",1,IF(K48="1-5%",5,IF(K48="5-25%",25,100))) -> 100 | CK48: =IF(H48=WPG!F$339,2,IF(H48=WPG!F$338,3,5)) -> 3
A49: 2 | B49: Vapour exposure | C49: =IF(E$4="Widespread use by professional workers","Professional ","Industrial") -> Industrial | D49: Drum/batch transfers [CS8]. ; Dedicated facility [CS81]. | E49: Daily; 15 min - 1 hour; ambient temp | F49: Pumped transfer from drum to holding tanks. | H49: Liquid, vapour pressure 0.5 - 10 kPa at STP [OC4]. | I49: 8b -Transfer of chemicals from/to vessels/ large containers at dedicated facilities | J49: Yes | N49: =IF(AND(OR(I49=A$124,I49=A$133),E$8<0.01,J49="Yes"),IF(B$8="YES",MIN(0.1*E$10/24,BB$10),0.1*E$10/24),IF(I49="","",IF(B49="Vapour exposure",IF(C49="Industrial",VLOOKUP(I49,'Inhalation data'!A$3:I$24,IF(H49=WPG!F$339,2,IF(H49=WPG!F$338,3,5)),FALSE),VLOOKUP(I49,'Inhalation data'!A$3:I$24,IF(H49=WPG!F$339,6,IF(H49=WPG!F$338,7,9)),FALSE))*E$10/24,IF(C49="Industrial",VLOOKUP(I49,'Inhalation data'!A$3:X$24,23,FALSE),VLOOKUP(I49,'Inhalation data'!A$3:X$24,24,FALSE))))) -> 125 | O49: =IF(OR(I49="",J49="No",J49=""),"",VLOOKUP(I49,'Inhalation data'!A$3:O$24,IF(C49="Industrial",14,15),FALSE)) -> 95 | U49: =IF(I49="","",VLOOKUP(I49,'Inhalation data'!A$3:AS$24,45,FALSE)) -> 4 | V49: 6.25 | W49: 25 | AA49: =IF(I49="","",VLOOKUP(I49,'Dermal data'!A$4:F$25,6,FALSE)) -> 13.71 | AB49: =IF(I49="","",VLOOKUP(I49,'Dermal data'!A$4:F$25,5,FALSE)/1000) -> 1 | AC49: =IF(AND(J49="Yes",B$9="YES"),IF(C49="Industrial - SU3",VLOOKUP(I49,'Dermal data'!A$4:G$25,7,),VLOOKUP(I49,'Dermal data'!A$4:H$25,8,)),"") -> 0.2 | AD49: gloves | AH49: 0.5484 | AK49: 0 | AL49: 0.125 | AM49: 0.10968 | AN49: 0.23468 | AO49: Ensure material transfers are under containment or extract ventilation [E66]. Wear suitable gloves tested to EN374 [PPE15]. | AP49: YES | AQ49: =IF(AND(AQ$42="NO",AP49="NO"),"",IF(OR(J49="No",J49=""),"",VLOOKUP(I49,'Inhalation data'!A$3:S$24,IF(C49="Industrial",16,17),FALSE))&IF(P49="","",IF(P49="70 (ventilation)",WPG!F$383,IF(P49="30 (ventilation)",Findandtranslate_WPG(P$40),IF(OR(D49=WPG!F$228,E49=WPG!F$228,F49=WPG!F$228),WPG!F$367,WPG!F$412))))) -> Ensure material transfers are under containment or extract ventilation [E66]. | AR49: =IF(AND(AR$42="NO",AP49="NO"),"",IF(Q49="half mask",WPG!F$465,IF(Q49="full face",WPG!F$467&WPG!F$468,""))&IF(AD49="gloves",WPG!F$458,IF(AD49="gloves-basic training",WPG!F$459,IF(AD49="gloves-specific training",WPG!F$460,IF(AD49="gloves-intensive controls",WPG!F$461,""))))&IF(AD49="","",VLOOKUP(I49,'Inhalation data'!A$3:V$24,22,FALSE))) -> Wear suitable gloves tested to EN374 [PPE15]. | AS49: =IF(AND(AS$42="NO",AP49="NO"),"",IF(M49="<15 min",WPG!F$360,IF(M49="1-4 hours",WPG!F$362,IF(M49="15 min-1 hour",WPG!F$361,"")))) ->  | AT49: =IF(OR(AND(AT$42="NO",AP49="NO"),BQ49>BP49),"",IF(L49="5-25%",WPG!F$352,IF(L49="1-5%",WPG!F$351,IF(L49="<1%",WPG!F$350,"")))) ->  | BL49: =IF(ISERROR(VLOOKUP(I49,'Dermal data'!A$3:K$25,1,FALSE)),"",LEFT(VLOOKUP(I49,'Dermal data'!A$3:K$25,1,FALSE),2)) -> 8b | BM49: =IF(ISERROR(VLOOKUP(I49,'Dermal data'!A$3:K$25,11,FALSE)),"",VLOOKUP(I49,'Dermal data'!A$3:K$25,11,FALSE)) -> Transfer of substance or preparation (charging/discharging) from/to vessels/large containers at dedicated facilities [PROC 8b]. | BN49: =IF(ISERROR(VLOOKUP(I49,'Dermal data'!A$3:L$25,12,FALSE)),"",VLOOKUP(I49,'Dermal data'!A$3:L$25,12,FALSE)) -> Sampling, loading, filling, transfer, dumping, bagging in dedicated facilities. Exposure related to dust, vapour, aerosols or spillage, and cleaning of equipment to be expected. | BP49: 100 | BQ49: 100 | CK49: =IF(H49=WPG!F$339,2,IF(H49=WPG!F$338,3,5)) -> 3
A50: 3 | B50: Vapour exposure | C50: Industrial | D50: Filling of articles/equipment [CS84]. ; (closed systems) [CS107]. | E50: Daily; >4 hours, ambient | F50: Enclosed operations, size of openings minimised | H50: Liquid, vapour pressure 0.5 - 10 kPa at STP [OC4]. | I50: 9 -Transfer of chemicals into small containers (dedicated filling line) | J50: Yes | N50: =IF(AND(OR(I50=A$124,I50=A$133),E$8<0.01,J50="Yes"),IF(B$8="YES",MIN(0.1*E$10/24,BB$10),0.1*E$10/24),IF(I50="","",IF(B50="Vapour exposure",IF(C50="Industrial",VLOOKUP(I50,'Inhalation data'!A$3:I$24,IF(H50=WPG!F$339,2,IF(H50=WPG!F$338,3,5)),FALSE),VLOOKUP(I50,'Inhalation data'!A$3:I$24,IF(H50=WPG!F$339,6,IF(H50=WPG!F$338,7,9)),FALSE))*E$10/24,IF(C50="Industrial",VLOOKUP(I50,'Inhalation data'!A$3:X$24,23,FALSE),VLOOKUP(I50,'Inhalation data'!A$3:X$24,24,FALSE))))) -> 250 | O50: =IF(OR(I50="",J50="No",J50=""),"",VLOOKUP(I50,'Inhalation data'!A$3:O$24,IF(C50="Industrial",14,15),FALSE)) -> 90 | U50: =IF(I50="","",VLOOKUP(I50,'Inhalation data'!A$3:AS$24,45,FALSE)) -> 4 | V50: 25 | W50: 100 | AA50: =IF(I50="","",VLOOKUP(I50,'Dermal data'!A$4:F$25,6,FALSE)) -> 6.86 | AB50: =IF(I50="","",VLOOKUP(I50,'Dermal data'!A$4:F$25,5,FALSE)/1000) -> 1 | AC50: =IF(AND(J50="Yes",B$9="YES"),IF(C50="Industrial - SU3",VLOOKUP(I50,'Dermal data'!A$4:G$25,7,),VLOOKUP(I50,'Dermal data'!A$4:H$25,8,)),"") -> 0.2 | AD50: gloves | AH50: 0.2744 | AK50: 0 | AL50: 0.5 | AM50: 0.05488 | AN50: 0.55488 | AO50: Fill containers/cans at dedicated fill points supplied with local extract ventilation [E51]. Wear suitable gloves tested to EN374 [PPE15]. | AP50: YES | AQ50: =IF(AND(AQ$42="NO",AP50="NO"),"",IF(OR(J50="No",J50=""),"",VLOOKUP(I50,'Inhalation data'!A$3:S$24,IF(C50="Industrial",16,17),FALSE))&IF(P50="","",IF(P50="70 (ventilation)",WPG!F$383,IF(P50="30 (ventilation)",Findandtranslate_WPG(P$40),IF(OR(D50=WPG!F$228,E50=WPG!F$228,F50=WPG!F$228),WPG!F$367,WPG!F$412))))) -> Fill containers/cans at dedicated fill points supplied with local extract ventilation [E51]. | AR50: =IF(AND(AR$42="NO",AP50="NO"),"",IF(Q50="half mask",WPG!F$465,IF(Q50="full face",WPG!F$467&WPG!F$468,""))&IF(AD50="gloves",WPG!F$458,IF(AD50="gloves-basic training",WPG!F$459,IF(AD50="gloves-specific training",WPG!F$460,IF(AD50="gloves-intensive controls",WPG!F$461,""))))&IF(AD50="","",VLOOKUP(I50,'Inhalation data'!A$3:V$24,22,FALSE))) -> Wear suitable gloves tested to EN374 [PPE15]. | AS50: =IF(AND(AS$42="NO",AP50="NO"),"",IF(M50="<15 min",WPG!F$360,IF(M50="1-4 hours",WPG!F$362,IF(M50="15 min-1 hour",WPG!F$361,"")))) ->  | AT50: =IF(OR(AND(AT$42="NO",AP50="NO"),BQ50>BP50),"",IF(L50="5-25%",WPG!F$352,IF(L50="1-5%",WPG!F$351,IF(L50="<1%",WPG!F$350,"")))) ->  | BL50: =IF(ISERROR(VLOOKUP(I50,'Dermal data'!A$3:K$25,1,FALSE)),"",LEFT(VLOOKUP(I50,'Dermal data'!A$3:K$25,1,FALSE),2)) -> 9 | BM50: =IF(ISERROR(VLOOKUP(I50,'Dermal data'!A$3:K$25,11,FALSE)),"",VLOOKUP(I50,'Dermal data'!A$3:K$25,11,FALSE)) -> Transfer of substance or preparation into small containers (dedicated filling line, including weighing) [PROC 9]. | BN50: =IF(ISERROR(VLOOKUP(I50,'Dermal data'!A$3:L$25,12,FALSE)),"",VLOOKUP(I50,'Dermal data'!A$3:L$25,12,FALSE)) -> Filling lines specifically designed to both capture vapour and aerosol emissions and minimise spillage. | BP50: 100 | BQ50: 100 | CK50: =IF(H50=WPG!F$339,2,IF(H50=WPG!F$338,3,5)) -> 3
A51: 4 | B51: Vapour exposure | C51: Industrial | D51: Filling / preparation of equipment from drums or containers. [CS45]. ; Non-dedicated facility [CS82]. | E51: Daily; 1-4 hours, ambient | F51: Careful pouring, worker instructions | H51: Liquid, vapour pressure 0.5 - 10 kPa at STP [OC4]. | I51: 8a -Transfer of chemicals from/to vessels/ large containers at non dedicated facilities | J51: Yes | N51: =IF(AND(OR(I51=A$124,I51=A$133),E$8<0.01,J51="Yes"),IF(B$8="YES",MIN(0.1*E$10/24,BB$10),0.1*E$10/24),IF(I51="","",IF(B51="Vapour exposure",IF(C51="Industrial",VLOOKUP(I51,'Inhalation data'!A$3:I$24,IF(H51=WPG!F$339,2,IF(H51=WPG!F$338,3,5)),FALSE),VLOOKUP(I51,'Inhalation data'!A$3:I$24,IF(H51=WPG!F$339,6,IF(H51=WPG!F$338,7,9)),FALSE))*E$10/24,IF(C51="Industrial",VLOOKUP(I51,'Inhalation data'!A$3:X$24,23,FALSE),VLOOKUP(I51,'Inhalation data'!A$3:X$24,24,FALSE))))) -> 250 | O51: =IF(OR(I51="",J51="No",J51=""),"",VLOOKUP(I51,'Inhalation data'!A$3:O$24,IF(C51="Industrial",14,15),FALSE)) -> 90 | U51: =IF(I51="","",VLOOKUP(I51,'Inhalation data'!A$3:AS$24,45,FALSE)) -> 4 | V51: 25 | W51: 100 | AA51: =IF(I51="","",VLOOKUP(I51,'Dermal data'!A$4:F$25,6,FALSE)) -> 13.71 | AB51: =IF(I51="","",VLOOKUP(I51,'Dermal data'!A$4:F$25,5,FALSE)/1000) -> 1 | AC51: =IF(AND(J51="Yes",B$9="YES"),IF(C51="Industrial - SU3",VLOOKUP(I51,'Dermal data'!A$4:G$25,7,),VLOOKUP(I51,'Dermal data'!A$4:H$25,8,)),"") -> 0.2 | AD51: gloves-basic training | AH51: 0.2742 | AK51: 0 | AL51: 0.5 | AM51: 0.05484 | AN51: 0.55484 | AO51: Ensure material transfers are under containment or extract ventilation [E66]. Wear chemically resistant gloves (tested to EN374) in combination with ‘basic’ employee training [PPE16]. | AP51: NO | AQ51: =IF(AND(AQ$42="NO",AP51="NO"),"",IF(OR(J51="No",J51=""),"",VLOOKUP(I51,'Inhalation data'!A$3:S$24,IF(C51="Industrial",16,17),FALSE))&IF(P51="","",IF(P51="70 (ventilation)",WPG!F$383,IF(P51="30 (ventilation)",Findandtranslate_WPG(P$40),IF(OR(D51=WPG!F$228,E51=WPG!F$228,F51=WPG!F$228),WPG!F$367,WPG!F$412))))) ->  | AR51: =IF(AND(AR$42="NO",AP51="NO"),"",IF(Q51="half mask",WPG!F$465,IF(Q51="full face",WPG!F$467&WPG!F$468,""))&IF(AD51="gloves",WPG!F$458,IF(AD51="gloves-basic training",WPG!F$459,IF(AD51="gloves-specific training",WPG!F$460,IF(AD51="gloves-intensive controls",WPG!F$461,""))))&IF(AD51="","",VLOOKUP(I51,'Inhalation data'!A$3:V$24,22,FALSE))) -> Wear chemically resistant gloves (tested to EN374) in combination with ‘basic’ employee training [PPE16]. | AS51: =IF(AND(AS$42="NO",AP51="NO"),"",IF(M51="<15 min",WPG!F$360,IF(M51="1-4 hours",WPG!F$362,IF(M51="15 min-1 hour",WPG!F$361,"")))) ->  | AT51: =IF(OR(AND(AT$42="NO",AP51="NO"),BQ51>BP51),"",IF(L51="5-25%",WPG!F$352,IF(L51="1-5%",WPG!F$351,IF(L51="<1%",WPG!F$350,"")))) ->  | AV51: Ensure material transfers are under containment or extract ventilation [E66]. | BL51: =IF(ISERROR(VLOOKUP(I51,'Dermal data'!A$3:K$25,1,FALSE)),"",LEFT(VLOOKUP(I51,'Dermal data'!A$3:K$25,1,FALSE),2)) -> 8a | BM51: =IF(ISERROR(VLOOKUP(I51,'Dermal data'!A$3:K$25,11,FALSE)),"",VLOOKUP(I51,'Dermal data'!A$3:K$25,11,FALSE)) -> Transfer of substance or preparation (charging/discharging) from/to vessels/large containers at non-dedicated facilities [PROC 8a]. | BN51: =IF(ISERROR(VLOOKUP(I51,'Dermal data'!A$3:L$25,12,FALSE)),"",VLOOKUP(I51,'Dermal data'!A$3:L$25,12,FALSE)) -> Sampling, loading, filling, transfer, dumping, bagging in non- dedicated facilities. Exposure related to dust, va-pour, aerosols or spillage, and cleaning of equipment to be expected. | BP51: 100 | BQ51: 100 | CK51: =IF(H51=WPG!F$339,2,IF(H51=WPG!F$338,3,5)) -> 3
A52: 5 | B52: Vapour exposure | C52: Industrial | D52: General exposures (closed systems) [CS15]. | E52: Daily; >4 hours, ambient | F52: Closed system | H52: Liquid, vapour pressure 0.5 - 10 kPa at STP [OC4]. | I52: 2 - Use in closed, continuous process with occasional controlled exposure | J52: Yes | N52: =IF(AND(OR(I52=A$124,I52=A$133),E$8<0.01,J52="Yes"),IF(B$8="YES",MIN(0.1*E$10/24,BB$10),0.1*E$10/24),IF(I52="","",IF(B52="Vapour exposure",IF(C52="Industrial",VLOOKUP(I52,'Inhalation data'!A$3:I$24,IF(H52=WPG!F$339,2,IF(H52=WPG!F$338,3,5)),FALSE),VLOOKUP(I52,'Inhalation data'!A$3:I$24,IF(H52=WPG!F$339,6,IF(H52=WPG!F$338,7,9)),FALSE))*E$10/24,IF(C52="Industrial",VLOOKUP(I52,'Inhalation data'!A$3:X$24,23,FALSE),VLOOKUP(I52,'Inhalation data'!A$3:X$24,24,FALSE))))) -> 25 | O52: =IF(OR(I52="",J52="No",J52=""),"",VLOOKUP(I52,'Inhalation data'!A$3:O$24,IF(C52="Industrial",14,15),FALSE)) -> 90 | U52: =IF(I52="","",VLOOKUP(I52,'Inhalation data'!A$3:AS$24,45,FALSE)) -> 4 | V52: 2.5 | W52: 10 | AA52: =IF(I52="","",VLOOKUP(I52,'Dermal data'!A$4:F$25,6,FALSE)) -> 1.37 | AB52: =IF(I52="","",VLOOKUP(I52,'Dermal data'!A$4:F$25,5,FALSE)/1000) -> 0.2 | AC52: =IF(AND(J52="Yes",B$9="YES"),IF(C52="Industrial - SU3",VLOOKUP(I52,'Dermal data'!A$4:G$25,7,),VLOOKUP(I52,'Dermal data'!A$4:H$25,8,)),"") -> 0.2 | AH52: 0.274 | AK52: 0 | AL52: =IF(B52="Vapour exposure",IF(OR(ISBLANK($E$13),$E$13=0,ISBLANK(V52)),0,IF(X52="",V52,X52)/E$13),IF(OR(ISBLANK($E$15),$E$15=0,ISBLANK(V52)),0,IF(X52="",V52,X52)/E$15)) -> 0.05 | AM52: 0.0548 | AN52: 0.1048 | AO52: Handle substance within a predominantly closed system provided with extract ventilation [E49]. | AP52: YES | AQ52: =IF(AND(AQ$42="NO",AP52="NO"),"",IF(OR(J52="No",J52=""),"",VLOOKUP(I52,'Inhalation data'!A$3:S$24,IF(C52="Industrial",16,17),FALSE))&IF(P52="","",IF(P52="70 (ventilation)",WPG!F$383,IF(P52="30 (ventilation)",Findandtranslate_WPG(P$40),IF(OR(D52=WPG!F$228,E52=WPG!F$228,F52=WPG!F$228),WPG!F$367,WPG!F$412))))) -> Handle substance within a predominantly closed system provided with extract ventilation [E49]. | AR52: =IF(AND(AR$42="NO",AP52="NO"),"",IF(Q52="half mask",WPG!F$465,IF(Q52="full face",WPG!F$467&WPG!F$468,""))&IF(AD52="gloves",WPG!F$458,IF(AD52="gloves-basic training",WPG!F$459,IF(AD52="gloves-specific training",WPG!F$460,IF(AD52="gloves-intensive controls",WPG!F$461,""))))&IF(AD52="","",VLOOKUP(I52,'Inhalation data'!A$3:V$24,22,FALSE))) ->  | AS52: =IF(AND(AS$42="NO",AP52="NO"),"",IF(M52="<15 min",WPG!F$360,IF(M52="1-4 hours",WPG!F$362,IF(M52="15 min-1 hour",WPG!F$361,"")))) ->  | AT52: =IF(OR(AND(AT$42="NO",AP52="NO"),BQ52>BP52),"",IF(L52="5-25%",WPG!F$352,IF(L52="1-5%",WPG!F$351,IF(L52="<1%",WPG!F$350,"")))) ->  | BL52: =IF(ISERROR(VLOOKUP(I52,'Dermal data'!A$3:K$25,1,FALSE)),"",LEFT(VLOOKUP(I52,'Dermal data'!A$3:K$25,1,FALSE),2)) -> 2 | BM52: =IF(ISERROR(VLOOKUP(I52,'Dermal data'!A$3:K$25,11,FALSE)),"",VLOOKUP(I52,'Dermal data'!A$3:K$25,11,FALSE)) -> Use in closed, continuous process with occasional controlled exposure [PROC 2]. | BN52: =IF(ISERROR(VLOOKUP(I52,'Dermal data'!A$3:L$25,12,FALSE)),"",VLOOKUP(I52,'Dermal data'!A$3:L$25,12,FALSE)) -> Continuous process but where the design philosophy is not specifically aimed at minimizing emissions It is not high integrity and occasional expose will arise e.g. through maintenance, sampling and equipment breakages. | BP52: 100 | BQ52: 100 | CK52: =IF(H52=WPG!F$339,2,IF(H52=WPG!F$338,3,5)) -> 3
A53: 6 | B53: Vapour exposure | C53: Industrial | D53: General exposures (open systems) [CS16]. | E53: Daily; >4 hours, ambient | F53: Well ventilated area (Enhanced GV). | H53: Liquid, vapour pressure 0.5 - 10 kPa at STP [OC4]. | I53: 4 - Use in batch and other process (synthesis) where opportunity for exposure arises | J53: Yes | N53: =IF(AND(OR(I53=A$124,I53=A$133),E$8<0.01,J53="Yes"),IF(B$8="YES",MIN(0.1*E$10/24,BB$10),0.1*E$10/24),IF(I53="","",IF(B53="Vapour exposure",IF(C53="Industrial",VLOOKUP(I53,'Inhalation data'!A$3:I$24,IF(H53=WPG!F$339,2,IF(H53=WPG!F$338,3,5)),FALSE),VLOOKUP(I53,'Inhalation data'!A$3:I$24,IF(H53=WPG!F$339,6,IF(H53=WPG!F$338,7,9)),FALSE))*E$10/24,IF(C53="Industrial",VLOOKUP(I53,'Inhalation data'!A$3:X$24,23,FALSE),VLOOKUP(I53,'Inhalation data'!A$3:X$24,24,FALSE))))) -> 100 | O53: =IF(OR(I53="",J53="No",J53=""),"",VLOOKUP(I53,'Inhalation data'!A$3:O$24,IF(C53="Industrial",14,15),FALSE)) -> 90 | U53: =IF(I53="","",VLOOKUP(I53,'Inhalation data'!A$3:AS$24,45,FALSE)) -> 4 | V53: 10 | W53: 40 | AA53: =IF(I53="","",VLOOKUP(I53,'Dermal data'!A$4:F$25,6,FALSE)) -> 6.86 | AB53: =IF(I53="","",VLOOKUP(I53,'Dermal data'!A$4:F$25,5,FALSE)/1000) -> 1 | AC53: =IF(AND(J53="Yes",B$9="YES"),IF(C53="Industrial - SU3",VLOOKUP(I53,'Dermal data'!A$4:G$25,7,),VLOOKUP(I53,'Dermal data'!A$4:H$25,8,)),"") -> 0.2 | AD53: gloves | AH53: 0.2744 | AK53: 0 | AL53: 0.2 | AM53: 0.05488 | AN53: =AL53+AM53 -> 0.25488 | AO53: Provide extract ventilation to points where emissions occur [E54]. Wear suitable gloves tested to EN374 [PPE15]. | AP53: YES | AQ53: =IF(AND(AQ$42="NO",AP53="NO"),"",IF(OR(J53="No",J53=""),"",VLOOKUP(I53,'Inhalation data'!A$3:S$24,IF(C53="Industrial",16,17),FALSE))&IF(P53="","",IF(P53="70 (ventilation)",WPG!F$383,IF(P53="30 (ventilation)",Findandtranslate_WPG(P$40),IF(OR(D53=WPG!F$228,E53=WPG!F$228,F53=WPG!F$228),WPG!F$367,WPG!F$412))))) -> Provide extract ventilation to points where emissions occur [E54]. | AR53: =IF(AND(AR$42="NO",AP53="NO"),"",IF(Q53="half mask",WPG!F$465,IF(Q53="full face",WPG!F$467&WPG!F$468,""))&IF(AD53="gloves",WPG!F$458,IF(AD53="gloves-basic training",WPG!F$459,IF(AD53="gloves-specific training",WPG!F$460,IF(AD53="gloves-intensive controls",WPG!F$461,""))))&IF(AD53="","",VLOOKUP(I53,'Inhalation data'!A$3:V$24,22,FALSE))) -> Wear suitable gloves tested to EN374 [PPE15]. | AS53: =IF(AND(AS$42="NO",AP53="NO"),"",IF(M53="<15 min",WPG!F$360,IF(M53="1-4 hours",WPG!F$362,IF(M53="15 min-1 hour",WPG!F$361,"")))) ->  | AT53: =IF(OR(AND(AT$42="NO",AP53="NO"),BQ53>BP53),"",IF(L53="5-25%",WPG!F$352,IF(L53="1-5%",WPG!F$351,IF(L53="<1%",WPG!F$350,"")))) ->  | BL53: =IF(ISERROR(VLOOKUP(I53,'Dermal data'!A$3:K$25,1,FALSE)),"",LEFT(VLOOKUP(I53,'Dermal data'!A$3:K$25,1,FALSE),2)) -> 4 | BM53: =IF(ISERROR(VLOOKUP(I53,'Dermal data'!A$3:K$25,11,FALSE)),"",VLOOKUP(I53,'Dermal data'!A$3:K$25,11,FALSE)) -> Use in batch and other process (synthesis) where opportunity for exposure arises [PROC 4]. | BN53: =IF(ISERROR(VLOOKUP(I53,'Dermal data'!A$3:L$25,12,FALSE)),"",VLOOKUP(I53,'Dermal data'!A$3:L$25,12,FALSE)) -> Use in batch manufacture of a chemical where significant opportunity for exposure arises, e.g. during charging, sampling or discharge of material, and when the nature of the design is likely to result in exposure. | BP53: 100 | BQ53: 100 | CK53: =IF(H53=WPG!F$339,2,IF(H53=WPG!F$338,3,5)) -> 3
A54: 7a | B54: Vapour exposure | C54: Industrial | D54: General exposures (open systems) [CS16]. ; elevated temperature [CS111]. | E54: Daily; >4 hours, ambient (product at 80oC) | F54: Well ventilated area (Enhanced GV). | G54: Liquid, vapour pressure > 10 kPa at STP [OC5]. | H54: Liquid, vapour pressure > 10 kPa at STP [OC5]. | I54: 4 - Use in batch and other process (synthesis) where opportunity for exposure arises | J54: Yes | N54: =IF(AND(OR(I54=A$124,I54=A$133),E$8<0.01,J54="Yes"),IF(B$8="YES",MIN(0.1*E$10/24,BB$10),0.1*E$10/24),IF(I54="","",IF(B54="Vapour exposure",IF(C54="Industrial",VLOOKUP(I54,'Inhalation data'!A$3:I$24,IF(H54=WPG!F$339,2,IF(H54=WPG!F$338,3,5)),FALSE),VLOOKUP(I54,'Inhalation data'!A$3:I$24,IF(H54=WPG!F$339,6,IF(H54=WPG!F$338,7,9)),FALSE))*E$10/24,IF(C54="Industrial",VLOOKUP(I54,'Inhalation data'!A$3:X$24,23,FALSE),VLOOKUP(I54,'Inhalation data'!A$3:X$24,24,FALSE))))) -> 500 | O54: =IF(OR(I54="",J54="No",J54=""),"",VLOOKUP(I54,'Inhalation data'!A$3:O$24,IF(C54="Industrial",14,15),FALSE)) -> 90 | P54: 30 (ventilation) | U54: =IF(I54="","",VLOOKUP(I54,'Inhalation data'!A$3:AS$24,45,FALSE)) -> 4 | V54: 35 | W54: 140 | AA54: =IF(I54="","",VLOOKUP(I54,'Dermal data'!A$4:F$25,6,FALSE)) -> 6.86 | AB54: =IF(I54="","",VLOOKUP(I54,'Dermal data'!A$4:F$25,5,FALSE)/1000) -> 1 | AC54: =IF(AND(J54="Yes",B$9="YES"),IF(C54="Industrial - SU3",VLOOKUP(I54,'Dermal data'!A$4:G$25,7,),VLOOKUP(I54,'Dermal data'!A$4:H$25,8,)),"") -> 0.2 | AD54: gloves-basic training | AH54: 0.1372 | AK54: 0 | AL54: 0.7 | AM54: 0.02744 | AN54: 0.72744 | AO54: Minimise exposure by partial enclosure of the operation or equipment and provide extract ventilation at openings [E60]. ; Provide a good standard of general ventilation (not less than 3-5 air changes per hour) [E11]Wear chemically resistant gloves (tested to EN374) in combination with ‘basic’ employee training [PPE16]. | AP54: NO | AQ54: =IF(AND(AQ$42="NO",AP54="NO"),"",IF(OR(J54="No",J54=""),"",VLOOKUP(I54,'Inhalation data'!A$3:S$24,IF(C54="Industrial",16,17),FALSE))&IF(P54="","",IF(P54="70 (ventilation)",WPG!F$383,IF(P54="30 (ventilation)",Findandtranslate_WPG(P$40),IF(OR(D54=WPG!F$228,E54=WPG!F$228,F54=WPG!F$228),WPG!F$367,WPG!F$412))))) ->  | AR54: =IF(AND(AR$42="NO",AP54="NO"),"",IF(Q54="half mask",WPG!F$465,IF(Q54="full face",WPG!F$467&WPG!F$468,""))&IF(AD54="gloves",WPG!F$458,IF(AD54="gloves-basic training",WPG!F$459,IF(AD54="gloves-specific training",WPG!F$460,IF(AD54="gloves-intensive controls",WPG!F$461,""))))&IF(AD54="","",VLOOKUP(I54,'Inhalation data'!A$3:V$24,22,FALSE))) -> Wear chemically resistant gloves (tested to EN374) in combination with ‘basic’ employee training [PPE16]. | AS54: =IF(AND(AS$42="NO",AP54="NO"),"",IF(M54="<15 min",WPG!F$360,IF(M54="1-4 hours",WPG!F$362,IF(M54="15 min-1 hour",WPG!F$361,"")))) ->  | AT54: =IF(OR(AND(AT$42="NO",AP54="NO"),BQ54>BP54),"",IF(L54="5-25%",WPG!F$352,IF(L54="1-5%",WPG!F$351,IF(L54="<1%",WPG!F$350,"")))) ->  | AV54: Minimise exposure by partial enclosure of the operation or equipment and provide extract ventilation at openings [E60]. ; Provide a good standard of general ventilation (not less than 3-5 air changes per hour) [E11] | BL54: =IF(ISERROR(VLOOKUP(I54,'Dermal data'!A$3:K$25,1,FALSE)),"",LEFT(VLOOKUP(I54,'Dermal data'!A$3:K$25,1,FALSE),2)) -> 4 | BM54: =IF(ISERROR(VLOOKUP(I54,'Dermal data'!A$3:K$25,11,FALSE)),"",VLOOKUP(I54,'Dermal data'!A$3:K$25,11,FALSE)) -> Use in batch and other process (synthesis) where opportunity for exposure arises [PROC 4]. | BN54: =IF(ISERROR(VLOOKUP(I54,'Dermal data'!A$3:L$25,12,FALSE)),"",VLOOKUP(I54,'Dermal data'!A$3:L$25,12,FALSE)) -> Use in batch manufacture of a chemical where significant opportunity for exposure arises, e.g. during charging, sampling or discharge of material, and when the nature of the design is likely to result in exposure. | BP54: 100 | BQ54: 100 | CK54: =IF(H54=WPG!F$339,2,IF(H54=WPG!F$338,3,5)) -> 2
A55: 7b | B55: Aerosol exposure | C55: Industrial | D55: General exposures (open systems) [CS16]. ; elevated temperature [CS111]. | E55: Daily; >4 hours, ambient (product at 80oC) | F55: Well ventilated area (Enhanced GV). | H55: not applicable for aerosols | I55: 4 - Use in batch and other process (synthesis) where opportunity for exposure arises | J55: Yes | N55: =IF(AND(OR(I55=A$124,I55=A$133),E$8<0.01,J55="Yes"),IF(B$8="YES",MIN(0.1*E$10/24,BB$10),0.1*E$10/24),IF(I55="","",IF(B55="Vapour exposure",IF(C55="Industrial",VLOOKUP(I55,'Inhalation data'!A$3:I$24,IF(H55=WPG!F$339,2,IF(H55=WPG!F$338,3,5)),FALSE),VLOOKUP(I55,'Inhalation data'!A$3:I$24,IF(H55=WPG!F$339,6,IF(H55=WPG!F$338,7,9)),FALSE))*E$10/24,IF(C55="Industrial",VLOOKUP(I55,'Inhalation data'!A$3:X$24,23,FALSE),VLOOKUP(I55,'Inhalation data'!A$3:X$24,24,FALSE))))) -> 5 | O55: =IF(OR(I55="",J55="No",J55=""),"",VLOOKUP(I55,'Inhalation data'!A$3:O$24,IF(C55="Industrial",14,15),FALSE)) -> 90 | P55: 30 (ventilation) | U55: =IF(I55="","",VLOOKUP(I55,'Inhalation data'!A$3:AS$24,45,FALSE)) -> 4 | V55: 0.35 | W55: 1.4 | AA55: =IF(I55="","",VLOOKUP(I55,'Dermal data'!A$4:F$25,6,FALSE)) -> 6.86 | AB55: =IF(I55="","",VLOOKUP(I55,'Dermal data'!A$4:F$25,5,FALSE)/1000) -> 1 | AC55: =IF(AND(J55="Yes",B$9="YES"),IF(C55="Industrial - SU3",VLOOKUP(I55,'Dermal data'!A$4:G$25,7,),VLOOKUP(I55,'Dermal data'!A$4:H$25,8,)),"") -> 0.2 | AD55: gloves-basic training | AH55: 0.1372 | AK55: 0 | AL55: 0.07 | AM55: 0.02744 | AN55: 0.09744 | AO55: Minimise exposure by partial enclosure of the operation or equipment and provide extract ventilation at openings [E60]. ; Provide a good standard of general ventilation (not less than 3-5 air changes per hour) [E11]Wear chemically resistant gloves (tested to EN374) in combination with ‘basic’ employee training [PPE16]. | AP55: NO | AQ55: =IF(AND(AQ$42="NO",AP55="NO"),"",IF(OR(J55="No",J55=""),"",VLOOKUP(I55,'Inhalation data'!A$3:S$24,IF(C55="Industrial",16,17),FALSE))&IF(P55="","",IF(P55="70 (ventilation)",WPG!F$383,IF(P55="30 (ventilation)",Findandtranslate_WPG(P$40),IF(OR(D55=WPG!F$228,E55=WPG!F$228,F55=WPG!F$228),WPG!F$367,WPG!F$412))))) ->  | AR55: =IF(AND(AR$42="NO",AP55="NO"),"",IF(Q55="half mask",WPG!F$465,IF(Q55="full face",WPG!F$467&WPG!F$468,""))&IF(AD55="gloves",WPG!F$458,IF(AD55="gloves-basic training",WPG!F$459,IF(AD55="gloves-specific training",WPG!F$460,IF(AD55="gloves-intensive controls",WPG!F$461,""))))&IF(AD55="","",VLOOKUP(I55,'Inhalation data'!A$3:V$24,22,FALSE))) -> Wear chemically resistant gloves (tested to EN374) in combination with ‘basic’ employee training [PPE16]. | AS55: =IF(AND(AS$42="NO",AP55="NO"),"",IF(M55="<15 min",WPG!F$360,IF(M55="1-4 hours",WPG!F$362,IF(M55="15 min-1 hour",WPG!F$361,"")))) ->  | AT55: =IF(OR(AND(AT$42="NO",AP55="NO"),BQ55>BP55),"",IF(L55="5-25%",WPG!F$352,IF(L55="1-5%",WPG!F$351,IF(L55="<1%",WPG!F$350,"")))) ->  | AV55: Minimise exposure by partial enclosure of the operation or equipment and provide extract ventilation at openings [E60]. ; Provide a good standard of general ventilation (not less than 3-5 air changes per hour) [E11] | BL55: =IF(ISERROR(VLOOKUP(I55,'Dermal data'!A$3:K$25,1,FALSE)),"",LEFT(VLOOKUP(I55,'Dermal data'!A$3:K$25,1,FALSE),2)) -> 4 | BM55: =IF(ISERROR(VLOOKUP(I55,'Dermal data'!A$3:K$25,11,FALSE)),"",VLOOKUP(I55,'Dermal data'!A$3:K$25,11,FALSE)) -> Use in batch and other process (synthesis) where opportunity for exposure arises [PROC 4]. | BN55: =IF(ISERROR(VLOOKUP(I55,'Dermal data'!A$3:L$25,12,FALSE)),"",VLOOKUP(I55,'Dermal data'!A$3:L$25,12,FALSE)) -> Use in batch manufacture of a chemical where significant opportunity for exposure arises, e.g. during charging, sampling or discharge of material, and when the nature of the design is likely to result in exposure. | BP55: 100 | BQ55: 100
A56: 8 | B56: Vapour exposure | C56: Industrial | D56: Remanufacture of reject articles [CS19]. | E56: Daily; >4 hours, ambient | F56: work methods, drain prior to work, retain spills | H56: Liquid, vapour pressure 0.5 - 10 kPa at STP [OC4]. | I56: 9 -Transfer of chemicals into small containers (dedicated filling line) | J56: Yes | N56: =IF(AND(OR(I56=A$124,I56=A$133),E$8<0.01,J56="Yes"),IF(B$8="YES",MIN(0.1*E$10/24,BB$10),0.1*E$10/24),IF(I56="","",IF(B56="Vapour exposure",IF(C56="Industrial",VLOOKUP(I56,'Inhalation data'!A$3:I$24,IF(H56=WPG!F$339,2,IF(H56=WPG!F$338,3,5)),FALSE),VLOOKUP(I56,'Inhalation data'!A$3:I$24,IF(H56=WPG!F$339,6,IF(H56=WPG!F$338,7,9)),FALSE))*E$10/24,IF(C56="Industrial",VLOOKUP(I56,'Inhalation data'!A$3:X$24,23,FALSE),VLOOKUP(I56,'Inhalation data'!A$3:X$24,24,FALSE))))) -> 250 | O56: =IF(OR(I56="",J56="No",J56=""),"",VLOOKUP(I56,'Inhalation data'!A$3:O$24,IF(C56="Industrial",14,15),FALSE)) -> 90 | U56: =IF(I56="","",VLOOKUP(I56,'Inhalation data'!A$3:AS$24,45,FALSE)) -> 4 | V56: 25 | W56: 100 | AA56: =IF(I56="","",VLOOKUP(I56,'Dermal data'!A$4:F$25,6,FALSE)) -> 6.86 | AB56: =IF(I56="","",VLOOKUP(I56,'Dermal data'!A$4:F$25,5,FALSE)/1000) -> 1 | AC56: =IF(AND(J56="Yes",B$9="YES"),IF(C56="Industrial - SU3",VLOOKUP(I56,'Dermal data'!A$4:G$25,7,),VLOOKUP(I56,'Dermal data'!A$4:H$25,8,)),"") -> 0.2 | AD56: gloves | AH56: 0.2744 | AK56: 0 | AL56: 0.5 | AM56: 0.05488 | AN56: =AL56+AM56 -> 0.55488 | AO56: =AQ56&AS56&AT56&AU56&AV56&AW56&AY56&AR56&AX56 -> Provide extract ventilation to points where emissions occur [E54]. Wear suitable gloves tested to EN374 [PPE15]. | AP56: NO | AQ56: =IF(AND(AQ$42="NO",AP56="NO"),"",IF(OR(J56="No",J56=""),"",VLOOKUP(I56,'Inhalation data'!A$3:S$24,IF(C56="Industrial",16,17),FALSE))&IF(P56="","",IF(P56="70 (ventilation)",WPG!F$383,IF(P56="30 (ventilation)",Findandtranslate_WPG(P$40),IF(OR(D56=WPG!F$228,E56=WPG!F$228,F56=WPG!F$228),WPG!F$367,WPG!F$412))))) ->  | AR56: =IF(AND(AR$42="NO",AP56="NO"),"",IF(Q56="half mask",WPG!F$465,IF(Q56="full face",WPG!F$467&WPG!F$468,""))&IF(AD56="gloves",WPG!F$458,IF(AD56="gloves-basic training",WPG!F$459,IF(AD56="gloves-specific training",WPG!F$460,IF(AD56="gloves-intensive controls",WPG!F$461,""))))&IF(AD56="","",VLOOKUP(I56,'Inhalation data'!A$3:V$24,22,FALSE))) -> Wear suitable gloves tested to EN374 [PPE15]. | AS56: =IF(AND(AS$42="NO",AP56="NO"),"",IF(M56="<15 min",WPG!F$360,IF(M56="1-4 hours",WPG!F$362,IF(M56="15 min-1 hour",WPG!F$361,"")))) ->  | AT56: =IF(OR(AND(AT$42="NO",AP56="NO"),BQ56>BP56),"",IF(L56="5-25%",WPG!F$352,IF(L56="1-5%",WPG!F$351,IF(L56="<1%",WPG!F$350,"")))) ->  | AV56: Provide extract ventilation to points where emissions occur [E54]. | BL56: =IF(ISERROR(VLOOKUP(I56,'Dermal data'!A$3:K$25,1,FALSE)),"",LEFT(VLOOKUP(I56,'Dermal data'!A$3:K$25,1,FALSE),2)) -> 9 | BM56: =IF(ISERROR(VLOOKUP(I56,'Dermal data'!A$3:K$25,11,FALSE)),"",VLOOKUP(I56,'Dermal data'!A$3:K$25,11,FALSE)) -> Transfer of substance or preparation into small containers (dedicated filling line, including weighing) [PROC 9]. | BN56: =IF(ISERROR(VLOOKUP(I56,'Dermal data'!A$3:L$25,12,FALSE)),"",VLOOKUP(I56,'Dermal data'!A$3:L$25,12,FALSE)) -> Filling lines specifically designed to both capture vapour and aerosol emissions and minimise spillage. | BP56: 100 | BQ56: 100
A57: 9-1 | B57: Vapour exposure | C57: Industrial | D57: Equipment maintenance [CS5]. | E57: Daily; 1-4 hours, ambient | F57: work methods, drain prior to work, retain spills, gloves | H57: Liquid, vapour pressure 0.5 - 10 kPa at STP [OC4]. | I57: 8a -Transfer of chemicals from/to vessels/ large containers at non dedicated facilities | N57: =IF(AND(OR(I57=A$124,I57=A$133),E$8<0.01,J57="Yes"),IF(B$8="YES",MIN(0.1*E$10/24,BB$10),0.1*E$10/24),IF(I57="","",IF(B57="Vapour exposure",IF(C57="Industrial",VLOOKUP(I57,'Inhalation data'!A$3:I$24,IF(H57=WPG!F$339,2,IF(H57=WPG!F$338,3,5)),FALSE),VLOOKUP(I57,'Inhalation data'!A$3:I$24,IF(H57=WPG!F$339,6,IF(H57=WPG!F$338,7,9)),FALSE))*E$10/24,IF(C57="Industrial",VLOOKUP(I57,'Inhalation data'!A$3:X$24,23,FALSE),VLOOKUP(I57,'Inhalation data'!A$3:X$24,24,FALSE))))) -> 250 | O57: =IF(OR(I57="",J57="No",J57=""),"",VLOOKUP(I57,'Inhalation data'!A$3:O$24,IF(C57="Industrial",14,15),FALSE)) ->  | R57: 0.1 | S57: SOP for draining before maintenance equivalent reduction factor to use of LEV | U57: =IF(I57="","",VLOOKUP(I57,'Inhalation data'!A$3:AS$24,45,FALSE)) -> 4 | V57: 25 | W57: 100 | AA57: =IF(I57="","",VLOOKUP(I57,'Dermal data'!A$4:F$25,6,FALSE)) -> 13.71 | AB57: =IF(I57="","",VLOOKUP(I57,'Dermal data'!A$4:F$25,5,FALSE)/1000) -> 1 | AC57: =IF(AND(J57="Yes",B$9="YES"),IF(C57="Industrial - SU3",VLOOKUP(I57,'Dermal data'!A$4:G$25,7,),VLOOKUP(I57,'Dermal data'!A$4:H$25,8,)),"") ->  | AD57: gloves-basic training | AH57: 1.371 | AK57: 0 | AL57: 0.5 | AM57: 0.2742 | AN57: 0.7742 | AO57: Drain down system prior to equipment break-in or maintenance [E65].Wear chemically resistant gloves (tested to EN374) in combination with ‘basic’ employee training [PPE16]. | AP57: NO | AQ57: =IF(AND(AQ$42="NO",AP57="NO"),"",IF(OR(J57="No",J57=""),"",VLOOKUP(I57,'Inhalation data'!A$3:S$24,IF(C57="Industrial",16,17),FALSE))&IF(P57="","",IF(P57="70 (ventilation)",WPG!F$383,IF(P57="30 (ventilation)",Findandtranslate_WPG(P$40),IF(OR(D57=WPG!F$228,E57=WPG!F$228,F57=WPG!F$228),WPG!F$367,WPG!F$412))))) ->  | AR57: =IF(AND(AR$42="NO",AP57="NO"),"",IF(Q57="half mask",WPG!F$465,IF(Q57="full face",WPG!F$467&WPG!F$468,""))&IF(AD57="gloves",WPG!F$458,IF(AD57="gloves-basic training",WPG!F$459,IF(AD57="gloves-specific training",WPG!F$460,IF(AD57="gloves-intensive controls",WPG!F$461,""))))&IF(AD57="","",VLOOKUP(I57,'Inhalation data'!A$3:V$24,22,FALSE))) -> Wear chemically resistant gloves (tested to EN374) in combination with ‘basic’ employee training [PPE16]. | AS57: =IF(AND(AS$42="NO",AP57="NO"),"",IF(M57="<15 min",WPG!F$360,IF(M57="1-4 hours",WPG!F$362,IF(M57="15 min-1 hour",WPG!F$361,"")))) ->  | AT57: =IF(OR(AND(AT$42="NO",AP57="NO"),BQ57>BP57),"",IF(L57="5-25%",WPG!F$352,IF(L57="1-5%",WPG!F$351,IF(L57="<1%",WPG!F$350,"")))) ->  | AU57: Drain down system prior to equipment break-in or maintenance [E65]. | BL57: =IF(ISERROR(VLOOKUP(I57,'Dermal data'!A$3:K$25,1,FALSE)),"",LEFT(VLOOKUP(I57,'Dermal data'!A$3:K$25,1,FALSE),2)) -> 8a | BM57: =IF(ISERROR(VLOOKUP(I57,'Dermal data'!A$3:K$25,11,FALSE)),"",VLOOKUP(I57,'Dermal data'!A$3:K$25,11,FALSE)) -> Transfer of substance or preparation (charging/discharging) from/to vessels/large containers at non-dedicated facilities [PROC 8a]. | BN57: =IF(ISERROR(VLOOKUP(I57,'Dermal data'!A$3:L$25,12,FALSE)),"",VLOOKUP(I57,'Dermal data'!A$3:L$25,12,FALSE)) -> Sampling, loading, filling, transfer, dumping, bagging in non- dedicated facilities. Exposure related to dust, va-pour, aerosols or spillage, and cleaning of equipment to be expected. | BP57: 100 | BQ57: 100
A58: 9-2 | B58: Vapour exposure | C58: Industrial | D58: Equipment maintenance [CS5]. | E58: Daily; 1-4 hours, ambient | F58: work methods, drain prior to work, retain spills, gloves | H58: Liquid, vapour pressure 0.5 - 10 kPa at STP [OC4]. | I58: 28 - Manual maintenance (cleaning and repair) of machinery | N58: =IF(AND(OR(I58=A$124,I58=A$133),E$8<0.01,J58="Yes"),IF(B$8="YES",MIN(0.1*E$10/24,BB$10),0.1*E$10/24),IF(I58="","",IF(B58="Vapour exposure",IF(C58="Industrial",VLOOKUP(I58,'Inhalation data'!A$3:I$24,IF(H58=WPG!F$339,2,IF(H58=WPG!F$338,3,5)),FALSE),VLOOKUP(I58,'Inhalation data'!A$3:I$24,IF(H58=WPG!F$339,6,IF(H58=WPG!F$338,7,9)),FALSE))*E$10/24,IF(C58="Industrial",VLOOKUP(I58,'Inhalation data'!A$3:X$24,23,FALSE),VLOOKUP(I58,'Inhalation data'!A$3:X$24,24,FALSE))))) -> 250 | O58: =IF(OR(I58="",J58="No",J58=""),"",VLOOKUP(I58,'Inhalation data'!A$3:O$24,IF(C58="Industrial",14,15),FALSE)) ->  | R58: 0.1 | S58: SOP for draining before maintenance equivalent reduction factor to use of LEV | U58: =IF(I58="","",VLOOKUP(I58,'Inhalation data'!A$3:AS$24,45,FALSE)) -> 4 | V58: 25 | W58: 100 | AA58: =IF(I58="","",VLOOKUP(I58,'Dermal data'!A$4:F$25,6,FALSE)) -> 13.71 | AB58: =IF(I58="","",VLOOKUP(I58,'Dermal data'!A$4:F$25,5,FALSE)/1000) -> 1 | AC58: =IF(AND(J58="Yes",B$9="YES"),IF(C58="Industrial - SU3",VLOOKUP(I58,'Dermal data'!A$4:G$25,7,),VLOOKUP(I58,'Dermal data'!A$4:H$25,8,)),"") ->  | AD58: gloves-basic training | AH58: 1.371 | AK58: 0 | AL58: 0.5 | AM58: 0.2742 | AN58: 0.7742 | AO58: Drain down system prior to equipment break-in or maintenance [E65].Wear chemically resistant gloves (tested to EN374) in combination with ‘basic’ employee training [PPE16]. | AP58: NO | AQ58: =IF(AND(AQ$42="NO",AP58="NO"),"",IF(OR(J58="No",J58=""),"",VLOOKUP(I58,'Inhalation data'!A$3:S$24,IF(C58="Industrial",16,17),FALSE))&IF(P58="","",IF(P58="70 (ventilation)",WPG!F$383,IF(P58="30 (ventilation)",Findandtranslate_WPG(P$40),IF(OR(D58=WPG!F$228,E58=WPG!F$228,F58=WPG!F$228),WPG!F$367,WPG!F$412))))) ->  | AR58: =IF(AND(AR$42="NO",AP58="NO"),"",IF(Q58="half mask",WPG!F$465,IF(Q58="full face",WPG!F$467&WPG!F$468,""))&IF(AD58="gloves",WPG!F$458,IF(AD58="gloves-basic training",WPG!F$459,IF(AD58="gloves-specific training",WPG!F$460,IF(AD58="gloves-intensive controls",WPG!F$461,""))))&IF(AD58="","",VLOOKUP(I58,'Inhalation data'!A$3:V$24,22,FALSE))) -> Wear chemically resistant gloves (tested to EN374) in combination with ‘basic’ employee training [PPE16]. | AS58: =IF(AND(AS$42="NO",AP58="NO"),"",IF(M58="<15 min",WPG!F$360,IF(M58="1-4 hours",WPG!F$362,IF(M58="15 min-1 hour",WPG!F$361,"")))) ->  | AT58: =IF(OR(AND(AT$42="NO",AP58="NO"),BQ58>BP58),"",IF(L58="5-25%",WPG!F$352,IF(L58="1-5%",WPG!F$351,IF(L58="<1%",WPG!F$350,"")))) ->  | AU58: Drain down system prior to equipment break-in or maintenance [E65]. | BL58: =IF(ISERROR(VLOOKUP(I58,'Dermal data'!A$3:K$25,1,FALSE)),"",LEFT(VLOOKUP(I58,'Dermal data'!A$3:K$25,1,FALSE),2)) -> 28 | BM58: =IF(ISERROR(VLOOKUP(I58,'Dermal data'!A$3:K$25,11,FALSE)),"",VLOOKUP(I58,'Dermal data'!A$3:K$25,11,FALSE)) -> Manual maintenance (cleaning and repair) of machinery [PROC 28]. | BN58: =IF(ISERROR(VLOOKUP(I58,'Dermal data'!A$3:L$25,12,FALSE)),"",VLOOKUP(I58,'Dermal data'!A$3:L$25,12,FALSE)) -> Covers maintenance activities for uses where the maintenance is not already included in any of the other process categories. The category covers for example: • activities when closed systems are opened and potentially entered for cleaning • generally dedicated/separate cleaning tasks conducted on a shift or less frequent basis (e.g. between individual production batches) • removal of splashes around the machinery removal of filters or material from filters • cleaning of floors that are not directly around the machinery, but still need cleaning for instance because of dust deposition when handling a dusty product . | BP58: 100 | BQ58: 100
A59: 10-1 | B59: Vapour exposure | C59: Industrial | D59: Storage [CS67]. | E59: Daily; exposure < 1hour; ambient temp; | F59: samples collected at dedicated sample point | H59: Liquid, vapour pressure 0.5 - 10 kPa at STP [OC4]. | I59: 1 - Use in closed process, no likelihood of exposure | N59: =IF(AND(OR(I59=A$124,I59=A$133),E$8<0.01,J59="Yes"),IF(B$8="YES",MIN(0.1*E$10/24,BB$10),0.1*E$10/24),IF(I59="","",IF(B59="Vapour exposure",IF(C59="Industrial",VLOOKUP(I59,'Inhalation data'!A$3:I$24,IF(H59=WPG!F$339,2,IF(H59=WPG!F$338,3,5)),FALSE),VLOOKUP(I59,'Inhalation data'!A$3:I$24,IF(H59=WPG!F$339,6,IF(H59=WPG!F$338,7,9)),FALSE))*E$10/24,IF(C59="Industrial",VLOOKUP(I59,'Inhalation data'!A$3:X$24,23,FALSE),VLOOKUP(I59,'Inhalation data'!A$3:X$24,24,FALSE))))) -> 0.05 | O59: =IF(OR(I59="",J59="No",J59=""),"",VLOOKUP(I59,'Inhalation data'!A$3:O$24,IF(C59="Industrial",14,15),FALSE)) ->  | U59: =IF(I59="","",VLOOKUP(I59,'Inhalation data'!A$3:AS$24,45,FALSE)) -> 4 | V59: 0.05 | W59: 0.2 | AA59: =IF(I59="","",VLOOKUP(I59,'Dermal data'!A$4:F$25,6,FALSE)) -> 0.03 | AB59: =IF(I59="","",VLOOKUP(I59,'Dermal data'!A$4:F$25,5,FALSE)/1000) -> 0.01 | AC59: =IF(AND(J59="Yes",B$9="YES"),IF(C59="Industrial - SU3",VLOOKUP(I59,'Dermal data'!A$4:G$25,7,),VLOOKUP(I59,'Dermal data'!A$4:H$25,8,)),"") ->  | AH59: 0.03 | AK59: 0 | AL59: 0.001 | AM59: 0.006 | AN59: 0.007 | AO59: Store substance within a closed system [E84]. | AP59: YES | AQ59: =IF(AND(AQ$42="NO",AP59="NO"),"",IF(OR(J59="No",J59=""),"",VLOOKUP(I59,'Inhalation data'!A$3:S$24,IF(C59="Industrial",16,17),FALSE))&IF(P59="","",IF(P59="70 (ventilation)",WPG!F$383,IF(P59="30 (ventilation)",Findandtranslate_WPG(P$40),IF(OR(D59=WPG!F$228,E59=WPG!F$228,F59=WPG!F$228),WPG!F$367,WPG!F$412))))) ->  | AR59: =IF(AND(AR$42="NO",AP59="NO"),"",IF(Q59="half mask",WPG!F$465,IF(Q59="full face",WPG!F$467&WPG!F$468,""))&IF(AD59="gloves",WPG!F$458,IF(AD59="gloves-basic training",WPG!F$459,IF(AD59="gloves-specific training",WPG!F$460,IF(AD59="gloves-intensive controls",WPG!F$461,""))))&IF(AD59="","",VLOOKUP(I59,'Inhalation data'!A$3:V$24,22,FALSE))) ->  | AS59: =IF(AND(AS$42="NO",AP59="NO"),"",IF(M59="<15 min",WPG!F$360,IF(M59="1-4 hours",WPG!F$362,IF(M59="15 min-1 hour",WPG!F$361,"")))) ->  | AT59: =IF(OR(AND(AT$42="NO",AP59="NO"),BQ59>BP59),"",IF(L59="5-25%",WPG!F$352,IF(L59="1-5%",WPG!F$351,IF(L59="<1%",WPG!F$350,"")))) ->  | AU59: Store substance within a closed system [E84]. | BL59: =IF(ISERROR(VLOOKUP(I59,'Dermal data'!A$3:K$25,1,FALSE)),"",LEFT(VLOOKUP(I59,'Dermal data'!A$3:K$25,1,FALSE),2)) -> 1 | BM59: =IF(ISERROR(VLOOKUP(I59,'Dermal data'!A$3:K$25,11,FALSE)),"",VLOOKUP(I59,'Dermal data'!A$3:K$25,11,FALSE)) -> Use in closed process, no likelihood of exposure [PROC 1]. | BN59: =IF(ISERROR(VLOOKUP(I59,'Dermal data'!A$3:L$25,12,FALSE)),"",VLOOKUP(I59,'Dermal data'!A$3:L$25,12,FALSE)) -> Use of the substances in high integrity contained systemwhere little potential exists for exposures, e.g. any sam-pling via closed loop systems. | BP59: 100 | BQ59: 100
A60: 10-2 | B60: Vapour exposure | C60: Industrial | D60: Storage [CS67]. | E60: Daily; exposure <1hour; ambient temp; | F60: samples collected at dedicated sample point | H60: Liquid, vapour pressure 0.5 - 10 kPa at STP [OC4]. | I60: 2 - Use in closed, continuous process with occasional controlled exposure | N60: =IF(AND(OR(I60=A$124,I60=A$133),E$8<0.01,J60="Yes"),IF(B$8="YES",MIN(0.1*E$10/24,BB$10),0.1*E$10/24),IF(I60="","",IF(B60="Vapour exposure",IF(C60="Industrial",VLOOKUP(I60,'Inhalation data'!A$3:I$24,IF(H60=WPG!F$339,2,IF(H60=WPG!F$338,3,5)),FALSE),VLOOKUP(I60,'Inhalation data'!A$3:I$24,IF(H60=WPG!F$339,6,IF(H60=WPG!F$338,7,9)),FALSE))*E$10/24,IF(C60="Industrial",VLOOKUP(I60,'Inhalation data'!A$3:X$24,23,FALSE),VLOOKUP(I60,'Inhalation data'!A$3:X$24,24,FALSE))))) -> 25 | O60: =IF(OR(I60="",J60="No",J60=""),"",VLOOKUP(I60,'Inhalation data'!A$3:O$24,IF(C60="Industrial",14,15),FALSE)) ->  | U60: =IF(I60="","",VLOOKUP(I60,'Inhalation data'!A$3:AS$24,45,FALSE)) -> 4 | V60: 25 | W60: 100 | AA60: =IF(I60="","",VLOOKUP(I60,'Dermal data'!A$4:F$25,6,FALSE)) -> 1.37 | AB60: =IF(I60="","",VLOOKUP(I60,'Dermal data'!A$4:F$25,5,FALSE)/1000) -> 0.2 | AC60: =IF(AND(J60="Yes",B$9="YES"),IF(C60="Industrial - SU3",VLOOKUP(I60,'Dermal data'!A$4:G$25,7,),VLOOKUP(I60,'Dermal data'!A$4:H$25,8,)),"") ->  | AH60: 1.37 | AK60: 0 | AL60: 0.5 | AM60: 0.274 | AN60: 0.774 | AO60: Store substance within a closed system [E84]. | AP60: YES | AQ60: =IF(AND(AQ$42="NO",AP60="NO"),"",IF(OR(J60="No",J60=""),"",VLOOKUP(I60,'Inhalation data'!A$3:S$24,IF(C60="Industrial",16,17),FALSE))&IF(P60="","",IF(P60="70 (ventilation)",WPG!F$383,IF(P60="30 (ventilation)",Findandtranslate_WPG(P$40),IF(OR(D60=WPG!F$228,E60=WPG!F$228,F60=WPG!F$228),WPG!F$367,WPG!F$412))))) ->  | AR60: =IF(AND(AR$42="NO",AP60="NO"),"",IF(Q60="half mask",WPG!F$465,IF(Q60="full face",WPG!F$467&WPG!F$468,""))&IF(AD60="gloves",WPG!F$458,IF(AD60="gloves-basic training",WPG!F$459,IF(AD60="gloves-specific training",WPG!F$460,IF(AD60="gloves-intensive controls",WPG!F$461,""))))&IF(AD60="","",VLOOKUP(I60,'Inhalation data'!A$3:V$24,22,FALSE))) ->  | AS60: =IF(AND(AS$42="NO",AP60="NO"),"",IF(M60="<15 min",WPG!F$360,IF(M60="1-4 hours",WPG!F$362,IF(M60="15 min-1 hour",WPG!F$361,"")))) ->  | AT60: =IF(OR(AND(AT$42="NO",AP60="NO"),BQ60>BP60),"",IF(L60="5-25%",WPG!F$352,IF(L60="1-5%",WPG!F$351,IF(L60="<1%",WPG!F$350,"")))) ->  | AU60: Store substance within a closed system [E84]. | BL60: =IF(ISERROR(VLOOKUP(I60,'Dermal data'!A$3:K$25,1,FALSE)),"",LEFT(VLOOKUP(I60,'Dermal data'!A$3:K$25,1,FALSE),2)) -> 2 | BM60: =IF(ISERROR(VLOOKUP(I60,'Dermal data'!A$3:K$25,11,FALSE)),"",VLOOKUP(I60,'Dermal data'!A$3:K$25,11,FALSE)) -> Use in closed, continuous process with occasional controlled exposure [PROC 2]. | BN60: =IF(ISERROR(VLOOKUP(I60,'Dermal data'!A$3:L$25,12,FALSE)),"",VLOOKUP(I60,'Dermal data'!A$3:L$25,12,FALSE)) -> Continuous process but where the design philosophy is not specifically aimed at minimizing emissions It is not high integrity and occasional expose will arise e.g. through maintenance, sampling and equipment breakages. | BP60: 100 | BQ60: 100
A61: 11 | B61: Vapour exposure | C61: Industrial | D61: General exposures (closed systems) [CS15]. | E61: Daily; >4 hours, ambient | F61: Closed systems | H61: Liquid, vapour pressure 0.5 - 10 kPa at STP [OC4]. | I61: 3 - Use in closed batch process (synthesis or formulation) | J61: Yes | N61: =IF(AND(OR(I61=A$124,I61=A$133),E$8<0.01,J61="Yes"),IF(B$8="YES",MIN(0.1*E$10/24,BB$10),0.1*E$10/24),IF(I61="","",IF(B61="Vapour exposure",IF(C61="Industrial",VLOOKUP(I61,'Inhalation data'!A$3:I$24,IF(H61=WPG!F$339,2,IF(H61=WPG!F$338,3,5)),FALSE),VLOOKUP(I61,'Inhalation data'!A$3:I$24,IF(H61=WPG!F$339,6,IF(H61=WPG!F$338,7,9)),FALSE))*E$10/24,IF(C61="Industrial",VLOOKUP(I61,'Inhalation data'!A$3:X$24,23,FALSE),VLOOKUP(I61,'Inhalation data'!A$3:X$24,24,FALSE))))) -> 50 | O61: =IF(OR(I61="",J61="No",J61=""),"",VLOOKUP(I61,'Inhalation data'!A$3:O$24,IF(C61="Industrial",14,15),FALSE)) -> 90 | U61: =IF(I61="","",VLOOKUP(I61,'Inhalation data'!A$3:AS$24,45,FALSE)) -> 4 | V61: 5 | W61: 20 | AA61: =IF(I61="","",VLOOKUP(I61,'Dermal data'!A$4:F$25,6,FALSE)) -> 0.69 | AB61: =IF(I61="","",VLOOKUP(I61,'Dermal data'!A$4:F$25,5,FALSE)/1000) -> 0.2 | AC61: =IF(AND(J61="Yes",B$9="YES"),IF(C61="Industrial - SU3",VLOOKUP(I61,'Dermal data'!A$4:G$25,7,),VLOOKUP(I61,'Dermal data'!A$4:H$25,8,)),"") -> 0.2 | AH61: 0.138 | AK61: 0 | AL61: 0.1 | AM61: 0.0276 | AN61: 0.1276 | AO61: Handle substance within a predominantly closed system provided with extract ventilation [E49]. | AP61: YES | AQ61: =IF(AND(AQ$42="NO",AP61="NO"),"",IF(OR(J61="No",J61=""),"",VLOOKUP(I61,'Inhalation data'!A$3:S$24,IF(C61="Industrial",16,17),FALSE))&IF(P61="","",IF(P61="70 (ventilation)",WPG!F$383,IF(P61="30 (ventilation)",Findandtranslate_WPG(P$40),IF(OR(D61=WPG!F$228,E61=WPG!F$228,F61=WPG!F$228),WPG!F$367,WPG!F$412))))) -> Handle substance within a predominantly closed system provided with extract ventilation [E49]. | AR61: =IF(AND(AR$42="NO",AP61="NO"),"",IF(Q61="half mask",WPG!F$465,IF(Q61="full face",WPG!F$467&WPG!F$468,""))&IF(AD61="gloves",WPG!F$458,IF(AD61="gloves-basic training",WPG!F$459,IF(AD61="gloves-specific training",WPG!F$460,IF(AD61="gloves-intensive controls",WPG!F$461,""))))&IF(AD61="","",VLOOKUP(I61,'Inhalation data'!A$3:V$24,22,FALSE))) ->  | AS61: =IF(AND(AS$42="NO",AP61="NO"),"",IF(M61="<15 min",WPG!F$360,IF(M61="1-4 hours",WPG!F$362,IF(M61="15 min-1 hour",WPG!F$361,"")))) ->  | AT61: =IF(OR(AND(AT$42="NO",AP61="NO"),BQ61>BP61),"",IF(L61="5-25%",WPG!F$352,IF(L61="1-5%",WPG!F$351,IF(L61="<1%",WPG!F$350,"")))) ->  | BL61: =IF(ISERROR(VLOOKUP(I61,'Dermal data'!A$3:K$25,1,FALSE)),"",LEFT(VLOOKUP(I61,'Dermal data'!A$3:K$25,1,FALSE),2)) -> 3 | BM61: =IF(ISERROR(VLOOKUP(I61,'Dermal data'!A$3:K$25,11,FALSE)),"",VLOOKUP(I61,'Dermal data'!A$3:K$25,11,FALSE)) -> Use in closed batch process (synthesis or formulation) [PROC 3]. | BN61: =IF(ISERROR(VLOOKUP(I61,'Dermal data'!A$3:L$25,12,FALSE)),"",VLOOKUP(I61,'Dermal data'!A$3:L$25,12,FALSE)) -> Batch manufacture of a chemical or formulation where the predominant handling is in a contained manner, e.g. through enclosed transfers, but where some opportunity for contact with chemicals occurs, e.g. through sampling. | BP61: 100 | BQ61: 100
C62: Industrial | H62: Liquid, vapour pressure 0.5 - 10 kPa at STP [OC4]. | N62: =IF(AND(OR(I62=A$124,I62=A$133),E$8<0.01,J62="Yes"),IF(B$8="YES",MIN(0.1*E$10/24,BB$10),0.1*E$10/24),IF(I62="","",IF(B62="Vapour exposure",IF(C62="Industrial",VLOOKUP(I62,'Inhalation data'!A$3:I$24,IF(H62=WPG!F$339,2,IF(H62=WPG!F$338,3,5)),FALSE),VLOOKUP(I62,'Inhalation data'!A$3:I$24,IF(H62=WPG!F$339,6,IF(H62=WPG!F$338,7,9)),FALSE))*E$10/24,IF(C62="Industrial",VLOOKUP(I62,'Inhalation data'!A$3:X$24,23,FALSE),VLOOKUP(I62,'Inhalation data'!A$3:X$24,24,FALSE))))) ->  | O62: =IF(OR(I62="",J62="No",J62=""),"",VLOOKUP(I62,'Inhalation data'!A$3:O$24,IF(C62="Industrial",14,15),FALSE)) ->  | U62: =IF(I62="","",VLOOKUP(I62,'Inhalation data'!A$3:AS$24,45,FALSE)) ->  | V62: 0 | AA62: =IF(I62="","",VLOOKUP(I62,'Dermal data'!A$4:F$25,6,FALSE)) ->  | AB62: =IF(I62="","",VLOOKUP(I62,'Dermal data'!A$4:F$25,5,FALSE)/1000) ->  | AC62: =IF(AND(J62="Yes",B$9="YES"),IF(C62="Industrial - SU3",VLOOKUP(I62,'Dermal data'!A$4:G$25,7,),VLOOKUP(I62,'Dermal data'!A$4:H$25,8,)),"") ->  | AH62: 0 | AK62: 0 | AL62: 0 | AM62: 0 | AN62: 0 | AQ62: =IF(AND(AQ$42="NO",AP62="NO"),"",IF(OR(J62="No",J62=""),"",VLOOKUP(I62,'Inhalation data'!A$3:S$24,IF(C62="Industrial",16,17),FALSE))&IF(P62="","",IF(P62="70 (ventilation)",WPG!F$383,IF(P62="30 (ventilation)",Findandtranslate_WPG(P$40),IF(OR(D62=WPG!F$228,E62=WPG!F$228,F62=WPG!F$228),WPG!F$367,WPG!F$412))))) ->  | AR62: =IF(AND(AR$42="NO",AP62="NO"),"",IF(Q62="half mask",WPG!F$465,IF(Q62="full face",WPG!F$467&WPG!F$468,""))&IF(AD62="gloves",WPG!F$458,IF(AD62="gloves-basic training",WPG!F$459,IF(AD62="gloves-specific training",WPG!F$460,IF(AD62="gloves-intensive controls",WPG!F$461,""))))&IF(AD62="","",VLOOKUP(I62,'Inhalation data'!A$3:V$24,22,FALSE))) ->  | AS62: =IF(AND(AS$42="NO",AP62="NO"),"",IF(M62="<15 min",WPG!F$360,IF(M62="1-4 hours",WPG!F$362,IF(M62="15 min-1 hour",WPG!F$361,"")))) ->  | AT62: =IF(OR(AND(AT$42="NO",AP62="NO"),BQ62>BP62),"",IF(L62="5-25%",WPG!F$352,IF(L62="1-5%",WPG!F$351,IF(L62="<1%",WPG!F$350,"")))) ->  | BL62: =IF(ISERROR(VLOOKUP(I62,'Dermal data'!A$3:K$25,1,FALSE)),"",LEFT(VLOOKUP(I62,'Dermal data'!A$3:K$25,1,FALSE),2)) ->  | BM62: =IF(ISERROR(VLOOKUP(I62,'Dermal data'!A$3:K$25,11,FALSE)),"",VLOOKUP(I62,'Dermal data'!A$3:K$25,11,FALSE)) ->  | BN62: =IF(ISERROR(VLOOKUP(I62,'Dermal data'!A$3:L$25,12,FALSE)),"",VLOOKUP(I62,'Dermal data'!A$3:L$25,12,FALSE)) ->  | BP62: 100 | BQ62: 100
C63: Industrial | H63: Liquid, vapour pressure 0.5 - 10 kPa at STP [OC4]. | N63: =IF(AND(OR(I63=A$124,I63=A$133),E$8<0.01,J63="Yes"),IF(B$8="YES",MIN(0.1*E$10/24,BB$10),0.1*E$10/24),IF(I63="","",IF(B63="Vapour exposure",IF(C63="Industrial",VLOOKUP(I63,'Inhalation data'!A$3:I$24,IF(H63=WPG!F$339,2,IF(H63=WPG!F$338,3,5)),FALSE),VLOOKUP(I63,'Inhalation data'!A$3:I$24,IF(H63=WPG!F$339,6,IF(H63=WPG!F$338,7,9)),FALSE))*E$10/24,IF(C63="Industrial",VLOOKUP(I63,'Inhalation data'!A$3:X$24,23,FALSE),VLOOKUP(I63,'Inhalation data'!A$3:X$24,24,FALSE))))) ->  | O63: =IF(OR(I63="",J63="No",J63=""),"",VLOOKUP(I63,'Inhalation data'!A$3:O$24,IF(C63="Industrial",14,15),FALSE)) ->  | U63: =IF(I63="","",VLOOKUP(I63,'Inhalation data'!A$3:AS$24,45,FALSE)) ->  | V63: 0 | AA63: =IF(I63="","",VLOOKUP(I63,'Dermal data'!A$4:F$25,6,FALSE)) ->  | AB63: =IF(I63="","",VLOOKUP(I63,'Dermal data'!A$4:F$25,5,FALSE)/1000) ->  | AC63: =IF(AND(J63="Yes",B$9="YES"),IF(C63="Industrial - SU3",VLOOKUP(I63,'Dermal data'!A$4:G$25,7,),VLOOKUP(I63,'Dermal data'!A$4:H$25,8,)),"") ->  | AH63: 0 | AK63: 0 | AL63: 0 | AM63: 0 | AN63: 0 | AQ63: =IF(AND(AQ$42="NO",AP63="NO"),"",IF(OR(J63="No",J63=""),"",VLOOKUP(I63,'Inhalation data'!A$3:S$24,IF(C63="Industrial",16,17),FALSE))&IF(P63="","",IF(P63="70 (ventilation)",WPG!F$383,IF(P63="30 (ventilation)",Findandtranslate_WPG(P$40),IF(OR(D63=WPG!F$228,E63=WPG!F$228,F63=WPG!F$228),WPG!F$367,WPG!F$412))))) ->  | AR63: =IF(AND(AR$42="NO",AP63="NO"),"",IF(Q63="half mask",WPG!F$465,IF(Q63="full face",WPG!F$467&WPG!F$468,""))&IF(AD63="gloves",WPG!F$458,IF(AD63="gloves-basic training",WPG!F$459,IF(AD63="gloves-specific training",WPG!F$460,IF(AD63="gloves-intensive controls",WPG!F$461,""))))&IF(AD63="","",VLOOKUP(I63,'Inhalation data'!A$3:V$24,22,FALSE))) ->  | AS63: =IF(AND(AS$42="NO",AP63="NO"),"",IF(M63="<15 min",WPG!F$360,IF(M63="1-4 hours",WPG!F$362,IF(M63="15 min-1 hour",WPG!F$361,"")))) ->  | AT63: =IF(OR(AND(AT$42="NO",AP63="NO"),BQ63>BP63),"",IF(L63="5-25%",WPG!F$352,IF(L63="1-5%",WPG!F$351,IF(L63="<1%",WPG!F$350,"")))) ->  | BL63: =IF(ISERROR(VLOOKUP(I63,'Dermal data'!A$3:K$25,1,FALSE)),"",LEFT(VLOOKUP(I63,'Dermal data'!A$3:K$25,1,FALSE),2)) ->  | BM63: =IF(ISERROR(VLOOKUP(I63,'Dermal data'!A$3:K$25,11,FALSE)),"",VLOOKUP(I63,'Dermal data'!A$3:K$25,11,FALSE)) ->  | BN63: =IF(ISERROR(VLOOKUP(I63,'Dermal data'!A$3:L$25,12,FALSE)),"",VLOOKUP(I63,'Dermal data'!A$3:L$25,12,FALSE)) ->  | BP63: 100 | BQ63: 100
C64: Industrial | H64: Liquid, vapour pressure 0.5 - 10 kPa at STP [OC4]. | N64: =IF(AND(OR(I64=A$124,I64=A$133),E$8<0.01,J64="Yes"),IF(B$8="YES",MIN(0.1*E$10/24,BB$10),0.1*E$10/24),IF(I64="","",IF(B64="Vapour exposure",IF(C64="Industrial",VLOOKUP(I64,'Inhalation data'!A$3:I$24,IF(H64=WPG!F$339,2,IF(H64=WPG!F$338,3,5)),FALSE),VLOOKUP(I64,'Inhalation data'!A$3:I$24,IF(H64=WPG!F$339,6,IF(H64=WPG!F$338,7,9)),FALSE))*E$10/24,IF(C64="Industrial",VLOOKUP(I64,'Inhalation data'!A$3:X$24,23,FALSE),VLOOKUP(I64,'Inhalation data'!A$3:X$24,24,FALSE))))) ->  | O64: =IF(OR(I64="",J64="No",J64=""),"",VLOOKUP(I64,'Inhalation data'!A$3:O$24,IF(C64="Industrial",14,15),FALSE)) ->  | U64: =IF(I64="","",VLOOKUP(I64,'Inhalation data'!A$3:AS$24,45,FALSE)) ->  | V64: 0 | AA64: =IF(I64="","",VLOOKUP(I64,'Dermal data'!A$4:F$25,6,FALSE)) ->  | AB64: =IF(I64="","",VLOOKUP(I64,'Dermal data'!A$4:F$25,5,FALSE)/1000) ->  | AC64: =IF(AND(J64="Yes",B$9="YES"),IF(C64="Industrial - SU3",VLOOKUP(I64,'Dermal data'!A$4:G$25,7,),VLOOKUP(I64,'Dermal data'!A$4:H$25,8,)),"") ->  | AH64: 0 | AK64: 0 | AL64: 0 | AM64: 0 | AN64: =AL64+AM64 -> 0 | AQ64: =IF(AND(AQ$42="NO",AP64="NO"),"",IF(OR(J64="No",J64=""),"",VLOOKUP(I64,'Inhalation data'!A$3:S$24,IF(C64="Industrial",16,17),FALSE))&IF(P64="","",IF(P64="70 (ventilation)",WPG!F$383,IF(P64="30 (ventilation)",Findandtranslate_WPG(P$40),IF(OR(D64=WPG!F$228,E64=WPG!F$228,F64=WPG!F$228),WPG!F$367,WPG!F$412))))) ->  | AR64: =IF(AND(AR$42="NO",AP64="NO"),"",IF(Q64="half mask",WPG!F$465,IF(Q64="full face",WPG!F$467&WPG!F$468,""))&IF(AD64="gloves",WPG!F$458,IF(AD64="gloves-basic training",WPG!F$459,IF(AD64="gloves-specific training",WPG!F$460,IF(AD64="gloves-intensive controls",WPG!F$461,""))))&IF(AD64="","",VLOOKUP(I64,'Inhalation data'!A$3:V$24,22,FALSE))) ->  | AS64: =IF(AND(AS$42="NO",AP64="NO"),"",IF(M64="<15 min",WPG!F$360,IF(M64="1-4 hours",WPG!F$362,IF(M64="15 min-1 hour",WPG!F$361,"")))) ->  | AT64: =IF(OR(AND(AT$42="NO",AP64="NO"),BQ64>BP64),"",IF(L64="5-25%",WPG!F$352,IF(L64="1-5%",WPG!F$351,IF(L64="<1%",WPG!F$350,"")))) ->  | BL64: =IF(ISERROR(VLOOKUP(I64,'Dermal data'!A$3:K$25,1,FALSE)),"",LEFT(VLOOKUP(I64,'Dermal data'!A$3:K$25,1,FALSE),2)) ->  | BM64: =IF(ISERROR(VLOOKUP(I64,'Dermal data'!A$3:K$25,11,FALSE)),"",VLOOKUP(I64,'Dermal data'!A$3:K$25,11,FALSE)) ->  | BN64: =IF(ISERROR(VLOOKUP(I64,'Dermal data'!A$3:L$25,12,FALSE)),"",VLOOKUP(I64,'Dermal data'!A$3:L$25,12,FALSE)) ->  | BP64: =J$31 -> 100 | BQ64: =IF(K64="<1%",1,IF(K64="1-5%",5,IF(K64="5-25%",25,100))) -> 100
C65: Industrial | H65: Liquid, vapour pressure 0.5 - 10 kPa at STP [OC4]. | N65: =IF(AND(OR(I65=A$124,I65=A$133),E$8<0.01,J65="Yes"),IF(B$8="YES",MIN(0.1*E$10/24,BB$10),0.1*E$10/24),IF(I65="","",IF(B65="Vapour exposure",IF(C65="Industrial",VLOOKUP(I65,'Inhalation data'!A$3:I$24,IF(H65=WPG!F$339,2,IF(H65=WPG!F$338,3,5)),FALSE),VLOOKUP(I65,'Inhalation data'!A$3:I$24,IF(H65=WPG!F$339,6,IF(H65=WPG!F$338,7,9)),FALSE))*E$10/24,IF(C65="Industrial",VLOOKUP(I65,'Inhalation data'!A$3:X$24,23,FALSE),VLOOKUP(I65,'Inhalation data'!A$3:X$24,24,FALSE))))) ->  | O65: =IF(OR(I65="",J65="No",J65=""),"",VLOOKUP(I65,'Inhalation data'!A$3:O$24,IF(C65="Industrial",14,15),FALSE)) ->  | U65: =IF(I65="","",VLOOKUP(I65,'Inhalation data'!A$3:AS$24,45,FALSE)) ->  | V65: 0 | AA65: =IF(I65="","",VLOOKUP(I65,'Dermal data'!A$4:F$25,6,FALSE)) ->  | AB65: =IF(I65="","",VLOOKUP(I65,'Dermal data'!A$4:F$25,5,FALSE)/1000) ->  | AC65: =IF(AND(J65="Yes",B$9="YES"),IF(C65="Industrial - SU3",VLOOKUP(I65,'Dermal data'!A$4:G$25,7,),VLOOKUP(I65,'Dermal data'!A$4:H$25,8,)),"") ->  | AH65: 0 | AK65: 0 | AL65: 0 | AM65: 0 | AN65: 0 | AQ65: =IF(AND(AQ$42="NO",AP65="NO"),"",IF(OR(J65="No",J65=""),"",VLOOKUP(I65,'Inhalation data'!A$3:S$24,IF(C65="Industrial",16,17),FALSE))&IF(P65="","",IF(P65="70 (ventilation)",WPG!F$383,IF(P65="30 (ventilation)",Findandtranslate_WPG(P$40),IF(OR(D65=WPG!F$228,E65=WPG!F$228,F65=WPG!F$228),WPG!F$367,WPG!F$412))))) ->  | AR65: =IF(AND(AR$42="NO",AP65="NO"),"",IF(Q65="half mask",WPG!F$465,IF(Q65="full face",WPG!F$467&WPG!F$468,""))&IF(AD65="gloves",WPG!F$458,IF(AD65="gloves-basic training",WPG!F$459,IF(AD65="gloves-specific training",WPG!F$460,IF(AD65="gloves-intensive controls",WPG!F$461,""))))&IF(AD65="","",VLOOKUP(I65,'Inhalation data'!A$3:V$24,22,FALSE))) ->  | AS65: =IF(AND(AS$42="NO",AP65="NO"),"",IF(M65="<15 min",WPG!F$360,IF(M65="1-4 hours",WPG!F$362,IF(M65="15 min-1 hour",WPG!F$361,"")))) ->  | AT65: =IF(OR(AND(AT$42="NO",AP65="NO"),BQ65>BP65),"",IF(L65="5-25%",WPG!F$352,IF(L65="1-5%",WPG!F$351,IF(L65="<1%",WPG!F$350,"")))) ->  | BL65: =IF(ISERROR(VLOOKUP(I65,'Dermal data'!A$3:K$25,1,FALSE)),"",LEFT(VLOOKUP(I65,'Dermal data'!A$3:K$25,1,FALSE),2)) ->  | BM65: =IF(ISERROR(VLOOKUP(I65,'Dermal data'!A$3:K$25,11,FALSE)),"",VLOOKUP(I65,'Dermal data'!A$3:K$25,11,FALSE)) ->  | BN65: =IF(ISERROR(VLOOKUP(I65,'Dermal data'!A$3:L$25,12,FALSE)),"",VLOOKUP(I65,'Dermal data'!A$3:L$25,12,FALSE)) ->  | BP65: 100 | BQ65: 100
C66: Industrial | H66: Liquid, vapour pressure 0.5 - 10 kPa at STP [OC4]. | N66: =IF(AND(OR(I66=A$124,I66=A$133),E$8<0.01,J66="Yes"),IF(B$8="YES",MIN(0.1*E$10/24,BB$10),0.1*E$10/24),IF(I66="","",IF(B66="Vapour exposure",IF(C66="Industrial",VLOOKUP(I66,'Inhalation data'!A$3:I$24,IF(H66=WPG!F$339,2,IF(H66=WPG!F$338,3,5)),FALSE),VLOOKUP(I66,'Inhalation data'!A$3:I$24,IF(H66=WPG!F$339,6,IF(H66=WPG!F$338,7,9)),FALSE))*E$10/24,IF(C66="Industrial",VLOOKUP(I66,'Inhalation data'!A$3:X$24,23,FALSE),VLOOKUP(I66,'Inhalation data'!A$3:X$24,24,FALSE))))) ->  | O66: =IF(OR(I66="",J66="No",J66=""),"",VLOOKUP(I66,'Inhalation data'!A$3:O$24,IF(C66="Industrial",14,15),FALSE)) ->  | U66: =IF(I66="","",VLOOKUP(I66,'Inhalation data'!A$3:AS$24,45,FALSE)) ->  | V66: 0 | AA66: =IF(I66="","",VLOOKUP(I66,'Dermal data'!A$4:F$25,6,FALSE)) ->  | AB66: =IF(I66="","",VLOOKUP(I66,'Dermal data'!A$4:F$25,5,FALSE)/1000) ->  | AC66: =IF(AND(J66="Yes",B$9="YES"),IF(C66="Industrial - SU3",VLOOKUP(I66,'Dermal data'!A$4:G$25,7,),VLOOKUP(I66,'Dermal data'!A$4:H$25,8,)),"") ->  | AH66: 0 | AK66: 0 | AL66: 0 | AM66: 0 | AN66: 0 | AQ66: =IF(AND(AQ$42="NO",AP66="NO"),"",IF(OR(J66="No",J66=""),"",VLOOKUP(I66,'Inhalation data'!A$3:S$24,IF(C66="Industrial",16,17),FALSE))&IF(P66="","",IF(P66="70 (ventilation)",WPG!F$383,IF(P66="30 (ventilation)",Findandtranslate_WPG(P$40),IF(OR(D66=WPG!F$228,E66=WPG!F$228,F66=WPG!F$228),WPG!F$367,WPG!F$412))))) ->  | AR66: =IF(AND(AR$42="NO",AP66="NO"),"",IF(Q66="half mask",WPG!F$465,IF(Q66="full face",WPG!F$467&WPG!F$468,""))&IF(AD66="gloves",WPG!F$458,IF(AD66="gloves-basic training",WPG!F$459,IF(AD66="gloves-specific training",WPG!F$460,IF(AD66="gloves-intensive controls",WPG!F$461,""))))&IF(AD66="","",VLOOKUP(I66,'Inhalation data'!A$3:V$24,22,FALSE))) ->  | AS66: =IF(AND(AS$42="NO",AP66="NO"),"",IF(M66="<15 min",WPG!F$360,IF(M66="1-4 hours",WPG!F$362,IF(M66="15 min-1 hour",WPG!F$361,"")))) ->  | AT66: =IF(OR(AND(AT$42="NO",AP66="NO"),BQ66>BP66),"",IF(L66="5-25%",WPG!F$352,IF(L66="1-5%",WPG!F$351,IF(L66="<1%",WPG!F$350,"")))) ->  | BL66: =IF(ISERROR(VLOOKUP(I66,'Dermal data'!A$3:K$25,1,FALSE)),"",LEFT(VLOOKUP(I66,'Dermal data'!A$3:K$25,1,FALSE),2)) ->  | BM66: =IF(ISERROR(VLOOKUP(I66,'Dermal data'!A$3:K$25,11,FALSE)),"",VLOOKUP(I66,'Dermal data'!A$3:K$25,11,FALSE)) ->  | BN66: =IF(ISERROR(VLOOKUP(I66,'Dermal data'!A$3:L$25,12,FALSE)),"",VLOOKUP(I66,'Dermal data'!A$3:L$25,12,FALSE)) ->  | BP66: 100 | BQ66: 100
C67: Industrial | H67: Liquid, vapour pressure 0.5 - 10 kPa at STP [OC4]. | N67: =IF(AND(OR(I67=A$124,I67=A$133),E$8<0.01,J67="Yes"),IF(B$8="YES",MIN(0.1*E$10/24,BB$10),0.1*E$10/24),IF(I67="","",IF(B67="Vapour exposure",IF(C67="Industrial",VLOOKUP(I67,'Inhalation data'!A$3:I$24,IF(H67=WPG!F$339,2,IF(H67=WPG!F$338,3,5)),FALSE),VLOOKUP(I67,'Inhalation data'!A$3:I$24,IF(H67=WPG!F$339,6,IF(H67=WPG!F$338,7,9)),FALSE))*E$10/24,IF(C67="Industrial",VLOOKUP(I67,'Inhalation data'!A$3:X$24,23,FALSE),VLOOKUP(I67,'Inhalation data'!A$3:X$24,24,FALSE))))) ->  | O67: =IF(OR(I67="",J67="No",J67=""),"",VLOOKUP(I67,'Inhalation data'!A$3:O$24,IF(C67="Industrial",14,15),FALSE)) ->  | U67: =IF(I67="","",VLOOKUP(I67,'Inhalation data'!A$3:AS$24,45,FALSE)) ->  | V67: 0 | AA67: =IF(I67="","",VLOOKUP(I67,'Dermal data'!A$4:F$25,6,FALSE)) ->  | AB67: =IF(I67="","",VLOOKUP(I67,'Dermal data'!A$4:F$25,5,FALSE)/1000) ->  | AC67: =IF(AND(J67="Yes",B$9="YES"),IF(C67="Industrial - SU3",VLOOKUP(I67,'Dermal data'!A$4:G$25,7,),VLOOKUP(I67,'Dermal data'!A$4:H$25,8,)),"") ->  | AH67: 0 | AK67: 0 | AL67: 0 | AM67: 0 | AN67: =AL67+AM67 -> 0 | AQ67: =IF(AND(AQ$42="NO",AP67="NO"),"",IF(OR(J67="No",J67=""),"",VLOOKUP(I67,'Inhalation data'!A$3:S$24,IF(C67="Industrial",16,17),FALSE))&IF(P67="","",IF(P67="70 (ventilation)",WPG!F$383,IF(P67="30 (ventilation)",Findandtranslate_WPG(P$40),IF(OR(D67=WPG!F$228,E67=WPG!F$228,F67=WPG!F$228),WPG!F$367,WPG!F$412))))) ->  | AR67: =IF(AND(AR$42="NO",AP67="NO"),"",IF(Q67="half mask",WPG!F$465,IF(Q67="full face",WPG!F$467&WPG!F$468,""))&IF(AD67="gloves",WPG!F$458,IF(AD67="gloves-basic training",WPG!F$459,IF(AD67="gloves-specific training",WPG!F$460,IF(AD67="gloves-intensive controls",WPG!F$461,""))))&IF(AD67="","",VLOOKUP(I67,'Inhalation data'!A$3:V$24,22,FALSE))) ->  | AS67: =IF(AND(AS$42="NO",AP67="NO"),"",IF(M67="<15 min",WPG!F$360,IF(M67="1-4 hours",WPG!F$362,IF(M67="15 min-1 hour",WPG!F$361,"")))) ->  | AT67: =IF(OR(AND(AT$42="NO",AP67="NO"),BQ67>BP67),"",IF(L67="5-25%",WPG!F$352,IF(L67="1-5%",WPG!F$351,IF(L67="<1%",WPG!F$350,"")))) ->  | BL67: =IF(ISERROR(VLOOKUP(I67,'Dermal data'!A$3:K$25,1,FALSE)),"",LEFT(VLOOKUP(I67,'Dermal data'!A$3:K$25,1,FALSE),2)) ->  | BM67: =IF(ISERROR(VLOOKUP(I67,'Dermal data'!A$3:K$25,11,FALSE)),"",VLOOKUP(I67,'Dermal data'!A$3:K$25,11,FALSE)) ->  | BN67: =IF(ISERROR(VLOOKUP(I67,'Dermal data'!A$3:L$25,12,FALSE)),"",VLOOKUP(I67,'Dermal data'!A$3:L$25,12,FALSE)) ->  | BP67: =J$31 -> 100 | BQ67: =IF(K67="<1%",1,IF(K67="1-5%",5,IF(K67="5-25%",25,100))) -> 100
C68: Industrial | H68: Liquid, vapour pressure 0.5 - 10 kPa at STP [OC4]. | N68: =IF(AND(OR(I68=A$124,I68=A$133),E$8<0.01,J68="Yes"),IF(B$8="YES",MIN(0.1*E$10/24,BB$10),0.1*E$10/24),IF(I68="","",IF(B68="Vapour exposure",IF(C68="Industrial",VLOOKUP(I68,'Inhalation data'!A$3:I$24,IF(H68=WPG!F$339,2,IF(H68=WPG!F$338,3,5)),FALSE),VLOOKUP(I68,'Inhalation data'!A$3:I$24,IF(H68=WPG!F$339,6,IF(H68=WPG!F$338,7,9)),FALSE))*E$10/24,IF(C68="Industrial",VLOOKUP(I68,'Inhalation data'!A$3:X$24,23,FALSE),VLOOKUP(I68,'Inhalation data'!A$3:X$24,24,FALSE))))) ->  | O68: =IF(OR(I68="",J68="No",J68=""),"",VLOOKUP(I68,'Inhalation data'!A$3:O$24,IF(C68="Industrial",14,15),FALSE)) ->  | U68: =IF(I68="","",VLOOKUP(I68,'Inhalation data'!A$3:AS$24,45,FALSE)) ->  | V68: 0 | AA68: =IF(I68="","",VLOOKUP(I68,'Dermal data'!A$4:F$25,6,FALSE)) ->  | AB68: =IF(I68="","",VLOOKUP(I68,'Dermal data'!A$4:F$25,5,FALSE)/1000) ->  | AC68: =IF(AND(J68="Yes",B$9="YES"),IF(C68="Industrial - SU3",VLOOKUP(I68,'Dermal data'!A$4:G$25,7,),VLOOKUP(I68,'Dermal data'!A$4:H$25,8,)),"") ->  | AH68: 0 | AK68: 0 | AL68: 0 | AM68: 0 | AN68: 0 | AQ68: =IF(AND(AQ$42="NO",AP68="NO"),"",IF(OR(J68="No",J68=""),"",VLOOKUP(I68,'Inhalation data'!A$3:S$24,IF(C68="Industrial",16,17),FALSE))&IF(P68="","",IF(P68="70 (ventilation)",WPG!F$383,IF(P68="30 (ventilation)",Findandtranslate_WPG(P$40),IF(OR(D68=WPG!F$228,E68=WPG!F$228,F68=WPG!F$228),WPG!F$367,WPG!F$412))))) ->  | AR68: =IF(AND(AR$42="NO",AP68="NO"),"",IF(Q68="half mask",WPG!F$465,IF(Q68="full face",WPG!F$467&WPG!F$468,""))&IF(AD68="gloves",WPG!F$458,IF(AD68="gloves-basic training",WPG!F$459,IF(AD68="gloves-specific training",WPG!F$460,IF(AD68="gloves-intensive controls",WPG!F$461,""))))&IF(AD68="","",VLOOKUP(I68,'Inhalation data'!A$3:V$24,22,FALSE))) ->  | AS68: =IF(AND(AS$42="NO",AP68="NO"),"",IF(M68="<15 min",WPG!F$360,IF(M68="1-4 hours",WPG!F$362,IF(M68="15 min-1 hour",WPG!F$361,"")))) ->  | AT68: =IF(OR(AND(AT$42="NO",AP68="NO"),BQ68>BP68),"",IF(L68="5-25%",WPG!F$352,IF(L68="1-5%",WPG!F$351,IF(L68="<1%",WPG!F$350,"")))) ->  | BL68: =IF(ISERROR(VLOOKUP(I68,'Dermal data'!A$3:K$25,1,FALSE)),"",LEFT(VLOOKUP(I68,'Dermal data'!A$3:K$25,1,FALSE),2)) ->  | BM68: =IF(ISERROR(VLOOKUP(I68,'Dermal data'!A$3:K$25,11,FALSE)),"",VLOOKUP(I68,'Dermal data'!A$3:K$25,11,FALSE)) ->  | BN68: =IF(ISERROR(VLOOKUP(I68,'Dermal data'!A$3:L$25,12,FALSE)),"",VLOOKUP(I68,'Dermal data'!A$3:L$25,12,FALSE)) ->  | BP68: 100 | BQ68: 100
C69: Industrial | H69: Liquid, vapour pressure 0.5 - 10 kPa at STP [OC4]. | N69: =IF(AND(OR(I69=A$124,I69=A$133),E$8<0.01,J69="Yes"),IF(B$8="YES",MIN(0.1*E$10/24,BB$10),0.1*E$10/24),IF(I69="","",IF(B69="Vapour exposure",IF(C69="Industrial",VLOOKUP(I69,'Inhalation data'!A$3:I$24,IF(H69=WPG!F$339,2,IF(H69=WPG!F$338,3,5)),FALSE),VLOOKUP(I69,'Inhalation data'!A$3:I$24,IF(H69=WPG!F$339,6,IF(H69=WPG!F$338,7,9)),FALSE))*E$10/24,IF(C69="Industrial",VLOOKUP(I69,'Inhalation data'!A$3:X$24,23,FALSE),VLOOKUP(I69,'Inhalation data'!A$3:X$24,24,FALSE))))) ->  | O69: =IF(OR(I69="",J69="No",J69=""),"",VLOOKUP(I69,'Inhalation data'!A$3:O$24,IF(C69="Industrial",14,15),FALSE)) ->  | U69: =IF(I69="","",VLOOKUP(I69,'Inhalation data'!A$3:AS$24,45,FALSE)) ->  | V69: 0 | AA69: =IF(I69="","",VLOOKUP(I69,'Dermal data'!A$4:F$25,6,FALSE)) ->  | AB69: =IF(I69="","",VLOOKUP(I69,'Dermal data'!A$4:F$25,5,FALSE)/1000) ->  | AC69: =IF(AND(J69="Yes",B$9="YES"),IF(C69="Industrial - SU3",VLOOKUP(I69,'Dermal data'!A$4:G$25,7,),VLOOKUP(I69,'Dermal data'!A$4:H$25,8,)),"") ->  | AH69: 0 | AK69: 0 | AL69: 0 | AM69: 0 | AN69: 0 | AQ69: =IF(AND(AQ$42="NO",AP69="NO"),"",IF(OR(J69="No",J69=""),"",VLOOKUP(I69,'Inhalation data'!A$3:S$24,IF(C69="Industrial",16,17),FALSE))&IF(P69="","",IF(P69="70 (ventilation)",WPG!F$383,IF(P69="30 (ventilation)",Findandtranslate_WPG(P$40),IF(OR(D69=WPG!F$228,E69=WPG!F$228,F69=WPG!F$228),WPG!F$367,WPG!F$412))))) ->  | AR69: =IF(AND(AR$42="NO",AP69="NO"),"",IF(Q69="half mask",WPG!F$465,IF(Q69="full face",WPG!F$467&WPG!F$468,""))&IF(AD69="gloves",WPG!F$458,IF(AD69="gloves-basic training",WPG!F$459,IF(AD69="gloves-specific training",WPG!F$460,IF(AD69="gloves-intensive controls",WPG!F$461,""))))&IF(AD69="","",VLOOKUP(I69,'Inhalation data'!A$3:V$24,22,FALSE))) ->  | AS69: =IF(AND(AS$42="NO",AP69="NO"),"",IF(M69="<15 min",WPG!F$360,IF(M69="1-4 hours",WPG!F$362,IF(M69="15 min-1 hour",WPG!F$361,"")))) ->  | AT69: =IF(OR(AND(AT$42="NO",AP69="NO"),BQ69>BP69),"",IF(L69="5-25%",WPG!F$352,IF(L69="1-5%",WPG!F$351,IF(L69="<1%",WPG!F$350,"")))) ->  | BL69: =IF(ISERROR(VLOOKUP(I69,'Dermal data'!A$3:K$25,1,FALSE)),"",LEFT(VLOOKUP(I69,'Dermal data'!A$3:K$25,1,FALSE),2)) ->  | BM69: =IF(ISERROR(VLOOKUP(I69,'Dermal data'!A$3:K$25,11,FALSE)),"",VLOOKUP(I69,'Dermal data'!A$3:K$25,11,FALSE)) ->  | BN69: =IF(ISERROR(VLOOKUP(I69,'Dermal data'!A$3:L$25,12,FALSE)),"",VLOOKUP(I69,'Dermal data'!A$3:L$25,12,FALSE)) ->  | BP69: 100 | BQ69: 100
C70: Industrial | H70: Liquid, vapour pressure 0.5 - 10 kPa at STP [OC4]. | N70: =IF(AND(OR(I70=A$124,I70=A$133),E$8<0.01,J70="Yes"),IF(B$8="YES",MIN(0.1*E$10/24,BB$10),0.1*E$10/24),IF(I70="","",IF(B70="Vapour exposure",IF(C70="Industrial",VLOOKUP(I70,'Inhalation data'!A$3:I$24,IF(H70=WPG!F$339,2,IF(H70=WPG!F$338,3,5)),FALSE),VLOOKUP(I70,'Inhalation data'!A$3:I$24,IF(H70=WPG!F$339,6,IF(H70=WPG!F$338,7,9)),FALSE))*E$10/24,IF(C70="Industrial",VLOOKUP(I70,'Inhalation data'!A$3:X$24,23,FALSE),VLOOKUP(I70,'Inhalation data'!A$3:X$24,24,FALSE))))) ->  | O70: =IF(OR(I70="",J70="No",J70=""),"",VLOOKUP(I70,'Inhalation data'!A$3:O$24,IF(C70="Industrial",14,15),FALSE)) ->  | U70: =IF(I70="","",VLOOKUP(I70,'Inhalation data'!A$3:AS$24,45,FALSE)) ->  | V70: 0 | AA70: =IF(I70="","",VLOOKUP(I70,'Dermal data'!A$4:F$25,6,FALSE)) ->  | AB70: =IF(I70="","",VLOOKUP(I70,'Dermal data'!A$4:F$25,5,FALSE)/1000) ->  | AC70: =IF(AND(J70="Yes",B$9="YES"),IF(C70="Industrial - SU3",VLOOKUP(I70,'Dermal data'!A$4:G$25,7,),VLOOKUP(I70,'Dermal data'!A$4:H$25,8,)),"") ->  | AH70: 0 | AK70: 0 | AL70: 0 | AM70: 0 | AN70: 0 | AQ70: =IF(AND(AQ$42="NO",AP70="NO"),"",IF(OR(J70="No",J70=""),"",VLOOKUP(I70,'Inhalation data'!A$3:S$24,IF(C70="Industrial",16,17),FALSE))&IF(P70="","",IF(P70="70 (ventilation)",WPG!F$383,IF(P70="30 (ventilation)",Findandtranslate_WPG(P$40),IF(OR(D70=WPG!F$228,E70=WPG!F$228,F70=WPG!F$228),WPG!F$367,WPG!F$412))))) ->  | AR70: =IF(AND(AR$42="NO",AP70="NO"),"",IF(Q70="half mask",WPG!F$465,IF(Q70="full face",WPG!F$467&WPG!F$468,""))&IF(AD70="gloves",WPG!F$458,IF(AD70="gloves-basic training",WPG!F$459,IF(AD70="gloves-specific training",WPG!F$460,IF(AD70="gloves-intensive controls",WPG!F$461,""))))&IF(AD70="","",VLOOKUP(I70,'Inhalation data'!A$3:V$24,22,FALSE))) ->  | AS70: =IF(AND(AS$42="NO",AP70="NO"),"",IF(M70="<15 min",WPG!F$360,IF(M70="1-4 hours",WPG!F$362,IF(M70="15 min-1 hour",WPG!F$361,"")))) ->  | AT70: =IF(OR(AND(AT$42="NO",AP70="NO"),BQ70>BP70),"",IF(L70="5-25%",WPG!F$352,IF(L70="1-5%",WPG!F$351,IF(L70="<1%",WPG!F$350,"")))) ->  | BL70: =IF(ISERROR(VLOOKUP(I70,'Dermal data'!A$3:K$25,1,FALSE)),"",LEFT(VLOOKUP(I70,'Dermal data'!A$3:K$25,1,FALSE),2)) ->  | BM70: =IF(ISERROR(VLOOKUP(I70,'Dermal data'!A$3:K$25,11,FALSE)),"",VLOOKUP(I70,'Dermal data'!A$3:K$25,11,FALSE)) ->  | BN70: =IF(ISERROR(VLOOKUP(I70,'Dermal data'!A$3:L$25,12,FALSE)),"",VLOOKUP(I70,'Dermal data'!A$3:L$25,12,FALSE)) ->  | BP70: 100 | BQ70: 100
C71: Industrial | H71: Liquid, vapour pressure 0.5 - 10 kPa at STP [OC4]. | N71: =IF(AND(OR(I71=A$124,I71=A$133),E$8<0.01,J71="Yes"),IF(B$8="YES",MIN(0.1*E$10/24,BB$10),0.1*E$10/24),IF(I71="","",IF(B71="Vapour exposure",IF(C71="Industrial",VLOOKUP(I71,'Inhalation data'!A$3:I$24,IF(H71=WPG!F$339,2,IF(H71=WPG!F$338,3,5)),FALSE),VLOOKUP(I71,'Inhalation data'!A$3:I$24,IF(H71=WPG!F$339,6,IF(H71=WPG!F$338,7,9)),FALSE))*E$10/24,IF(C71="Industrial",VLOOKUP(I71,'Inhalation data'!A$3:X$24,23,FALSE),VLOOKUP(I71,'Inhalation data'!A$3:X$24,24,FALSE))))) ->  | O71: =IF(OR(I71="",J71="No",J71=""),"",VLOOKUP(I71,'Inhalation data'!A$3:O$24,IF(C71="Industrial",14,15),FALSE)) ->  | U71: =IF(I71="","",VLOOKUP(I71,'Inhalation data'!A$3:AS$24,45,FALSE)) ->  | V71: 0 | AA71: =IF(I71="","",VLOOKUP(I71,'Dermal data'!A$4:F$25,6,FALSE)) ->  | AB71: =IF(I71="","",VLOOKUP(I71,'Dermal data'!A$4:F$25,5,FALSE)/1000) ->  | AC71: =IF(AND(J71="Yes",B$9="YES"),IF(C71="Industrial - SU3",VLOOKUP(I71,'Dermal data'!A$4:G$25,7,),VLOOKUP(I71,'Dermal data'!A$4:H$25,8,)),"") ->  | AH71: 0 | AK71: 0 | AL71: 0 | AM71: 0 | AN71: 0 | AQ71: =IF(AND(AQ$42="NO",AP71="NO"),"",IF(OR(J71="No",J71=""),"",VLOOKUP(I71,'Inhalation data'!A$3:S$24,IF(C71="Industrial",16,17),FALSE))&IF(P71="","",IF(P71="70 (ventilation)",WPG!F$383,IF(P71="30 (ventilation)",Findandtranslate_WPG(P$40),IF(OR(D71=WPG!F$228,E71=WPG!F$228,F71=WPG!F$228),WPG!F$367,WPG!F$412))))) ->  | AR71: =IF(AND(AR$42="NO",AP71="NO"),"",IF(Q71="half mask",WPG!F$465,IF(Q71="full face",WPG!F$467&WPG!F$468,""))&IF(AD71="gloves",WPG!F$458,IF(AD71="gloves-basic training",WPG!F$459,IF(AD71="gloves-specific training",WPG!F$460,IF(AD71="gloves-intensive controls",WPG!F$461,""))))&IF(AD71="","",VLOOKUP(I71,'Inhalation data'!A$3:V$24,22,FALSE))) ->  | AS71: =IF(AND(AS$42="NO",AP71="NO"),"",IF(M71="<15 min",WPG!F$360,IF(M71="1-4 hours",WPG!F$362,IF(M71="15 min-1 hour",WPG!F$361,"")))) ->  | AT71: =IF(OR(AND(AT$42="NO",AP71="NO"),BQ71>BP71),"",IF(L71="5-25%",WPG!F$352,IF(L71="1-5%",WPG!F$351,IF(L71="<1%",WPG!F$350,"")))) ->  | BL71: =IF(ISERROR(VLOOKUP(I71,'Dermal data'!A$3:K$25,1,FALSE)),"",LEFT(VLOOKUP(I71,'Dermal data'!A$3:K$25,1,FALSE),2)) ->  | BM71: =IF(ISERROR(VLOOKUP(I71,'Dermal data'!A$3:K$25,11,FALSE)),"",VLOOKUP(I71,'Dermal data'!A$3:K$25,11,FALSE)) ->  | BN71: =IF(ISERROR(VLOOKUP(I71,'Dermal data'!A$3:L$25,12,FALSE)),"",VLOOKUP(I71,'Dermal data'!A$3:L$25,12,FALSE)) ->  | BP71: 100 | BQ71: 100
C72: Industrial | H72: =IF(B72="Aerosol exposure","not applicable for aerosols",IF(G72="",F$9,G72)) -> Liquid, vapour pressure 0.5 - 10 kPa at STP [OC4]. | L72: =IF(BR72=25,"5-25%",IF(BR72=5,"1-5%",IF(BR72=1,"<1%",""))) ->  | N72: =IF(AND(OR(I72=A$124,I72=A$133),E$8<0.01,J72="Yes"),IF(B$8="YES",MIN(0.1*E$10/24,BB$10),0.1*E$10/24),IF(I72="","",IF(B72="Vapour exposure",IF(C72="Industrial",VLOOKUP(I72,'Inhalation data'!A$3:I$24,IF(H72=WPG!F$339,2,IF(H72=WPG!F$338,3,5)),FALSE),VLOOKUP(I72,'Inhalation data'!A$3:I$24,IF(H72=WPG!F$339,6,IF(H72=WPG!F$338,7,9)),FALSE))*E$10/24,IF(C72="Industrial",VLOOKUP(I72,'Inhalation data'!A$3:X$24,23,FALSE),VLOOKUP(I72,'Inhalation data'!A$3:X$24,24,FALSE))))) ->  | O72: =IF(OR(I72="",J72="No",J72=""),"",VLOOKUP(I72,'Inhalation data'!A$3:O$24,IF(C72="Industrial",14,15),FALSE)) ->  | U72: =IF(I72="","",VLOOKUP(I72,'Inhalation data'!A$3:AS$24,45,FALSE)) ->  | V72: =IF(N72="",0,N72*(100-IF(P72="",0,IF(P72="70 (ventilation)",70,30)))/100*(IF(L72=">25%",1,(IF(L72="5-25%",0.6,(IF(L72="1-5%",0.2,(IF(L72="<1%",0.1,1))))))))*IF(M72="",1,(IF(M72=">4 hours",1,(IF(M72="1-4 hours",0.6,(IF(M72="15 min-1 hour",0.2,0.1)))))))*IF(R72="",1,R72))*IF(Q72="half mask",0.1,(IF(Q72="full face",0.05,1)))*(100-IF(O72="",0,O72))/100 -> 0 | AA72: =IF(I72="","",VLOOKUP(I72,'Dermal data'!A$4:F$25,6,FALSE)) ->  | AB72: =IF(I72="","",VLOOKUP(I72,'Dermal data'!A$4:F$25,5,FALSE)/1000) ->  | AC72: =IF(AND(J72="Yes",B$9="YES"),IF(C72="Industrial - SU3",VLOOKUP(I72,'Dermal data'!A$4:G$25,7,),VLOOKUP(I72,'Dermal data'!A$4:H$25,8,)),"") ->  | AG72: =IF(AND(AD72="gloves-intensive controls",C72="Professional - SU22"),"Intensive glove controls cannot usually be operated in a professional environment","") ->  | AH72: =IF(AA72="",0,AA72*(IF(AC72="",1,AC72))*(IF(L72=">25%",1,(IF(L72="5-25%",0.6,(IF(L72="1-5%",0.2,(IF(L72="<1%",0.1,1))))))))*(IF(AD72="gloves",0.2,(IF(AD72="gloves-basic training",0.1,(IF(AD72="gloves-specific training",0.05,(IF(AD72="gloves-intensive controls",0.02,1))))))))*(IF(AE72="",1,AE72))*IF(E$8<500,1,IF(OR(M72=">4 hours",M72=""),1,IF(M72="1-4 hours",0.6,IF(M72="15 min-1 hour",0.2,0.1))))) -> 0 | AK72: =IF(OR($E$14="",$E$14=0,W72=""),0,IF(Y72="",W72,Y72)/$E$14) -> 0 | AL72: =IF(B72="Vapour exposure",IF(OR(ISBLANK($E$13),$E$13=0,ISBLANK(V72)),0,IF(X72="",V72,X72)/E$13),IF(OR(ISBLANK($E$15),$E$15=0,ISBLANK(V72)),0,IF(X72="",V72,X72)/E$15)) -> 0 | AM72: =IF(OR($E$16="",$E$16=0),0,IF(AI72="",AH72,AI72)/$E$16) -> 0 | AN72: =AL72+AM72 -> 0 | AQ72: =IF(AND(AQ$42="NO",AP72="NO"),"",IF(OR(J72="No",J72=""),"",VLOOKUP(I72,'Inhalation data'!A$3:S$24,IF(C72="Industrial",16,17),FALSE))&IF(P72="","",IF(P72="70 (ventilation)",WPG!F$383,IF(P72="30 (ventilation)",Findandtranslate_WPG(P$40),IF(OR(D72=WPG!F$228,E72=WPG!F$228,F72=WPG!F$228),WPG!F$367,WPG!F$412))))) ->  | AR72: =IF(AND(AR$42="NO",AP72="NO"),"",IF(Q72="half mask",WPG!F$465,IF(Q72="full face",WPG!F$467&WPG!F$468,""))&IF(AD72="gloves",WPG!F$458,IF(AD72="gloves-basic training",WPG!F$459,IF(AD72="gloves-specific training",WPG!F$460,IF(AD72="gloves-intensive controls",WPG!F$461,""))))&IF(AD72="","",VLOOKUP(I72,'Inhalation data'!A$3:V$24,22,FALSE))) ->  | AS72: =IF(AND(AS$42="NO",AP72="NO"),"",IF(M72="<15 min",WPG!F$360,IF(M72="1-4 hours",WPG!F$362,IF(M72="15 min-1 hour",WPG!F$361,"")))) ->  | AT72: =IF(OR(AND(AT$42="NO",AP72="NO"),BQ72>BP72),"",IF(L72="5-25%",WPG!F$352,IF(L72="1-5%",WPG!F$351,IF(L72="<1%",WPG!F$350,"")))) ->  | BL72: =IF(ISERROR(VLOOKUP(I72,'Dermal data'!A$3:K$25,1,FALSE)),"",LEFT(VLOOKUP(I72,'Dermal data'!A$3:K$25,1,FALSE),2)) ->  | BM72: =IF(ISERROR(VLOOKUP(I72,'Dermal data'!A$3:K$25,11,FALSE)),"",VLOOKUP(I72,'Dermal data'!A$3:K$25,11,FALSE)) ->  | BN72: =IF(ISERROR(VLOOKUP(I72,'Dermal data'!A$3:L$25,12,FALSE)),"",VLOOKUP(I72,'Dermal data'!A$3:L$25,12,FALSE)) ->  | BP72: =J$31 -> 100 | BQ72: =IF(K72="<1%",1,IF(K72="1-5%",5,IF(K72="5-25%",25,100))) -> 100
C73: Industrial | H73: Liquid, vapour pressure 0.5 - 10 kPa at STP [OC4]. | N73: =IF(AND(OR(I73=A$124,I73=A$133),E$8<0.01,J73="Yes"),IF(B$8="YES",MIN(0.1*E$10/24,BB$10),0.1*E$10/24),IF(I73="","",IF(B73="Vapour exposure",IF(C73="Industrial",VLOOKUP(I73,'Inhalation data'!A$3:I$24,IF(H73=WPG!F$339,2,IF(H73=WPG!F$338,3,5)),FALSE),VLOOKUP(I73,'Inhalation data'!A$3:I$24,IF(H73=WPG!F$339,6,IF(H73=WPG!F$338,7,9)),FALSE))*E$10/24,IF(C73="Industrial",VLOOKUP(I73,'Inhalation data'!A$3:X$24,23,FALSE),VLOOKUP(I73,'Inhalation data'!A$3:X$24,24,FALSE))))) ->  | O73: =IF(OR(I73="",J73="No",J73=""),"",VLOOKUP(I73,'Inhalation data'!A$3:O$24,IF(C73="Industrial",14,15),FALSE)) ->  | U73: =IF(I73="","",VLOOKUP(I73,'Inhalation data'!A$3:AS$24,45,FALSE)) ->  | V73: 0 | AA73: =IF(I73="","",VLOOKUP(I73,'Dermal data'!A$4:F$25,6,FALSE)) ->  | AB73: =IF(I73="","",VLOOKUP(I73,'Dermal data'!A$4:F$25,5,FALSE)/1000) ->  | AC73: =IF(AND(J73="Yes",B$9="YES"),IF(C73="Industrial - SU3",VLOOKUP(I73,'Dermal data'!A$4:G$25,7,),VLOOKUP(I73,'Dermal data'!A$4:H$25,8,)),"") ->  | AH73: 0 | AK73: 0 | AL73: 0 | AM73: 0 | AN73: 0 | AP73: YES | AQ73: =IF(AND(AQ$42="NO",AP73="NO"),"",IF(OR(J73="No",J73=""),"",VLOOKUP(I73,'Inhalation data'!A$3:S$24,IF(C73="Industrial",16,17),FALSE))&IF(P73="","",IF(P73="70 (ventilation)",WPG!F$383,IF(P73="30 (ventilation)",Findandtranslate_WPG(P$40),IF(OR(D73=WPG!F$228,E73=WPG!F$228,F73=WPG!F$228),WPG!F$367,WPG!F$412))))) ->  | AR73: =IF(AND(AR$42="NO",AP73="NO"),"",IF(Q73="half mask",WPG!F$465,IF(Q73="full face",WPG!F$467&WPG!F$468,""))&IF(AD73="gloves",WPG!F$458,IF(AD73="gloves-basic training",WPG!F$459,IF(AD73="gloves-specific training",WPG!F$460,IF(AD73="gloves-intensive controls",WPG!F$461,""))))&IF(AD73="","",VLOOKUP(I73,'Inhalation data'!A$3:V$24,22,FALSE))) ->  | AS73: =IF(AND(AS$42="NO",AP73="NO"),"",IF(M73="<15 min",WPG!F$360,IF(M73="1-4 hours",WPG!F$362,IF(M73="15 min-1 hour",WPG!F$361,"")))) ->  | AT73: =IF(OR(AND(AT$42="NO",AP73="NO"),BQ73>BP73),"",IF(L73="5-25%",WPG!F$352,IF(L73="1-5%",WPG!F$351,IF(L73="<1%",WPG!F$350,"")))) ->  | BL73: =IF(ISERROR(VLOOKUP(I73,'Dermal data'!A$3:K$25,1,FALSE)),"",LEFT(VLOOKUP(I73,'Dermal data'!A$3:K$25,1,FALSE),2)) ->  | BM73: =IF(ISERROR(VLOOKUP(I73,'Dermal data'!A$3:K$25,11,FALSE)),"",VLOOKUP(I73,'Dermal data'!A$3:K$25,11,FALSE)) ->  | BN73: =IF(ISERROR(VLOOKUP(I73,'Dermal data'!A$3:L$25,12,FALSE)),"",VLOOKUP(I73,'Dermal data'!A$3:L$25,12,FALSE)) ->  | BP73: 100 | BQ73: 100
C74: Industrial | H74: Liquid, vapour pressure 0.5 - 10 kPa at STP [OC4]. | N74: =IF(AND(OR(I74=A$124,I74=A$133),E$8<0.01,J74="Yes"),IF(B$8="YES",MIN(0.1*E$10/24,BB$10),0.1*E$10/24),IF(I74="","",IF(B74="Vapour exposure",IF(C74="Industrial",VLOOKUP(I74,'Inhalation data'!A$3:I$24,IF(H74=WPG!F$339,2,IF(H74=WPG!F$338,3,5)),FALSE),VLOOKUP(I74,'Inhalation data'!A$3:I$24,IF(H74=WPG!F$339,6,IF(H74=WPG!F$338,7,9)),FALSE))*E$10/24,IF(C74="Industrial",VLOOKUP(I74,'Inhalation data'!A$3:X$24,23,FALSE),VLOOKUP(I74,'Inhalation data'!A$3:X$24,24,FALSE))))) ->  | O74: =IF(OR(I74="",J74="No",J74=""),"",VLOOKUP(I74,'Inhalation data'!A$3:O$24,IF(C74="Industrial",14,15),FALSE)) ->  | U74: =IF(I74="","",VLOOKUP(I74,'Inhalation data'!A$3:AS$24,45,FALSE)) ->  | V74: 0 | AA74: =IF(I74="","",VLOOKUP(I74,'Dermal data'!A$4:F$25,6,FALSE)) ->  | AB74: =IF(I74="","",VLOOKUP(I74,'Dermal data'!A$4:F$25,5,FALSE)/1000) ->  | AC74: =IF(AND(J74="Yes",B$9="YES"),IF(C74="Industrial - SU3",VLOOKUP(I74,'Dermal data'!A$4:G$25,7,),VLOOKUP(I74,'Dermal data'!A$4:H$25,8,)),"") ->  | AH74: 0 | AK74: 0 | AL74: 0 | AM74: 0 | AN74: 0 | AP74: YES | AQ74: =IF(AND(AQ$42="NO",AP74="NO"),"",IF(OR(J74="No",J74=""),"",VLOOKUP(I74,'Inhalation data'!A$3:S$24,IF(C74="Industrial",16,17),FALSE))&IF(P74="","",IF(P74="70 (ventilation)",WPG!F$383,IF(P74="30 (ventilation)",Findandtranslate_WPG(P$40),IF(OR(D74=WPG!F$228,E74=WPG!F$228,F74=WPG!F$228),WPG!F$367,WPG!F$412))))) ->  | AR74: =IF(AND(AR$42="NO",AP74="NO"),"",IF(Q74="half mask",WPG!F$465,IF(Q74="full face",WPG!F$467&WPG!F$468,""))&IF(AD74="gloves",WPG!F$458,IF(AD74="gloves-basic training",WPG!F$459,IF(AD74="gloves-specific training",WPG!F$460,IF(AD74="gloves-intensive controls",WPG!F$461,""))))&IF(AD74="","",VLOOKUP(I74,'Inhalation data'!A$3:V$24,22,FALSE))) ->  | AS74: =IF(AND(AS$42="NO",AP74="NO"),"",IF(M74="<15 min",WPG!F$360,IF(M74="1-4 hours",WPG!F$362,IF(M74="15 min-1 hour",WPG!F$361,"")))) ->  | AT74: =IF(OR(AND(AT$42="NO",AP74="NO"),BQ74>BP74),"",IF(L74="5-25%",WPG!F$352,IF(L74="1-5%",WPG!F$351,IF(L74="<1%",WPG!F$350,"")))) ->  | BL74: =IF(ISERROR(VLOOKUP(I74,'Dermal data'!A$3:K$25,1,FALSE)),"",LEFT(VLOOKUP(I74,'Dermal data'!A$3:K$25,1,FALSE),2)) ->  | BM74: =IF(ISERROR(VLOOKUP(I74,'Dermal data'!A$3:K$25,11,FALSE)),"",VLOOKUP(I74,'Dermal data'!A$3:K$25,11,FALSE)) ->  | BN74: =IF(ISERROR(VLOOKUP(I74,'Dermal data'!A$3:L$25,12,FALSE)),"",VLOOKUP(I74,'Dermal data'!A$3:L$25,12,FALSE)) ->  | BP74: 100 | BQ74: 100
C75: Industrial | H75: Liquid, vapour pressure 0.5 - 10 kPa at STP [OC4]. | N75: =IF(AND(OR(I75=A$124,I75=A$133),E$8<0.01,J75="Yes"),IF(B$8="YES",MIN(0.1*E$10/24,BB$10),0.1*E$10/24),IF(I75="","",IF(B75="Vapour exposure",IF(C75="Industrial",VLOOKUP(I75,'Inhalation data'!A$3:I$24,IF(H75=WPG!F$339,2,IF(H75=WPG!F$338,3,5)),FALSE),VLOOKUP(I75,'Inhalation data'!A$3:I$24,IF(H75=WPG!F$339,6,IF(H75=WPG!F$338,7,9)),FALSE))*E$10/24,IF(C75="Industrial",VLOOKUP(I75,'Inhalation data'!A$3:X$24,23,FALSE),VLOOKUP(I75,'Inhalation data'!A$3:X$24,24,FALSE))))) ->  | O75: =IF(OR(I75="",J75="No",J75=""),"",VLOOKUP(I75,'Inhalation data'!A$3:O$24,IF(C75="Industrial",14,15),FALSE)) ->  | U75: =IF(I75="","",VLOOKUP(I75,'Inhalation data'!A$3:AS$24,45,FALSE)) ->  | V75: 0 | AA75: =IF(I75="","",VLOOKUP(I75,'Dermal data'!A$4:F$25,6,FALSE)) ->  | AB75: =IF(I75="","",VLOOKUP(I75,'Dermal data'!A$4:F$25,5,FALSE)/1000) ->  | AC75: =IF(AND(J75="Yes",B$9="YES"),IF(C75="Industrial - SU3",VLOOKUP(I75,'Dermal data'!A$4:G$25,7,),VLOOKUP(I75,'Dermal data'!A$4:H$25,8,)),"") ->  | AH75: 0 | AK75: 0 | AL75: 0 | AM75: 0 | AN75: 0 | AP75: YES | AQ75: =IF(AND(AQ$42="NO",AP75="NO"),"",IF(OR(J75="No",J75=""),"",VLOOKUP(I75,'Inhalation data'!A$3:S$24,IF(C75="Industrial",16,17),FALSE))&IF(P75="","",IF(P75="70 (ventilation)",WPG!F$383,IF(P75="30 (ventilation)",Findandtranslate_WPG(P$40),IF(OR(D75=WPG!F$228,E75=WPG!F$228,F75=WPG!F$228),WPG!F$367,WPG!F$412))))) ->  | AR75: =IF(AND(AR$42="NO",AP75="NO"),"",IF(Q75="half mask",WPG!F$465,IF(Q75="full face",WPG!F$467&WPG!F$468,""))&IF(AD75="gloves",WPG!F$458,IF(AD75="gloves-basic training",WPG!F$459,IF(AD75="gloves-specific training",WPG!F$460,IF(AD75="gloves-intensive controls",WPG!F$461,""))))&IF(AD75="","",VLOOKUP(I75,'Inhalation data'!A$3:V$24,22,FALSE))) ->  | AS75: =IF(AND(AS$42="NO",AP75="NO"),"",IF(M75="<15 min",WPG!F$360,IF(M75="1-4 hours",WPG!F$362,IF(M75="15 min-1 hour",WPG!F$361,"")))) ->  | AT75: =IF(OR(AND(AT$42="NO",AP75="NO"),BQ75>BP75),"",IF(L75="5-25%",WPG!F$352,IF(L75="1-5%",WPG!F$351,IF(L75="<1%",WPG!F$350,"")))) ->  | BL75: =IF(ISERROR(VLOOKUP(I75,'Dermal data'!A$3:K$25,1,FALSE)),"",LEFT(VLOOKUP(I75,'Dermal data'!A$3:K$25,1,FALSE),2)) ->  | BM75: =IF(ISERROR(VLOOKUP(I75,'Dermal data'!A$3:K$25,11,FALSE)),"",VLOOKUP(I75,'Dermal data'!A$3:K$25,11,FALSE)) ->  | BN75: =IF(ISERROR(VLOOKUP(I75,'Dermal data'!A$3:L$25,12,FALSE)),"",VLOOKUP(I75,'Dermal data'!A$3:L$25,12,FALSE)) ->  | BP75: 100 | BQ75: 100
C76: Industrial | H76: Liquid, vapour pressure 0.5 - 10 kPa at STP [OC4]. | N76: =IF(AND(OR(I76=A$124,I76=A$133),E$8<0.01,J76="Yes"),IF(B$8="YES",MIN(0.1*E$10/24,BB$10),0.1*E$10/24),IF(I76="","",IF(B76="Vapour exposure",IF(C76="Industrial",VLOOKUP(I76,'Inhalation data'!A$3:I$24,IF(H76=WPG!F$339,2,IF(H76=WPG!F$338,3,5)),FALSE),VLOOKUP(I76,'Inhalation data'!A$3:I$24,IF(H76=WPG!F$339,6,IF(H76=WPG!F$338,7,9)),FALSE))*E$10/24,IF(C76="Industrial",VLOOKUP(I76,'Inhalation data'!A$3:X$24,23,FALSE),VLOOKUP(I76,'Inhalation data'!A$3:X$24,24,FALSE))))) ->  | O76: =IF(OR(I76="",J76="No",J76=""),"",VLOOKUP(I76,'Inhalation data'!A$3:O$24,IF(C76="Industrial",14,15),FALSE)) ->  | U76: =IF(I76="","",VLOOKUP(I76,'Inhalation data'!A$3:AS$24,45,FALSE)) ->  | V76: 0 | AA76: =IF(I76="","",VLOOKUP(I76,'Dermal data'!A$4:F$25,6,FALSE)) ->  | AB76: =IF(I76="","",VLOOKUP(I76,'Dermal data'!A$4:F$25,5,FALSE)/1000) ->  | AC76: =IF(AND(J76="Yes",B$9="YES"),IF(C76="Industrial - SU3",VLOOKUP(I76,'Dermal data'!A$4:G$25,7,),VLOOKUP(I76,'Dermal data'!A$4:H$25,8,)),"") ->  | AH76: 0 | AK76: 0 | AL76: 0 | AM76: 0 | AN76: 0 | AP76: YES | AQ76: =IF(AND(AQ$42="NO",AP76="NO"),"",IF(OR(J76="No",J76=""),"",VLOOKUP(I76,'Inhalation data'!A$3:S$24,IF(C76="Industrial",16,17),FALSE))&IF(P76="","",IF(P76="70 (ventilation)",WPG!F$383,IF(P76="30 (ventilation)",Findandtranslate_WPG(P$40),IF(OR(D76=WPG!F$228,E76=WPG!F$228,F76=WPG!F$228),WPG!F$367,WPG!F$412))))) ->  | AR76: =IF(AND(AR$42="NO",AP76="NO"),"",IF(Q76="half mask",WPG!F$465,IF(Q76="full face",WPG!F$467&WPG!F$468,""))&IF(AD76="gloves",WPG!F$458,IF(AD76="gloves-basic training",WPG!F$459,IF(AD76="gloves-specific training",WPG!F$460,IF(AD76="gloves-intensive controls",WPG!F$461,""))))&IF(AD76="","",VLOOKUP(I76,'Inhalation data'!A$3:V$24,22,FALSE))) ->  | AS76: =IF(AND(AS$42="NO",AP76="NO"),"",IF(M76="<15 min",WPG!F$360,IF(M76="1-4 hours",WPG!F$362,IF(M76="15 min-1 hour",WPG!F$361,"")))) ->  | AT76: =IF(OR(AND(AT$42="NO",AP76="NO"),BQ76>BP76),"",IF(L76="5-25%",WPG!F$352,IF(L76="1-5%",WPG!F$351,IF(L76="<1%",WPG!F$350,"")))) ->  | BL76: =IF(ISERROR(VLOOKUP(I76,'Dermal data'!A$3:K$25,1,FALSE)),"",LEFT(VLOOKUP(I76,'Dermal data'!A$3:K$25,1,FALSE),2)) ->  | BM76: =IF(ISERROR(VLOOKUP(I76,'Dermal data'!A$3:K$25,11,FALSE)),"",VLOOKUP(I76,'Dermal data'!A$3:K$25,11,FALSE)) ->  | BN76: =IF(ISERROR(VLOOKUP(I76,'Dermal data'!A$3:L$25,12,FALSE)),"",VLOOKUP(I76,'Dermal data'!A$3:L$25,12,FALSE)) ->  | BP76: 100 | BQ76: 100
C77: Industrial | H77: Liquid, vapour pressure 0.5 - 10 kPa at STP [OC4]. | N77: =IF(AND(OR(I77=A$124,I77=A$133),E$8<0.01,J77="Yes"),IF(B$8="YES",MIN(0.1*E$10/24,BB$10),0.1*E$10/24),IF(I77="","",IF(B77="Vapour exposure",IF(C77="Industrial",VLOOKUP(I77,'Inhalation data'!A$3:I$24,IF(H77=WPG!F$339,2,IF(H77=WPG!F$338,3,5)),FALSE),VLOOKUP(I77,'Inhalation data'!A$3:I$24,IF(H77=WPG!F$339,6,IF(H77=WPG!F$338,7,9)),FALSE))*E$10/24,IF(C77="Industrial",VLOOKUP(I77,'Inhalation data'!A$3:X$24,23,FALSE),VLOOKUP(I77,'Inhalation data'!A$3:X$24,24,FALSE))))) ->  | O77: =IF(OR(I77="",J77="No",J77=""),"",VLOOKUP(I77,'Inhalation data'!A$3:O$24,IF(C77="Industrial",14,15),FALSE)) ->  | U77: =IF(I77="","",VLOOKUP(I77,'Inhalation data'!A$3:AS$24,45,FALSE)) ->  | V77: 0 | AA77: =IF(I77="","",VLOOKUP(I77,'Dermal data'!A$4:F$25,6,FALSE)) ->  | AB77: =IF(I77="","",VLOOKUP(I77,'Dermal data'!A$4:F$25,5,FALSE)/1000) ->  | AC77: =IF(AND(J77="Yes",B$9="YES"),IF(C77="Industrial - SU3",VLOOKUP(I77,'Dermal data'!A$4:G$25,7,),VLOOKUP(I77,'Dermal data'!A$4:H$25,8,)),"") ->  | AH77: 0 | AK77: 0 | AL77: 0 | AM77: 0 | AN77: 0 | AP77: YES | AQ77: =IF(AND(AQ$42="NO",AP77="NO"),"",IF(OR(J77="No",J77=""),"",VLOOKUP(I77,'Inhalation data'!A$3:S$24,IF(C77="Industrial",16,17),FALSE))&IF(P77="","",IF(P77="70 (ventilation)",WPG!F$383,IF(P77="30 (ventilation)",Findandtranslate_WPG(P$40),IF(OR(D77=WPG!F$228,E77=WPG!F$228,F77=WPG!F$228),WPG!F$367,WPG!F$412))))) ->  | AR77: =IF(AND(AR$42="NO",AP77="NO"),"",IF(Q77="half mask",WPG!F$465,IF(Q77="full face",WPG!F$467&WPG!F$468,""))&IF(AD77="gloves",WPG!F$458,IF(AD77="gloves-basic training",WPG!F$459,IF(AD77="gloves-specific training",WPG!F$460,IF(AD77="gloves-intensive controls",WPG!F$461,""))))&IF(AD77="","",VLOOKUP(I77,'Inhalation data'!A$3:V$24,22,FALSE))) ->  | AS77: =IF(AND(AS$42="NO",AP77="NO"),"",IF(M77="<15 min",WPG!F$360,IF(M77="1-4 hours",WPG!F$362,IF(M77="15 min-1 hour",WPG!F$361,"")))) ->  | AT77: =IF(OR(AND(AT$42="NO",AP77="NO"),BQ77>BP77),"",IF(L77="5-25%",WPG!F$352,IF(L77="1-5%",WPG!F$351,IF(L77="<1%",WPG!F$350,"")))) ->  | BL77: =IF(ISERROR(VLOOKUP(I77,'Dermal data'!A$3:K$25,1,FALSE)),"",LEFT(VLOOKUP(I77,'Dermal data'!A$3:K$25,1,FALSE),2)) ->  | BM77: =IF(ISERROR(VLOOKUP(I77,'Dermal data'!A$3:K$25,11,FALSE)),"",VLOOKUP(I77,'Dermal data'!A$3:K$25,11,FALSE)) ->  | BN77: =IF(ISERROR(VLOOKUP(I77,'Dermal data'!A$3:L$25,12,FALSE)),"",VLOOKUP(I77,'Dermal data'!A$3:L$25,12,FALSE)) ->  | BP77: 100 | BQ77: 100
C78: Industrial | H78: Liquid, vapour pressure 0.5 - 10 kPa at STP [OC4]. | N78: =IF(AND(OR(I78=A$124,I78=A$133),E$8<0.01,J78="Yes"),IF(B$8="YES",MIN(0.1*E$10/24,BB$10),0.1*E$10/24),IF(I78="","",IF(B78="Vapour exposure",IF(C78="Industrial",VLOOKUP(I78,'Inhalation data'!A$3:I$24,IF(H78=WPG!F$339,2,IF(H78=WPG!F$338,3,5)),FALSE),VLOOKUP(I78,'Inhalation data'!A$3:I$24,IF(H78=WPG!F$339,6,IF(H78=WPG!F$338,7,9)),FALSE))*E$10/24,IF(C78="Industrial",VLOOKUP(I78,'Inhalation data'!A$3:X$24,23,FALSE),VLOOKUP(I78,'Inhalation data'!A$3:X$24,24,FALSE))))) ->  | O78: =IF(OR(I78="",J78="No",J78=""),"",VLOOKUP(I78,'Inhalation data'!A$3:O$24,IF(C78="Industrial",14,15),FALSE)) ->  | U78: =IF(I78="","",VLOOKUP(I78,'Inhalation data'!A$3:AS$24,45,FALSE)) ->  | V78: 0 | AA78: =IF(I78="","",VLOOKUP(I78,'Dermal data'!A$4:F$25,6,FALSE)) ->  | AB78: =IF(I78="","",VLOOKUP(I78,'Dermal data'!A$4:F$25,5,FALSE)/1000) ->  | AC78: =IF(AND(J78="Yes",B$9="YES"),IF(C78="Industrial - SU3",VLOOKUP(I78,'Dermal data'!A$4:G$25,7,),VLOOKUP(I78,'Dermal data'!A$4:H$25,8,)),"") ->  | AH78: 0 | AK78: 0 | AL78: 0 | AM78: 0 | AN78: 0 | AP78: YES | AQ78: =IF(AND(AQ$42="NO",AP78="NO"),"",IF(OR(J78="No",J78=""),"",VLOOKUP(I78,'Inhalation data'!A$3:S$24,IF(C78="Industrial",16,17),FALSE))&IF(P78="","",IF(P78="70 (ventilation)",WPG!F$383,IF(P78="30 (ventilation)",Findandtranslate_WPG(P$40),IF(OR(D78=WPG!F$228,E78=WPG!F$228,F78=WPG!F$228),WPG!F$367,WPG!F$412))))) ->  | AR78: =IF(AND(AR$42="NO",AP78="NO"),"",IF(Q78="half mask",WPG!F$465,IF(Q78="full face",WPG!F$467&WPG!F$468,""))&IF(AD78="gloves",WPG!F$458,IF(AD78="gloves-basic training",WPG!F$459,IF(AD78="gloves-specific training",WPG!F$460,IF(AD78="gloves-intensive controls",WPG!F$461,""))))&IF(AD78="","",VLOOKUP(I78,'Inhalation data'!A$3:V$24,22,FALSE))) ->  | AS78: =IF(AND(AS$42="NO",AP78="NO"),"",IF(M78="<15 min",WPG!F$360,IF(M78="1-4 hours",WPG!F$362,IF(M78="15 min-1 hour",WPG!F$361,"")))) ->  | AT78: =IF(OR(AND(AT$42="NO",AP78="NO"),BQ78>BP78),"",IF(L78="5-25%",WPG!F$352,IF(L78="1-5%",WPG!F$351,IF(L78="<1%",WPG!F$350,"")))) ->  | BL78: =IF(ISERROR(VLOOKUP(I78,'Dermal data'!A$3:K$25,1,FALSE)),"",LEFT(VLOOKUP(I78,'Dermal data'!A$3:K$25,1,FALSE),2)) ->  | BM78: =IF(ISERROR(VLOOKUP(I78,'Dermal data'!A$3:K$25,11,FALSE)),"",VLOOKUP(I78,'Dermal data'!A$3:K$25,11,FALSE)) ->  | BN78: =IF(ISERROR(VLOOKUP(I78,'Dermal data'!A$3:L$25,12,FALSE)),"",VLOOKUP(I78,'Dermal data'!A$3:L$25,12,FALSE)) ->  | BP78: 100 | BQ78: 100
C79: Industrial | H79: Liquid, vapour pressure 0.5 - 10 kPa at STP [OC4]. | N79: =IF(AND(OR(I79=A$124,I79=A$133),E$8<0.01,J79="Yes"),IF(B$8="YES",MIN(0.1*E$10/24,BB$10),0.1*E$10/24),IF(I79="","",IF(B79="Vapour exposure",IF(C79="Industrial",VLOOKUP(I79,'Inhalation data'!A$3:I$24,IF(H79=WPG!F$339,2,IF(H79=WPG!F$338,3,5)),FALSE),VLOOKUP(I79,'Inhalation data'!A$3:I$24,IF(H79=WPG!F$339,6,IF(H79=WPG!F$338,7,9)),FALSE))*E$10/24,IF(C79="Industrial",VLOOKUP(I79,'Inhalation data'!A$3:X$24,23,FALSE),VLOOKUP(I79,'Inhalation data'!A$3:X$24,24,FALSE))))) ->  | O79: =IF(OR(I79="",J79="No",J79=""),"",VLOOKUP(I79,'Inhalation data'!A$3:O$24,IF(C79="Industrial",14,15),FALSE)) ->  | U79: =IF(I79="","",VLOOKUP(I79,'Inhalation data'!A$3:AS$24,45,FALSE)) ->  | V79: 0 | AA79: =IF(I79="","",VLOOKUP(I79,'Dermal data'!A$4:F$25,6,FALSE)) ->  | AB79: =IF(I79="","",VLOOKUP(I79,'Dermal data'!A$4:F$25,5,FALSE)/1000) ->  | AC79: =IF(AND(J79="Yes",B$9="YES"),IF(C79="Industrial - SU3",VLOOKUP(I79,'Dermal data'!A$4:G$25,7,),VLOOKUP(I79,'Dermal data'!A$4:H$25,8,)),"") ->  | AH79: 0 | AK79: 0 | AL79: 0 | AM79: 0 | AN79: 0 | AP79: YES | AQ79: =IF(AND(AQ$42="NO",AP79="NO"),"",IF(OR(J79="No",J79=""),"",VLOOKUP(I79,'Inhalation data'!A$3:S$24,IF(C79="Industrial",16,17),FALSE))&IF(P79="","",IF(P79="70 (ventilation)",WPG!F$383,IF(P79="30 (ventilation)",Findandtranslate_WPG(P$40),IF(OR(D79=WPG!F$228,E79=WPG!F$228,F79=WPG!F$228),WPG!F$367,WPG!F$412))))) ->  | AR79: =IF(AND(AR$42="NO",AP79="NO"),"",IF(Q79="half mask",WPG!F$465,IF(Q79="full face",WPG!F$467&WPG!F$468,""))&IF(AD79="gloves",WPG!F$458,IF(AD79="gloves-basic training",WPG!F$459,IF(AD79="gloves-specific training",WPG!F$460,IF(AD79="gloves-intensive controls",WPG!F$461,""))))&IF(AD79="","",VLOOKUP(I79,'Inhalation data'!A$3:V$24,22,FALSE))) ->  | AS79: =IF(AND(AS$42="NO",AP79="NO"),"",IF(M79="<15 min",WPG!F$360,IF(M79="1-4 hours",WPG!F$362,IF(M79="15 min-1 hour",WPG!F$361,"")))) ->  | AT79: =IF(OR(AND(AT$42="NO",AP79="NO"),BQ79>BP79),"",IF(L79="5-25%",WPG!F$352,IF(L79="1-5%",WPG!F$351,IF(L79="<1%",WPG!F$350,"")))) ->  | BL79: =IF(ISERROR(VLOOKUP(I79,'Dermal data'!A$3:K$25,1,FALSE)),"",LEFT(VLOOKUP(I79,'Dermal data'!A$3:K$25,1,FALSE),2)) ->  | BM79: =IF(ISERROR(VLOOKUP(I79,'Dermal data'!A$3:K$25,11,FALSE)),"",VLOOKUP(I79,'Dermal data'!A$3:K$25,11,FALSE)) ->  | BN79: =IF(ISERROR(VLOOKUP(I79,'Dermal data'!A$3:L$25,12,FALSE)),"",VLOOKUP(I79,'Dermal data'!A$3:L$25,12,FALSE)) ->  | BP79: 100 | BQ79: 100
C80: Industrial | H80: Liquid, vapour pressure 0.5 - 10 kPa at STP [OC4]. | N80: =IF(AND(OR(I80=A$124,I80=A$133),E$8<0.01,J80="Yes"),IF(B$8="YES",MIN(0.1*E$10/24,BB$10),0.1*E$10/24),IF(I80="","",IF(B80="Vapour exposure",IF(C80="Industrial",VLOOKUP(I80,'Inhalation data'!A$3:I$24,IF(H80=WPG!F$339,2,IF(H80=WPG!F$338,3,5)),FALSE),VLOOKUP(I80,'Inhalation data'!A$3:I$24,IF(H80=WPG!F$339,6,IF(H80=WPG!F$338,7,9)),FALSE))*E$10/24,IF(C80="Industrial",VLOOKUP(I80,'Inhalation data'!A$3:X$24,23,FALSE),VLOOKUP(I80,'Inhalation data'!A$3:X$24,24,FALSE))))) ->  | O80: =IF(OR(I80="",J80="No",J80=""),"",VLOOKUP(I80,'Inhalation data'!A$3:O$24,IF(C80="Industrial",14,15),FALSE)) ->  | U80: =IF(I80="","",VLOOKUP(I80,'Inhalation data'!A$3:AS$24,45,FALSE)) ->  | V80: 0 | AA80: =IF(I80="","",VLOOKUP(I80,'Dermal data'!A$4:F$25,6,FALSE)) ->  | AB80: =IF(I80="","",VLOOKUP(I80,'Dermal data'!A$4:F$25,5,FALSE)/1000) ->  | AC80: =IF(AND(J80="Yes",B$9="YES"),IF(C80="Industrial - SU3",VLOOKUP(I80,'Dermal data'!A$4:G$25,7,),VLOOKUP(I80,'Dermal data'!A$4:H$25,8,)),"") ->  | AH80: 0 | AK80: 0 | AL80: 0 | AM80: 0 | AN80: 0 | AP80: YES | AQ80: =IF(AND(AQ$42="NO",AP80="NO"),"",IF(OR(J80="No",J80=""),"",VLOOKUP(I80,'Inhalation data'!A$3:S$24,IF(C80="Industrial",16,17),FALSE))&IF(P80="","",IF(P80="70 (ventilation)",WPG!F$383,IF(P80="30 (ventilation)",Findandtranslate_WPG(P$40),IF(OR(D80=WPG!F$228,E80=WPG!F$228,F80=WPG!F$228),WPG!F$367,WPG!F$412))))) ->  | AR80: =IF(AND(AR$42="NO",AP80="NO"),"",IF(Q80="half mask",WPG!F$465,IF(Q80="full face",WPG!F$467&WPG!F$468,""))&IF(AD80="gloves",WPG!F$458,IF(AD80="gloves-basic training",WPG!F$459,IF(AD80="gloves-specific training",WPG!F$460,IF(AD80="gloves-intensive controls",WPG!F$461,""))))&IF(AD80="","",VLOOKUP(I80,'Inhalation data'!A$3:V$24,22,FALSE))) ->  | AS80: =IF(AND(AS$42="NO",AP80="NO"),"",IF(M80="<15 min",WPG!F$360,IF(M80="1-4 hours",WPG!F$362,IF(M80="15 min-1 hour",WPG!F$361,"")))) ->  | AT80: =IF(OR(AND(AT$42="NO",AP80="NO"),BQ80>BP80),"",IF(L80="5-25%",WPG!F$352,IF(L80="1-5%",WPG!F$351,IF(L80="<1%",WPG!F$350,"")))) ->  | BL80: =IF(ISERROR(VLOOKUP(I80,'Dermal data'!A$3:K$25,1,FALSE)),"",LEFT(VLOOKUP(I80,'Dermal data'!A$3:K$25,1,FALSE),2)) ->  | BM80: =IF(ISERROR(VLOOKUP(I80,'Dermal data'!A$3:K$25,11,FALSE)),"",VLOOKUP(I80,'Dermal data'!A$3:K$25,11,FALSE)) ->  | BN80: =IF(ISERROR(VLOOKUP(I80,'Dermal data'!A$3:L$25,12,FALSE)),"",VLOOKUP(I80,'Dermal data'!A$3:L$25,12,FALSE)) ->  | BP80: 100 | BQ80: 100
C81: Industrial | H81: Liquid, vapour pressure 0.5 - 10 kPa at STP [OC4]. | N81: =IF(AND(OR(I81=A$124,I81=A$133),E$8<0.01,J81="Yes"),IF(B$8="YES",MIN(0.1*E$10/24,BB$10),0.1*E$10/24),IF(I81="","",IF(B81="Vapour exposure",IF(C81="Industrial",VLOOKUP(I81,'Inhalation data'!A$3:I$24,IF(H81=WPG!F$339,2,IF(H81=WPG!F$338,3,5)),FALSE),VLOOKUP(I81,'Inhalation data'!A$3:I$24,IF(H81=WPG!F$339,6,IF(H81=WPG!F$338,7,9)),FALSE))*E$10/24,IF(C81="Industrial",VLOOKUP(I81,'Inhalation data'!A$3:X$24,23,FALSE),VLOOKUP(I81,'Inhalation data'!A$3:X$24,24,FALSE))))) ->  | O81: =IF(OR(I81="",J81="No",J81=""),"",VLOOKUP(I81,'Inhalation data'!A$3:O$24,IF(C81="Industrial",14,15),FALSE)) ->  | U81: =IF(I81="","",VLOOKUP(I81,'Inhalation data'!A$3:AS$24,45,FALSE)) ->  | V81: 0 | AA81: =IF(I81="","",VLOOKUP(I81,'Dermal data'!A$4:F$25,6,FALSE)) ->  | AB81: =IF(I81="","",VLOOKUP(I81,'Dermal data'!A$4:F$25,5,FALSE)/1000) ->  | AC81: =IF(AND(J81="Yes",B$9="YES"),IF(C81="Industrial - SU3",VLOOKUP(I81,'Dermal data'!A$4:G$25,7,),VLOOKUP(I81,'Dermal data'!A$4:H$25,8,)),"") ->  | AH81: 0 | AK81: 0 | AL81: 0 | AM81: 0 | AN81: 0 | AP81: YES | AQ81: =IF(AND(AQ$42="NO",AP81="NO"),"",IF(OR(J81="No",J81=""),"",VLOOKUP(I81,'Inhalation data'!A$3:S$24,IF(C81="Industrial",16,17),FALSE))&IF(P81="","",IF(P81="70 (ventilation)",WPG!F$383,IF(P81="30 (ventilation)",Findandtranslate_WPG(P$40),IF(OR(D81=WPG!F$228,E81=WPG!F$228,F81=WPG!F$228),WPG!F$367,WPG!F$412))))) ->  | AR81: =IF(AND(AR$42="NO",AP81="NO"),"",IF(Q81="half mask",WPG!F$465,IF(Q81="full face",WPG!F$467&WPG!F$468,""))&IF(AD81="gloves",WPG!F$458,IF(AD81="gloves-basic training",WPG!F$459,IF(AD81="gloves-specific training",WPG!F$460,IF(AD81="gloves-intensive controls",WPG!F$461,""))))&IF(AD81="","",VLOOKUP(I81,'Inhalation data'!A$3:V$24,22,FALSE))) ->  | AS81: =IF(AND(AS$42="NO",AP81="NO"),"",IF(M81="<15 min",WPG!F$360,IF(M81="1-4 hours",WPG!F$362,IF(M81="15 min-1 hour",WPG!F$361,"")))) ->  | AT81: =IF(OR(AND(AT$42="NO",AP81="NO"),BQ81>BP81),"",IF(L81="5-25%",WPG!F$352,IF(L81="1-5%",WPG!F$351,IF(L81="<1%",WPG!F$350,"")))) ->  | BL81: =IF(ISERROR(VLOOKUP(I81,'Dermal data'!A$3:K$25,1,FALSE)),"",LEFT(VLOOKUP(I81,'Dermal data'!A$3:K$25,1,FALSE),2)) ->  | BM81: =IF(ISERROR(VLOOKUP(I81,'Dermal data'!A$3:K$25,11,FALSE)),"",VLOOKUP(I81,'Dermal data'!A$3:K$25,11,FALSE)) ->  | BN81: =IF(ISERROR(VLOOKUP(I81,'Dermal data'!A$3:L$25,12,FALSE)),"",VLOOKUP(I81,'Dermal data'!A$3:L$25,12,FALSE)) ->  | BP81: 100 | BQ81: 100
C82: Industrial | H82: Liquid, vapour pressure 0.5 - 10 kPa at STP [OC4]. | N82: =IF(AND(OR(I82=A$124,I82=A$133),E$8<0.01,J82="Yes"),IF(B$8="YES",MIN(0.1*E$10/24,BB$10),0.1*E$10/24),IF(I82="","",IF(B82="Vapour exposure",IF(C82="Industrial",VLOOKUP(I82,'Inhalation data'!A$3:I$24,IF(H82=WPG!F$339,2,IF(H82=WPG!F$338,3,5)),FALSE),VLOOKUP(I82,'Inhalation data'!A$3:I$24,IF(H82=WPG!F$339,6,IF(H82=WPG!F$338,7,9)),FALSE))*E$10/24,IF(C82="Industrial",VLOOKUP(I82,'Inhalation data'!A$3:X$24,23,FALSE),VLOOKUP(I82,'Inhalation data'!A$3:X$24,24,FALSE))))) ->  | O82: =IF(OR(I82="",J82="No",J82=""),"",VLOOKUP(I82,'Inhalation data'!A$3:O$24,IF(C82="Industrial",14,15),FALSE)) ->  | U82: =IF(I82="","",VLOOKUP(I82,'Inhalation data'!A$3:AS$24,45,FALSE)) ->  | V82: 0 | AA82: =IF(I82="","",VLOOKUP(I82,'Dermal data'!A$4:F$25,6,FALSE)) ->  | AB82: =IF(I82="","",VLOOKUP(I82,'Dermal data'!A$4:F$25,5,FALSE)/1000) ->  | AC82: =IF(AND(J82="Yes",B$9="YES"),IF(C82="Industrial - SU3",VLOOKUP(I82,'Dermal data'!A$4:G$25,7,),VLOOKUP(I82,'Dermal data'!A$4:H$25,8,)),"") ->  | AH82: 0 | AK82: 0 | AL82: 0 | AM82: 0 | AN82: 0 | AP82: YES | AQ82: =IF(AND(AQ$42="NO",AP82="NO"),"",IF(OR(J82="No",J82=""),"",VLOOKUP(I82,'Inhalation data'!A$3:S$24,IF(C82="Industrial",16,17),FALSE))&IF(P82="","",IF(P82="70 (ventilation)",WPG!F$383,IF(P82="30 (ventilation)",Findandtranslate_WPG(P$40),IF(OR(D82=WPG!F$228,E82=WPG!F$228,F82=WPG!F$228),WPG!F$367,WPG!F$412))))) ->  | AR82: =IF(AND(AR$42="NO",AP82="NO"),"",IF(Q82="half mask",WPG!F$465,IF(Q82="full face",WPG!F$467&WPG!F$468,""))&IF(AD82="gloves",WPG!F$458,IF(AD82="gloves-basic training",WPG!F$459,IF(AD82="gloves-specific training",WPG!F$460,IF(AD82="gloves-intensive controls",WPG!F$461,""))))&IF(AD82="","",VLOOKUP(I82,'Inhalation data'!A$3:V$24,22,FALSE))) ->  | AS82: =IF(AND(AS$42="NO",AP82="NO"),"",IF(M82="<15 min",WPG!F$360,IF(M82="1-4 hours",WPG!F$362,IF(M82="15 min-1 hour",WPG!F$361,"")))) ->  | AT82: =IF(OR(AND(AT$42="NO",AP82="NO"),BQ82>BP82),"",IF(L82="5-25%",WPG!F$352,IF(L82="1-5%",WPG!F$351,IF(L82="<1%",WPG!F$350,"")))) ->  | BL82: =IF(ISERROR(VLOOKUP(I82,'Dermal data'!A$3:K$25,1,FALSE)),"",LEFT(VLOOKUP(I82,'Dermal data'!A$3:K$25,1,FALSE),2)) ->  | BM82: =IF(ISERROR(VLOOKUP(I82,'Dermal data'!A$3:K$25,11,FALSE)),"",VLOOKUP(I82,'Dermal data'!A$3:K$25,11,FALSE)) ->  | BN82: =IF(ISERROR(VLOOKUP(I82,'Dermal data'!A$3:L$25,12,FALSE)),"",VLOOKUP(I82,'Dermal data'!A$3:L$25,12,FALSE)) ->  | BP82: 100 | BQ82: 100
C83: Industrial | H83: Liquid, vapour pressure 0.5 - 10 kPa at STP [OC4]. | N83: =IF(AND(OR(I83=A$124,I83=A$133),E$8<0.01,J83="Yes"),IF(B$8="YES",MIN(0.1*E$10/24,BB$10),0.1*E$10/24),IF(I83="","",IF(B83="Vapour exposure",IF(C83="Industrial",VLOOKUP(I83,'Inhalation data'!A$3:I$24,IF(H83=WPG!F$339,2,IF(H83=WPG!F$338,3,5)),FALSE),VLOOKUP(I83,'Inhalation data'!A$3:I$24,IF(H83=WPG!F$339,6,IF(H83=WPG!F$338,7,9)),FALSE))*E$10/24,IF(C83="Industrial",VLOOKUP(I83,'Inhalation data'!A$3:X$24,23,FALSE),VLOOKUP(I83,'Inhalation data'!A$3:X$24,24,FALSE))))) ->  | O83: =IF(OR(I83="",J83="No",J83=""),"",VLOOKUP(I83,'Inhalation data'!A$3:O$24,IF(C83="Industrial",14,15),FALSE)) ->  | U83: =IF(I83="","",VLOOKUP(I83,'Inhalation data'!A$3:AS$24,45,FALSE)) ->  | V83: 0 | AA83: =IF(I83="","",VLOOKUP(I83,'Dermal data'!A$4:F$25,6,FALSE)) ->  | AB83: =IF(I83="","",VLOOKUP(I83,'Dermal data'!A$4:F$25,5,FALSE)/1000) ->  | AC83: =IF(AND(J83="Yes",B$9="YES"),IF(C83="Industrial - SU3",VLOOKUP(I83,'Dermal data'!A$4:G$25,7,),VLOOKUP(I83,'Dermal data'!A$4:H$25,8,)),"") ->  | AH83: 0 | AK83: 0 | AL83: 0 | AM83: 0 | AN83: 0 | AP83: YES | AQ83: =IF(AND(AQ$42="NO",AP83="NO"),"",IF(OR(J83="No",J83=""),"",VLOOKUP(I83,'Inhalation data'!A$3:S$24,IF(C83="Industrial",16,17),FALSE))&IF(P83="","",IF(P83="70 (ventilation)",WPG!F$383,IF(P83="30 (ventilation)",Findandtranslate_WPG(P$40),IF(OR(D83=WPG!F$228,E83=WPG!F$228,F83=WPG!F$228),WPG!F$367,WPG!F$412))))) ->  | AR83: =IF(AND(AR$42="NO",AP83="NO"),"",IF(Q83="half mask",WPG!F$465,IF(Q83="full face",WPG!F$467&WPG!F$468,""))&IF(AD83="gloves",WPG!F$458,IF(AD83="gloves-basic training",WPG!F$459,IF(AD83="gloves-specific training",WPG!F$460,IF(AD83="gloves-intensive controls",WPG!F$461,""))))&IF(AD83="","",VLOOKUP(I83,'Inhalation data'!A$3:V$24,22,FALSE))) ->  | AS83: =IF(AND(AS$42="NO",AP83="NO"),"",IF(M83="<15 min",WPG!F$360,IF(M83="1-4 hours",WPG!F$362,IF(M83="15 min-1 hour",WPG!F$361,"")))) ->  | AT83: =IF(OR(AND(AT$42="NO",AP83="NO"),BQ83>BP83),"",IF(L83="5-25%",WPG!F$352,IF(L83="1-5%",WPG!F$351,IF(L83="<1%",WPG!F$350,"")))) ->  | BL83: =IF(ISERROR(VLOOKUP(I83,'Dermal data'!A$3:K$25,1,FALSE)),"",LEFT(VLOOKUP(I83,'Dermal data'!A$3:K$25,1,FALSE),2)) ->  | BM83: =IF(ISERROR(VLOOKUP(I83,'Dermal data'!A$3:K$25,11,FALSE)),"",VLOOKUP(I83,'Dermal data'!A$3:K$25,11,FALSE)) ->  | BN83: =IF(ISERROR(VLOOKUP(I83,'Dermal data'!A$3:L$25,12,FALSE)),"",VLOOKUP(I83,'Dermal data'!A$3:L$25,12,FALSE)) ->  | BP83: 100 | BQ83: 100
C84: Industrial | H84: Liquid, vapour pressure 0.5 - 10 kPa at STP [OC4]. | N84: =IF(AND(OR(I84=A$124,I84=A$133),E$8<0.01,J84="Yes"),IF(B$8="YES",MIN(0.1*E$10/24,BB$10),0.1*E$10/24),IF(I84="","",IF(B84="Vapour exposure",IF(C84="Industrial",VLOOKUP(I84,'Inhalation data'!A$3:I$24,IF(H84=WPG!F$339,2,IF(H84=WPG!F$338,3,5)),FALSE),VLOOKUP(I84,'Inhalation data'!A$3:I$24,IF(H84=WPG!F$339,6,IF(H84=WPG!F$338,7,9)),FALSE))*E$10/24,IF(C84="Industrial",VLOOKUP(I84,'Inhalation data'!A$3:X$24,23,FALSE),VLOOKUP(I84,'Inhalation data'!A$3:X$24,24,FALSE))))) ->  | O84: =IF(OR(I84="",J84="No",J84=""),"",VLOOKUP(I84,'Inhalation data'!A$3:O$24,IF(C84="Industrial",14,15),FALSE)) ->  | U84: =IF(I84="","",VLOOKUP(I84,'Inhalation data'!A$3:AS$24,45,FALSE)) ->  | V84: 0 | AA84: =IF(I84="","",VLOOKUP(I84,'Dermal data'!A$4:F$25,6,FALSE)) ->  | AB84: =IF(I84="","",VLOOKUP(I84,'Dermal data'!A$4:F$25,5,FALSE)/1000) ->  | AC84: =IF(AND(J84="Yes",B$9="YES"),IF(C84="Industrial - SU3",VLOOKUP(I84,'Dermal data'!A$4:G$25,7,),VLOOKUP(I84,'Dermal data'!A$4:H$25,8,)),"") ->  | AH84: 0 | AK84: 0 | AL84: 0 | AM84: 0 | AN84: 0 | AP84: YES | AQ84: =IF(AND(AQ$42="NO",AP84="NO"),"",IF(OR(J84="No",J84=""),"",VLOOKUP(I84,'Inhalation data'!A$3:S$24,IF(C84="Industrial",16,17),FALSE))&IF(P84="","",IF(P84="70 (ventilation)",WPG!F$383,IF(P84="30 (ventilation)",Findandtranslate_WPG(P$40),IF(OR(D84=WPG!F$228,E84=WPG!F$228,F84=WPG!F$228),WPG!F$367,WPG!F$412))))) ->  | AR84: =IF(AND(AR$42="NO",AP84="NO"),"",IF(Q84="half mask",WPG!F$465,IF(Q84="full face",WPG!F$467&WPG!F$468,""))&IF(AD84="gloves",WPG!F$458,IF(AD84="gloves-basic training",WPG!F$459,IF(AD84="gloves-specific training",WPG!F$460,IF(AD84="gloves-intensive controls",WPG!F$461,""))))&IF(AD84="","",VLOOKUP(I84,'Inhalation data'!A$3:V$24,22,FALSE))) ->  | AS84: =IF(AND(AS$42="NO",AP84="NO"),"",IF(M84="<15 min",WPG!F$360,IF(M84="1-4 hours",WPG!F$362,IF(M84="15 min-1 hour",WPG!F$361,"")))) ->  | AT84: =IF(OR(AND(AT$42="NO",AP84="NO"),BQ84>BP84),"",IF(L84="5-25%",WPG!F$352,IF(L84="1-5%",WPG!F$351,IF(L84="<1%",WPG!F$350,"")))) ->  | BL84: =IF(ISERROR(VLOOKUP(I84,'Dermal data'!A$3:K$25,1,FALSE)),"",LEFT(VLOOKUP(I84,'Dermal data'!A$3:K$25,1,FALSE),2)) ->  | BM84: =IF(ISERROR(VLOOKUP(I84,'Dermal data'!A$3:K$25,11,FALSE)),"",VLOOKUP(I84,'Dermal data'!A$3:K$25,11,FALSE)) ->  | BN84: =IF(ISERROR(VLOOKUP(I84,'Dermal data'!A$3:L$25,12,FALSE)),"",VLOOKUP(I84,'Dermal data'!A$3:L$25,12,FALSE)) ->  | BP84: 100 | BQ84: 100
C85: Industrial | H85: Liquid, vapour pressure 0.5 - 10 kPa at STP [OC4]. | N85: =IF(AND(OR(I85=A$124,I85=A$133),E$8<0.01,J85="Yes"),IF(B$8="YES",MIN(0.1*E$10/24,BB$10),0.1*E$10/24),IF(I85="","",IF(B85="Vapour exposure",IF(C85="Industrial",VLOOKUP(I85,'Inhalation data'!A$3:I$24,IF(H85=WPG!F$339,2,IF(H85=WPG!F$338,3,5)),FALSE),VLOOKUP(I85,'Inhalation data'!A$3:I$24,IF(H85=WPG!F$339,6,IF(H85=WPG!F$338,7,9)),FALSE))*E$10/24,IF(C85="Industrial",VLOOKUP(I85,'Inhalation data'!A$3:X$24,23,FALSE),VLOOKUP(I85,'Inhalation data'!A$3:X$24,24,FALSE))))) ->  | O85: =IF(OR(I85="",J85="No",J85=""),"",VLOOKUP(I85,'Inhalation data'!A$3:O$24,IF(C85="Industrial",14,15),FALSE)) ->  | U85: =IF(I85="","",VLOOKUP(I85,'Inhalation data'!A$3:AS$24,45,FALSE)) ->  | V85: 0 | AA85: =IF(I85="","",VLOOKUP(I85,'Dermal data'!A$4:F$25,6,FALSE)) ->  | AB85: =IF(I85="","",VLOOKUP(I85,'Dermal data'!A$4:F$25,5,FALSE)/1000) ->  | AC85: =IF(AND(J85="Yes",B$9="YES"),IF(C85="Industrial - SU3",VLOOKUP(I85,'Dermal data'!A$4:G$25,7,),VLOOKUP(I85,'Dermal data'!A$4:H$25,8,)),"") ->  | AH85: 0 | AK85: 0 | AL85: 0 | AM85: 0 | AN85: 0 | AP85: YES | AQ85: =IF(AND(AQ$42="NO",AP85="NO"),"",IF(OR(J85="No",J85=""),"",VLOOKUP(I85,'Inhalation data'!A$3:S$24,IF(C85="Industrial",16,17),FALSE))&IF(P85="","",IF(P85="70 (ventilation)",WPG!F$383,IF(P85="30 (ventilation)",Findandtranslate_WPG(P$40),IF(OR(D85=WPG!F$228,E85=WPG!F$228,F85=WPG!F$228),WPG!F$367,WPG!F$412))))) ->  | AR85: =IF(AND(AR$42="NO",AP85="NO"),"",IF(Q85="half mask",WPG!F$465,IF(Q85="full face",WPG!F$467&WPG!F$468,""))&IF(AD85="gloves",WPG!F$458,IF(AD85="gloves-basic training",WPG!F$459,IF(AD85="gloves-specific training",WPG!F$460,IF(AD85="gloves-intensive controls",WPG!F$461,""))))&IF(AD85="","",VLOOKUP(I85,'Inhalation data'!A$3:V$24,22,FALSE))) ->  | AS85: =IF(AND(AS$42="NO",AP85="NO"),"",IF(M85="<15 min",WPG!F$360,IF(M85="1-4 hours",WPG!F$362,IF(M85="15 min-1 hour",WPG!F$361,"")))) ->  | AT85: =IF(OR(AND(AT$42="NO",AP85="NO"),BQ85>BP85),"",IF(L85="5-25%",WPG!F$352,IF(L85="1-5%",WPG!F$351,IF(L85="<1%",WPG!F$350,"")))) ->  | BL85: =IF(ISERROR(VLOOKUP(I85,'Dermal data'!A$3:K$25,1,FALSE)),"",LEFT(VLOOKUP(I85,'Dermal data'!A$3:K$25,1,FALSE),2)) ->  | BM85: =IF(ISERROR(VLOOKUP(I85,'Dermal data'!A$3:K$25,11,FALSE)),"",VLOOKUP(I85,'Dermal data'!A$3:K$25,11,FALSE)) ->  | BN85: =IF(ISERROR(VLOOKUP(I85,'Dermal data'!A$3:L$25,12,FALSE)),"",VLOOKUP(I85,'Dermal data'!A$3:L$25,12,FALSE)) ->  | BP85: 100 | BQ85: 100
C86: Industrial | H86: Liquid, vapour pressure 0.5 - 10 kPa at STP [OC4]. | N86: =IF(AND(OR(I86=A$124,I86=A$133),E$8<0.01,J86="Yes"),IF(B$8="YES",MIN(0.1*E$10/24,BB$10),0.1*E$10/24),IF(I86="","",IF(B86="Vapour exposure",IF(C86="Industrial",VLOOKUP(I86,'Inhalation data'!A$3:I$24,IF(H86=WPG!F$339,2,IF(H86=WPG!F$338,3,5)),FALSE),VLOOKUP(I86,'Inhalation data'!A$3:I$24,IF(H86=WPG!F$339,6,IF(H86=WPG!F$338,7,9)),FALSE))*E$10/24,IF(C86="Industrial",VLOOKUP(I86,'Inhalation data'!A$3:X$24,23,FALSE),VLOOKUP(I86,'Inhalation data'!A$3:X$24,24,FALSE))))) ->  | O86: =IF(OR(I86="",J86="No",J86=""),"",VLOOKUP(I86,'Inhalation data'!A$3:O$24,IF(C86="Industrial",14,15),FALSE)) ->  | U86: =IF(I86="","",VLOOKUP(I86,'Inhalation data'!A$3:AS$24,45,FALSE)) ->  | V86: 0 | AA86: =IF(I86="","",VLOOKUP(I86,'Dermal data'!A$4:F$25,6,FALSE)) ->  | AB86: =IF(I86="","",VLOOKUP(I86,'Dermal data'!A$4:F$25,5,FALSE)/1000) ->  | AC86: =IF(AND(J86="Yes",B$9="YES"),IF(C86="Industrial - SU3",VLOOKUP(I86,'Dermal data'!A$4:G$25,7,),VLOOKUP(I86,'Dermal data'!A$4:H$25,8,)),"") ->  | AH86: 0 | AK86: 0 | AL86: 0 | AM86: 0 | AN86: 0 | AP86: YES | AQ86: =IF(AND(AQ$42="NO",AP86="NO"),"",IF(OR(J86="No",J86=""),"",VLOOKUP(I86,'Inhalation data'!A$3:S$24,IF(C86="Industrial",16,17),FALSE))&IF(P86="","",IF(P86="70 (ventilation)",WPG!F$383,IF(P86="30 (ventilation)",Findandtranslate_WPG(P$40),IF(OR(D86=WPG!F$228,E86=WPG!F$228,F86=WPG!F$228),WPG!F$367,WPG!F$412))))) ->  | AR86: =IF(AND(AR$42="NO",AP86="NO"),"",IF(Q86="half mask",WPG!F$465,IF(Q86="full face",WPG!F$467&WPG!F$468,""))&IF(AD86="gloves",WPG!F$458,IF(AD86="gloves-basic training",WPG!F$459,IF(AD86="gloves-specific training",WPG!F$460,IF(AD86="gloves-intensive controls",WPG!F$461,""))))&IF(AD86="","",VLOOKUP(I86,'Inhalation data'!A$3:V$24,22,FALSE))) ->  | AS86: =IF(AND(AS$42="NO",AP86="NO"),"",IF(M86="<15 min",WPG!F$360,IF(M86="1-4 hours",WPG!F$362,IF(M86="15 min-1 hour",WPG!F$361,"")))) ->  | AT86: =IF(OR(AND(AT$42="NO",AP86="NO"),BQ86>BP86),"",IF(L86="5-25%",WPG!F$352,IF(L86="1-5%",WPG!F$351,IF(L86="<1%",WPG!F$350,"")))) ->  | BL86: =IF(ISERROR(VLOOKUP(I86,'Dermal data'!A$3:K$25,1,FALSE)),"",LEFT(VLOOKUP(I86,'Dermal data'!A$3:K$25,1,FALSE),2)) ->  | BM86: =IF(ISERROR(VLOOKUP(I86,'Dermal data'!A$3:K$25,11,FALSE)),"",VLOOKUP(I86,'Dermal data'!A$3:K$25,11,FALSE)) ->  | BN86: =IF(ISERROR(VLOOKUP(I86,'Dermal data'!A$3:L$25,12,FALSE)),"",VLOOKUP(I86,'Dermal data'!A$3:L$25,12,FALSE)) ->  | BP86: 100 | BQ86: 100
C87: Industrial | H87: Liquid, vapour pressure 0.5 - 10 kPa at STP [OC4]. | N87: =IF(AND(OR(I87=A$124,I87=A$133),E$8<0.01,J87="Yes"),IF(B$8="YES",MIN(0.1*E$10/24,BB$10),0.1*E$10/24),IF(I87="","",IF(B87="Vapour exposure",IF(C87="Industrial",VLOOKUP(I87,'Inhalation data'!A$3:I$24,IF(H87=WPG!F$339,2,IF(H87=WPG!F$338,3,5)),FALSE),VLOOKUP(I87,'Inhalation data'!A$3:I$24,IF(H87=WPG!F$339,6,IF(H87=WPG!F$338,7,9)),FALSE))*E$10/24,IF(C87="Industrial",VLOOKUP(I87,'Inhalation data'!A$3:X$24,23,FALSE),VLOOKUP(I87,'Inhalation data'!A$3:X$24,24,FALSE))))) ->  | O87: =IF(OR(I87="",J87="No",J87=""),"",VLOOKUP(I87,'Inhalation data'!A$3:O$24,IF(C87="Industrial",14,15),FALSE)) ->  | U87: =IF(I87="","",VLOOKUP(I87,'Inhalation data'!A$3:AS$24,45,FALSE)) ->  | V87: 0 | AA87: =IF(I87="","",VLOOKUP(I87,'Dermal data'!A$4:F$25,6,FALSE)) ->  | AB87: =IF(I87="","",VLOOKUP(I87,'Dermal data'!A$4:F$25,5,FALSE)/1000) ->  | AC87: =IF(AND(J87="Yes",B$9="YES"),IF(C87="Industrial - SU3",VLOOKUP(I87,'Dermal data'!A$4:G$25,7,),VLOOKUP(I87,'Dermal data'!A$4:H$25,8,)),"") ->  | AH87: 0 | AK87: 0 | AL87: 0 | AM87: 0 | AN87: 0 | AP87: YES | AQ87: =IF(AND(AQ$42="NO",AP87="NO"),"",IF(OR(J87="No",J87=""),"",VLOOKUP(I87,'Inhalation data'!A$3:S$24,IF(C87="Industrial",16,17),FALSE))&IF(P87="","",IF(P87="70 (ventilation)",WPG!F$383,IF(P87="30 (ventilation)",Findandtranslate_WPG(P$40),IF(OR(D87=WPG!F$228,E87=WPG!F$228,F87=WPG!F$228),WPG!F$367,WPG!F$412))))) ->  | AR87: =IF(AND(AR$42="NO",AP87="NO"),"",IF(Q87="half mask",WPG!F$465,IF(Q87="full face",WPG!F$467&WPG!F$468,""))&IF(AD87="gloves",WPG!F$458,IF(AD87="gloves-basic training",WPG!F$459,IF(AD87="gloves-specific training",WPG!F$460,IF(AD87="gloves-intensive controls",WPG!F$461,""))))&IF(AD87="","",VLOOKUP(I87,'Inhalation data'!A$3:V$24,22,FALSE))) ->  | AS87: =IF(AND(AS$42="NO",AP87="NO"),"",IF(M87="<15 min",WPG!F$360,IF(M87="1-4 hours",WPG!F$362,IF(M87="15 min-1 hour",WPG!F$361,"")))) ->  | AT87: =IF(OR(AND(AT$42="NO",AP87="NO"),BQ87>BP87),"",IF(L87="5-25%",WPG!F$352,IF(L87="1-5%",WPG!F$351,IF(L87="<1%",WPG!F$350,"")))) ->  | BL87: =IF(ISERROR(VLOOKUP(I87,'Dermal data'!A$3:K$25,1,FALSE)),"",LEFT(VLOOKUP(I87,'Dermal data'!A$3:K$25,1,FALSE),2)) ->  | BM87: =IF(ISERROR(VLOOKUP(I87,'Dermal data'!A$3:K$25,11,FALSE)),"",VLOOKUP(I87,'Dermal data'!A$3:K$25,11,FALSE)) ->  | BN87: =IF(ISERROR(VLOOKUP(I87,'Dermal data'!A$3:L$25,12,FALSE)),"",VLOOKUP(I87,'Dermal data'!A$3:L$25,12,FALSE)) ->  | BP87: 100 | BQ87: 100
R89: Data validation message | S89: =IF(AND(T47="",T48="",T49="",T50="",T51="",T52="",T53="",T54="",T55="",T56="",T57="",T58="",T59="",T60="",T61="",T62="",T63="",T64="",T65="",T66="",T67="",T68="",T71="",T86="",T87=""),FALSE,TRUE) -> FALSE | AE89: Data validation message | AF89: =IF(AND(AG47="",AG48="",AG49="",AG50="",AG51="",AG52="",AG53="",AG54="",AG55="",AG56="",AG57="",AG58="",AG59="",AG60="",AG61="",AG62="",AG63="",AG64="",AG65="",AG66="",AG67="",AG68="",AG71="",AG86="",AG87=""),FALSE,TRUE) -> FALSE | AK89: =MAX(AK47:AN87) -> 0.7742 | AL89: Maximum RCR
D91: Autopopulate | E91: Phrase 1 - automatically populated | F91: Optional Phrase 2
B92: Exposure assessment | C92: Additional phrases at end of inhalation, section 3 Health | D92: YES | E92: =IF(D92="YES",IF(AND(E13="",E14=""),WPG!F681&WPG!F321&WPG!F322,""),"") ->  | F92: The ECETOC TRA v3 tool has been used to estimate workplace exposures unless otherwise indicated [G46].
B93: Exposure assessment | C93: Additional phrases at end of dermal, section 3 Health | D93: YES | E93: =IF(D93="YES",IF(E16="",WPG!F681,"")&IF(E18="Not classified","",CHAR(10)&WPG!F317&WPG!F322)&IF(E19="NO","",CHAR(10)&WPG!F330),"") -> Available hazard data do not enable the derivation of a DNEL for dermal irritant effects [G32]. Risk Management Measures are based on qualitative risk characterisation [G37]. Available hazard data do not enable the derivation of a DNEL for eye irritant effects [G45]. | F93: The ECETOC TRA v3 tool has been used to estimate workplace exposures unless otherwise indicated [G46].
C96: Guidance to check compliance with exposure scenarios (section 4 Health). Choose from free text or predefined phrases. Note that free text will appear after any selected from the drop down box | E96: ; Predicted exposures are not expected to exceed the DN(M)EL when the Risk Management Measures/Operational Conditions outlined in Section 2 are implemented [G22]. ; Where other Risk Management Measures/Operational Conditions are adopted, then users should ensure that risks are managed to at least equivalent levels [G23].
C110: Glossary pick lists
A112: PROC codes | B112: Common Measures | C112: Biodegradation | D112: Substance type | E112: ERC codes | F112: Title | G112: Scope of use covered | H112: Contributing scenario descriptors | I112: Usage | J112: Technical measures (prevention) | K112: Technical measures (dispersion) | L112: Organisational measures | M112: Personal protection | N112: Environmental measures | O112: Technical measures (prevention) | P112: =K112 -> Technical measures (dispersion) | Q112: Organisational measures | R112: Personal protection | S112: Environmental measures | T112: Operational conditions | U112: Addional phrases | V112: Human factors not influenced by risk management | W112: Technical conditions and measures at a process level to prevent release and technical conditions and measures to control dispersion from source towards workers (often related to classification) | X112: Choice of ventilation for 30% efficiency | Y112: Choice of ventilation for 70% efficiency
B113: =WPG!F309 -> Control any potential exposure using measures such as contained or enclosed systems, properly designed and maintained facilities and a good standard of general ventilation. Drain down systems and transfer lines prior to breaking containment. Drain down and flush equipment where possible prior to maintenance. Where there is potential for exposure: Ensure relevant staff are informed of the nature of exposure and aware of basic actions to minimise exposures; ensure suitable personal protective equipment is available; clear up spills and dispose of waste in accordance with regulatory requirements; monitor effectiveness of control measures; consider the need for health surveillance; identify and implement corrective actions [G25]. | E113: ERC1 | F113: =WPG!F50 -> Manufacture of substance [GEST1_I]. | G113: =WPG!F97 -> Manufacture of the substance. Includes recycling/ recovery, material transfers, storage, maintenance and loading (including marine vessel/barge, road/rail car and bulk container), sampling and associated laboratory activities [GES1_I]. | H113: =WPG!F144 -> General exposures [CS1]. | I113: =WPG!F286 -> Covers daily exposures up to 8 hours (unless stated differently) [G2]. | J113: Avoid carrying out activities for more than 15 minutes [OC10] | K113: Provide a good standard of general ventilation. Natural ventilation is from windows and doors etc. Controlled ventilation means air is supplied or removed by a powered fan. [E1]. | L113: If technical measures not practical: [G16]. | M113: =WPG!F457 -> Use suitable eye protection and gloves [PPE14]. | N113: =WPG!F479 -> Retain drain downs in sealed storage pending disposal or for subsequent recycle [ENVT4]. | O113: Avoid carrying out activities for more than 15 minutes [OC10] | P113: Provide a good standard of general ventilation. Natural ventilation is from windows and doors etc. Controlled ventilation means air is supplied or removed by a powered fan. [E1]. | Q113: If technical measures not practical: [G16]. | R113: =M113 -> Use suitable eye protection and gloves [PPE14]. | S113: Retain drain downs in sealed storage pending disposal or for subsequent recycle [ENVT4]. | T113: =WPG!F285 -> Assumes a good basic standard of occupational hygiene is implemented [G1]. | U113: =WPG!F306 -> Predicted exposures are not expected to exceed the DN(M)EL when the Risk Management Measures/Operational Conditions outlined in Section 2 are implemented [G22]. | V113: =WPG!$F$551 -> none. | W113: =WPG!$F$551 -> none. | X113: =WPG!D366 -> Provide a good standard of general ventilation. Natural ventilation is from doors, windows etc. Controlled ventilation means air is supplied or removed by a powered fan | Y113: =WPG!D383 -> Provide a good standard of controlled ventilation (10 to 15 air changes per hour)
A114: 1 - Use in closed process, no likelihood of exposure | B114: =WPG!F310 -> Other protection measures such as segregation of activity, minimisation of personnel, respiratory protection, impervious suits and face shields should also be considered for high dispersion activities which are likely to lead to substantial aerosol or vapour release, e.g. spraying [G25a]. | C114: Readily biodegradable | D114: Substance is a unique structure | E114: ERC2 | F114: =WPG!F51 -> Distribution of substance [GEST1A_I]. | G114: =WPG!F98 -> Loading (including marine vessel/barge, rail/road car and IBC loading) and repacking (including drums and small packs) of substance, including its sampling, storage, unloading distribution and associated laboratory activities [GES1A_I]. | H114: =WPG!F145 -> Process sampling [CS2]. | I114: =WPG!F287 -> Covers frequency up to: weekly use [G3]. | J114: Avoid carrying out activities for more than 1 hour [OC11] | K114: Locate bulk storage outdoors [E2] | L114: Consider technical advances and process upgrades (including automation) for the elimination of releases. Minimise exposure using measures such as closed systems, dedicated facilities and suitable general/local exhaust ventilation. Drain down systems and clear transfer lines prior to breaking containment. Clean/flush equipment, where possible, prior to maintenance. Where there is potential for exposure: restrict access to authorised persons; provide specific activity training to operators to minimise exposures; wear suitable gloves and coveralls to prevent skin contamination; wear respiratory protection when its use is identified for certain contributing scenarios; clear up spills immediately and dispose of wastes safely. Ensure safe systems of work or equivalent arrangements are in place to manage risks. Regularly inspect, test and maintain all control measures. Consider the need for risk based health surveillance. [G20] | M114: =WPG!F458 -> Wear suitable gloves tested to EN374 [PPE15]. | N114: Return IBCs to supplier [ENVT6]. | O114: Avoid carrying out activities for more than 1 hour [OC11] | P114: Locate bulk storage outdoors [E2] | Q114: Consider technical advances and process upgrades (including automation) for the elimination of releases. Minimise exposure using measures such as closed systems, dedicated facilities and suitable general/local exhaust ventilation. Drain down systems and clear transfer lines prior to breaking containment. Clean/flush equipment, where possible, prior to maintenance. Where there is potential for exposure: restrict access to authorised persons; provide specific activity training to operators to minimise exposures; wear suitable gloves and coveralls to prevent skin contamination; wear respiratory protection when its use is identified for certain contributing scenarios; clear up spills immediately and dispose of wastes safely. Ensure safe systems of work or equivalent arrangements are in place to manage risks. Regularly inspect, test and maintain all control measures. Consider the need for risk based health surveillance. [G20] | R114: =M114 -> Wear suitable gloves tested to EN374 [PPE15]. | S114: Return IBCs to supplier [ENVT6]. | T114: =WPG!F299 -> Assumes use at not more than 20°C above ambient temperature, unless stated differently [G15]. | U114: =WPG!F307 -> Where other Risk Management Measures/Operational Conditions are adopted, then users should ensure that risks are managed to at least equivalent levels [G23]. | V114: =WPG!$F$553 -> Not applicable. | W114: =WPG!$F$553 -> Not applicable. | X114: =WPG!D376 -> Provide a good standard of general ventilation (not less than 3 to 5 air changes per hour) | Y114: =WPG!D391 -> Provide enhanced general ventilation by mechanical means
A115: 2 - Use in closed, continuous process with occasional controlled exposure | B115: =WPG!F463 -> If repeated and/or prolonged skin exposure to the substance is likely, then wear suitable gloves tested to EN374 and provide employee skin care programmes [PPE20]. | C115: Readily biodegradable in marine screening test | D115: Substance is an isomeric mixture | E115: ERC3 | F115: =WPG!F52 -> Use as an intermediate [GEST1B_I]. | G115: =WPG!F99 -> Use of substance as an intermediate (not related to Strictly Controlled Conditions). Includes recycling/ recovery, material transfers, storage, sampling, associated laboratory activities, maintenance and loading (including marine vessel/barge, road/rail car and bulk container) [GES1B_I]. | H115: =WPG!F146 -> Material transfers [CS3]. | I115: =WPG!F288 -> Covers frequency up to: monthly use [G4 ]. | J115: Avoid carrying out activities for more than 4 hours [OC12] | K115: Ensure that enough fresh air is supplied to dilute and remove dusts, fumes or vapours. Between 5 and 15 air changes per hour are recommended, with a through draught. [E5]. | L115: Control any potential exposure using measures such as contained or enclosed systems, properly designed and maintained facilities and a good standard of general ventilation. Drain down systems and transfer lines prior to breaking containment. Drain down and flush equipment where possible prior to maintenance. Where there is potential for exposure: Ensure relevant staff are informed of the nature of exposure and aware of basic actions to minimise exposures; ensure suitable personal protective equipment is available; clear up spills and dispose of waste in accordance with regulatory requirements; monitor effectiveness of control measures; consider the need for health surveillance; identify and implement corrective actions. [G25] | M115: =WPG!F459 -> Wear chemically resistant gloves (tested to EN374) in combination with ‘basic’ employee training [PPE16]. | N115: Return IBCs or tanks to supplier for re-use [ENVT7]. | O115: Avoid carrying out activities for more than 4 hours [OC12] | P115: Ensure that enough fresh air is supplied to dilute and remove dusts, fumes or vapours. Between 5 and 15 air changes per hour are recommended, with a through draught. [E5]. | Q115: Control any potential exposure using measures such as contained or enclosed systems, properly designed and maintained facilities and a good standard of general ventilation. Drain down systems and transfer lines prior to breaking containment. Drain down and flush equipment where possible prior to maintenance. Where there is potential for exposure: Ensure relevant staff are informed of the nature of exposure and aware of basic actions to minimise exposures; ensure suitable personal protective equipment is available; clear up spills and dispose of waste in accordance with regulatory requirements; monitor effectiveness of control measures; consider the need for health surveillance; identify and implement corrective actions. [G25] | R115: Wear chemically resistant gloves (tested to EN374) in combination with ‘basic’ employee training [PPE16]. | S115: Return IBCs or tanks to supplier for re-use [ENVT7]. | T115: =WPG!F301 -> Assumes activities are at ambient temperature (unless stated differently) [G17]. | U115: =WPG!F314 -> Predicted exposures are not expected to exceed the applicable exposure limits (given in section 8 of the SDS) when the operational conditions/risk management measures given in section 2 are implemented [G29].
A116: 3 - Use in closed batch process (synthesis or formulation) | C116: Readily biodegradable, failing 10 day window | D116: Substance is a complex UVCB | E116: ERC4 | F116: =WPG!F53 -> Formulation & (re)packing of substances and mixtures [GEST2_I]. | G116: =WPG!F100 -> Formulation, packing and re-packing of the substance and its mixtures in batch or continuous operations, including storage, materials transfers, mixing, tabletting, compression, pelletisation, extrusion, large and small scale packing, sampling, maintenance and associated laboratory activities [GES2_I]. | H116: =WPG!F147 -> Dipping, immersion and pouring [CS4]. | I116: =WPG!F289 -> Covers frequency up to: daily yearly use [G5 ]. | J116: Limit the substance in product to 1% [OC16]. | K116: Ensure dedicated sample points are provided [E10] | L116: Other protection measures such as segregation of activity, minimisation of personnel, respiratory protection, impervious suits and face shields should also be considered for high dispersion activities which are likely to lead to substantial aerosol or vapour release, e.g. spraying. [G25a] | M116: =WPG!F460 -> Wear chemically resistant gloves (tested to EN374) in combination with specific activity training [PPE17]. | N116: All waste product is assumed to be collected and returned for re-processing or use as a fuel [ENVT8]. | O116: Limit the substance in product to 1% [OC16]. | P116: Ensure dedicated sample points are provided [E10] | Q116: Other protection measures such as segregation of activity, minimisation of personnel, respiratory protection, impervious suits and face shields should also be considered for high dispersion activities which are likely to lead to substantial aerosol or vapour release, e.g. spraying. [G25a] | R116: Wear chemically resistant gloves (tested to EN374) in combination with specific activity training [PPE17]. | S116: All waste product is assumed to be collected and returned for re-processing or use as a fuel [ENVT8]. | T116: =WPG!F341 -> Operation is carried out at elevated temperature (> 20°C above ambient temperature) [OC7 ]. | U116: =WPG!F317 -> Available hazard data do not enable the derivation of a DNEL for dermal irritant effects [G32].
A117: 4 - Use in batch and other process (synthesis) where opportunity for exposure arises | C117: Inherently biodegradable, fulfilling criteria | D117: Predominantly hydrophobic | E117: ERC5 | F117: =WPG!F54 -> Uses in Coatings [GEST3_I]. | G117: =WPG!F101 -> Covers the use in coatings (paints, inks, adhesives, etc) including exposures during use (including materials receipt, storage, preparation and transfer from bulk and semi-bulk, application by spray, roller, spreader, dip, flow, fluidised bed on production lines and film formation) and equipment cleaning, maintenance and associated laboratory activities [GES3_I]. | H117: =WPG!F148 -> Equipment maintenance [CS5]. | I117: =WPG!F290 -> Covers frequency up to: daily use, weekly, monthly, yearly. [G6 ]. | J117: Limit the substance in product to 5% [OC17]. | K117: Provide a good standard of general ventilation (not less than 3-5 air changes per hour) [E11] | L117: Avoid direct skin contact with product. Identify potential areas for indirect skin contact. Wear gloves (tested to EN374) if hand contact with substance likely. Clean up contamination/spills as soon as they occur. Wash off any skin contamination immediately. Provide basic employee training to prevent / minimise exposures and to report any skin problems that may develop. [E3] | M117: =WPG!F461 -> Wear chemically resistant gloves (tested to EN374) in combination with intensive management supervision controls [PPE18]. | N117: User sites are assumed to be provided with oil/water separators and for waste water to be discharged via public sewer system [ENVT9]. | O117: Limit the substance in product to 5% [OC17]. | P117: Provide a good standard of general ventilation (not less than 3-5 air changes per hour) [E11] | Q117: Avoid direct skin contact with product. Identify potential areas for indirect skin contact. Wear gloves (tested to EN374) if hand contact with substance likely. Clean up contamination/spills as soon as they occur. Wash off any skin contamination immediately. Provide basic employee training to prevent / minimise exposures and to report any skin problems that may develop. [E3] | R117: Wear chemically resistant gloves (tested to EN374) in combination with intensive management supervision controls [PPE18]. | S117: User sites are assumed to be provided with oil/water separators and for waste water to be discharged via public sewer system [ENVT9]. | T117: =WPG!F342 -> Indoor [OC8]. | U117: =WPG!F318 -> Available hazard data do not enable the derivation of a DNEL for carcinogenic effects [G33].
A118: 5 -Mixing or blending in batch processes (multistage and/or significant contact) | C118: Inherently biodegradable, not fulfilling criteria | D118: Non-hydrophobic | E118: ERC6a | F118: =WPG!F55 -> Uses in Coatings [GEST3_P]. | G118: =WPG!F102 -> Covers the use in coatings (paints, inks, adhesives, etc) including exposures during use (including materials receipt, storage, preparation and transfer from bulk and semi-bulk, application by spray, roller, brush, spreader by hand or similar methods, and film formation), and equipment cleaning, maintenance and associated laboratory activities [GES3_P]. | H118: =WPG!F149 -> Drum and small package filling [CS6]. | J118: Limit the substance in product to 25% [OC18]. | K118: Provide a good standard of controlled ventilation (10 to 15 air changes per hour) [E40]. | L118: Other skin protection measures such as impervious suits and face shields will be required during high dispersion activities which are likely to lead to substantial aerosol release, e.g. spraying [E4] | M118: =WPG!F462 -> Wear suitable gloves (tested to EN374) and eye protection [PPE19]. | N118: Dispose of waste or used sacks/containers according to local regulations [ENVT10]. | O118: Limit the substance in product to 25% [OC18]. | P118: Provide a good standard of controlled ventilation (10 to 15 air changes per hour) [E40]. | Q118: Other skin protection measures such as impervious suits and face shields will be required during high dispersion activities which are likely to lead to substantial aerosol release, e.g. spraying [E4] | R118: Wear suitable gloves (tested to EN374) and eye protection [PPE19]. | S118: Dispose of waste or used sacks/containers according to local regulations [ENVT10]. | T118: =WPG!F343 -> Outdoor [OC9]. | U118: =WPG!F320 -> Available hazard data enable the derivation of a DNEL for other health effects [G35].
A119: 6 -Calendering operations | C119: Not biodegradable | E119: ERC6b | F119: =WPG!F56 -> Uses in Coatings [GEST3_C]. | G119: =WPG!F103 -> Covers the use in coatings (paints, inks, adhesives, etc) including exposures during use (including product transfer and preparation, application by brush, spray by hand or similar methods) and equipment cleaning [GES3_C]. | H119: =WPG!F150 -> Small package filling [CS7]. | J119: Limit the substance in product to 10% [OC19]. | K119: Discharge sacks via suitable vented charge chute [E44]. | L119: Ensure control measures are regularly inspected and maintained [E6] | M119: =WPG!F464 -> Wear suitable respiratory protection (conforming to EN140 with Type A filter or better) and gloves (type EN374) if regular skin contact likely [PPE21]. | N119: Dispose of waste product or used containers according to local regulations [ENVT12]. | O119: Limit the substance in product to 10% [OC19]. | P119: Discharge sacks via suitable vented charge chute [E44]. | Q119: Ensure control measures are regularly inspected and maintained [E6] | R119: Wear suitable respiratory protection (conforming to EN140 with Type A filter or better) and gloves (type EN374) if regular skin contact likely [PPE21]. | S119: Dispose of waste product or used containers according to local regulations [ENVT12]. | U119: =WPG!F321 -> Available hazard data do not support the need for a DNEL to be established for other health effects [G36].
A120: 7 -Industrial spraying | E120: ERC6c | F120: =WPG!F57 -> Use in Cleaning Agents [GEST4_I]. | G120: =WPG!F104 -> Covers the use as a component of cleaning products including transfer from storage, pouring/unloading from drums or containers. Exposures during mixing/diluting in the preparatory phase and cleaning activities (including spraying, brushing, dipping, wiping, automated and by hand), related equipment cleaning and maintenance [GES4_I]. | H120: =WPG!F151 -> Drum/batch transfers [CS8]. | J120: Limit the substance in product to 15% [OC20]. | K120: Provide enhanced mechanical ventilation by mechanical means [E48]. | L120: Minimise the volume and frequency of sampling [E7] | M120: =WPG!F465 -> Wear a respirator conforming to EN140 with Type A filter or better [PPE22]. | N120: Clean IBCs or drums at approved facility [ENVT14]. | O120: Limit the substance in product to 15% [OC20]. | P120: Provide enhanced mechanical ventilation by mechanical means [E48]. | Q120: Minimise the volume and frequency of sampling [E7] | R120: Wear a respirator conforming to EN140 with Type A filter or better [PPE22]. | S120: Clean IBCs or drums at approved facility [ENVT14]. | U120: =WPG!F331 -> The ECETOC TRA v3 tool has been used to estimate workplace exposures unless otherwise indicated [G46].
A121: 8a -Transfer of chemicals from/to vessels/ large containers at non dedicated facilities | E121: ERC6d | F121: =WPG!F58 -> Use in Cleaning Agents [GEST4_P]. | G121: =WPG!F105 -> Covers the use as a component of cleaning products including pouring/unloading from drums or containers; and exposures during mixing/diluting in the preparatory phase and cleaning activities (including spraying, brushing, dipping, wiping automated and by hand) [GES4_P]. | H121: =WPG!F152 -> Pouring from small containers [CS9]. | J121: Limit the substance in product to 20% [OC21]. | K121: Use long handled tools where possible [E50]. | L121: Put lids on containers immediately after use [E9]. | M121: =WPG!F466 -> Wear suitable gloves (tested to EN374), coverall and eye protection [PPE23]. | N121: User site assumed to be separate chemical and foul/rain water and be equipped with a WWTP [ENVT15]. | O121: Limit the substance in product to 20% [OC21]. | P121: Use long handled tools where possible [E50]. | Q121: Put lids on containers immediately after use [E9]. | R121: Wear suitable gloves (tested to EN374), coverall and eye protection [PPE23]. | S121: User site assumed to be separate chemical and foul/rain water and be equipped with a WWTP [ENVT15]. | U121: =WPG!F322 -> Risk Management Measures are based on qualitative risk characterisation [G37].
A122: 8b -Transfer of chemicals from/to vessels/ large containers at dedicated facilities | E122: ERC7 | F122: =WPG!F59 -> Use in Cleaning Agents [GEST4_C]. | G122: =WPG!F106 -> Covers general exposures to consumers arising from the use of household products sold as washing and cleaning products, aerosols, coatings, de-icers, lubricants and air care products [GES4_C]. | H122: =WPG!F153 -> Spraying [CS10]. | J122: Limit the substance content in the mixture to 50% [OC22]. | K122: Fill containers/cans at dedicated fill points supplied with local extract ventilation [E51] | L122: Decontaminate tools, equipment and personal protective equipment in a segregated area. [E13] | M122: =WPG!F467 -> Wear a full face respirator conforming to EN140 with Type A filter or better [PPE24]. | N122: Do not wash equipment or storage containers [ENVT16]. | O122: Limit the substance content in the mixture to 50% [OC22]. | P122: Fill containers/cans at dedicated fill points supplied with local extract ventilation [E51] | Q122: Decontaminate tools, equipment and personal protective equipment in a segregated area. [E13] | R122: Wear a full face respirator conforming to EN140 with Type A filter or better [PPE24]. | S122: Do not wash equipment or storage containers [ENVT16]. | U122: =WPG!F323 -> Users are advised to consider national Occupational Exposure Limits or other equivalent values [G38].
A123: 9 -Transfer of chemicals into small containers (dedicated filling line) | E123: ERC8a | F123: =WPG!F60 -> Use in Oil and Gas field drilling and production operations [GEST5_I]. | G123: =WPG!F107 -> Oil field well drilling and production operations (including drilling muds and well cleaning) including material transfers, on-site formulation, well head operations, shaker room activities and related maintenance [GES5_I]. | H123: =WPG!F154 -> Printing [CS11]. | J123: Avoid carrying out activities for more than 0.5 hour [OC23] | K123: Use drum pumps [E53]. | L123: Label feed lines E23]. | M123: =WPG!F468 -> Change filter cartridge on respirator daily [PPE25]. | N123: Remotely vent displaced vapours [ENVT17]. | O123: Avoid carrying out activities for more than 0.5 hour [OC23] | P123: Use drum pumps [E53]. | Q123: Label feed lines E23]. | R123: Change filter cartridge on respirator daily [PPE25]. | S123: Remotely vent displaced vapours [ENVT17]. | U123: =WPG!F324 -> No exposure assessment presented for human health [G39].
A124: 10 - Roller application or brushing | E124: ERC8b | F124: =WPG!F61 -> Use in Oil and Gas field drilling and production operations [GEST5_P]. | G124: =WPG!F108 -> Oil field well drilling operations (including drilling muds and well cleaning) including material transfers, on-site formulation, well head operations, shaker room activities and related maintenance [GES5_P]. | H124: =WPG!F155 -> Drying and storage [CS12]. | J124: Avoid carrying out activities for more than 2 hours [OC24] | K124: Provide extract ventilation to points where emissions occur [E54]. | L124: Avoid dip sampling. [E42]. | M124: =WPG!F469 -> Use suitable eye protection [PPE26]. | N124: Additive package assumed to be blended direct to lubricant with no process steps [ENVT20]. | O124: Avoid carrying out activities for more than 2 hours [OC24] | P124: Provide extract ventilation to points where emissions occur [E54]. | Q124: Avoid dip sampling. [E42]. | R124: Use suitable eye protection [PPE26]. | S124: Additive package assumed to be blended direct to lubricant with no process steps [ENVT20].
A125: 11 - Non industrial spraying | E125: ERC8c | F125: =WPG!F62 -> Lubricants [GEST6_I]. | G125: =WPG!F109 -> Covers the use of formulated lubricants in closed and open systems including transfer operations, operation of machinery/engines and similar articles, reworking on reject articles, equipment maintenance and disposal of wastes [GES6_I]. | H125: =WPG!F157 -> Bulk transfers [CS14]. | J125: Avoid carrying out activities involving exposure for more than 15 minutes [OC26] | K125: Use ventilation to extract vapours from freshly coated articles/objects [E56]. | L125: Use bulk or semi-bulk handling systems [E43]. | M125: =WPG!F470 -> Wear suitable coveralls to prevent exposure to the skin [PPE27]. | N125: All contaminated waste water must be processed in an industrial or municipal wastewater treatment plant that incorporates both primary and secondary treatments [W1]. | O125: Avoid carrying out activities involving exposure for more than 15 minutes [OC26] | P125: Use ventilation to extract vapours from freshly coated articles/objects [E56]. | Q125: Use bulk or semi-bulk handling systems [E43]. | R125: Wear suitable coveralls to prevent exposure to the skin [PPE27]. | S125: All contaminated waste water must be processed in an industrial or municipal wastewater treatment plant that incorporates both primary and secondary treatments [W1].
A126: 12 - Use of blow agents for foam production | E126: ERC8d | F126: =WPG!F63 -> Lubricants [GEST6_P]. | G126: =WPG!F110 -> Covers the use of formulated lubricants in closed and open systems including transfer operations, operation of engines and similar articles, reworking on reject articles, equipment maintenance and disposal of waste oil [GES6_P]. | H126: =WPG!F158 -> General exposures (closed systems) [CS15]. | J126: Avoid carrying out activities involving exposure for more than 1 hour [OC27] | K126: Carry out in a vented booth or extracted enclosure [E57]. | L126: Carefully pour from containers [E62]. | M126: =WPG!F471 -> Wear rubber boots [PPE28]. | N126: Site should have a spill plan to ensure that adequate safeguards are in place to minimize the impact of episodic releases [W2]. | O126: Avoid carrying out activities involving exposure for more than 1 hour [OC27] | P126: Carry out in a vented booth or extracted enclosure [E57]. | Q126: Carefully pour from containers [E62]. | R126: Wear rubber boots [PPE28]. | S126: Site should have a spill plan to ensure that adequate safeguards are in place to minimize the impact of episodic releases [W2].
A127: 13 -Treatment of articles by dipping and pouring | E127: ERC8e | F127: =WPG!F64 -> Lubricants [GEST6_C]. | G127: =WPG!F111 -> Covers the consumer use of formulated lubricants in closed and open systems including transfer operations, application, operation of engines and similar articles, equipment maintenance and disposal of waste oil [GES6_C]. | H127: =WPG!F159 -> General exposures (open systems) [CS16]. | J127: Avoid carrying out activities involving exposure for more than 4 hours [OC28] | K127: Use long handled brushes and rollers where possible. [E58]. | L127: Segregate the activity away from other operations [E63]. | M127: =WPG!F472 -> Wear a respirator conforming to EN140 with Type A/P2 filter or better [PPE29]. | N127: A leak prevention plan is needed to prevent low level continual releases [W3]. | O127: Avoid carrying out activities involving exposure for more than 4 hours [OC28] | P127: Use long handled brushes and rollers where possible. [E58]. | Q127: Segregate the activity away from other operations [E63]. | R127: Wear a respirator conforming to EN140 with Type A/P2 filter or better [PPE29]. | S127: A leak prevention plan is needed to prevent low level continual releases [W3].
A128: 14 - Production of preparations or articles by tabletting, compression, extrusion, pelletisation | E128: ERC8f | F128: =WPG!F65 -> Metal working fluids / rolling oils [GEST7_I]. | G128: =WPG!F112 -> Covers the use in formulated MWFs/rolling oils including transfer operations, rolling and annealing activities, cutting/machining activities, automated and manual application of corrosion protections (including brushing, dipping and spraying), equipment maintenance, draining and disposal of waste oils [GES7_I]. | H128: =WPG!F160 -> Operation and lubrication of high energy open equipment [CS17]. | J128: Sample via a closed loop or other system to avoid exposure [E8]. | K128: Carry out in a vented booth provided with laminar airflow [E59]. | L128: Ensure doors and windows are opened [E72]. | M128: =WPG!F473 -> If above technical/organisational control measures are not feasible, then adopt following PPE [PPE30]. | N128: A storm water management plan is needed to ensure that the wastewater treatment plant is not overloaded with uncontaminated water [W4]. | O128: Sample via a closed loop or other system to avoid exposure [E8]. | P128: Carry out in a vented booth provided with laminar airflow [E59]. | Q128: Ensure doors and windows are opened [E72]. | R128: If above technical/organisational control measures are not feasible, then adopt following PPE [PPE30]. | S128: =N128 -> A storm water management plan is needed to ensure that the wastewater treatment plant is not overloaded with uncontaminated water [W4].
A129: 15 - Use of laboratory reagents in small scale laboratories | E129: ERC9a | F129: =WPG!F66 -> Metal working fluids / rolling oils [GEST7_P]. | G129: =WPG!F113 -> Covers the use in formulated MWFs including transfer operations, open and contained cutting/machining activities, automated and manual application of corrosion protections, draining and working on contaminated/ reject articles, and disposal of waste oils [GES7_P]. | H129: =WPG!F161 -> Maintenance of small items [CS18]. | J129: Handle within a fume cupboard or implement suitable equivalent methods to minimize exposure [E12]. | K129: Minimise exposure by partial enclosure of the operation or equipment and provide extract ventilation at openings [E60]. | L129: Avoid direct eye contact with product, also via contamination on hands. [E73] | M129: =WPG!F474 -> Wear positive pressure air supplied respirator if required by safe entry procedures [PPE31]. | N129: Minimize water use and curtail all unnecessary waste water generation [W5]. | O129: Handle within a fume cupboard or implement suitable equivalent methods to minimize exposure [E12]. | P129: Minimise exposure by partial enclosure of the operation or equipment and provide extract ventilation at openings [E60]. | Q129: Avoid direct eye contact with product, also via contamination on hands. [E73] | R129: Wear positive pressure air supplied respirator if required by safe entry procedures [PPE31]. | S129: Minimize water use and curtail all unnecessary waste water generation [W5].
A130: 16 - Using material as fuel sources, limited exposure to unburned product to be expected | E130: ERC9b | F130: =WPG!F67 -> Use as a propellant [GEST8_P]. | G130: =WPG!F114 -> Use as a propellant in professional aerosol products [GES8_P]. | H130: =WPG!F162 -> Remanufacture of reject articles [CS19]. | J130: Clear transfer lines prior to de-coupling [E39]. | K130: Minimise exposure by extracted full enclosure for the operation or equipment [E61]. | L130: Ensure the ventilation system is regularly maintained and tested [E74]. | M130: =WPG!F475 -> Wear a full face respirator conforming to EN140 with Type A/P2 filter or better [PPE32]. | N130: Ensure all waste water is collected and treated via a WWTP [W6]. | O130: Clear transfer lines prior to de-coupling [E39]. | P130: Minimise exposure by extracted full enclosure for the operation or equipment [E61]. | Q130: Ensure the ventilation system is regularly maintained and tested [E74]. | R130: Wear a full face respirator conforming to EN140 with Type A/P2 filter or better [PPE32]. | S130: Ensure all waste water is collected and treated via a WWTP [W6].
A131: 17 - Lubrication at high energy conditions and in partly open process | E131: ERC10a | F131: =WPG!F68 -> Use as a propellant [GEST8_C]. | G131: =WPG!F115 -> Use as a propellant in household consumer aerosol products [GES8_C]. | H131: =WPG!F163 -> Engine lubricant service [CS20]. | J131: Use in semi-automated and predominantly enclosed filling lines [E41]. | K131: Use drum pumps or carefully pour from container [E64]. | L131: Operate activity away from sources of substance emission or release [E77] | M131: =WPG!F476 -> Wear a respirator providing a minimum efficiency of 90 % [PPE33]. | N131: Contain and treat vapors from stripping operations [W7]. | O131: Use in semi-automated and predominantly enclosed filling lines [E41]. | P131: Use drum pumps or carefully pour from container [E64]. | Q131: Operate activity away from sources of substance emission or release [E77] | R131: Wear a respirator providing a minimum efficiency of 90 % [PPE33]. | S131: Contain and treat vapors from stripping operations [W7].
A132: 18 - Greasing at high energy conditions | E132: ERC10b | F132: =WPG!F69 -> Blowing agents [GEST9_I]. | G132: =WPG!F116 -> Use as a blowing agent for rigid and flexible foams, including material transfers, mixing and injection, curing, cutting, storage and packing [GES9_I]. | H132: =WPG!F164 -> Operation of total loss equipment and systems [CS21]. | J132: Transfer materials directly to mixing vessels [E45]. | K132: Provide extract ventilation to emission points when contact with warm (>50 deg C) lubricant is likely [E67]. | L132: Use dedicated equipment [E85]. | M132: =WPG!F477 -> Wear a respirator providing a minimum efficiency of 95 % [PPE34]. | N132: Do not wash equipment or storage containers [W8]. | O132: Transfer materials directly to mixing vessels [E45]. | P132: Provide extract ventilation to emission points when contact with warm (>50 deg C) lubricant is likely [E67]. | Q132: Use dedicated equipment [E85]. | R132: Wear a respirator providing a minimum efficiency of 95 % [PPE34]. | S132: Do not wash equipment or storage containers [W8].
A133: 19 - Hand-mixing with intimate contact (only PPE available | E133: ERC11a | F133: =WPG!F70 -> Use as binders and release agents [GEST10_I]. | G133: =WPG!F117 -> Covers the use as binders and release agents including material transfers, mixing, application (including spraying and brushing), mould forming and casting, and handling of waste [GES10_I]. | H133: =WPG!F165 -> Transfer from/pouring from containers [CS22]. | J133: Formulate in enclosed or ventilated mixing vessels [E46]. | K133: Restrict area of openings to equipment [E68]. | L133: Re-circulation of exhaust air is not recommended [E88]. | N133: Maximize waste water reuse [W9]. | O133: Formulate in enclosed or ventilated mixing vessels [E46]. | P133: Restrict area of openings to equipment [E68]. | Q133: Re-circulation of exhaust air is not recommended [E88]. | S133: Maximize waste water reuse [W9].
A134: 20 - Heat and pressure transfer fluids (closed systems) in dispersive use | E134: ERC11b | F134: =WPG!F71 -> Use as binders and release agents [GEST10_P]. | G134: =WPG!F118 -> Covers the use as binders and release agents including material transfers, mixing, application by spraying, brushing, and handling of waste [GES10_P]. | H134: =WPG!F167 -> Spraying/fogging by manual application [CS24]. | J134: Handle substance within a closed system [E47]. | K134: Ensure operation is undertaken outdoors [E69]. | L134: Clean equipment and the work area every day [C&H3]. | N134: Adequate closed storage facilities (e.g., bulk storage tanks, intermediate bulk containers, drums) for VOC-containing raw materials [A1]. | O134: Handle substance within a closed system [E47]. | P134: Ensure operation is undertaken outdoors [E69]. | Q134: Clean equipment and the work area every day [C&H3]. | S134: Adequate closed storage facilities (e.g., bulk storage tanks, intermediate bulk containers, drums) for VOC-containing raw materials [A1].
A135: 28 - Manual maintenance (cleaning and repair) of machinery | E135: ERC12a | F135: =WPG!F72 -> Use in Agrochemicals [GEST11_P]. | G135: =WPG!F119 -> Use as an agrochemical excipient for application by manual or machine spraying, smokes and fogging; including equipment clean-downs and disposal [GES11_P]. | H135: =WPG!F168 -> Spraying/fogging by machine application [CS25]. | J135: Handle substance within a predominantly closed system provided with extract ventilation [E49]. | K135: Apply within a vented cab supplied with filtered air under positive pressure and with a protection factor of >20 [E70]. | L135: Dispose of empty containers and wastes safely [C&H8]. | N135: Use of closed transfers of liquids from storage to production equipment (e.g. metered piped or pumped additions) [A2]. | O135: Handle substance within a predominantly closed system provided with extract ventilation [E49]. | P135: Apply within a vented cab supplied with filtered air under positive pressure and with a protection factor of >20 [E70]. | Q135: Dispose of empty containers and wastes safely [C&H8]. | S135: Use of closed transfers of liquids from storage to production equipment (e.g. metered piped or pumped additions) [A2].
E136: ERC12b | F136: =WPG!F73 -> Use in Agrochemicals [GEST11-C]. | G136: =WPG!F120 -> Covers the consumer use in agrochemicals in liquid and solid forms [GES11-C]. | H136: =WPG!F169 -> Operation of equipment containing engine oils and similar [CS26]. | J136: Transfer via enclosed lines [E52]. | K136: Provide the operation with a properly sited receiving hood [E71]. | L136: Dispose of waste in accordance with environmental legislation [C&H11]. | N136: Use of closed production equipment, with no extraction, except when opening vessels for additions/sampling [A3]. | O136: Transfer via enclosed lines [E52]. | P136: Provide the operation with a properly sited receiving hood [E71]. | Q136: Dispose of waste in accordance with environmental legislation [C&H11]. | S136: Use of closed production equipment, with no extraction, except when opening vessels for additions/sampling [A3].
F137: =WPG!F74 -> Use as a fuel [GEST12_I]. | G137: =WPG!F121 -> Covers the use as a fuel (or fuel additive) and includes activities associated with its transfer, use, equipment maintenance and handling of waste [GES12_I]. | H137: =WPG!F170 -> Ad hoc manual application via trigger sprays, dipping, etc. [CS27]. | J137: Drain down and flush system prior to equipment break-in or maintenance [E55]. | K137: Provide extract ventilation to material transfer points and other openings [E82]. | L137: Clear spills immediately [C&H13]. | N137: Use of closed filling equipment [A4]. | O137: Drain down and flush system prior to equipment break-in or maintenance [E55]. | P137: Provide extract ventilation to material transfer points and other openings [E82]. | Q137: Clear spills immediately [C&H13]. | S137: Use of closed filling equipment [A4].
F138: =WPG!F75 -> Use as a fuel [GEST12_P]. | G138: =WPG!F122 -> Covers the use as a fuel (or fuel additive) and includes activities associated with its transfer, use, equipment maintenance and handling of waste [GES12_P]. | H138: =WPG!F171 -> Disposal of wastes [CS28]. | J138: Drain down system prior to equipment break-in or maintenance [E65]. | K138: Use a receptor hood for fumes/vapours [E87]. | L138: Contain and dispose of waste according to local regulations [C&H14]. | N138: Store finished products in closed containers (e.g., bulk tanks,, drums, cans) [A5]. | O138: Drain down system prior to equipment break-in or maintenance [E65]. | P138: Use a receptor hood for fumes/vapours [E87]. | Q138: Contain and dispose of waste according to local regulations [C&H14]. | S138: Store finished products in closed containers (e.g., bulk tanks,, drums, cans) [A5].
F139: =WPG!F76 -> Use as a fuel [GEST12_C]. | G139: =WPG!F123 -> Covers consumer uses in liquid fuels [GES12_C]. | H139: =WPG!F172 -> Mixing operations (closed systems) [CS29]. | J139: Ensure material transfers are under containment or extract ventilation [E66]. | K139: Ensure material transfers are provided with suitable arrangements for vapour capture or venting [E90]. | L139: Avoid splashing [C&H15]. | N139: Store all VOC-containing wastes in closed, secure containers (e.g., bulk tanks, intermediate bulk containers, drums) [A6]. | O139: Ensure material transfers are under containment or extract ventilation [E66]. | P139: Ensure material transfers are provided with suitable arrangements for vapour capture or venting [E90]. | Q139: Avoid splashing [C&H15]. | S139: Store all VOC-containing wastes in closed, secure containers (e.g., bulk tanks, intermediate bulk containers, drums) [A6].
F140: =WPG!F77 -> Functional Fluids [GEST13_I]. | G140: =WPG!F124 -> Use as functional fluids e.g. cable oils, transfer oils, coolants, insulators, refrigerants, hydraulic fluids in industrial equipment including maintenance and related material transfers [GES13_I]. | H140: =WPG!F173 -> Mixing operations (open systems) [CS30]. | J140: Use dry break couplings for material transfer [E75]. | K140: Handle with appropriate extract ventilation or equivalent methods to control exposure [E93]. | L140: Avoid spillage when withdrawing pump [C&H16]. | N140: Use vapour recovery units when necessary [A7]. | O140: Use dry break couplings for material transfer [E75]. | P140: Handle with appropriate extract ventilation or equivalent methods to control exposure [E93]. | Q140: Avoid spillage when withdrawing pump [C&H16]. | S140: =N141 -> Incinerate, absorb, or adsorb vapours stripped from solution whenever necessary [A8].
F141: =WPG!F78 -> Functional Fluids [GEST13_P]. | G141: =WPG!F125 -> Use as functional fluids e.g. cable oils, transfer oils, coolants, insulators, refrigerants, hydraulic fluids in professional equipment including maintenance and related material transfers [GES13_P]. | H141: =WPG!F174 -> Mold forming [CS31]. | J141: Ensure samples are under containment or extract ventilation [E76]. | K141: Retain drain downs in sealed storage pending disposal or for subsequent recycle [ENVT4] | L141: Handle all packages and containers carefully to minimise spills [EI1]. | N141: Incinerate, absorb, or adsorb vapours stripped from solution whenever necessary [A8]. | O141: Ensure samples are under containment or extract ventilation [E76]. | P141: Retain drain downs in sealed storage pending disposal or for subsequent recycle [ENVT4] | Q141: Handle all packages and containers carefully to minimise spills [EI1]. | S141: All waste product is assumed to be collected and returned for re-processing or use as a fuel [A9].
F142: =WPG!F79 -> Functional Fluids [GEST13_C]. | G142: =WPG!F126 -> Use of sealed items containing functional fluids e.g. transfer oils, hydraulic fluids, refrigerants [GES13_C]. | H142: =WPG!F175 -> Casting operations [CS32]. | J142: Drain or remove substance from equipment prior to break-in or maintenance [E81]. | K142: Remotely vent displaced vapours [ENVT17] | L142: Clear up spills immediately and dispose of waste safely [EI9]. | N142: All waste product is assumed to be collected and returned for re-processing or use as a fuel [A9]. | O142: Drain or remove substance from equipment prior to break-in or maintenance [E81]. | P142: Remotely vent displaced vapours [ENVT17] | Q142: Clear up spills immediately and dispose of waste safely [EI9]. | S142: Formulation activity is assumed to be a predominantly enclosed process [A10].
F143: =WPG!F80 -> De-icing and anti-icing applications [GEST14_P]. | G143: =WPG!F127 -> Ice prevention and de-icing of vehicles, aircraft and other equipment by spraying [GES14_P]. | H143: =WPG!F176 -> Machine [CS33]. | J143: Handle in a fume cupboard or under extract ventilation [E83]. | L143: Avoid manual contact with wet work pieces [EI17]. | N143: Formulation activity is assumed to be a predominantly enclosed process [A10]. | O143: Handle in a fume cupboard or under extract ventilation [E83]. | Q143: Avoid manual contact with wet work pieces [EI17]. | S143: Dispose of waste or used sacks/containers according to local regulations [S2].
F144: =WPG!F81 -> De-icing and anti-icing applications [GEST14_C]. | G144: =WPG!F128 -> De-icing of vehicles and similar equipment by spraying [GES14_C]. | H144: =WPG!F177 -> Manual [CS34]. | J144: Store substance within a closed system [E84]. | L144: No specific measures identified [EI18]. | N144: Dispose of waste or used sacks/containers according to local regulations [S2]. | O144: Store substance within a closed system [E84]. | Q144: No specific measures identified [EI18]. | S144: Good housekeeping- e.g. inspection procedures will ensure that there are no leaks to soil [S3].
F145: =WPG!F82 -> Road and construction applications [GEST15-P]. | G145: =WPG!F129 -> Application of surface coatings and binders in road and construction activities, including paving uses, manual mastic and in the application of roofing and water-proofing membranes [GES15-P]. | H145: =WPG!F178 -> Treatment by dipping and pouring [CS35]. | J145: Use high-performance fume cupboard [E86]. | L145: Ensure operatives are trained to minimise exposures [EI119]. | N145: Good housekeeping- e.g. inspection procedures will ensure that there are no leaks to soil [S3]. | O145: Use high-performance fume cupboard [E86]. | Q145: Ensure operatives are trained to minimise exposures [EI119]. | S145: Prevent leaks and prevent soil / water pollution caused by leaks [S4].
F146: =WPG!F83 -> Other Consumer Uses [GEST16_C]. | G146: =WPG!F130 -> Consumer uses e.g. as a carrier in cosmetics/personal care products, perfumes and fragrances. Note: For cosmetic and personal care products, risk assessment only required for the environment under REACH as human health is covered by alternative legislation [GES16_C]. | H146: =WPG!F179 -> Laboratory activities [CS36]. | J146: Use a sampling system designed to control exposure [E89]. | L146: No other specific measures identified [EI20]. | N146: Prevent leaks and prevent soil / water pollution caused by leaks [S4]. | O146: Use a sampling system designed to control exposure [E89]. | Q146: No other specific measures identified [EI20]. | S146: Bund storage facilities to prevent soil and water pollution in the event of spillage [S5].
F147: =WPG!F84 -> Use in laboratories [GEST17_I]. | G147: =WPG!F131 -> Use of the substance within laboratory settings, including material transfers and equipment cleaning [GES17_I]. | H147: =WPG!F180 -> Use in contained batch processes [CS37]. | J147: Handle within contained systems with minimum manual intervention [E92]. | L147: Allow time for product to drain from workpiece [EI21]. | N147: Bund storage facilities to prevent soil and water pollution in the event of spillage [S5]. | O147: Handle within contained systems with minimum manual intervention [E92]. | Q147: Allow time for product to drain from workpiece [EI21].
F148: =WPG!F85 -> Use in laboratories [GEST17-P]. | G148: =WPG!F132 -> Use of small quantities within laboratory settings, including material transfers and equipment cleaning [GES17-P]. | H148: =WPG!F181 -> Use in contained systems [CS38]. | J148: Store substance within properly designed and maintained facilities [E94] | L148: Stay upwind/keep distance from source [EI22]. | O148: Store substance within properly designed and maintained facilities [E94] | Q148: Stay upwind/keep distance from source [EI22].
F149: =WPG!F86 -> Explosives manufacture & use [GEST18_P]. | G149: =WPG!F133 -> Covers exposures arising from the manufacture and use of slurry explosives (including materials transfer, mixing and charging) and equipment cleaning [GES18_P]. | H149: =WPG!F182 -> Equipment cleaning and maintenance [CS39]. | L149: Only allow access to authorized persons [AP1]. | Q149: Only allow access to authorized persons [AP1].
F150: =WPG!F87 -> Rubber production and processing [GEST19_I]. | G150: =WPG!F134 -> Manufacture of tyres and general rubber articles, including processing of raw (uncured) rubber, handling and mixing of rubber additives, vulcanising, cooling and finishing [GES19_I]. | H150: =WPG!F183 -> Vapour degreasing bath [CS40]. | L150: Apply vessel entry procedures including use of forced supplied air [AP15]. | Q150: Apply vessel entry procedures including use of forced supplied air [AP15].
F151: =WPG!F88 -> Polymer production [GEST20_I]. | G151: =WPG!F135 -> Manufacture of polymers from monomers in continuous and batch processes. Including production, re-cycling and recovery, degassing, discharging, reactor maintenance and immediate polymer product formation (i.e. compounding, pelletisation, product off-gassing) [GES20_I]. | H151: =WPG!F184 -> Degreasing small objects in cleaning station [CS41]. | L151: Automate activity where possible [AP16]. | Q151: Automate activity where possible [AP16].
F152: =WPG!F89 -> Water treatment chemicals [GEST21_I]. | G152: =WPG!F136 -> Covers the use of the substance for the treatment of water at industrial facilities in open and closed systems [GES21_I]. | H152: =WPG!F185 -> Cleaning with low-pressure washers [CS42].
F153: =WPG!F90 -> Water treatment chemicals [GEST21_P]. | G153: =WPG!F137 -> Covers the use of the substance for the treatment of water in open and closed systems [GES21_P]. | H153: =WPG!F186 -> On site [CS43].
F154: =WPG!F91 -> Water treatment chemicals [GEST21_C]. | G154: =WPG!F138 -> Covers the use of the substance for the treatment of water in open and closed systems [GES21_C]. | H154: =WPG!F187 -> Cleaning with high pressure washers [CS44].
F155: =WPG!F92 -> Mining chemicals [GEST22_I]. | G155: =WPG!F139 -> Covers the use of the substance in extraction processes at mining operations, including material transfers, winning and separation activities, and substance recovery and disposal [GES22_I]. | H155: =WPG!F188 -> Filling / preparation of equipment from drums or containers. [CS45].
F156: =WPG!F93 -> Polymer processing [GEST23_I]. | G156: =WPG!F140 -> Processing of formulated polymers including material transfers, additives handling (e.g. pigments, stabilisers, fillers, plasticisers, etc.), moulding, curing and forming activities, material re-works, storage and associated maintenance [GES23_I]. | H156: =WPG!F189 -> Large surfaces [CS46].
F157: =WPG!F94 -> Polymer processing [GEST23_P]. | G157: =WPG!F141 -> Processing of formulated polymers including material transfers, moulding and forming activities, material re-works and associated maintenance [GES23_P]. | H157: =WPG!F190 -> Cleaning [CS47].
F158: =WPG!F95 -> Use in process chemicals | G158: =WPG!F142 -> Covers the use in process chemicals or extraction agents. Includes recycling/ recovery, material transfers, storage, maintenance, sampling and associated laboratory activities. | H158: =WPG!F191 -> Surfaces [CS48].
H159: =WPG!F192 -> Spray Bottle [CS49].
H160: =WPG!F193 -> Wiping [CS50].
H161: =WPG!F194 -> Rolling, Brushing [CS51].
H162: =WPG!F195 -> Manual spot cleaning (e.g. textiles etc) [CS52].
H163: =WPG!F196 -> Pelletizing [CS53].
H164: =WPG!F197 -> Continuous process [CS54].
H165: =WPG!F198 -> Batch process [CS55].
H166: =WPG!F199 -> with sample collection [CS56].
H167: =WPG!F200 -> no sampling [CS57].
H168: =WPG!F201 -> transport [CS58].
H169: =WPG!F202 -> internal [CS59].
H170: =WPG!F203 -> no spraying [CS60].
H171: =WPG!F204 -> small scale [CS61].
H172: =WPG!F205 -> heating oil and diesel deliveries [CS62].
H173: =WPG!F206 -> vessel / container [CS63].
H174: =WPG!F207 -> Calendering (including Banburys) [CS64].
H175: =WPG!F208 -> Polymerisation (bulk and batch) [CS65].
H176: =WPG!F209 -> Intermediate polymer storage [CS66].
H177: =WPG!F210 -> Storage [CS67].
H178: =WPG!F211 -> Pelletisation and pellet screening [CS68].
H179: =WPG!F212 -> Additivation and stabilisation [CS69].
H180: =WPG!F213 -> Vulcanisation [CS70].
H181: =WPG!F214 -> Cooling cured articles [CS71].
H182: =WPG!F215 -> Hand application - fingerpaints, pastels, adhesives [CS72].
H183: =WPG!F216 -> Pressing uncured rubber blanks [CS73].
H184: =WPG!F217 -> Cleaning of medical devices [CS74].
H185: =WPG!F218 -> Initial factory fill of equipment [CS75].
H186: =WPG!F219 -> Semi Automated process. (e.g.: Semi automatic application of floor care and maintenance products) [CS76].
H187: =WPG!F220 -> Maintenance (of larger plant items) and machine set up [CS77].
H188: =WPG!F221 -> Engine lubricant service [CS78].
H189: =WPG!F222 -> Metal machining operations [CS79].
H190: =WPG!F223 -> Automated metal rolling/forming [CS80].
H191: =WPG!F224 -> Dedicated facility [CS81].
H192: =WPG!F225 -> Non-dedicated facility [CS82].
H193: =WPG!F226 -> Semi-automated metal rolling/forming [CS83].
H194: =WPG!F227 -> Filling of articles/equipment [CS84].
H195: =WPG!F228 -> Bulk product storage [CS85].
H196: =WPG!F229 -> Rework of articles [CS86].
H197: =WPG!F230 -> Polyol processes [CS87].
H198: =WPG!F231 -> Extrusion and masterbatching [CS88].
H199: =WPG!F232 -> Injection moulding of articles [CS89].
H200: =WPG!F233 -> Small scale weighing [CS90].
H201: =WPG!F234 -> Bulk weighing [CS91].
H202: =WPG!F235 -> Additive premixing [CS92].
H203: =WPG!F236 -> Automated process with (semi) closed systems. [CS93].
H204: =WPG!F237 -> Film formation - force drying (50 - 100°C). Stoving (>100°C). UV/EB radiation curing [CS94].
H205: =WPG!F238 -> Film formation - air drying [CS95].
H206: =WPG!F239 -> Preparation of material for application [CS96].
H207: =WPG!F240 -> Spraying (automatic/robotic) [CS97].
H208: =WPG!F241 -> Roller, spreader, flow application [CS98].
H209: =WPG!F242 -> Film formation - force drying, stoving and other technologies [CS99].
H210: =WPG!F243 -> Production or preparation of articles by tabletting, compression, extrusion or pelletisation [CS100].
H211: =WPG!F244 -> Application of cleaning products in closed systems [CS101].
H212: =WPG!F245 -> Finishing operations [CS102].
H213: =WPG!F246 -> Vessel and container cleaning [CS103].
H214: =WPG!F247 -> Maintenance and machine set up [CS104].
H215: =WPG!F248 -> ion exchange processes [CS105].
H216: =WPG!F249 -> phase separation [CS106].
H217: =WPG!F250 -> (closed systems) [CS107].
H218: =WPG!F251 -> (open systems) [CS108].
H219: =WPG!F252 -> with local exhaust ventilation [CS109].
H220: =WPG!F253 -> without local exhaust ventilation [CS110].
H221: =WPG!F254 -> elevated temperature [CS111].
H222: =WPG!F255 -> Tyre build up [CS112].
H223: =WPG!F256 -> Production of articles by dipping and pouring [CS113].
H224: =WPG!F257 -> Bulk transfers from tote tanks and supply vessels [CS114].
... 35 more rows

Sheet ES Annex
A1: =WPG!F554&CSA!E20&". "&CSA!E3&" - "&CSA!E4 -> Exposure scenario 11. Functional Fluids [GEST13_I]. - Use at industrial sites
D2: Password to unprotect: 'CGESt2012'
A3: =WPG!F524 -> Based on ECHA Template CSA&IR Part D June 08 combined with the GES Narrative Format.
B4: =IF(AND(CSA!AF89=FALSE,CSA!S89=FALSE),"","WARNING! Some of the parameters in your contributing scenarios are incompatible. Please check CSA sheet entries and data validation warning messages") -> 
A5: =WPG!F3 -> Section 1 | B5: =WPG!F4 -> Title.
A6: =WPG!F4 -> Title. | B6: =CSA!E3&" "&IF(CSA!F3="","",CSA!F3&". ")&IF(CSA!D6="","",CSA!D6&". ")&CHAR(10)&CSA!E6&". "&IF(CSA!E7="","",CSA!D7&CSA!E7&".") -> Functional Fluids [GEST13_I]. medium volatility substance.
A7: Life cycle stage | B7: =CSA!E4 -> Use at industrial sites
A8: =WPG!F8 -> Process Category(ies): | B8: =CSA!E23 -> PROC1, PROC2, PROC3, PROC4, PROC8a, PROC8b, PROC9.
A9: =WPG!F10 -> Environmental Release Category(ies): | B9: =CSA!E24 -> ERC7.
A10: =WPG!F6 -> Processes, tasks, activities covered: | B10: =CSA!E21&" "&CSA!F21 -> Use as functional fluids e.g. cable oils, transfer oils, coolants, insulators, refrigerants, hydraulic fluids in industrial equipment including maintenance and related material transfers [GES13_I].
A11: =WPG!F594 -> Assessment method: | B11: =WPG!F41&CSA!E28 -> Health: The ECETOC TRA v3 tool has been used to estimate workplace exposures unless otherwise indicated [G46].
A12: =WPG!F11 -> Section 2: | B12: =WPG!F12 -> Operational conditions and risk management measures.
A14: =WPG!F13 -> Section 2.1 | B14: =WPG!F14 -> Control of worker exposure.
A15: =WPG!F16 -> Product Characteristics:
A16: =WPG!F17 -> Physical form of product: | B16: =IF(CSA!E32="","",CSA!E32) -> Liquid, vapour pressure 0.5 - 10 kPa at STP [OC4].
A17: =WPG!F19 -> Concentration of substance in product: | B17: =IF(CSA!G31="","",CSA!G31) -> Covers percentage substance in the product up to 100 % (unless stated differently) [G13 ].
A18: =WPG!F20 -> Amounts used: | B18: =WPG!F553 -> Not applicable.
A19: =WPG!F21 -> Frequency and duration of use: | B19: =IF(CSA!E33="","",CSA!E33) -> Covers daily exposures up to 8 hours (unless stated differently) [G2]
A20: =WPG!F22 -> Human factors not influenced by risk management: | B20: =IF(CSA!E36="","",CSA!E36) -> Not applicable.
A21: =WPG!F23 -> Other operational conditions affecting worker exposure: | B21: =IF(CSA!E35="","",CSA!E35) -> Assumes use at not more than 20°C above ambient temperature, unless stated differently [G15]. ; Assumes a good basic standard of occupational hygiene is implemented [G1].
A22: =WPG!F25 -> Contributing Scenarios: | B22: =WPG!F24&" "&WPG!F529 -> Risk Management Measures: Note: list RMM standard phrases according to the control hierarchy indicated in the ECHA template: 1. Technical measures to prevent release, 2. Technical measures to prevent dispersion, 3. Organisational measures , 4. Personal protection.
A23: =IF(B23="","",WPG!F278) ->  | B23: =CSA!E38&CSA!F38&CSA!H38&CSA!I38&CSA!J38 -> 
A24: =IF(B24="","",WPG!F302) ->  | B24: =IF(CSA!E17="NO","",WPG!F304) -> 
A25: =IF(B25="","",WPG!F303) -> General measures (skin irritants) [G19]: | B25: =IF(CSA!E18="Any of: H310-H311-H312-H314-H315-H317",WPG!F368&IF(CSA!BB24,WPG!F369,""),"") -> Avoid direct skin contact with product. Identify potential areas for indirect skin contact. Wear gloves (tested to EN374) if hand contact with substance likely. Clean up contamination/spills as soon as they occur. Wash off any skin contamination immediately. Provide basic employee training to prevent / minimise exposures and to report any skin problems that may develop [E3].
A26: =IF(B26="","",WPG!F329) -> General measures (eye irritants) [G44]. | B26: =IF(CSA!E19="YES",WPG!F469&WPG!F416,"") -> Use suitable eye protection [PPE26]. Avoid direct eye contact with product, also via contamination on hands [E73].
A27: =IF(CSA!A47="","","ES"&CSA!E$20&"-"&CSA!A47&": "&IF(CSA!B$21="YES",CSA!D47&IF(CSA!B47="Aerosol exposure",WPG!F$281,""),"")&IF(CSA!B$23="YES",CSA!BM47,IF(CSA!B$22="YES"," PROC"&CSA!BL47&".",""))) -> ES11-1-1: Bulk transfers [CS14].; (closed systems) [CS107]. PROC1 . | B27: =IF(A27="","",IF(CSA!AO47="",WPG!F$453,CSA!AO47)) -> No other specific measures identified [EI20].
A28: =IF(CSA!A48="","","ES"&CSA!E$20&"-"&CSA!A48&": "&IF(CSA!B$21="YES",CSA!D48&IF(CSA!B48="Aerosol exposure",WPG!F$281,""),"")&IF(CSA!B$23="YES",CSA!BM48,IF(CSA!B$22="YES"," PROC"&CSA!BL48&".",""))) -> ES11-1-2: Bulk transfers [CS14].; (closed systems) [CS107]. PROC2 . | B28: =IF(A28="","",IF(CSA!AO48="",WPG!F$453,CSA!AO48)) -> No other specific measures identified [EI20].
A29: =IF(CSA!A49="","","ES"&CSA!E$20&"-"&CSA!A49&": "&IF(CSA!B$21="YES",CSA!D49&IF(CSA!B49="Aerosol exposure",WPG!F$281,""),"")&IF(CSA!B$23="YES",CSA!BM49,IF(CSA!B$22="YES"," PROC"&CSA!BL49&".",""))) -> ES11-2: Drum/batch transfers [CS8]. ; Dedicated facility [CS81]. PROC8b. | B29: =IF(A29="","",IF(CSA!AO49="",WPG!F$453,CSA!AO49)) -> Ensure material transfers are under containment or extract ventilation [E66]. Wear suitable gloves tested to EN374 [PPE15].
A30: =IF(CSA!A50="","","ES"&CSA!E$20&"-"&CSA!A50&": "&IF(CSA!B$21="YES",CSA!D50&IF(CSA!B50="Aerosol exposure",WPG!F$281,""),"")&IF(CSA!B$23="YES",CSA!BM50,IF(CSA!B$22="YES"," PROC"&CSA!BL50&".",""))) -> ES11-3: Filling of articles/equipment [CS84]. ; (closed systems) [CS107]. PROC9 . | B30: =IF(A30="","",IF(CSA!AO50="",WPG!F$453,CSA!AO50)) -> Fill containers/cans at dedicated fill points supplied with local extract ventilation [E51]. Wear suitable gloves tested to EN374 [PPE15].
A31: =IF(CSA!A51="","","ES"&CSA!E$20&"-"&CSA!A51&": "&IF(CSA!B$21="YES",CSA!D51&IF(CSA!B51="Aerosol exposure",WPG!F$281,""),"")&IF(CSA!B$23="YES",CSA!BM51,IF(CSA!B$22="YES"," PROC"&CSA!BL51&".",""))) -> ES11-4: Filling / preparation of equipment from drums or containers. [CS45]. ; Non-dedicated facility [CS82]. PROC8a. | B31: =IF(A31="","",IF(CSA!AO51="",WPG!F$453,CSA!AO51)) -> Ensure material transfers are under containment or extract ventilation [E66]. Wear chemically resistant gloves (tested to EN374) in combination with ‘basic’ employee training [PPE16].
A32: =IF(CSA!A52="","","ES"&CSA!E$20&"-"&CSA!A52&": "&IF(CSA!B$21="YES",CSA!D52&IF(CSA!B52="Aerosol exposure",WPG!F$281,""),"")&IF(CSA!B$23="YES",CSA!BM52,IF(CSA!B$22="YES"," PROC"&CSA!BL52&".",""))) -> ES11-5: General exposures (closed systems) [CS15]. PROC2 . | B32: =IF(A32="","",IF(CSA!AO52="",WPG!F$453,CSA!AO52)) -> Handle substance within a predominantly closed system provided with extract ventilation [E49].
A33: =IF(CSA!A53="","","ES"&CSA!E$20&"-"&CSA!A53&": "&IF(CSA!B$21="YES",CSA!D53&IF(CSA!B53="Aerosol exposure",WPG!F$281,""),"")&IF(CSA!B$23="YES",CSA!BM53,IF(CSA!B$22="YES"," PROC"&CSA!BL53&".",""))) -> ES11-6: General exposures (open systems) [CS16]. PROC4 . | B33: =IF(A33="","",IF(CSA!AO53="",WPG!F$453,CSA!AO53)) -> Provide extract ventilation to points where emissions occur [E54]. Wear suitable gloves tested to EN374 [PPE15].
A34: =IF(CSA!A54="","","ES"&CSA!E$20&"-"&CSA!A54&": "&IF(CSA!B$21="YES",CSA!D54&IF(CSA!B54="Aerosol exposure",WPG!F$281,""),"")&IF(CSA!B$23="YES",CSA!BM54,IF(CSA!B$22="YES"," PROC"&CSA!BL54&".",""))) -> ES11-7a: General exposures (open systems) [CS16]. ; elevated temperature [CS111]. PROC4 . | B34: =IF(A34="","",IF(CSA!AO54="",WPG!F$453,CSA!AO54)) -> Minimise exposure by partial enclosure of the operation or equipment and provide extract ventilation at openings [E60]. ; Provide a good standard of general ventilation (not less than 3-5 air changes per hour) [E11]Wear chemically resistant gloves (tested to EN374) in combination with ‘basic’ employee training [PPE16].
A35: =IF(CSA!A55="","","ES"&CSA!E$20&"-"&CSA!A55&": "&IF(CSA!B$21="YES",CSA!D55&IF(CSA!B55="Aerosol exposure",WPG!F$281,""),"")&IF(CSA!B$23="YES",CSA!BM55,IF(CSA!B$22="YES"," PROC"&CSA!BL55&".",""))) -> ES11-7b: General exposures (open systems) [CS16]. ; elevated temperature [CS111]. With potential for aerosol generation [CS138]. PROC4 . | B35: =IF(A35="","",IF(CSA!AO55="",WPG!F$453,CSA!AO55)) -> Minimise exposure by partial enclosure of the operation or equipment and provide extract ventilation at openings [E60]. ; Provide a good standard of general ventilation (not less than 3-5 air changes per hour) [E11]Wear chemically resistant gloves (tested to EN374) in combination with ‘basic’ employee training [PPE16].
A36: =IF(CSA!A56="","","ES"&CSA!E$20&"-"&CSA!A56&": "&IF(CSA!B$21="YES",CSA!D56&IF(CSA!B56="Aerosol exposure",WPG!F$281,""),"")&IF(CSA!B$23="YES",CSA!BM56,IF(CSA!B$22="YES"," PROC"&CSA!BL56&".",""))) -> ES11-8: Remanufacture of reject articles [CS19]. PROC9 . | B36: =IF(A36="","",IF(CSA!AO56="",WPG!F$453,CSA!AO56)) -> Provide extract ventilation to points where emissions occur [E54]. Wear suitable gloves tested to EN374 [PPE15].
A37: =IF(CSA!A57="","","ES"&CSA!E$20&"-"&CSA!A57&": "&IF(CSA!B$21="YES",CSA!D57&IF(CSA!B57="Aerosol exposure",WPG!F$281,""),"")&IF(CSA!B$23="YES",CSA!BM57,IF(CSA!B$22="YES"," PROC"&CSA!BL57&".",""))) -> ES11-9-1: Equipment maintenance [CS5]. PROC8a. | B37: =IF(A37="","",IF(CSA!AO57="",WPG!F$453,CSA!AO57)) -> Drain down system prior to equipment break-in or maintenance [E65].Wear chemically resistant gloves (tested to EN374) in combination with ‘basic’ employee training [PPE16].
A38: =IF(CSA!A58="","","ES"&CSA!E$20&"-"&CSA!A58&": "&IF(CSA!B$21="YES",CSA!D58&IF(CSA!B58="Aerosol exposure",WPG!F$281,""),"")&IF(CSA!B$23="YES",CSA!BM58,IF(CSA!B$22="YES"," PROC"&CSA!BL58&".",""))) -> ES11-9-2: Equipment maintenance [CS5]. PROC28. | B38: =IF(A38="","",IF(CSA!AO58="",WPG!F$453,CSA!AO58)) -> Drain down system prior to equipment break-in or maintenance [E65].Wear chemically resistant gloves (tested to EN374) in combination with ‘basic’ employee training [PPE16].
A39: =IF(CSA!A59="","","ES"&CSA!E$20&"-"&CSA!A59&": "&IF(CSA!B$21="YES",CSA!D59&IF(CSA!B59="Aerosol exposure",WPG!F$281,""),"")&IF(CSA!B$23="YES",CSA!BM59,IF(CSA!B$22="YES"," PROC"&CSA!BL59&".",""))) -> ES11-10-1: Storage [CS67]. PROC1 . | B39: =IF(A39="","",IF(CSA!AO59="",WPG!F$453,CSA!AO59)) -> Store substance within a closed system [E84].
A40: =IF(CSA!A60="","","ES"&CSA!E$20&"-"&CSA!A60&": "&IF(CSA!B$21="YES",CSA!D60&IF(CSA!B60="Aerosol exposure",WPG!F$281,""),"")&IF(CSA!B$23="YES",CSA!BM60,IF(CSA!B$22="YES"," PROC"&CSA!BL60&".",""))) -> ES11-10-2: Storage [CS67]. PROC2 . | B40: =IF(A40="","",IF(CSA!AO60="",WPG!F$453,CSA!AO60)) -> Store substance within a closed system [E84].
A41: =IF(CSA!A61="","","ES"&CSA!E$20&"-"&CSA!A61&": "&IF(CSA!B$21="YES",CSA!D61&IF(CSA!B61="Aerosol exposure",WPG!F$281,""),"")&IF(CSA!B$23="YES",CSA!BM61,IF(CSA!B$22="YES"," PROC"&CSA!BL61&".",""))) -> ES11-11: General exposures (closed systems) [CS15]. PROC3 . | B41: =IF(A41="","",IF(CSA!AO61="",WPG!F$453,CSA!AO61)) -> Handle substance within a predominantly closed system provided with extract ventilation [E49].
A42: =IF(CSA!A62="","","ES"&CSA!E$20&"-"&CSA!A62&": "&IF(CSA!B$21="YES",CSA!D62&IF(CSA!B62="Aerosol exposure",WPG!F$281,""),"")&IF(CSA!B$23="YES",CSA!BM62,IF(CSA!B$22="YES"," PROC"&CSA!BL62&".",""))) ->  | B42: =IF(A42="","",IF(CSA!AO62="",WPG!F$453,CSA!AO62)) -> 
A43: =IF(CSA!A63="","","ES"&CSA!E$20&"-"&CSA!A63&": "&IF(CSA!B$21="YES",CSA!D63&IF(CSA!B63="Aerosol exposure",WPG!F$281,""),"")&IF(CSA!B$23="YES",CSA!BM63,IF(CSA!B$22="YES"," PROC"&CSA!BL63&".",""))) ->  | B43: =IF(A43="","",IF(CSA!AO63="",WPG!F$453,CSA!AO63)) -> 
A44: =IF(CSA!A64="","","ES"&CSA!E$20&"-"&CSA!A64&": "&IF(CSA!B$21="YES",CSA!D64&IF(CSA!B64="Aerosol exposure",WPG!F$281,""),"")&IF(CSA!B$23="YES",CSA!BM64,IF(CSA!B$22="YES"," PROC"&CSA!BL64&".",""))) ->  | B44: =IF(A44="","",IF(CSA!AO64="",WPG!F$453,CSA!AO64)) -> 
A45: =IF(CSA!A65="","","ES"&CSA!E$20&"-"&CSA!A65&": "&IF(CSA!B$21="YES",CSA!D65&IF(CSA!B65="Aerosol exposure",WPG!F$281,""),"")&IF(CSA!B$23="YES",CSA!BM65,IF(CSA!B$22="YES"," PROC"&CSA!BL65&".",""))) ->  | B45: =IF(A45="","",IF(CSA!AO65="",WPG!F$453,CSA!AO65)) -> 
A46: =IF(CSA!A66="","","ES"&CSA!E$20&"-"&CSA!A66&": "&IF(CSA!B$21="YES",CSA!D66&IF(CSA!B66="Aerosol exposure",WPG!F$281,""),"")&IF(CSA!B$23="YES",CSA!BM66,IF(CSA!B$22="YES"," PROC"&CSA!BL66&".",""))) ->  | B46: =IF(A46="","",IF(CSA!AO66="",WPG!F$453,CSA!AO66)) -> 
A47: =IF(CSA!A67="","","ES"&CSA!E$20&"-"&CSA!A67&": "&IF(CSA!B$21="YES",CSA!D67&IF(CSA!B67="Aerosol exposure",WPG!F$281,""),"")&IF(CSA!B$23="YES",CSA!BM67,IF(CSA!B$22="YES"," PROC"&CSA!BL67&".",""))) ->  | B47: =IF(A47="","",IF(CSA!AO67="",WPG!F$453,CSA!AO67)) -> 
A48: =IF(CSA!A68="","","ES"&CSA!E$20&"-"&CSA!A68&": "&IF(CSA!B$21="YES",CSA!D68&IF(CSA!B68="Aerosol exposure",WPG!F$281,""),"")&IF(CSA!B$23="YES",CSA!BM68,IF(CSA!B$22="YES"," PROC"&CSA!BL68&".",""))) ->  | B48: =IF(A48="","",IF(CSA!AO68="",WPG!F$453,CSA!AO68)) -> 
A49: =IF(CSA!A69="","","ES"&CSA!E$20&"-"&CSA!A69&": "&IF(CSA!B$21="YES",CSA!D69&IF(CSA!B69="Aerosol exposure",WPG!F$281,""),"")&IF(CSA!B$23="YES",CSA!BM69,IF(CSA!B$22="YES"," PROC"&CSA!BL69&".",""))) ->  | B49: =IF(A49="","",IF(CSA!AO69="",WPG!F$453,CSA!AO69)) -> 
A50: =IF(CSA!A70="","","ES"&CSA!E$20&"-"&CSA!A70&": "&IF(CSA!B$21="YES",CSA!D70&IF(CSA!B70="Aerosol exposure",WPG!F$281,""),"")&IF(CSA!B$23="YES",CSA!BM70,IF(CSA!B$22="YES"," PROC"&CSA!BL70&".",""))) ->  | B50: =IF(A50="","",IF(CSA!AO70="",WPG!F$453,CSA!AO70)) -> 
A51: =IF(CSA!A71="","","ES"&CSA!E$20&"-"&CSA!A71&": "&IF(CSA!B$21="YES",CSA!D71&IF(CSA!B71="Aerosol exposure",WPG!F$281,""),"")&IF(CSA!B$23="YES",CSA!BM71,IF(CSA!B$22="YES"," PROC"&CSA!BL71&".",""))) ->  | B51: =IF(A51="","",IF(CSA!AO71="",WPG!F$453,CSA!AO71)) -> 
A52: =IF(CSA!A72="","","ES"&CSA!E$20&"-"&CSA!A72&": "&IF(CSA!B$21="YES",CSA!D72&IF(CSA!B72="Aerosol exposure",WPG!F$281,""),"")&IF(CSA!B$23="YES",CSA!BM72,IF(CSA!B$22="YES"," PROC"&CSA!BL72&".",""))) ->  | B52: =IF(A52="","",IF(CSA!AO72="",WPG!F$453,CSA!AO72)) -> 
A53: =IF(CSA!A74="","","ES"&CSA!E$20&"-"&CSA!A74&": "&IF(CSA!B$21="YES",CSA!D74&IF(CSA!B74="Aerosol exposure",WPG!F$281,""),"")&IF(CSA!B$23="YES",CSA!BM74,IF(CSA!B$22="YES"," PROC"&CSA!BL74&".",""))) ->  | B53: =IF(A53="","",IF(CSA!AO74="",WPG!F$453,CSA!AO74)) -> 
A54: =IF(CSA!A75="","","ES"&CSA!E$20&"-"&CSA!A75&": "&IF(CSA!B$21="YES",CSA!D75&IF(CSA!B75="Aerosol exposure",WPG!F$281,""),"")&IF(CSA!B$23="YES",CSA!BM75,IF(CSA!B$22="YES"," PROC"&CSA!BL75&".",""))) ->  | B54: =IF(A54="","",IF(CSA!AO75="",WPG!F$453,CSA!AO75)) -> 
A55: =IF(CSA!A76="","","ES"&CSA!E$20&"-"&CSA!A76&": "&IF(CSA!B$21="YES",CSA!D76&IF(CSA!B76="Aerosol exposure",WPG!F$281,""),"")&IF(CSA!B$23="YES",CSA!BM76,IF(CSA!B$22="YES"," PROC"&CSA!BL76&".",""))) ->  | B55: =IF(A55="","",IF(CSA!AO76="",WPG!F$453,CSA!AO76)) -> 
A56: =IF(CSA!A77="","","ES"&CSA!E$20&"-"&CSA!A77&": "&IF(CSA!B$21="YES",CSA!D77&IF(CSA!B77="Aerosol exposure",WPG!F$281,""),"")&IF(CSA!B$23="YES",CSA!BM77,IF(CSA!B$22="YES"," PROC"&CSA!BL77&".",""))) ->  | B56: =IF(A56="","",IF(CSA!AO77="",WPG!F$453,CSA!AO77)) -> 
A57: =IF(CSA!A78="","","ES"&CSA!E$20&"-"&CSA!A78&": "&IF(CSA!B$21="YES",CSA!D78&IF(CSA!B78="Aerosol exposure",WPG!F$281,""),"")&IF(CSA!B$23="YES",CSA!BM78,IF(CSA!B$22="YES"," PROC"&CSA!BL78&".",""))) ->  | B57: =IF(A57="","",IF(CSA!AO78="",WPG!F$453,CSA!AO78)) -> 
A58: =IF(CSA!A79="","","ES"&CSA!E$20&"-"&CSA!A79&": "&IF(CSA!B$21="YES",CSA!D79&IF(CSA!B79="Aerosol exposure",WPG!F$281,""),"")&IF(CSA!B$23="YES",CSA!BM79,IF(CSA!B$22="YES"," PROC"&CSA!BL79&".",""))) ->  | B58: =IF(A58="","",IF(CSA!AO79="",WPG!F$453,CSA!AO79)) -> 
A59: =IF(CSA!A80="","","ES"&CSA!E$20&"-"&CSA!A80&": "&IF(CSA!B$21="YES",CSA!D80&IF(CSA!B80="Aerosol exposure",WPG!F$281,""),"")&IF(CSA!B$23="YES",CSA!BM80,IF(CSA!B$22="YES"," PROC"&CSA!BL80&".",""))) ->  | B59: =IF(A59="","",IF(CSA!AO80="",WPG!F$453,CSA!AO80)) -> 
A60: =IF(CSA!A81="","","ES"&CSA!E$20&"-"&CSA!A81&": "&IF(CSA!B$21="YES",CSA!D81&IF(CSA!B81="Aerosol exposure",WPG!F$281,""),"")&IF(CSA!B$23="YES",CSA!BM81,IF(CSA!B$22="YES"," PROC"&CSA!BL81&".",""))) ->  | B60: =IF(A60="","",IF(CSA!AO81="",WPG!F$453,CSA!AO81)) -> 
A61: =IF(CSA!A82="","","ES"&CSA!E$20&"-"&CSA!A82&": "&IF(CSA!B$21="YES",CSA!D82&IF(CSA!B82="Aerosol exposure",WPG!F$281,""),"")&IF(CSA!B$23="YES",CSA!BM82,IF(CSA!B$22="YES"," PROC"&CSA!BL82&".",""))) ->  | B61: =IF(A61="","",IF(CSA!AO82="",WPG!F$453,CSA!AO82)) -> 
A62: =IF(CSA!A83="","","ES"&CSA!E$20&"-"&CSA!A83&": "&IF(CSA!B$21="YES",CSA!D83&IF(CSA!B83="Aerosol exposure",WPG!F$281,""),"")&IF(CSA!B$23="YES",CSA!BM83,IF(CSA!B$22="YES"," PROC"&CSA!BL83&".",""))) ->  | B62: =IF(A62="","",IF(CSA!AO83="",WPG!F$453,CSA!AO83)) -> 
A63: =IF(CSA!A84="","","ES"&CSA!E$20&"-"&CSA!A84&": "&IF(CSA!B$21="YES",CSA!D84&IF(CSA!B84="Aerosol exposure",WPG!F$281,""),"")&IF(CSA!B$23="YES",CSA!BM84,IF(CSA!B$22="YES"," PROC"&CSA!BL84&".",""))) ->  | B63: =IF(A63="","",IF(CSA!AO84="",WPG!F$453,CSA!AO84)) -> 
A64: =IF(CSA!A85="","","ES"&CSA!E$20&"-"&CSA!A85&": "&IF(CSA!B$21="YES",CSA!D85&IF(CSA!B85="Aerosol exposure",WPG!F$281,""),"")&IF(CSA!B$23="YES",CSA!BM85,IF(CSA!B$22="YES"," PROC"&CSA!BL85&".",""))) ->  | B64: =IF(A64="","",IF(CSA!AO85="",WPG!F$453,CSA!AO85)) -> 
A65: =IF(CSA!A86="","","ES"&CSA!E$20&"-"&CSA!A86&": "&IF(CSA!B$21="YES",CSA!D86&IF(CSA!B86="Aerosol exposure",WPG!F$281,""),"")&IF(CSA!B$23="YES",CSA!BM86,IF(CSA!B$22="YES"," PROC"&CSA!BL86&".",""))) ->  | B65: =IF(A65="","",IF(CSA!AO86="",WPG!F$453,CSA!AO86)) -> 
A66: =IF(CSA!A87="","","ES"&CSA!E$20&"-"&CSA!A87&": "&IF(CSA!B$21="YES",CSA!D87&IF(CSA!B87="Aerosol exposure",WPG!F$281,""),"")&IF(CSA!B$23="YES",CSA!BM87,IF(CSA!B$22="YES"," PROC"&CSA!BL87&".",""))) ->  | B66: =IF(A66="","",IF(CSA!AO87="",WPG!F$453,CSA!AO87)) -> 
A67: =WPG!F$28 -> Section 2.2: | B67: =WPG!F$29 -> Control of environmental exposure:
A68: =WPG!F$16 -> Product Characteristics: | B68: =CSA!F$9 -> Liquid, vapour pressure 0.5 - 10 kPa at STP [OC4].
A69: =WPG!F$542 -> Amounts used per site (tonne per year). | B69: standard phrases
A70: =WPG!F$21 -> Frequency and duration of use: | B70: standard phrases
A71: =WPG!F$596 -> Environmental factors not influenced by risk management: | B71: standard phrases
A72: =WPG!F$32 -> Other operational conditions of use affecting environmental exposure. | B72: standard phrases
A73: =WPG!F$33 -> Technical onsite conditions and measures to reduce or limit discharges, air emissions. | B73: standard phrases
A74: =WPG!F$34 -> Organisation measures to prevent/limit release from site. | B74: standard phrases
A75: =WPG!F$35 -> Conditions and measures related to municipal sewage treatment plant. | B75: standard phrases
A76: =WPG!F$36 -> Conditions and measures related to external treatment of waste for disposal. | B76: standard phrases
A77: =WPG!F$37 -> Conditions and measures related to external recovery of waste. | B77: standard phrases
A78: =WPG!F$38 -> Other environmental control measures additional to above: | B78: standard phrases
A79: =WPG!F39 -> Section 3: | B79: =WPG!F40 -> Exposure estimation:
A81: =WPG!F$41&WPG!F$561 -> Health: Inhalation (vapour): | B81: =IF(OR(CSA!A47="",CSA!B$13="YES"),"",WPG!F$668&"ES"&CSA!E$20&"-"&CSA!A47&": "&ROUND(IF(CSA!X47="",CSA!V47,CSA!X47),2)&"mg/m3. "&IF(OR(CSA!AL47=0,OR(AND(CSA!B47="Aerosol Exposure",CSA!F$15="YES"),AND(CSA!B47="Vapour Exposure",CSA!F$13="YES"))),"",WPG!F$564&IF(CSA!AL47<0.001,"<0.001",ROUND(CSA!AL47,3))&". ")) -> 
B82: =IF(OR(CSA!A48="",CSA!B$13="YES"),"",WPG!F$668&"ES"&CSA!E$20&"-"&CSA!A48&": "&ROUND(IF(CSA!X48="",CSA!V48,CSA!X48),2)&"mg/m3. "&IF(OR(CSA!AL48=0,OR(AND(CSA!B48="Aerosol Exposure",CSA!F$15="YES"),AND(CSA!B48="Vapour Exposure",CSA!F$13="YES"))),"",WPG!F$564&IF(CSA!AL48<0.001,"<0.001",ROUND(CSA!AL48,3))&". ")) -> 
B83: =IF(OR(CSA!A49="",CSA!B$13="YES"),"",WPG!F$668&"ES"&CSA!E$20&"-"&CSA!A49&": "&ROUND(IF(CSA!X49="",CSA!V49,CSA!X49),2)&"mg/m3. "&IF(OR(CSA!AL49=0,OR(AND(CSA!B49="Aerosol Exposure",CSA!F$15="YES"),AND(CSA!B49="Vapour Exposure",CSA!F$13="YES"))),"",WPG!F$564&IF(CSA!AL49<0.001,"<0.001",ROUND(CSA!AL49,3))&". ")) -> 
B84: =IF(OR(CSA!A50="",CSA!B$13="YES"),"",WPG!F$668&"ES"&CSA!E$20&"-"&CSA!A50&": "&ROUND(IF(CSA!X50="",CSA!V50,CSA!X50),2)&"mg/m3. "&IF(OR(CSA!AL50=0,OR(AND(CSA!B50="Aerosol Exposure",CSA!F$15="YES"),AND(CSA!B50="Vapour Exposure",CSA!F$13="YES"))),"",WPG!F$564&IF(CSA!AL50<0.001,"<0.001",ROUND(CSA!AL50,3))&". ")) -> 
B85: =IF(OR(CSA!A51="",CSA!B$13="YES"),"",WPG!F$668&"ES"&CSA!E$20&"-"&CSA!A51&": "&ROUND(IF(CSA!X51="",CSA!V51,CSA!X51),2)&"mg/m3. "&IF(OR(CSA!AL51=0,OR(AND(CSA!B51="Aerosol Exposure",CSA!F$15="YES"),AND(CSA!B51="Vapour Exposure",CSA!F$13="YES"))),"",WPG!F$564&IF(CSA!AL51<0.001,"<0.001",ROUND(CSA!AL51,3))&". ")) -> 
B86: =IF(OR(CSA!A52="",CSA!B$13="YES"),"",WPG!F$668&"ES"&CSA!E$20&"-"&CSA!A52&": "&ROUND(IF(CSA!X52="",CSA!V52,CSA!X52),2)&"mg/m3. "&IF(OR(CSA!AL52=0,OR(AND(CSA!B52="Aerosol Exposure",CSA!F$15="YES"),AND(CSA!B52="Vapour Exposure",CSA!F$13="YES"))),"",WPG!F$564&IF(CSA!AL52<0.001,"<0.001",ROUND(CSA!AL52,3))&". ")) -> 
B87: =IF(OR(CSA!A53="",CSA!B$13="YES"),"",WPG!F$668&"ES"&CSA!E$20&"-"&CSA!A53&": "&ROUND(IF(CSA!X53="",CSA!V53,CSA!X53),2)&"mg/m3. "&IF(OR(CSA!AL53=0,OR(AND(CSA!B53="Aerosol Exposure",CSA!F$15="YES"),AND(CSA!B53="Vapour Exposure",CSA!F$13="YES"))),"",WPG!F$564&IF(CSA!AL53<0.001,"<0.001",ROUND(CSA!AL53,3))&". ")) -> 
B88: =IF(OR(CSA!A54="",CSA!B$13="YES"),"",WPG!F$668&"ES"&CSA!E$20&"-"&CSA!A54&": "&ROUND(IF(CSA!X54="",CSA!V54,CSA!X54),2)&"mg/m3. "&IF(OR(CSA!AL54=0,OR(AND(CSA!B54="Aerosol Exposure",CSA!F$15="YES"),AND(CSA!B54="Vapour Exposure",CSA!F$13="YES"))),"",WPG!F$564&IF(CSA!AL54<0.001,"<0.001",ROUND(CSA!AL54,3))&". ")) -> 
B89: =IF(OR(CSA!A55="",CSA!B$13="YES"),"",WPG!F$668&"ES"&CSA!E$20&"-"&CSA!A55&": "&ROUND(IF(CSA!X55="",CSA!V55,CSA!X55),2)&"mg/m3. "&IF(OR(CSA!AL55=0,OR(AND(CSA!B55="Aerosol Exposure",CSA!F$15="YES"),AND(CSA!B55="Vapour Exposure",CSA!F$13="YES"))),"",WPG!F$564&IF(CSA!AL55<0.001,"<0.001",ROUND(CSA!AL55,3))&". ")) -> 
B90: =IF(OR(CSA!A56="",CSA!B$13="YES"),"",WPG!F$668&"ES"&CSA!E$20&"-"&CSA!A56&": "&ROUND(IF(CSA!X56="",CSA!V56,CSA!X56),2)&"mg/m3. "&IF(OR(CSA!AL56=0,OR(AND(CSA!B56="Aerosol Exposure",CSA!F$15="YES"),AND(CSA!B56="Vapour Exposure",CSA!F$13="YES"))),"",WPG!F$564&IF(CSA!AL56<0.001,"<0.001",ROUND(CSA!AL56,3))&". ")) -> 
B91: =IF(OR(CSA!A57="",CSA!B$13="YES"),"",WPG!F$668&"ES"&CSA!E$20&"-"&CSA!A57&": "&ROUND(IF(CSA!X57="",CSA!V57,CSA!X57),2)&"mg/m3. "&IF(OR(CSA!AL57=0,OR(AND(CSA!B57="Aerosol Exposure",CSA!F$15="YES"),AND(CSA!B57="Vapour Exposure",CSA!F$13="YES"))),"",WPG!F$564&IF(CSA!AL57<0.001,"<0.001",ROUND(CSA!AL57,3))&". ")) -> 
B92: =IF(OR(CSA!A58="",CSA!B$13="YES"),"",WPG!F$668&"ES"&CSA!E$20&"-"&CSA!A58&": "&ROUND(IF(CSA!X58="",CSA!V58,CSA!X58),2)&"mg/m3. "&IF(OR(CSA!AL58=0,OR(AND(CSA!B58="Aerosol Exposure",CSA!F$15="YES"),AND(CSA!B58="Vapour Exposure",CSA!F$13="YES"))),"",WPG!F$564&IF(CSA!AL58<0.001,"<0.001",ROUND(CSA!AL58,3))&". ")) -> 
B93: =IF(OR(CSA!A59="",CSA!B$13="YES"),"",WPG!F$668&"ES"&CSA!E$20&"-"&CSA!A59&": "&ROUND(IF(CSA!X59="",CSA!V59,CSA!X59),2)&"mg/m3. "&IF(OR(CSA!AL59=0,OR(AND(CSA!B59="Aerosol Exposure",CSA!F$15="YES"),AND(CSA!B59="Vapour Exposure",CSA!F$13="YES"))),"",WPG!F$564&IF(CSA!AL59<0.001,"<0.001",ROUND(CSA!AL59,3))&". ")) -> 
B94: =IF(OR(CSA!A60="",CSA!B$13="YES"),"",WPG!F$668&"ES"&CSA!E$20&"-"&CSA!A60&": "&ROUND(IF(CSA!X60="",CSA!V60,CSA!X60),2)&"mg/m3. "&IF(OR(CSA!AL60=0,OR(AND(CSA!B60="Aerosol Exposure",CSA!F$15="YES"),AND(CSA!B60="Vapour Exposure",CSA!F$13="YES"))),"",WPG!F$564&IF(CSA!AL60<0.001,"<0.001",ROUND(CSA!AL60,3))&". ")) -> 
B95: =IF(OR(CSA!A61="",CSA!B$13="YES"),"",WPG!F$668&"ES"&CSA!E$20&"-"&CSA!A61&": "&ROUND(IF(CSA!X61="",CSA!V61,CSA!X61),2)&"mg/m3. "&IF(OR(CSA!AL61=0,OR(AND(CSA!B61="Aerosol Exposure",CSA!F$15="YES"),AND(CSA!B61="Vapour Exposure",CSA!F$13="YES"))),"",WPG!F$564&IF(CSA!AL61<0.001,"<0.001",ROUND(CSA!AL61,3))&". ")) -> 
B96: =IF(OR(CSA!A62="",CSA!B$13="YES"),"",WPG!F$668&"ES"&CSA!E$20&"-"&CSA!A62&": "&ROUND(IF(CSA!X62="",CSA!V62,CSA!X62),2)&"mg/m3. "&IF(OR(CSA!AL62=0,OR(AND(CSA!B62="Aerosol Exposure",CSA!F$15="YES"),AND(CSA!B62="Vapour Exposure",CSA!F$13="YES"))),"",WPG!F$564&IF(CSA!AL62<0.001,"<0.001",ROUND(CSA!AL62,3))&". ")) -> 
B97: =IF(OR(CSA!A63="",CSA!B$13="YES"),"",WPG!F$668&"ES"&CSA!E$20&"-"&CSA!A63&": "&ROUND(IF(CSA!X63="",CSA!V63,CSA!X63),2)&"mg/m3. "&IF(OR(CSA!AL63=0,OR(AND(CSA!B63="Aerosol Exposure",CSA!F$15="YES"),AND(CSA!B63="Vapour Exposure",CSA!F$13="YES"))),"",WPG!F$564&IF(CSA!AL63<0.001,"<0.001",ROUND(CSA!AL63,3))&". ")) -> 
B98: =IF(OR(CSA!A64="",CSA!B$13="YES"),"",WPG!F$668&"ES"&CSA!E$20&"-"&CSA!A64&": "&ROUND(IF(CSA!X64="",CSA!V64,CSA!X64),2)&"mg/m3. "&IF(OR(CSA!AL64=0,OR(AND(CSA!B64="Aerosol Exposure",CSA!F$15="YES"),AND(CSA!B64="Vapour Exposure",CSA!F$13="YES"))),"",WPG!F$564&IF(CSA!AL64<0.001,"<0.001",ROUND(CSA!AL64,3))&". ")) -> 
B99: =IF(OR(CSA!A65="",CSA!B$13="YES"),"",WPG!F$668&"ES"&CSA!E$20&"-"&CSA!A65&": "&ROUND(IF(CSA!X65="",CSA!V65,CSA!X65),2)&"mg/m3. "&IF(OR(CSA!AL65=0,OR(AND(CSA!B65="Aerosol Exposure",CSA!F$15="YES"),AND(CSA!B65="Vapour Exposure",CSA!F$13="YES"))),"",WPG!F$564&IF(CSA!AL65<0.001,"<0.001",ROUND(CSA!AL65,3))&". ")) -> 
B100: =IF(OR(CSA!A66="",CSA!B$13="YES"),"",WPG!F$668&"ES"&CSA!E$20&"-"&CSA!A66&": "&ROUND(IF(CSA!X66="",CSA!V66,CSA!X66),2)&"mg/m3. "&IF(OR(CSA!AL66=0,OR(AND(CSA!B66="Aerosol Exposure",CSA!F$15="YES"),AND(CSA!B66="Vapour Exposure",CSA!F$13="YES"))),"",WPG!F$564&IF(CSA!AL66<0.001,"<0.001",ROUND(CSA!AL66,3))&". ")) -> 
B101: =IF(OR(CSA!A67="",CSA!B$13="YES"),"",WPG!F$668&"ES"&CSA!E$20&"-"&CSA!A67&": "&ROUND(IF(CSA!X67="",CSA!V67,CSA!X67),2)&"mg/m3. "&IF(OR(CSA!AL67=0,OR(AND(CSA!B67="Aerosol Exposure",CSA!F$15="YES"),AND(CSA!B67="Vapour Exposure",CSA!F$13="YES"))),"",WPG!F$564&IF(CSA!AL67<0.001,"<0.001",ROUND(CSA!AL67,3))&". ")) -> 
B102: =IF(OR(CSA!A68="",CSA!B$13="YES"),"",WPG!F$668&"ES"&CSA!E$20&"-"&CSA!A68&": "&ROUND(IF(CSA!X68="",CSA!V68,CSA!X68),2)&"mg/m3. "&IF(OR(CSA!AL68=0,OR(AND(CSA!B68="Aerosol Exposure",CSA!F$15="YES"),AND(CSA!B68="Vapour Exposure",CSA!F$13="YES"))),"",WPG!F$564&IF(CSA!AL68<0.001,"<0.001",ROUND(CSA!AL68,3))&". ")) -> 
B103: =IF(OR(CSA!A71="",CSA!B$13="YES"),"",WPG!F$668&"ES"&CSA!E$20&"-"&CSA!A71&": "&ROUND(IF(CSA!X71="",CSA!V71,CSA!X71),2)&"mg/m3. "&IF(OR(CSA!AL71=0,OR(AND(CSA!B71="Aerosol Exposure",CSA!F$15="YES"),AND(CSA!B71="Vapour Exposure",CSA!F$13="YES"))),"",WPG!F$564&IF(CSA!AL71<0.001,"<0.001",ROUND(CSA!AL71,3))&". ")) -> 
B104: =IF(OR(CSA!A72="",CSA!B$13="YES"),"",WPG!F$668&"ES"&CSA!E$20&"-"&CSA!A72&": "&ROUND(IF(CSA!X72="",CSA!V72,CSA!X72),2)&"mg/m3. "&IF(OR(CSA!AL72=0,OR(AND(CSA!B72="Aerosol Exposure",CSA!F$15="YES"),AND(CSA!B72="Vapour Exposure",CSA!F$13="YES"))),"",WPG!F$564&IF(CSA!AL72<0.001,"<0.001",ROUND(CSA!AL72,3))&". ")) -> 
B105: =IF(OR(CSA!#REF!="",CSA!B$13="YES"),"",WPG!F$668&"ES"&CSA!E$20&"-"&CSA!#REF!&": "&ROUND(IF(CSA!#REF!="",CSA!#REF!,CSA!#REF!),2)&"mg/m3. "&IF(OR(CSA!#REF!=0,OR(AND(CSA!#REF!="Aerosol Exposure",CSA!F$15="YES"),AND(CSA!#REF!="Vapour Exposure",CSA!F$13="YES"))),"",WPG!F$564&IF(CSA!#REF!<0.001,"<0.001",ROUND(CSA!#REF!,3))&". ")) -> 
B106: =IF(OR(CSA!A73="",CSA!B$13="YES"),"",WPG!F$668&"ES"&CSA!E$20&"-"&CSA!A73&": "&ROUND(IF(CSA!X73="",CSA!V73,CSA!X73),2)&"mg/m3. "&IF(OR(CSA!AL73=0,OR(AND(CSA!B73="Aerosol Exposure",CSA!F$15="YES"),AND(CSA!B73="Vapour Exposure",CSA!F$13="YES"))),"",WPG!F$564&IF(CSA!AL73<0.001,"<0.001",ROUND(CSA!AL73,3))&". ")) -> 
B107: =IF(OR(CSA!A74="",CSA!B$13="YES"),"",WPG!F$668&"ES"&CSA!E$20&"-"&CSA!A74&": "&ROUND(IF(CSA!X74="",CSA!V74,CSA!X74),2)&"mg/m3. "&IF(OR(CSA!AL74=0,OR(AND(CSA!B74="Aerosol Exposure",CSA!F$15="YES"),AND(CSA!B74="Vapour Exposure",CSA!F$13="YES"))),"",WPG!F$564&IF(CSA!AL74<0.001,"<0.001",ROUND(CSA!AL74,3))&". ")) -> 
B108: =IF(OR(CSA!A75="",CSA!B$13="YES"),"",WPG!F$668&"ES"&CSA!E$20&"-"&CSA!A75&": "&ROUND(IF(CSA!X75="",CSA!V75,CSA!X75),2)&"mg/m3. "&IF(OR(CSA!AL75=0,OR(AND(CSA!B75="Aerosol Exposure",CSA!F$15="YES"),AND(CSA!B75="Vapour Exposure",CSA!F$13="YES"))),"",WPG!F$564&IF(CSA!AL75<0.001,"<0.001",ROUND(CSA!AL75,3))&". ")) -> 
B109: =IF(OR(CSA!A76="",CSA!B$13="YES"),"",WPG!F$668&"ES"&CSA!E$20&"-"&CSA!A76&": "&ROUND(IF(CSA!X76="",CSA!V76,CSA!X76),2)&"mg/m3. "&IF(OR(CSA!AL76=0,OR(AND(CSA!B76="Aerosol Exposure",CSA!F$15="YES"),AND(CSA!B76="Vapour Exposure",CSA!F$13="YES"))),"",WPG!F$564&IF(CSA!AL76<0.001,"<0.001",ROUND(CSA!AL76,3))&". ")) -> 
B110: =IF(OR(CSA!A77="",CSA!B$13="YES"),"",WPG!F$668&"ES"&CSA!E$20&"-"&CSA!A77&": "&ROUND(IF(CSA!X77="",CSA!V77,CSA!X77),2)&"mg/m3. "&IF(OR(CSA!AL77=0,OR(AND(CSA!B77="Aerosol Exposure",CSA!F$15="YES"),AND(CSA!B77="Vapour Exposure",CSA!F$13="YES"))),"",WPG!F$564&IF(CSA!AL77<0.001,"<0.001",ROUND(CSA!AL77,3))&". ")) -> 
B111: =IF(OR(CSA!A78="",CSA!B$13="YES"),"",WPG!F$668&"ES"&CSA!E$20&"-"&CSA!A78&": "&ROUND(IF(CSA!X78="",CSA!V78,CSA!X78),2)&"mg/m3. "&IF(OR(CSA!AL78=0,OR(AND(CSA!B78="Aerosol Exposure",CSA!F$15="YES"),AND(CSA!B78="Vapour Exposure",CSA!F$13="YES"))),"",WPG!F$564&IF(CSA!AL78<0.001,"<0.001",ROUND(CSA!AL78,3))&". ")) -> 
B112: =IF(OR(CSA!A79="",CSA!B$13="YES"),"",WPG!F$668&"ES"&CSA!E$20&"-"&CSA!A79&": "&ROUND(IF(CSA!X79="",CSA!V79,CSA!X79),2)&"mg/m3. "&IF(OR(CSA!AL79=0,OR(AND(CSA!B79="Aerosol Exposure",CSA!F$15="YES"),AND(CSA!B79="Vapour Exposure",CSA!F$13="YES"))),"",WPG!F$564&IF(CSA!AL79<0.001,"<0.001",ROUND(CSA!AL79,3))&". ")) -> 
B113: =IF(OR(CSA!A80="",CSA!B$13="YES"),"",WPG!F$668&"ES"&CSA!E$20&"-"&CSA!A80&": "&ROUND(IF(CSA!X80="",CSA!V80,CSA!X80),2)&"mg/m3. "&IF(OR(CSA!AL80=0,OR(AND(CSA!B80="Aerosol Exposure",CSA!F$15="YES"),AND(CSA!B80="Vapour Exposure",CSA!F$13="YES"))),"",WPG!F$564&IF(CSA!AL80<0.001,"<0.001",ROUND(CSA!AL80,3))&". ")) -> 
B114: =IF(OR(CSA!A81="",CSA!B$13="YES"),"",WPG!F$668&"ES"&CSA!E$20&"-"&CSA!A81&": "&ROUND(IF(CSA!X81="",CSA!V81,CSA!X81),2)&"mg/m3. "&IF(OR(CSA!AL81=0,OR(AND(CSA!B81="Aerosol Exposure",CSA!F$15="YES"),AND(CSA!B81="Vapour Exposure",CSA!F$13="YES"))),"",WPG!F$564&IF(CSA!AL81<0.001,"<0.001",ROUND(CSA!AL81,3))&". ")) -> 
B115: =IF(OR(CSA!A82="",CSA!B$13="YES"),"",WPG!F$668&"ES"&CSA!E$20&"-"&CSA!A82&": "&ROUND(IF(CSA!X82="",CSA!V82,CSA!X82),2)&"mg/m3. "&IF(OR(CSA!AL82=0,OR(AND(CSA!B82="Aerosol Exposure",CSA!F$15="YES"),AND(CSA!B82="Vapour Exposure",CSA!F$13="YES"))),"",WPG!F$564&IF(CSA!AL82<0.001,"<0.001",ROUND(CSA!AL82,3))&". ")) -> 
B116: =IF(OR(CSA!A83="",CSA!B$13="YES"),"",WPG!F$668&"ES"&CSA!E$20&"-"&CSA!A83&": "&ROUND(IF(CSA!X83="",CSA!V83,CSA!X83),2)&"mg/m3. "&IF(OR(CSA!AL83=0,OR(AND(CSA!B83="Aerosol Exposure",CSA!F$15="YES"),AND(CSA!B83="Vapour Exposure",CSA!F$13="YES"))),"",WPG!F$564&IF(CSA!AL83<0.001,"<0.001",ROUND(CSA!AL83,3))&". ")) -> 
B117: =IF(OR(CSA!A84="",CSA!B$13="YES"),"",WPG!F$668&"ES"&CSA!E$20&"-"&CSA!A84&": "&ROUND(IF(CSA!X84="",CSA!V84,CSA!X84),2)&"mg/m3. "&IF(OR(CSA!AL84=0,OR(AND(CSA!B84="Aerosol Exposure",CSA!F$15="YES"),AND(CSA!B84="Vapour Exposure",CSA!F$13="YES"))),"",WPG!F$564&IF(CSA!AL84<0.001,"<0.001",ROUND(CSA!AL84,3))&". ")) -> 
B118: =IF(OR(CSA!A85="",CSA!B$13="YES"),"",WPG!F$668&"ES"&CSA!E$20&"-"&CSA!A85&": "&ROUND(IF(CSA!X85="",CSA!V85,CSA!X85),2)&"mg/m3. "&IF(OR(CSA!AL85=0,OR(AND(CSA!B85="Aerosol Exposure",CSA!F$15="YES"),AND(CSA!B85="Vapour Exposure",CSA!F$13="YES"))),"",WPG!F$564&IF(CSA!AL85<0.001,"<0.001",ROUND(CSA!AL85,3))&". ")) -> 
B119: =IF(OR(CSA!A86="",CSA!B$13="YES"),"",WPG!F$668&"ES"&CSA!E$20&"-"&CSA!A86&": "&ROUND(IF(CSA!X86="",CSA!V86,CSA!X86),2)&"mg/m3. "&IF(OR(CSA!AL86=0,OR(AND(CSA!B86="Aerosol Exposure",CSA!F$15="YES"),AND(CSA!B86="Vapour Exposure",CSA!F$13="YES"))),"",WPG!F$564&IF(CSA!AL86<0.001,"<0.001",ROUND(CSA!AL86,3))&". ")) -> 
B120: =IF(OR(CSA!A87="",CSA!B$13="YES"),"",WPG!F$668&"ES"&CSA!E$20&"-"&CSA!A87&": "&ROUND(IF(CSA!X87="",CSA!V87,CSA!X87),2)&"mg/m3. "&IF(OR(CSA!AL87=0,OR(AND(CSA!B87="Aerosol Exposure",CSA!F$15="YES"),AND(CSA!B87="Vapour Exposure",CSA!F$13="YES"))),"",WPG!F$564&IF(CSA!AL87<0.001,"<0.001",ROUND(CSA!AL87,3))&". ")) -> 
B121: =IF(AND(CSA!E92="",CSA!F92="",CSA!B13="YES",CSA!AK89<1),WPG!F292,CSA!E92&CSA!F92) -> The ECETOC TRA v3 tool has been used to estimate workplace exposures unless otherwise indicated [G46].
A122: =WPG!F$41&WPG!F$562 -> Health: Dermal: | B122: =IF(OR(CSA!A47="",CSA!B$14="YES"),"",WPG!F$668&"ES"&CSA!E$20&"-"&CSA!A47&": "&ROUND(CSA!AH47,3)&WPG!F$535&IF(OR(CSA!E$16="",CSA!F$16="YES"),"",WPG!F$564&IF(CSA!AM47<0.001,"<0.001",ROUND(CSA!AM47,3))&". ")) -> 
B123: =IF(OR(CSA!A48="",CSA!B$14="YES"),"",WPG!F$668&"ES"&CSA!E$20&"-"&CSA!A48&": "&ROUND(CSA!AH48,3)&WPG!F$535&IF(OR(CSA!E$16="",CSA!F$16="YES"),"",WPG!F$564&IF(CSA!AM48<0.001,"<0.001",ROUND(CSA!AM48,3))&". ")) -> 
B124: =IF(OR(CSA!A49="",CSA!B$14="YES"),"",WPG!F$668&"ES"&CSA!E$20&"-"&CSA!A49&": "&ROUND(CSA!AH49,3)&WPG!F$535&IF(OR(CSA!E$16="",CSA!F$16="YES"),"",WPG!F$564&IF(CSA!AM49<0.001,"<0.001",ROUND(CSA!AM49,3))&". ")) -> 
B125: =IF(OR(CSA!A50="",CSA!B$14="YES"),"",WPG!F$668&"ES"&CSA!E$20&"-"&CSA!A50&": "&ROUND(CSA!AH50,3)&WPG!F$535&IF(OR(CSA!E$16="",CSA!F$16="YES"),"",WPG!F$564&IF(CSA!AM50<0.001,"<0.001",ROUND(CSA!AM50,3))&". ")) -> 
B126: =IF(OR(CSA!A51="",CSA!B$14="YES"),"",WPG!F$668&"ES"&CSA!E$20&"-"&CSA!A51&": "&ROUND(CSA!AH51,3)&WPG!F$535&IF(OR(CSA!E$16="",CSA!F$16="YES"),"",WPG!F$564&IF(CSA!AM51<0.001,"<0.001",ROUND(CSA!AM51,3))&". ")) -> 
B127: =IF(OR(CSA!A52="",CSA!B$14="YES"),"",WPG!F$668&"ES"&CSA!E$20&"-"&CSA!A52&": "&ROUND(CSA!AH52,3)&WPG!F$535&IF(OR(CSA!E$16="",CSA!F$16="YES"),"",WPG!F$564&IF(CSA!AM52<0.001,"<0.001",ROUND(CSA!AM52,3))&". ")) -> 
B128: =IF(OR(CSA!A53="",CSA!B$14="YES"),"",WPG!F$668&"ES"&CSA!E$20&"-"&CSA!A53&": "&ROUND(CSA!AH53,3)&WPG!F$535&IF(OR(CSA!E$16="",CSA!F$16="YES"),"",WPG!F$564&IF(CSA!AM53<0.001,"<0.001",ROUND(CSA!AM53,3))&". ")) -> 
B129: =IF(OR(CSA!A54="",CSA!B$14="YES"),"",WPG!F$668&"ES"&CSA!E$20&"-"&CSA!A54&": "&ROUND(CSA!AH54,3)&WPG!F$535&IF(OR(CSA!E$16="",CSA!F$16="YES"),"",WPG!F$564&IF(CSA!AM54<0.001,"<0.001",ROUND(CSA!AM54,3))&". ")) -> 
B130: =IF(OR(CSA!A55="",CSA!B$14="YES"),"",WPG!F$668&"ES"&CSA!E$20&"-"&CSA!A55&": "&ROUND(CSA!AH55,3)&WPG!F$535&IF(OR(CSA!E$16="",CSA!F$16="YES"),"",WPG!F$564&IF(CSA!AM55<0.001,"<0.001",ROUND(CSA!AM55,3))&". ")) -> 
B131: =IF(OR(CSA!A56="",CSA!B$14="YES"),"",WPG!F$668&"ES"&CSA!E$20&"-"&CSA!A56&": "&ROUND(CSA!AH56,3)&WPG!F$535&IF(OR(CSA!E$16="",CSA!F$16="YES"),"",WPG!F$564&IF(CSA!AM56<0.001,"<0.001",ROUND(CSA!AM56,3))&". ")) -> 
B132: =IF(OR(CSA!A57="",CSA!B$14="YES"),"",WPG!F$668&"ES"&CSA!E$20&"-"&CSA!A57&": "&ROUND(CSA!AH57,3)&WPG!F$535&IF(OR(CSA!E$16="",CSA!F$16="YES"),"",WPG!F$564&IF(CSA!AM57<0.001,"<0.001",ROUND(CSA!AM57,3))&". ")) -> 
B133: =IF(OR(CSA!A58="",CSA!B$14="YES"),"",WPG!F$668&"ES"&CSA!E$20&"-"&CSA!A58&": "&ROUND(CSA!AH58,3)&WPG!F$535&IF(OR(CSA!E$16="",CSA!F$16="YES"),"",WPG!F$564&IF(CSA!AM58<0.001,"<0.001",ROUND(CSA!AM58,3))&". ")) -> 
B134: =IF(OR(CSA!A59="",CSA!B$14="YES"),"",WPG!F$668&"ES"&CSA!E$20&"-"&CSA!A59&": "&ROUND(CSA!AH59,3)&WPG!F$535&IF(OR(CSA!E$16="",CSA!F$16="YES"),"",WPG!F$564&IF(CSA!AM59<0.001,"<0.001",ROUND(CSA!AM59,3))&". ")) -> 
B135: =IF(OR(CSA!A60="",CSA!B$14="YES"),"",WPG!F$668&"ES"&CSA!E$20&"-"&CSA!A60&": "&ROUND(CSA!AH60,3)&WPG!F$535&IF(OR(CSA!E$16="",CSA!F$16="YES"),"",WPG!F$564&IF(CSA!AM60<0.001,"<0.001",ROUND(CSA!AM60,3))&". ")) -> 
B136: =IF(OR(CSA!A61="",CSA!B$14="YES"),"",WPG!F$668&"ES"&CSA!E$20&"-"&CSA!A61&": "&ROUND(CSA!AH61,3)&WPG!F$535&IF(OR(CSA!E$16="",CSA!F$16="YES"),"",WPG!F$564&IF(CSA!AM61<0.001,"<0.001",ROUND(CSA!AM61,3))&". ")) -> 
B137: =IF(OR(CSA!A62="",CSA!B$14="YES"),"",WPG!F$668&"ES"&CSA!E$20&"-"&CSA!A62&": "&ROUND(CSA!AH62,3)&WPG!F$535&IF(OR(CSA!E$16="",CSA!F$16="YES"),"",WPG!F$564&IF(CSA!AM62<0.001,"<0.001",ROUND(CSA!AM62,3))&". ")) -> 
B138: =IF(OR(CSA!A63="",CSA!B$14="YES"),"",WPG!F$668&"ES"&CSA!E$20&"-"&CSA!A63&": "&ROUND(CSA!AH63,3)&WPG!F$535&IF(OR(CSA!E$16="",CSA!F$16="YES"),"",WPG!F$564&IF(CSA!AM63<0.001,"<0.001",ROUND(CSA!AM63,3))&". ")) -> 
B139: =IF(OR(CSA!A64="",CSA!B$14="YES"),"",WPG!F$668&"ES"&CSA!E$20&"-"&CSA!A64&": "&ROUND(CSA!AH64,3)&WPG!F$535&IF(OR(CSA!E$16="",CSA!F$16="YES"),"",WPG!F$564&IF(CSA!AM64<0.001,"<0.001",ROUND(CSA!AM64,3))&". ")) -> 
B140: =IF(OR(CSA!A65="",CSA!B$14="YES"),"",WPG!F$668&"ES"&CSA!E$20&"-"&CSA!A65&": "&ROUND(CSA!AH65,3)&WPG!F$535&IF(OR(CSA!E$16="",CSA!F$16="YES"),"",WPG!F$564&IF(CSA!AM65<0.001,"<0.001",ROUND(CSA!AM65,3))&". ")) -> 
B141: =IF(OR(CSA!A66="",CSA!B$14="YES"),"",WPG!F$668&"ES"&CSA!E$20&"-"&CSA!A66&": "&ROUND(CSA!AH66,3)&WPG!F$535&IF(OR(CSA!E$16="",CSA!F$16="YES"),"",WPG!F$564&IF(CSA!AM66<0.001,"<0.001",ROUND(CSA!AM66,3))&". ")) -> 
B142: =IF(OR(CSA!A67="",CSA!B$14="YES"),"",WPG!F$668&"ES"&CSA!E$20&"-"&CSA!A67&": "&ROUND(CSA!AH67,3)&WPG!F$535&IF(OR(CSA!E$16="",CSA!F$16="YES"),"",WPG!F$564&IF(CSA!AM67<0.001,"<0.001",ROUND(CSA!AM67,3))&". ")) -> 
B143: =IF(OR(CSA!A68="",CSA!B$14="YES"),"",WPG!F$668&"ES"&CSA!E$20&"-"&CSA!A68&": "&ROUND(CSA!AH68,3)&WPG!F$535&IF(OR(CSA!E$16="",CSA!F$16="YES"),"",WPG!F$564&IF(CSA!AM68<0.001,"<0.001",ROUND(CSA!AM68,3))&". ")) -> 
B144: =IF(OR(CSA!A71="",CSA!B$14="YES"),"",WPG!F$668&"ES"&CSA!E$20&"-"&CSA!A71&": "&ROUND(CSA!AH71,3)&WPG!F$535&IF(OR(CSA!E$16="",CSA!F$16="YES"),"",WPG!F$564&IF(CSA!AM71<0.001,"<0.001",ROUND(CSA!AM71,3))&". ")) -> 
B145: =IF(OR(CSA!A72="",CSA!B$14="YES"),"",WPG!F$668&"ES"&CSA!E$20&"-"&CSA!A72&": "&ROUND(CSA!AH72,3)&WPG!F$535&IF(OR(CSA!E$16="",CSA!F$16="YES"),"",WPG!F$564&IF(CSA!AM72<0.001,"<0.001",ROUND(CSA!AM72,3))&". ")) -> 
B146: =IF(OR(CSA!#REF!="",CSA!B$14="YES"),"",WPG!F$668&"ES"&CSA!E$20&"-"&CSA!#REF!&": "&ROUND(CSA!#REF!,3)&WPG!F$535&IF(OR(CSA!E$16="",CSA!F$16="YES"),"",WPG!F$564&IF(CSA!#REF!<0.001,"<0.001",ROUND(CSA!#REF!,3))&". ")) -> 
B147: =IF(OR(CSA!A73="",CSA!B$14="YES"),"",WPG!F$668&"ES"&CSA!E$20&"-"&CSA!A73&": "&ROUND(CSA!AH73,3)&WPG!F$535&IF(OR(CSA!E$16="",CSA!F$16="YES"),"",WPG!F$564&IF(CSA!AM73<0.001,"<0.001",ROUND(CSA!AM73,3))&". ")) -> 
B148: =IF(OR(CSA!A74="",CSA!B$14="YES"),"",WPG!F$668&"ES"&CSA!E$20&"-"&CSA!A74&": "&ROUND(CSA!AH74,3)&WPG!F$535&IF(OR(CSA!E$16="",CSA!F$16="YES"),"",WPG!F$564&IF(CSA!AM74<0.001,"<0.001",ROUND(CSA!AM74,3))&". ")) -> 
B149: =IF(OR(CSA!A75="",CSA!B$14="YES"),"",WPG!F$668&"ES"&CSA!E$20&"-"&CSA!A75&": "&ROUND(CSA!AH75,3)&WPG!F$535&IF(OR(CSA!E$16="",CSA!F$16="YES"),"",WPG!F$564&IF(CSA!AM75<0.001,"<0.001",ROUND(CSA!AM75,3))&". ")) -> 
B150: =IF(OR(CSA!A76="",CSA!B$14="YES"),"",WPG!F$668&"ES"&CSA!E$20&"-"&CSA!A76&": "&ROUND(CSA!AH76,3)&WPG!F$535&IF(OR(CSA!E$16="",CSA!F$16="YES"),"",WPG!F$564&IF(CSA!AM76<0.001,"<0.001",ROUND(CSA!AM76,3))&". ")) -> 
B151: =IF(OR(CSA!A77="",CSA!B$14="YES"),"",WPG!F$668&"ES"&CSA!E$20&"-"&CSA!A77&": "&ROUND(CSA!AH77,3)&WPG!F$535&IF(OR(CSA!E$16="",CSA!F$16="YES"),"",WPG!F$564&IF(CSA!AM77<0.001,"<0.001",ROUND(CSA!AM77,3))&". ")) -> 
B152: =IF(OR(CSA!A78="",CSA!B$14="YES"),"",WPG!F$668&"ES"&CSA!E$20&"-"&CSA!A78&": "&ROUND(CSA!AH78,3)&WPG!F$535&IF(OR(CSA!E$16="",CSA!F$16="YES"),"",WPG!F$564&IF(CSA!AM78<0.001,"<0.001",ROUND(CSA!AM78,3))&". ")) -> 
B153: =IF(OR(CSA!A79="",CSA!B$14="YES"),"",WPG!F$668&"ES"&CSA!E$20&"-"&CSA!A79&": "&ROUND(CSA!AH79,3)&WPG!F$535&IF(OR(CSA!E$16="",CSA!F$16="YES"),"",WPG!F$564&IF(CSA!AM79<0.001,"<0.001",ROUND(CSA!AM79,3))&". ")) -> 
B154: =IF(OR(CSA!A80="",CSA!B$14="YES"),"",WPG!F$668&"ES"&CSA!E$20&"-"&CSA!A80&": "&ROUND(CSA!AH80,3)&WPG!F$535&IF(OR(CSA!E$16="",CSA!F$16="YES"),"",WPG!F$564&IF(CSA!AM80<0.001,"<0.001",ROUND(CSA!AM80,3))&". ")) -> 
B155: =IF(OR(CSA!A81="",CSA!B$14="YES"),"",WPG!F$668&"ES"&CSA!E$20&"-"&CSA!A81&": "&ROUND(CSA!AH81,3)&WPG!F$535&IF(OR(CSA!E$16="",CSA!F$16="YES"),"",WPG!F$564&IF(CSA!AM81<0.001,"<0.001",ROUND(CSA!AM81,3))&". ")) -> 
B156: =IF(OR(CSA!A82="",CSA!B$14="YES"),"",WPG!F$668&"ES"&CSA!E$20&"-"&CSA!A82&": "&ROUND(CSA!AH82,3)&WPG!F$535&IF(OR(CSA!E$16="",CSA!F$16="YES"),"",WPG!F$564&IF(CSA!AM82<0.001,"<0.001",ROUND(CSA!AM82,3))&". ")) -> 
B157: =IF(OR(CSA!A83="",CSA!B$14="YES"),"",WPG!F$668&"ES"&CSA!E$20&"-"&CSA!A83&": "&ROUND(CSA!AH83,3)&WPG!F$535&IF(OR(CSA!E$16="",CSA!F$16="YES"),"",WPG!F$564&IF(CSA!AM83<0.001,"<0.001",ROUND(CSA!AM83,3))&". ")) -> 
B158: =IF(OR(CSA!A84="",CSA!B$14="YES"),"",WPG!F$668&"ES"&CSA!E$20&"-"&CSA!A84&": "&ROUND(CSA!AH84,3)&WPG!F$535&IF(OR(CSA!E$16="",CSA!F$16="YES"),"",WPG!F$564&IF(CSA!AM84<0.001,"<0.001",ROUND(CSA!AM84,3))&". ")) -> 
B159: =IF(OR(CSA!A85="",CSA!B$14="YES"),"",WPG!F$668&"ES"&CSA!E$20&"-"&CSA!A85&": "&ROUND(CSA!AH85,3)&WPG!F$535&IF(OR(CSA!E$16="",CSA!F$16="YES"),"",WPG!F$564&IF(CSA!AM85<0.001,"<0.001",ROUND(CSA!AM85,3))&". ")) -> 
B160: =IF(OR(CSA!A86="",CSA!B$14="YES"),"",WPG!F$668&"ES"&CSA!E$20&"-"&CSA!A86&": "&ROUND(CSA!AH86,3)&WPG!F$535&IF(OR(CSA!E$16="",CSA!F$16="YES"),"",WPG!F$564&IF(CSA!AM86<0.001,"<0.001",ROUND(CSA!AM86,3))&". ")) -> 
B161: =IF(OR(CSA!A87="",CSA!B$14="YES"),"",WPG!F$668&"ES"&CSA!E$20&"-"&CSA!A87&": "&ROUND(CSA!AH87,3)&WPG!F$535&IF(OR(CSA!E$16="",CSA!F$16="YES"),"",WPG!F$564&IF(CSA!AM87<0.001,"<0.001",ROUND(CSA!AM87,3))&". ")) -> 
B162: =IF(AND(CSA!E93="",CSA!F93="",CSA!B14="YES",CSA!AK89<1),WPG!F292,CSA!E93&CSA!F93) -> Available hazard data do not enable the derivation of a DNEL for dermal irritant effects [G32]. Risk Management Measures are based on qualitative risk characterisation [G37]. Available hazard data do not enable the derivation of a DNEL for eye irritant effects [G45]. The ECETOC TRA v3 tool has been used to estimate workplace exposures unless otherwise indicated [G46].
A163: =WPG!F$42 -> Environment:
B164: standard phrases
A165: =WPG!F43 -> Section 4: | B165: =WPG!F44 -> Guidance to check compliance with the exposure scenario:
A166: =WPG!F41 -> Health: | B166: =CSA!E96&" "&CSA!D96 -> ; Predicted exposures are not expected to exceed the DN(M)EL when the Risk Management Measures/Operational Conditions outlined in Section 2 are implemented [G22]. ; Where other Risk Management Measures/Operational Conditions are adopted, then users should ensure that risks are managed to at least equivalent levels [G23].
A168: =WPG!F42 -> Environment: | B168: standard phrases

Sheet Justifications
C1: ="Justification for modifications made to Worker CSA Template GES to make it appropriate for "&CSA!E6 -> Justification for modifications made to Worker CSA Template GES to make it appropriate for medium volatility substance
A3: Source documents | C3: List source documents here.
A5: Overall comments | C5: Annotate as appropriate
A6: ES title | C6: =CSA!E3&" "&CSA!F3 -> Functional Fluids [GEST13_I].
A7: CS title | B7: PROC
A8: =IF(B8="","",CSA!A47&": "&CSA!D47&" "&CSA!E47&CSA!F47&". "&CSA!B47&". "&CSA!C47&".") -> 1-1: Bulk transfers [CS14].; (closed systems) [CS107]. Daily; 15 min - 1 hour; ambient tempEnclosed transfers; clear lines prior to decoupling. Vapour exposure. Industrial. | B8: =IF(CSA!I47="","",CSA!I47) -> 1 - Use in closed process, no likelihood of exposure | C8: annotate as appropriate
A9: =IF(B9="","",CSA!A48&": "&CSA!D48&" "&CSA!E48&CSA!F48&". "&CSA!B48&". "&CSA!C48&".") -> 1-2: Bulk transfers [CS14].; (closed systems) [CS107]. Daily; 15 min - 1 hour; ambient tempEnclosed transfers; clear lines prior to decoupling. Vapour exposure. Industrial. | B9: =IF(CSA!I48="","",CSA!I48) -> 2 - Use in closed, continuous process with occasional controlled exposure | C9: Annotate as appropriate
A10: =IF(B10="","",CSA!A49&": "&CSA!D49&" "&CSA!E49&CSA!F49&". "&CSA!B49&". "&CSA!C49&".") -> 2: Drum/batch transfers [CS8]. ; Dedicated facility [CS81]. Daily; 15 min - 1 hour; ambient tempPumped transfer from drum to holding tanks. . Vapour exposure. Industrial. | B10: =IF(CSA!I49="","",CSA!I49) -> 8b -Transfer of chemicals from/to vessels/ large containers at dedicated facilities | C10: Annotate as appropriate
A11: =IF(B11="","",CSA!A50&": "&CSA!D50&" "&CSA!E50&CSA!F50&". "&CSA!B50&". "&CSA!C50&".") -> 3: Filling of articles/equipment [CS84]. ; (closed systems) [CS107]. Daily; >4 hours, ambientEnclosed operations, size of openings minimised. Vapour exposure. Industrial. | B11: =IF(CSA!I50="","",CSA!I50) -> 9 -Transfer of chemicals into small containers (dedicated filling line) | C11: Annotate as appropriate
A12: =IF(B12="","",CSA!A51&": "&CSA!D51&" "&CSA!E51&CSA!F51&". "&CSA!B51&". "&CSA!C51&".") -> 4: Filling / preparation of equipment from drums or containers. [CS45]. ; Non-dedicated facility [CS82]. Daily; 1-4 hours, ambientCareful pouring, worker instructions. Vapour exposure. Industrial. | B12: =IF(CSA!I51="","",CSA!I51) -> 8a -Transfer of chemicals from/to vessels/ large containers at non dedicated facilities | C12: Annotate as appropriate
A13: =IF(B13="","",CSA!A52&": "&CSA!D52&" "&CSA!E52&CSA!F52&". "&CSA!B52&". "&CSA!C52&".") -> 5: General exposures (closed systems) [CS15]. Daily; >4 hours, ambientClosed system. Vapour exposure. Industrial. | B13: =IF(CSA!I52="","",CSA!I52) -> 2 - Use in closed, continuous process with occasional controlled exposure | C13: Annotate as appropriate
A14: =IF(B14="","",CSA!A53&": "&CSA!D53&" "&CSA!E53&CSA!F53&". "&CSA!B53&". "&CSA!C53&".") -> 6: General exposures (open systems) [CS16]. Daily; >4 hours, ambientWell ventilated area (Enhanced GV).. Vapour exposure. Industrial. | B14: =IF(CSA!I53="","",CSA!I53) -> 4 - Use in batch and other process (synthesis) where opportunity for exposure arises | C14: Annotate as appropriate
A15: =IF(B15="","",CSA!A54&": "&CSA!D54&" "&CSA!E54&CSA!F54&". "&CSA!B54&". "&CSA!C54&".") -> 7a: General exposures (open systems) [CS16]. ; elevated temperature [CS111]. Daily; >4 hours, ambient (product at 80oC)Well ventilated area (Enhanced GV).. Vapour exposure. Industrial. | B15: =IF(CSA!I54="","",CSA!I54) -> 4 - Use in batch and other process (synthesis) where opportunity for exposure arises | C15: Annotate as appropriate
A16: =IF(B16="","",CSA!A55&": "&CSA!D55&" "&CSA!E55&CSA!F55&". "&CSA!B55&". "&CSA!C55&".") -> 7b: General exposures (open systems) [CS16]. ; elevated temperature [CS111]. Daily; >4 hours, ambient (product at 80oC)Well ventilated area (Enhanced GV).. Aerosol exposure. Industrial. | B16: =IF(CSA!I55="","",CSA!I55) -> 4 - Use in batch and other process (synthesis) where opportunity for exposure arises | C16: Annotate as appropriate
A17: =IF(B17="","",CSA!A56&": "&CSA!D56&" "&CSA!E56&CSA!F56&". "&CSA!B56&". "&CSA!C56&".") -> 8: Remanufacture of reject articles [CS19]. Daily; >4 hours, ambientwork methods, drain prior to work, retain spills. Vapour exposure. Industrial. | B17: =IF(CSA!I56="","",CSA!I56) -> 9 -Transfer of chemicals into small containers (dedicated filling line) | C17: Annotate as appropriate
A18: =IF(B18="","",CSA!A57&": "&CSA!D57&" "&CSA!E57&CSA!F57&". "&CSA!B57&". "&CSA!C57&".") -> 9-1: Equipment maintenance [CS5]. Daily; 1-4 hours, ambientwork methods, drain prior to work, retain spills, gloves. Vapour exposure. Industrial. | B18: =IF(CSA!I57="","",CSA!I57) -> 8a -Transfer of chemicals from/to vessels/ large containers at non dedicated facilities | C18: Annotate as appropriate
A19: =IF(B19="","",CSA!A58&": "&CSA!D58&" "&CSA!E58&CSA!F58&". "&CSA!B58&". "&CSA!C58&".") -> 9-2: Equipment maintenance [CS5]. Daily; 1-4 hours, ambientwork methods, drain prior to work, retain spills, gloves. Vapour exposure. Industrial. | B19: =IF(CSA!I58="","",CSA!I58) -> 28 - Manual maintenance (cleaning and repair) of machinery | C19: Annotate as appropriate
A20: =IF(B20="","",CSA!A59&": "&CSA!D59&" "&CSA!E59&CSA!F59&". "&CSA!B59&". "&CSA!C59&".") -> 10-1: Storage [CS67]. Daily; exposure < 1hour; ambient temp; samples collected at dedicated sample point. Vapour exposure. Industrial. | B20: =IF(CSA!I59="","",CSA!I59) -> 1 - Use in closed process, no likelihood of exposure | C20: Annotate as appropriate
A21: =IF(B21="","",CSA!A60&": "&CSA!D60&" "&CSA!E60&CSA!F60&". "&CSA!B60&". "&CSA!C60&".") -> 10-2: Storage [CS67]. Daily; exposure <1hour; ambient temp; samples collected at dedicated sample point. Vapour exposure. Industrial. | B21: =IF(CSA!I60="","",CSA!I60) -> 2 - Use in closed, continuous process with occasional controlled exposure | C21: Annotate as appropriate
A22: =IF(B22="","",CSA!A61&": "&CSA!D61&" "&CSA!E61&CSA!F61&". "&CSA!B61&". "&CSA!C61&".") -> 11: General exposures (closed systems) [CS15]. Daily; >4 hours, ambientClosed systems. Vapour exposure. Industrial. | B22: =IF(CSA!I61="","",CSA!I61) -> 3 - Use in closed batch process (synthesis or formulation) | C22: Annotate as appropriate
A23: =IF(B23="","",CSA!A62&": "&CSA!D62&" "&CSA!E62&CSA!F62&". "&CSA!B62&". "&CSA!C62&".") ->  | B23: =IF(CSA!I62="","",CSA!I62) ->  | C23: Annotate as appropriate
A24: =IF(B24="","",CSA!A63&": "&CSA!D63&" "&CSA!E63&CSA!F63&". "&CSA!B63&". "&CSA!C63&".") ->  | B24: =IF(CSA!I63="","",CSA!I63) ->  | C24: Annotate as appropriate
A25: =IF(B25="","",CSA!A64&": "&CSA!D64&" "&CSA!E64&CSA!F64&". "&CSA!B64&". "&CSA!C64&".") ->  | B25: =IF(CSA!I64="","",CSA!I64) ->  | C25: Annotate as appropriate
A26: =IF(B26="","",CSA!A65&": "&CSA!D65&" "&CSA!E65&CSA!F65&". "&CSA!B65&". "&CSA!C65&".") ->  | B26: =IF(CSA!I65="","",CSA!I65) ->  | C26: Annotate as appropriate
A27: =IF(B27="","",CSA!A66&": "&CSA!D66&" "&CSA!E66&CSA!F66&". "&CSA!B66&". "&CSA!C66&".") ->  | B27: =IF(CSA!I66="","",CSA!I66) ->  | C27: Annotate as appropriate
A28: =IF(B28="","",CSA!A67&": "&CSA!D67&" "&CSA!E67&CSA!F67&". "&CSA!B67&". "&CSA!C67&".") ->  | B28: =IF(CSA!I67="","",CSA!I67) ->  | C28: Annotate as appropriate
A29: =IF(B29="","",CSA!A68&": "&CSA!D68&" "&CSA!E68&CSA!F68&". "&CSA!B68&". "&CSA!C68&".") ->  | B29: =IF(CSA!I68="","",CSA!I68) ->  | C29: Annotate as appropriate
A30: =IF(B30="","",CSA!A71&": "&CSA!D71&" "&CSA!E71&CSA!F71&". "&CSA!B71&". "&CSA!C71&".") ->  | B30: =IF(CSA!I71="","",CSA!I71) ->  | C30: Annotate as appropriate
A31: =IF(B31="","",CSA!A72&": "&CSA!D72&" "&CSA!E72&CSA!F72&". "&CSA!B72&". "&CSA!C72&".") ->  | B31: =IF(CSA!I72="","",CSA!I72) ->  | C31: Annotate as appropriate
A32: =IF(B32="","",CSA!#REF!&": "&CSA!#REF!&" "&CSA!#REF!&CSA!#REF!&". "&CSA!#REF!&". "&CSA!#REF!&".") ->  | B32: =IF(CSA!#REF!="","",CSA!#REF!) ->  | C32: Annotate as appropriate
A33: =IF(B33="","",CSA!A73&": "&CSA!D73&" "&CSA!E73&CSA!F73&". "&CSA!B73&". "&CSA!C73&".") ->  | B33: =IF(CSA!I73="","",CSA!I73) ->  | C33: Annotate as appropriate
A34: =IF(B34="","",CSA!A74&": "&CSA!D74&" "&CSA!E74&CSA!F74&". "&CSA!B74&". "&CSA!C74&".") ->  | B34: =IF(CSA!I74="","",CSA!I74) ->  | C34: Annotate as appropriate
A35: =IF(B35="","",CSA!A75&": "&CSA!D75&" "&CSA!E75&CSA!F75&". "&CSA!B75&". "&CSA!C75&".") ->  | B35: =IF(CSA!I75="","",CSA!I75) ->  | C35: Annotate as appropriate
A36: =IF(B36="","",CSA!A76&": "&CSA!D76&" "&CSA!E76&CSA!F76&". "&CSA!B76&". "&CSA!C76&".") ->  | B36: =IF(CSA!I76="","",CSA!I76) ->  | C36: Annotate as appropriate
A37: =IF(B37="","",CSA!A77&": "&CSA!D77&" "&CSA!E77&CSA!F77&". "&CSA!B77&". "&CSA!C77&".") ->  | B37: =IF(CSA!I77="","",CSA!I77) ->  | C37: Annotate as appropriate
A38: =IF(B38="","",CSA!A78&": "&CSA!D78&" "&CSA!E78&CSA!F78&". "&CSA!B78&". "&CSA!C78&".") ->  | B38: =IF(CSA!I78="","",CSA!I78) ->  | C38: Annotate as appropriate
A39: =IF(B39="","",CSA!A79&": "&CSA!D79&" "&CSA!E79&CSA!F79&". "&CSA!B79&". "&CSA!C79&".") ->  | B39: =IF(CSA!I79="","",CSA!I79) ->  | C39: Annotate as appropriate
A40: =IF(B40="","",CSA!A80&": "&CSA!D80&" "&CSA!E80&CSA!F80&". "&CSA!B80&". "&CSA!C80&".") ->  | B40: =IF(CSA!I80="","",CSA!I80) ->  | C40: Annotate as appropriate
A41: =IF(B41="","",CSA!A81&": "&CSA!D81&" "&CSA!E81&CSA!F81&". "&CSA!B81&". "&CSA!C81&".") ->  | B41: =IF(CSA!I81="","",CSA!I81) ->  | C41: Annotate as appropriate
A42: =IF(B42="","",CSA!A82&": "&CSA!D82&" "&CSA!E82&CSA!F82&". "&CSA!B82&". "&CSA!C82&".") ->  | B42: =IF(CSA!I82="","",CSA!I82) ->  | C42: Annotate as appropriate
A43: =IF(B43="","",CSA!A83&": "&CSA!D83&" "&CSA!E83&CSA!F83&". "&CSA!B83&". "&CSA!C83&".") ->  | B43: =IF(CSA!I83="","",CSA!I83) ->  | C43: Annotate as appropriate
A44: =IF(B44="","",CSA!A84&": "&CSA!D84&" "&CSA!E84&CSA!F84&". "&CSA!B84&". "&CSA!C84&".") ->  | B44: =IF(CSA!I84="","",CSA!I84) ->  | C44: Annotate as appropriate
A45: =IF(B45="","",CSA!A85&": "&CSA!D85&" "&CSA!E85&CSA!F85&". "&CSA!B85&". "&CSA!C85&".") ->  | B45: =IF(CSA!I85="","",CSA!I85) ->  | C45: Annotate as appropriate
A46: =IF(B46="","",CSA!A86&": "&CSA!D86&" "&CSA!E86&CSA!F86&". "&CSA!B86&". "&CSA!C86&".") ->  | B46: =IF(CSA!I86="","",CSA!I86) ->  | C46: Annotate as appropriate
A47: =IF(B47="","",CSA!A87&": "&CSA!D87&" "&CSA!E87&CSA!F87&". "&CSA!B87&". "&CSA!C87&".") ->  | B47: =IF(CSA!I87="","",CSA!I87) ->  | C47: Annotate as appropriate

Sheet WPG
A1: BDI code | B1: ESIG_ESVOC Code | C1: TYPE | D1: English original phrase | E1: Translated phrase (ENGLISH) | F1: Composite phrase to be used in ES Annex - USE THIS COLUMN | G1: Punctuation | H1: Use code in phrase? | I1: Efficiency Inhalation (%) | L1: Efficiency Dermal (%) | M1: Remarks / Source | N1: Justification
A2: GES template element
D3: Section 1 | E3: Section 1 | F3: =IF(AND(H3="Y",CSA!B$15="YES"),IF(E3="","***TRANSLATED TEXT MISSING***",E3&IF(B3="",G3&" ",IF(OR(LEFT(B3,3)<>"CSL", AND(LEFT(B3,3)="CSL",H$522="NO"))," ["&B3&"]"&G3&" ",G3&" "))),IF(E3="","***TRANSLATED TEXT MISSING***",E3&G3&" ")) -> Section 1 | H3: N
D4: Title | E4: Title | F4: =IF(AND(H4="Y",CSA!B$15="YES"),IF(E4="","***TRANSLATED TEXT MISSING***",E4&IF(B4="",G4&" ",IF(OR(LEFT(B4,3)<>"CSL", AND(LEFT(B4,3)="CSL",H$522="NO"))," ["&B4&"]"&G4&" ",G4&" "))),IF(E4="","***TRANSLATED TEXT MISSING***",E4&G4&" ")) -> Title. | G4: . | H4: N
D5: Use Descriptor | E5: Use Descriptor | F5: =IF(AND(H5="Y",CSA!B$15="YES"),IF(E5="","***TRANSLATED TEXT MISSING***",E5&IF(B5="",G5&" ",IF(OR(LEFT(B5,3)<>"CSL", AND(LEFT(B5,3)="CSL",H$522="NO"))," ["&B5&"]"&G5&" ",G5&" "))),IF(E5="","***TRANSLATED TEXT MISSING***",E5&G5&" ")) -> Use Descriptor. | G5: . | H5: N
D6: Processes, tasks, activities covered | E6: Processes, tasks, activities covered | F6: =IF(AND(H6="Y",CSA!B$15="YES"),IF(E6="","***TRANSLATED TEXT MISSING***",E6&IF(B6="",G6&" ",IF(OR(LEFT(B6,3)<>"CSL", AND(LEFT(B6,3)="CSL",H$522="NO"))," ["&B6&"]"&G6&" ",G6&" "))),IF(E6="","***TRANSLATED TEXT MISSING***",E6&G6&" ")) -> Processes, tasks, activities covered: | G6: : | H6: N
D7: Sector(s) of Use | E7: Sector(s) of Use | F7: =IF(AND(H7="Y",CSA!B$15="YES"),IF(E7="","***TRANSLATED TEXT MISSING***",E7&IF(B7="",G7&" ",IF(OR(LEFT(B7,3)<>"CSL", AND(LEFT(B7,3)="CSL",H$522="NO"))," ["&B7&"]"&G7&" ",G7&" "))),IF(E7="","***TRANSLATED TEXT MISSING***",E7&G7&" ")) -> Sector(s) of Use: | G7: : | H7: N
D8: Process Category(ies) | E8: Process Category(ies) | F8: =IF(AND(H8="Y",CSA!B$15="YES"),IF(E8="","***TRANSLATED TEXT MISSING***",E8&IF(B8="",G8&" ",IF(OR(LEFT(B8,3)<>"CSL", AND(LEFT(B8,3)="CSL",H$522="NO"))," ["&B8&"]"&G8&" ",G8&" "))),IF(E8="","***TRANSLATED TEXT MISSING***",E8&G8&" ")) -> Process Category(ies): | G8: : | H8: N
D9: Product Category(ies) | E9: Product Category(ies) | F9: =IF(AND(H9="Y",CSA!B$15="YES"),IF(E9="","***TRANSLATED TEXT MISSING***",E9&IF(B9="",G9&" ",IF(OR(LEFT(B9,3)<>"CSL", AND(LEFT(B9,3)="CSL",H$522="NO"))," ["&B9&"]"&G9&" ",G9&" "))),IF(E9="","***TRANSLATED TEXT MISSING***",E9&G9&" ")) -> Product Category(ies): | G9: : | H9: N
D10: Environmental Release Category(ies) | E10: Environmental Release Category(ies) | F10: =IF(AND(H10="Y",CSA!B$15="YES"),IF(E10="","***TRANSLATED TEXT MISSING***",E10&IF(B10="",G10&" ",IF(OR(LEFT(B10,3)<>"CSL", AND(LEFT(B10,3)="CSL",H$522="NO"))," ["&B10&"]"&G10&" ",G10&" "))),IF(E10="","***TRANSLATED TEXT MISSING***",E10&G10&" ")) -> Environmental Release Category(ies): | G10: : | H10: N
D11: Section 2 | E11: Section 2 | F11: =IF(AND(H11="Y",CSA!B$15="YES"),IF(E11="","***TRANSLATED TEXT MISSING***",E11&IF(B11="",G11&" ",IF(OR(LEFT(B11,3)<>"CSL", AND(LEFT(B11,3)="CSL",H$522="NO"))," ["&B11&"]"&G11&" ",G11&" "))),IF(E11="","***TRANSLATED TEXT MISSING***",E11&G11&" ")) -> Section 2: | G11: : | H11: N
D12: Operational conditions and risk management measures | E12: Operational conditions and risk management measures | F12: =IF(AND(H12="Y",CSA!B$15="YES"),IF(E12="","***TRANSLATED TEXT MISSING***",E12&IF(B12="",G12&" ",IF(OR(LEFT(B12,3)<>"CSL", AND(LEFT(B12,3)="CSL",H$522="NO"))," ["&B12&"]"&G12&" ",G12&" "))),IF(E12="","***TRANSLATED TEXT MISSING***",E12&G12&" ")) -> Operational conditions and risk management measures. | G12: . | H12: N
D13: Section 2.1: | E13: Section 2.1 | F13: =IF(AND(H13="Y",CSA!B$15="YES"),IF(E13="","***TRANSLATED TEXT MISSING***",E13&IF(B13="",G13&" ",IF(OR(LEFT(B13,3)<>"CSL", AND(LEFT(B13,3)="CSL",H$522="NO"))," ["&B13&"]"&G13&" ",G13&" "))),IF(E13="","***TRANSLATED TEXT MISSING***",E13&G13&" ")) -> Section 2.1 | H13: N
D14: Control of worker exposure | E14: Control of worker exposure | F14: =IF(AND(H14="Y",CSA!B$15="YES"),IF(E14="","***TRANSLATED TEXT MISSING***",E14&IF(B14="",G14&" ",IF(OR(LEFT(B14,3)<>"CSL", AND(LEFT(B14,3)="CSL",H$522="NO"))," ["&B14&"]"&G14&" ",G14&" "))),IF(E14="","***TRANSLATED TEXT MISSING***",E14&G14&" ")) -> Control of worker exposure. | G14: . | H14: N
D15: Control of consumer exposure | E15: Control of consumer exposure | F15: =IF(AND(H15="Y",CSA!B$15="YES"),IF(E15="","***TRANSLATED TEXT MISSING***",E15&IF(B15="",G15&" ",IF(OR(LEFT(B15,3)<>"CSL", AND(LEFT(B15,3)="CSL",H$522="NO"))," ["&B15&"]"&G15&" ",G15&" "))),IF(E15="","***TRANSLATED TEXT MISSING***",E15&G15&" ")) -> Control of consumer exposure. | G15: . | H15: N
D16: Product Characteristics | E16: Product Characteristics | F16: =IF(AND(H16="Y",CSA!B$15="YES"),IF(E16="","***TRANSLATED TEXT MISSING***",E16&IF(B16="",G16&" ",IF(OR(LEFT(B16,3)<>"CSL", AND(LEFT(B16,3)="CSL",H$522="NO"))," ["&B16&"]"&G16&" ",G16&" "))),IF(E16="","***TRANSLATED TEXT MISSING***",E16&G16&" ")) -> Product Characteristics: | G16: : | H16: N
D17: Physical form of product | E17: Physical form of product | F17: =IF(AND(H17="Y",CSA!B$15="YES"),IF(E17="","***TRANSLATED TEXT MISSING***",E17&IF(B17="",G17&" ",IF(OR(LEFT(B17,3)<>"CSL", AND(LEFT(B17,3)="CSL",H$522="NO"))," ["&B17&"]"&G17&" ",G17&" "))),IF(E17="","***TRANSLATED TEXT MISSING***",E17&G17&" ")) -> Physical form of product: | G17: : | H17: N
D18: Vapour pressure | E18: Vapour pressure | F18: =IF(AND(H18="Y",CSA!B$15="YES"),IF(E18="","***TRANSLATED TEXT MISSING***",E18&IF(B18="",G18&" ",IF(OR(LEFT(B18,3)<>"CSL", AND(LEFT(B18,3)="CSL",H$522="NO"))," ["&B18&"]"&G18&" ",G18&" "))),IF(E18="","***TRANSLATED TEXT MISSING***",E18&G18&" ")) -> Vapour pressure: | G18: : | H18: N
D19: Concentration of substance in product | E19: Concentration of substance in product | F19: =IF(AND(H19="Y",CSA!B$15="YES"),IF(E19="","***TRANSLATED TEXT MISSING***",E19&IF(B19="",G19&" ",IF(OR(LEFT(B19,3)<>"CSL", AND(LEFT(B19,3)="CSL",H$522="NO"))," ["&B19&"]"&G19&" ",G19&" "))),IF(E19="","***TRANSLATED TEXT MISSING***",E19&G19&" ")) -> Concentration of substance in product: | G19: : | H19: N
D20: Amounts used | E20: Amounts used | F20: =IF(AND(H20="Y",CSA!B$15="YES"),IF(E20="","***TRANSLATED TEXT MISSING***",E20&IF(B20="",G20&" ",IF(OR(LEFT(B20,3)<>"CSL", AND(LEFT(B20,3)="CSL",H$522="NO"))," ["&B20&"]"&G20&" ",G20&" "))),IF(E20="","***TRANSLATED TEXT MISSING***",E20&G20&" ")) -> Amounts used: | G20: : | H20: N
D21: Frequency and duration of use | E21: Frequency and duration of use | F21: =IF(AND(H21="Y",CSA!B$15="YES"),IF(E21="","***TRANSLATED TEXT MISSING***",E21&IF(B21="",G21&" ",IF(OR(LEFT(B21,3)<>"CSL", AND(LEFT(B21,3)="CSL",H$522="NO"))," ["&B21&"]"&G21&" ",G21&" "))),IF(E21="","***TRANSLATED TEXT MISSING***",E21&G21&" ")) -> Frequency and duration of use: | G21: : | H21: N
D22: Human factors not influenced by risk management | E22: Human factors not influenced by risk management | F22: =IF(AND(H22="Y",CSA!B$15="YES"),IF(E22="","***TRANSLATED TEXT MISSING***",E22&IF(B22="",G22&" ",IF(OR(LEFT(B22,3)<>"CSL", AND(LEFT(B22,3)="CSL",H$522="NO"))," ["&B22&"]"&G22&" ",G22&" "))),IF(E22="","***TRANSLATED TEXT MISSING***",E22&G22&" ")) -> Human factors not influenced by risk management: | G22: : | H22: N
D23: Other operational conditions affecting worker exposure | E23: Other operational conditions affecting worker exposure | F23: =IF(AND(H23="Y",CSA!B$15="YES"),IF(E23="","***TRANSLATED TEXT MISSING***",E23&IF(B23="",G23&" ",IF(OR(LEFT(B23,3)<>"CSL", AND(LEFT(B23,3)="CSL",H$522="NO"))," ["&B23&"]"&G23&" ",G23&" "))),IF(E23="","***TRANSLATED TEXT MISSING***",E23&G23&" ")) -> Other operational conditions affecting worker exposure: | G23: : | H23: N
D24: Risk Management Measures | E24: Risk Management Measures | F24: =IF(AND(H24="Y",CSA!B$15="YES"),IF(E24="","***TRANSLATED TEXT MISSING***",E24&IF(B24="",G24&" ",IF(OR(LEFT(B24,3)<>"CSL", AND(LEFT(B24,3)="CSL",H$522="NO"))," ["&B24&"]"&G24&" ",G24&" "))),IF(E24="","***TRANSLATED TEXT MISSING***",E24&G24&" ")) -> Risk Management Measures: | G24: : | H24: N
D25: Contributing Scenarios | E25: Contributing Scenarios | F25: =IF(AND(H25="Y",CSA!B$15="YES"),IF(E25="","***TRANSLATED TEXT MISSING***",E25&IF(B25="",G25&" ",IF(OR(LEFT(B25,3)<>"CSL", AND(LEFT(B25,3)="CSL",H$522="NO"))," ["&B25&"]"&G25&" ",G25&" "))),IF(E25="","***TRANSLATED TEXT MISSING***",E25&G25&" ")) -> Contributing Scenarios: | G25: : | H25: N
D26: Product (sub) Category(ies) | E26: Product (sub) Category(ies) | F26: =IF(AND(H26="Y",CSA!B$15="YES"),IF(E26="","***TRANSLATED TEXT MISSING***",E26&IF(B26="",G26&" ",IF(OR(LEFT(B26,3)<>"CSL", AND(LEFT(B26,3)="CSL",H$522="NO"))," ["&B26&"]"&G26&" ",G26&" "))),IF(E26="","***TRANSLATED TEXT MISSING***",E26&G26&" ")) -> Product (sub) Category(ies): | G26: : | H26: N
D27: Article (sub) Category(ies) | E27: Article (sub) Category(ies) | F27: =IF(AND(H27="Y",CSA!B$15="YES"),IF(E27="","***TRANSLATED TEXT MISSING***",E27&IF(B27="",G27&" ",IF(OR(LEFT(B27,3)<>"CSL", AND(LEFT(B27,3)="CSL",H$522="NO"))," ["&B27&"]"&G27&" ",G27&" "))),IF(E27="","***TRANSLATED TEXT MISSING***",E27&G27&" ")) -> Article (sub) Category(ies): | G27: : | H27: N
D28: Section 2.2 | E28: Section 2.2 | F28: =IF(AND(H28="Y",CSA!B$15="YES"),IF(E28="","***TRANSLATED TEXT MISSING***",E28&IF(B28="",G28&" ",IF(OR(LEFT(B28,3)<>"CSL", AND(LEFT(B28,3)="CSL",H$522="NO"))," ["&B28&"]"&G28&" ",G28&" "))),IF(E28="","***TRANSLATED TEXT MISSING***",E28&G28&" ")) -> Section 2.2: | G28: : | H28: N
D29: Control of environmental exposure | E29: Control of environmental exposure | F29: =IF(AND(H29="Y",CSA!B$15="YES"),IF(E29="","***TRANSLATED TEXT MISSING***",E29&IF(B29="",G29&" ",IF(OR(LEFT(B29,3)<>"CSL", AND(LEFT(B29,3)="CSL",H$522="NO"))," ["&B29&"]"&G29&" ",G29&" "))),IF(E29="","***TRANSLATED TEXT MISSING***",E29&G29&" ")) -> Control of environmental exposure: | G29: : | H29: N
D30: Amounts used | E30: Amounts used | F30: =IF(AND(H30="Y",CSA!B$15="YES"),IF(E30="","***TRANSLATED TEXT MISSING***",E30&IF(B30="",G30&" ",IF(OR(LEFT(B30,3)<>"CSL", AND(LEFT(B30,3)="CSL",H$522="NO"))," ["&B30&"]"&G30&" ",G30&" "))),IF(E30="","***TRANSLATED TEXT MISSING***",E30&G30&" ")) -> Amounts used: | G30: : | H30: N
D31: Frequency and duration of use | E31: Frequency and duration of use | F31: =IF(AND(H31="Y",CSA!B$15="YES"),IF(E31="","***TRANSLATED TEXT MISSING***",E31&IF(B31="",G31&" ",IF(OR(LEFT(B31,3)<>"CSL", AND(LEFT(B31,3)="CSL",H$522="NO"))," ["&B31&"]"&G31&" ",G31&" "))),IF(E31="","***TRANSLATED TEXT MISSING***",E31&G31&" ")) -> Frequency and duration of use: | G31: : | H31: N
D32: Other operational conditions of use affecting environmental exposure | E32: Other operational conditions of use affecting environmental exposure | F32: =IF(AND(H32="Y",CSA!B$15="YES"),IF(E32="","***TRANSLATED TEXT MISSING***",E32&IF(B32="",G32&" ",IF(OR(LEFT(B32,3)<>"CSL", AND(LEFT(B32,3)="CSL",H$522="NO"))," ["&B32&"]"&G32&" ",G32&" "))),IF(E32="","***TRANSLATED TEXT MISSING***",E32&G32&" ")) -> Other operational conditions of use affecting environmental exposure. | G32: . | H32: N
D33: Technical onsite conditions and measures to reduce or limit discharges, air emissions | E33: Technical onsite conditions and measures to reduce or limit discharges, air emissions | F33: =IF(AND(H33="Y",CSA!B$15="YES"),IF(E33="","***TRANSLATED TEXT MISSING***",E33&IF(B33="",G33&" ",IF(OR(LEFT(B33,3)<>"CSL", AND(LEFT(B33,3)="CSL",H$522="NO"))," ["&B33&"]"&G33&" ",G33&" "))),IF(E33="","***TRANSLATED TEXT MISSING***",E33&G33&" ")) -> Technical onsite conditions and measures to reduce or limit discharges, air emissions. | G33: . | H33: N
D34: Organisation measures to prevent/limit release from site | E34: Organisation measures to prevent/limit release from site | F34: =IF(AND(H34="Y",CSA!B$15="YES"),IF(E34="","***TRANSLATED TEXT MISSING***",E34&IF(B34="",G34&" ",IF(OR(LEFT(B34,3)<>"CSL", AND(LEFT(B34,3)="CSL",H$522="NO"))," ["&B34&"]"&G34&" ",G34&" "))),IF(E34="","***TRANSLATED TEXT MISSING***",E34&G34&" ")) -> Organisation measures to prevent/limit release from site. | G34: . | H34: N
D35: Conditions and measures related to municipal sewage treatment plant | E35: Conditions and measures related to municipal sewage treatment plant | F35: =IF(AND(H35="Y",CSA!B$15="YES"),IF(E35="","***TRANSLATED TEXT MISSING***",E35&IF(B35="",G35&" ",IF(OR(LEFT(B35,3)<>"CSL", AND(LEFT(B35,3)="CSL",H$522="NO"))," ["&B35&"]"&G35&" ",G35&" "))),IF(E35="","***TRANSLATED TEXT MISSING***",E35&G35&" ")) -> Conditions and measures related to municipal sewage treatment plant. | G35: . | H35: N
D36: Conditions and measures related to external treatment of waste for disposal | E36: Conditions and measures related to external treatment of waste for disposal | F36: =IF(AND(H36="Y",CSA!B$15="YES"),IF(E36="","***TRANSLATED TEXT MISSING***",E36&IF(B36="",G36&" ",IF(OR(LEFT(B36,3)<>"CSL", AND(LEFT(B36,3)="CSL",H$522="NO"))," ["&B36&"]"&G36&" ",G36&" "))),IF(E36="","***TRANSLATED TEXT MISSING***",E36&G36&" ")) -> Conditions and measures related to external treatment of waste for disposal. | G36: . | H36: N
D37: Conditions and measures related to external recovery of waste | E37: Conditions and measures related to external recovery of waste | F37: =IF(AND(H37="Y",CSA!B$15="YES"),IF(E37="","***TRANSLATED TEXT MISSING***",E37&IF(B37="",G37&" ",IF(OR(LEFT(B37,3)<>"CSL", AND(LEFT(B37,3)="CSL",H$522="NO"))," ["&B37&"]"&G37&" ",G37&" "))),IF(E37="","***TRANSLATED TEXT MISSING***",E37&G37&" ")) -> Conditions and measures related to external recovery of waste. | G37: . | H37: N
D38: Other environmental control measures additional to above | E38: Other environmental control measures additional to above | F38: =IF(AND(H38="Y",CSA!B$15="YES"),IF(E38="","***TRANSLATED TEXT MISSING***",E38&IF(B38="",G38&" ",IF(OR(LEFT(B38,3)<>"CSL", AND(LEFT(B38,3)="CSL",H$522="NO"))," ["&B38&"]"&G38&" ",G38&" "))),IF(E38="","***TRANSLATED TEXT MISSING***",E38&G38&" ")) -> Other environmental control measures additional to above: | G38: : | H38: N
D39: Section 3 | E39: Section 3 | F39: =IF(AND(H39="Y",CSA!B$15="YES"),IF(E39="","***TRANSLATED TEXT MISSING***",E39&IF(B39="",G39&" ",IF(OR(LEFT(B39,3)<>"CSL", AND(LEFT(B39,3)="CSL",H$522="NO"))," ["&B39&"]"&G39&" ",G39&" "))),IF(E39="","***TRANSLATED TEXT MISSING***",E39&G39&" ")) -> Section 3: | G39: : | H39: N
D40: Exposure estimation | E40: Exposure estimation | F40: =IF(AND(H40="Y",CSA!B$15="YES"),IF(E40="","***TRANSLATED TEXT MISSING***",E40&IF(B40="",G40&" ",IF(OR(LEFT(B40,3)<>"CSL", AND(LEFT(B40,3)="CSL",H$522="NO"))," ["&B40&"]"&G40&" ",G40&" "))),IF(E40="","***TRANSLATED TEXT MISSING***",E40&G40&" ")) -> Exposure estimation: | G40: : | H40: N
D41: Health | E41: Health | F41: =IF(AND(H41="Y",CSA!B$15="YES"),IF(E41="","***TRANSLATED TEXT MISSING***",E41&IF(B41="",G41&" ",IF(OR(LEFT(B41,3)<>"CSL", AND(LEFT(B41,3)="CSL",H$522="NO"))," ["&B41&"]"&G41&" ",G41&" "))),IF(E41="","***TRANSLATED TEXT MISSING***",E41&G41&" ")) -> Health: | G41: : | H41: N
D42: Environment | E42: Environment | F42: =IF(AND(H42="Y",CSA!B$15="YES"),IF(E42="","***TRANSLATED TEXT MISSING***",E42&IF(B42="",G42&" ",IF(OR(LEFT(B42,3)<>"CSL", AND(LEFT(B42,3)="CSL",H$522="NO"))," ["&B42&"]"&G42&" ",G42&" "))),IF(E42="","***TRANSLATED TEXT MISSING***",E42&G42&" ")) -> Environment: | G42: : | H42: N
D43: Section 4 | E43: Section 4 | F43: =IF(AND(H43="Y",CSA!B$15="YES"),IF(E43="","***TRANSLATED TEXT MISSING***",E43&IF(B43="",G43&" ",IF(OR(LEFT(B43,3)<>"CSL", AND(LEFT(B43,3)="CSL",H$522="NO"))," ["&B43&"]"&G43&" ",G43&" "))),IF(E43="","***TRANSLATED TEXT MISSING***",E43&G43&" ")) -> Section 4: | G43: : | H43: N
D44: Guidance to check compliance with the exposure scenario | E44: Guidance to check compliance with the exposure scenario | F44: =IF(AND(H44="Y",CSA!B$15="YES"),IF(E44="","***TRANSLATED TEXT MISSING***",E44&IF(B44="",G44&" ",IF(OR(LEFT(B44,3)<>"CSL", AND(LEFT(B44,3)="CSL",H$522="NO"))," ["&B44&"]"&G44&" ",G44&" "))),IF(E44="","***TRANSLATED TEXT MISSING***",E44&G44&" ")) -> Guidance to check compliance with the exposure scenario: | G44: : | H44: N
D45: Health | E45: Health | F45: =IF(AND(H45="Y",CSA!B$15="YES"),IF(E45="","***TRANSLATED TEXT MISSING***",E45&IF(B45="",G45&" ",IF(OR(LEFT(B45,3)<>"CSL", AND(LEFT(B45,3)="CSL",H$522="NO"))," ["&B45&"]"&G45&" ",G45&" "))),IF(E45="","***TRANSLATED TEXT MISSING***",E45&G45&" ")) -> Health | H45: N
D46: Environment | E46: Environment | F46: =IF(AND(H46="Y",CSA!B$15="YES"),IF(E46="","***TRANSLATED TEXT MISSING***",E46&IF(B46="",G46&" ",IF(OR(LEFT(B46,3)<>"CSL", AND(LEFT(B46,3)="CSL",H$522="NO"))," ["&B46&"]"&G46&" ",G46&" "))),IF(E46="","***TRANSLATED TEXT MISSING***",E46&G46&" ")) -> Environment | H46: N
F47: =IF(AND(H47="Y",CSA!B$15="YES"),IF(E47="","***TRANSLATED TEXT MISSING***",E47&IF(B47="",G47&" ",IF(OR(LEFT(B47,3)<>"CSL", AND(LEFT(B47,3)="CSL",H$522="NO"))," ["&B47&"]"&G47&" ",G47&" "))),IF(E47="","***TRANSLATED TEXT MISSING***",E47&G47&" ")) -> ***TRANSLATED TEXT MISSING***
F48: =IF(AND(H48="Y",CSA!B$15="YES"),IF(E48="","***TRANSLATED TEXT MISSING***",E48&IF(B48="",G48&" ",IF(OR(LEFT(B48,3)<>"CSL", AND(LEFT(B48,3)="CSL",H$522="NO"))," ["&B48&"]"&G48&" ",G48&" "))),IF(E48="","***TRANSLATED TEXT MISSING***",E48&G48&" ")) -> ***TRANSLATED TEXT MISSING***
A49: GES title | F49: =IF(AND(H49="Y",CSA!B$15="YES"),IF(E49="","***TRANSLATED TEXT MISSING***",E49&IF(B49="",G49&" ",IF(OR(LEFT(B49,3)<>"CSL", AND(LEFT(B49,3)="CSL",H$522="NO"))," ["&B49&"]"&G49&" ",G49&" "))),IF(E49="","***TRANSLATED TEXT MISSING***",E49&G49&" ")) -> ***TRANSLATED TEXT MISSING***
B50: GEST1_I | D50: Manufacture of substance | E50: Manufacture of substance | F50: =IF(AND(H50="Y",CSA!B$15="YES"),IF(E50="","***TRANSLATED TEXT MISSING***",E50&IF(B50="",G50&" ",IF(OR(LEFT(B50,3)<>"CSL", AND(LEFT(B50,3)="CSL",H$522="NO"))," ["&B50&"]"&G50&" ",G50&" "))),IF(E50="","***TRANSLATED TEXT MISSING***",E50&G50&" ")) -> Manufacture of substance [GEST1_I]. | G50: . | H50: Y
B51: GEST1A_I | D51: Distribution of substance | E51: Distribution of substance | F51: =IF(AND(H51="Y",CSA!B$15="YES"),IF(E51="","***TRANSLATED TEXT MISSING***",E51&IF(B51="",G51&" ",IF(OR(LEFT(B51,3)<>"CSL", AND(LEFT(B51,3)="CSL",H$522="NO"))," ["&B51&"]"&G51&" ",G51&" "))),IF(E51="","***TRANSLATED TEXT MISSING***",E51&G51&" ")) -> Distribution of substance [GEST1A_I]. | G51: . | H51: Y
B52: GEST1B_I | D52: Use as an intermediate | E52: Use as an intermediate | F52: =IF(AND(H52="Y",CSA!B$15="YES"),IF(E52="","***TRANSLATED TEXT MISSING***",E52&IF(B52="",G52&" ",IF(OR(LEFT(B52,3)<>"CSL", AND(LEFT(B52,3)="CSL",H$522="NO"))," ["&B52&"]"&G52&" ",G52&" "))),IF(E52="","***TRANSLATED TEXT MISSING***",E52&G52&" ")) -> Use as an intermediate [GEST1B_I]. | G52: . | H52: Y
B53: GEST2_I | D53: Formulation & (re)packing of substances and mixtures | E53: Formulation & (re)packing of substances and mixtures | F53: =IF(AND(H53="Y",CSA!B$15="YES"),IF(E53="","***TRANSLATED TEXT MISSING***",E53&IF(B53="",G53&" ",IF(OR(LEFT(B53,3)<>"CSL", AND(LEFT(B53,3)="CSL",H$522="NO"))," ["&B53&"]"&G53&" ",G53&" "))),IF(E53="","***TRANSLATED TEXT MISSING***",E53&G53&" ")) -> Formulation & (re)packing of substances and mixtures [GEST2_I]. | G53: . | H53: Y
B54: GEST3_I | D54: Uses in Coatings | E54: Uses in Coatings | F54: =IF(AND(H54="Y",CSA!B$15="YES"),IF(E54="","***TRANSLATED TEXT MISSING***",E54&IF(B54="",G54&" ",IF(OR(LEFT(B54,3)<>"CSL", AND(LEFT(B54,3)="CSL",H$522="NO"))," ["&B54&"]"&G54&" ",G54&" "))),IF(E54="","***TRANSLATED TEXT MISSING***",E54&G54&" ")) -> Uses in Coatings [GEST3_I]. | G54: . | H54: Y
B55: GEST3_P | D55: Uses in Coatings | E55: Uses in Coatings | F55: =IF(AND(H55="Y",CSA!B$15="YES"),IF(E55="","***TRANSLATED TEXT MISSING***",E55&IF(B55="",G55&" ",IF(OR(LEFT(B55,3)<>"CSL", AND(LEFT(B55,3)="CSL",H$522="NO"))," ["&B55&"]"&G55&" ",G55&" "))),IF(E55="","***TRANSLATED TEXT MISSING***",E55&G55&" ")) -> Uses in Coatings [GEST3_P]. | G55: . | H55: Y
B56: GEST3_C | D56: Uses in Coatings | E56: Uses in Coatings | F56: =IF(AND(H56="Y",CSA!B$15="YES"),IF(E56="","***TRANSLATED TEXT MISSING***",E56&IF(B56="",G56&" ",IF(OR(LEFT(B56,3)<>"CSL", AND(LEFT(B56,3)="CSL",H$522="NO"))," ["&B56&"]"&G56&" ",G56&" "))),IF(E56="","***TRANSLATED TEXT MISSING***",E56&G56&" ")) -> Uses in Coatings [GEST3_C]. | G56: . | H56: Y
B57: GEST4_I | D57: Use in Cleaning Agents | E57: Use in Cleaning Agents | F57: =IF(AND(H57="Y",CSA!B$15="YES"),IF(E57="","***TRANSLATED TEXT MISSING***",E57&IF(B57="",G57&" ",IF(OR(LEFT(B57,3)<>"CSL", AND(LEFT(B57,3)="CSL",H$522="NO"))," ["&B57&"]"&G57&" ",G57&" "))),IF(E57="","***TRANSLATED TEXT MISSING***",E57&G57&" ")) -> Use in Cleaning Agents [GEST4_I]. | G57: . | H57: Y
B58: GEST4_P | D58: Use in Cleaning Agents | E58: Use in Cleaning Agents | F58: =IF(AND(H58="Y",CSA!B$15="YES"),IF(E58="","***TRANSLATED TEXT MISSING***",E58&IF(B58="",G58&" ",IF(OR(LEFT(B58,3)<>"CSL", AND(LEFT(B58,3)="CSL",H$522="NO"))," ["&B58&"]"&G58&" ",G58&" "))),IF(E58="","***TRANSLATED TEXT MISSING***",E58&G58&" ")) -> Use in Cleaning Agents [GEST4_P]. | G58: . | H58: Y
B59: GEST4_C | D59: Use in Cleaning Agents | E59: Use in Cleaning Agents | F59: =IF(AND(H59="Y",CSA!B$15="YES"),IF(E59="","***TRANSLATED TEXT MISSING***",E59&IF(B59="",G59&" ",IF(OR(LEFT(B59,3)<>"CSL", AND(LEFT(B59,3)="CSL",H$522="NO"))," ["&B59&"]"&G59&" ",G59&" "))),IF(E59="","***TRANSLATED TEXT MISSING***",E59&G59&" ")) -> Use in Cleaning Agents [GEST4_C]. | G59: . | H59: Y
B60: GEST5_I | D60: Use in Oil and Gas field drilling and production operations | E60: Use in Oil and Gas field drilling and production operations | F60: =IF(AND(H60="Y",CSA!B$15="YES"),IF(E60="","***TRANSLATED TEXT MISSING***",E60&IF(B60="",G60&" ",IF(OR(LEFT(B60,3)<>"CSL", AND(LEFT(B60,3)="CSL",H$522="NO"))," ["&B60&"]"&G60&" ",G60&" "))),IF(E60="","***TRANSLATED TEXT MISSING***",E60&G60&" ")) -> Use in Oil and Gas field drilling and production operations [GEST5_I]. | G60: . | H60: Y
B61: GEST5_P | D61: Use in Oil and Gas field drilling and production operations | E61: Use in Oil and Gas field drilling and production operations | F61: =IF(AND(H61="Y",CSA!B$15="YES"),IF(E61="","***TRANSLATED TEXT MISSING***",E61&IF(B61="",G61&" ",IF(OR(LEFT(B61,3)<>"CSL", AND(LEFT(B61,3)="CSL",H$522="NO"))," ["&B61&"]"&G61&" ",G61&" "))),IF(E61="","***TRANSLATED TEXT MISSING***",E61&G61&" ")) -> Use in Oil and Gas field drilling and production operations [GEST5_P]. | G61: . | H61: Y
B62: GEST6_I | D62: Lubricants | E62: Lubricants | F62: =IF(AND(H62="Y",CSA!B$15="YES"),IF(E62="","***TRANSLATED TEXT MISSING***",E62&IF(B62="",G62&" ",IF(OR(LEFT(B62,3)<>"CSL", AND(LEFT(B62,3)="CSL",H$522="NO"))," ["&B62&"]"&G62&" ",G62&" "))),IF(E62="","***TRANSLATED TEXT MISSING***",E62&G62&" ")) -> Lubricants [GEST6_I]. | G62: . | H62: Y
B63: GEST6_P | D63: Lubricants | E63: Lubricants | F63: =IF(AND(H63="Y",CSA!B$15="YES"),IF(E63="","***TRANSLATED TEXT MISSING***",E63&IF(B63="",G63&" ",IF(OR(LEFT(B63,3)<>"CSL", AND(LEFT(B63,3)="CSL",H$522="NO"))," ["&B63&"]"&G63&" ",G63&" "))),IF(E63="","***TRANSLATED TEXT MISSING***",E63&G63&" ")) -> Lubricants [GEST6_P]. | G63: . | H63: Y
B64: GEST6_C | D64: Lubricants | E64: Lubricants | F64: =IF(AND(H64="Y",CSA!B$15="YES"),IF(E64="","***TRANSLATED TEXT MISSING***",E64&IF(B64="",G64&" ",IF(OR(LEFT(B64,3)<>"CSL", AND(LEFT(B64,3)="CSL",H$522="NO"))," ["&B64&"]"&G64&" ",G64&" "))),IF(E64="","***TRANSLATED TEXT MISSING***",E64&G64&" ")) -> Lubricants [GEST6_C]. | G64: . | H64: Y
B65: GEST7_I | D65: Metal working fluids / rolling oils | E65: Metal working fluids / rolling oils | F65: =IF(AND(H65="Y",CSA!B$15="YES"),IF(E65="","***TRANSLATED TEXT MISSING***",E65&IF(B65="",G65&" ",IF(OR(LEFT(B65,3)<>"CSL", AND(LEFT(B65,3)="CSL",H$522="NO"))," ["&B65&"]"&G65&" ",G65&" "))),IF(E65="","***TRANSLATED TEXT MISSING***",E65&G65&" ")) -> Metal working fluids / rolling oils [GEST7_I]. | G65: . | H65: Y
B66: GEST7_P | D66: Metal working fluids / rolling oils | E66: Metal working fluids / rolling oils | F66: =IF(AND(H66="Y",CSA!B$15="YES"),IF(E66="","***TRANSLATED TEXT MISSING***",E66&IF(B66="",G66&" ",IF(OR(LEFT(B66,3)<>"CSL", AND(LEFT(B66,3)="CSL",H$522="NO"))," ["&B66&"]"&G66&" ",G66&" "))),IF(E66="","***TRANSLATED TEXT MISSING***",E66&G66&" ")) -> Metal working fluids / rolling oils [GEST7_P]. | G66: . | H66: Y
B67: GEST8_P | D67: Use as a propellant | E67: Use as a propellant | F67: =IF(AND(H67="Y",CSA!B$15="YES"),IF(E67="","***TRANSLATED TEXT MISSING***",E67&IF(B67="",G67&" ",IF(OR(LEFT(B67,3)<>"CSL", AND(LEFT(B67,3)="CSL",H$522="NO"))," ["&B67&"]"&G67&" ",G67&" "))),IF(E67="","***TRANSLATED TEXT MISSING***",E67&G67&" ")) -> Use as a propellant [GEST8_P]. | G67: . | H67: Y
B68: GEST8_C | D68: Use as a propellant | E68: Use as a propellant | F68: =IF(AND(H68="Y",CSA!B$15="YES"),IF(E68="","***TRANSLATED TEXT MISSING***",E68&IF(B68="",G68&" ",IF(OR(LEFT(B68,3)<>"CSL", AND(LEFT(B68,3)="CSL",H$522="NO"))," ["&B68&"]"&G68&" ",G68&" "))),IF(E68="","***TRANSLATED TEXT MISSING***",E68&G68&" ")) -> Use as a propellant [GEST8_C]. | G68: . | H68: Y
B69: GEST9_I | D69: Blowing agents | E69: Blowing agents | F69: =IF(AND(H69="Y",CSA!B$15="YES"),IF(E69="","***TRANSLATED TEXT MISSING***",E69&IF(B69="",G69&" ",IF(OR(LEFT(B69,3)<>"CSL", AND(LEFT(B69,3)="CSL",H$522="NO"))," ["&B69&"]"&G69&" ",G69&" "))),IF(E69="","***TRANSLATED TEXT MISSING***",E69&G69&" ")) -> Blowing agents [GEST9_I]. | G69: . | H69: Y
B70: GEST10_I | D70: Use as binders and release agents | E70: Use as binders and release agents | F70: =IF(AND(H70="Y",CSA!B$15="YES"),IF(E70="","***TRANSLATED TEXT MISSING***",E70&IF(B70="",G70&" ",IF(OR(LEFT(B70,3)<>"CSL", AND(LEFT(B70,3)="CSL",H$522="NO"))," ["&B70&"]"&G70&" ",G70&" "))),IF(E70="","***TRANSLATED TEXT MISSING***",E70&G70&" ")) -> Use as binders and release agents [GEST10_I]. | G70: . | H70: Y
B71: GEST10_P | D71: Use as binders and release agents | E71: Use as binders and release agents | F71: =IF(AND(H71="Y",CSA!B$15="YES"),IF(E71="","***TRANSLATED TEXT MISSING***",E71&IF(B71="",G71&" ",IF(OR(LEFT(B71,3)<>"CSL", AND(LEFT(B71,3)="CSL",H$522="NO"))," ["&B71&"]"&G71&" ",G71&" "))),IF(E71="","***TRANSLATED TEXT MISSING***",E71&G71&" ")) -> Use as binders and release agents [GEST10_P]. | G71: . | H71: Y
B72: GEST11_P | D72: Use in Agrochemicals | E72: Use in Agrochemicals | F72: =IF(AND(H72="Y",CSA!B$15="YES"),IF(E72="","***TRANSLATED TEXT MISSING***",E72&IF(B72="",G72&" ",IF(OR(LEFT(B72,3)<>"CSL", AND(LEFT(B72,3)="CSL",H$522="NO"))," ["&B72&"]"&G72&" ",G72&" "))),IF(E72="","***TRANSLATED TEXT MISSING***",E72&G72&" ")) -> Use in Agrochemicals [GEST11_P]. | G72: . | H72: Y
B73: GEST11-C | D73: Use in Agrochemicals | E73: Use in Agrochemicals | F73: =IF(AND(H73="Y",CSA!B$15="YES"),IF(E73="","***TRANSLATED TEXT MISSING***",E73&IF(B73="",G73&" ",IF(OR(LEFT(B73,3)<>"CSL", AND(LEFT(B73,3)="CSL",H$522="NO"))," ["&B73&"]"&G73&" ",G73&" "))),IF(E73="","***TRANSLATED TEXT MISSING***",E73&G73&" ")) -> Use in Agrochemicals [GEST11-C]. | G73: . | H73: Y
B74: GEST12_I | D74: Use as a fuel | E74: Use as a fuel | F74: =IF(AND(H74="Y",CSA!B$15="YES"),IF(E74="","***TRANSLATED TEXT MISSING***",E74&IF(B74="",G74&" ",IF(OR(LEFT(B74,3)<>"CSL", AND(LEFT(B74,3)="CSL",H$522="NO"))," ["&B74&"]"&G74&" ",G74&" "))),IF(E74="","***TRANSLATED TEXT MISSING***",E74&G74&" ")) -> Use as a fuel [GEST12_I]. | G74: . | H74: Y
B75: GEST12_P | D75: Use as a fuel | E75: Use as a fuel | F75: =IF(AND(H75="Y",CSA!B$15="YES"),IF(E75="","***TRANSLATED TEXT MISSING***",E75&IF(B75="",G75&" ",IF(OR(LEFT(B75,3)<>"CSL", AND(LEFT(B75,3)="CSL",H$522="NO"))," ["&B75&"]"&G75&" ",G75&" "))),IF(E75="","***TRANSLATED TEXT MISSING***",E75&G75&" ")) -> Use as a fuel [GEST12_P]. | G75: . | H75: Y
B76: GEST12_C | D76: Use as a fuel | E76: Use as a fuel | F76: =IF(AND(H76="Y",CSA!B$15="YES"),IF(E76="","***TRANSLATED TEXT MISSING***",E76&IF(B76="",G76&" ",IF(OR(LEFT(B76,3)<>"CSL", AND(LEFT(B76,3)="CSL",H$522="NO"))," ["&B76&"]"&G76&" ",G76&" "))),IF(E76="","***TRANSLATED TEXT MISSING***",E76&G76&" ")) -> Use as a fuel [GEST12_C]. | G76: . | H76: Y
B77: GEST13_I | D77: Functional Fluids | E77: Functional Fluids | F77: =IF(AND(H77="Y",CSA!B$15="YES"),IF(E77="","***TRANSLATED TEXT MISSING***",E77&IF(B77="",G77&" ",IF(OR(LEFT(B77,3)<>"CSL", AND(LEFT(B77,3)="CSL",H$522="NO"))," ["&B77&"]"&G77&" ",G77&" "))),IF(E77="","***TRANSLATED TEXT MISSING***",E77&G77&" ")) -> Functional Fluids [GEST13_I]. | G77: . | H77: Y
B78: GEST13_P | D78: Functional Fluids | E78: Functional Fluids | F78: =IF(AND(H78="Y",CSA!B$15="YES"),IF(E78="","***TRANSLATED TEXT MISSING***",E78&IF(B78="",G78&" ",IF(OR(LEFT(B78,3)<>"CSL", AND(LEFT(B78,3)="CSL",H$522="NO"))," ["&B78&"]"&G78&" ",G78&" "))),IF(E78="","***TRANSLATED TEXT MISSING***",E78&G78&" ")) -> Functional Fluids [GEST13_P]. | G78: . | H78: Y
B79: GEST13_C | D79: Functional Fluids | E79: Functional Fluids | F79: =IF(AND(H79="Y",CSA!B$15="YES"),IF(E79="","***TRANSLATED TEXT MISSING***",E79&IF(B79="",G79&" ",IF(OR(LEFT(B79,3)<>"CSL", AND(LEFT(B79,3)="CSL",H$522="NO"))," ["&B79&"]"&G79&" ",G79&" "))),IF(E79="","***TRANSLATED TEXT MISSING***",E79&G79&" ")) -> Functional Fluids [GEST13_C]. | G79: . | H79: Y
B80: GEST14_P | D80: De-icing and anti-icing applications | E80: De-icing and anti-icing applications | F80: =IF(AND(H80="Y",CSA!B$15="YES"),IF(E80="","***TRANSLATED TEXT MISSING***",E80&IF(B80="",G80&" ",IF(OR(LEFT(B80,3)<>"CSL", AND(LEFT(B80,3)="CSL",H$522="NO"))," ["&B80&"]"&G80&" ",G80&" "))),IF(E80="","***TRANSLATED TEXT MISSING***",E80&G80&" ")) -> De-icing and anti-icing applications [GEST14_P]. | G80: . | H80: Y
B81: GEST14_C | D81: De-icing and anti-icing applications | E81: De-icing and anti-icing applications | F81: =IF(AND(H81="Y",CSA!B$15="YES"),IF(E81="","***TRANSLATED TEXT MISSING***",E81&IF(B81="",G81&" ",IF(OR(LEFT(B81,3)<>"CSL", AND(LEFT(B81,3)="CSL",H$522="NO"))," ["&B81&"]"&G81&" ",G81&" "))),IF(E81="","***TRANSLATED TEXT MISSING***",E81&G81&" ")) -> De-icing and anti-icing applications [GEST14_C]. | G81: . | H81: Y
B82: GEST15-P | D82: Road and construction applications | E82: Road and construction applications | F82: =IF(AND(H82="Y",CSA!B$15="YES"),IF(E82="","***TRANSLATED TEXT MISSING***",E82&IF(B82="",G82&" ",IF(OR(LEFT(B82,3)<>"CSL", AND(LEFT(B82,3)="CSL",H$522="NO"))," ["&B82&"]"&G82&" ",G82&" "))),IF(E82="","***TRANSLATED TEXT MISSING***",E82&G82&" ")) -> Road and construction applications [GEST15-P]. | G82: . | H82: Y
B83: GEST16_C | D83: Other Consumer Uses | E83: Other Consumer Uses | F83: =IF(AND(H83="Y",CSA!B$15="YES"),IF(E83="","***TRANSLATED TEXT MISSING***",E83&IF(B83="",G83&" ",IF(OR(LEFT(B83,3)<>"CSL", AND(LEFT(B83,3)="CSL",H$522="NO"))," ["&B83&"]"&G83&" ",G83&" "))),IF(E83="","***TRANSLATED TEXT MISSING***",E83&G83&" ")) -> Other Consumer Uses [GEST16_C]. | G83: . | H83: Y
B84: GEST17_I | D84: Use in laboratories | E84: Use in laboratories | F84: =IF(AND(H84="Y",CSA!B$15="YES"),IF(E84="","***TRANSLATED TEXT MISSING***",E84&IF(B84="",G84&" ",IF(OR(LEFT(B84,3)<>"CSL", AND(LEFT(B84,3)="CSL",H$522="NO"))," ["&B84&"]"&G84&" ",G84&" "))),IF(E84="","***TRANSLATED TEXT MISSING***",E84&G84&" ")) -> Use in laboratories [GEST17_I]. | G84: . | H84: Y
B85: GEST17-P | D85: Use in laboratories | E85: Use in laboratories | F85: =IF(AND(H85="Y",CSA!B$15="YES"),IF(E85="","***TRANSLATED TEXT MISSING***",E85&IF(B85="",G85&" ",IF(OR(LEFT(B85,3)<>"CSL", AND(LEFT(B85,3)="CSL",H$522="NO"))," ["&B85&"]"&G85&" ",G85&" "))),IF(E85="","***TRANSLATED TEXT MISSING***",E85&G85&" ")) -> Use in laboratories [GEST17-P]. | G85: . | H85: Y
B86: GEST18_P | D86: Explosives manufacture & use | E86: Explosives manufacture & use | F86: =IF(AND(H86="Y",CSA!B$15="YES"),IF(E86="","***TRANSLATED TEXT MISSING***",E86&IF(B86="",G86&" ",IF(OR(LEFT(B86,3)<>"CSL", AND(LEFT(B86,3)="CSL",H$522="NO"))," ["&B86&"]"&G86&" ",G86&" "))),IF(E86="","***TRANSLATED TEXT MISSING***",E86&G86&" ")) -> Explosives manufacture & use [GEST18_P]. | G86: . | H86: Y
B87: GEST19_I | D87: Rubber production and processing | E87: Rubber production and processing | F87: =IF(AND(H87="Y",CSA!B$15="YES"),IF(E87="","***TRANSLATED TEXT MISSING***",E87&IF(B87="",G87&" ",IF(OR(LEFT(B87,3)<>"CSL", AND(LEFT(B87,3)="CSL",H$522="NO"))," ["&B87&"]"&G87&" ",G87&" "))),IF(E87="","***TRANSLATED TEXT MISSING***",E87&G87&" ")) -> Rubber production and processing [GEST19_I]. | G87: . | H87: Y
B88: GEST20_I | D88: Polymer production | E88: Polymer production | F88: =IF(AND(H88="Y",CSA!B$15="YES"),IF(E88="","***TRANSLATED TEXT MISSING***",E88&IF(B88="",G88&" ",IF(OR(LEFT(B88,3)<>"CSL", AND(LEFT(B88,3)="CSL",H$522="NO"))," ["&B88&"]"&G88&" ",G88&" "))),IF(E88="","***TRANSLATED TEXT MISSING***",E88&G88&" ")) -> Polymer production [GEST20_I]. | G88: . | H88: Y
B89: GEST21_I | D89: Water treatment chemicals | E89: Water treatment chemicals | F89: =IF(AND(H89="Y",CSA!B$15="YES"),IF(E89="","***TRANSLATED TEXT MISSING***",E89&IF(B89="",G89&" ",IF(OR(LEFT(B89,3)<>"CSL", AND(LEFT(B89,3)="CSL",H$522="NO"))," ["&B89&"]"&G89&" ",G89&" "))),IF(E89="","***TRANSLATED TEXT MISSING***",E89&G89&" ")) -> Water treatment chemicals [GEST21_I]. | G89: . | H89: Y
B90: GEST21_P | D90: Water treatment chemicals | E90: Water treatment chemicals | F90: =IF(AND(H90="Y",CSA!B$15="YES"),IF(E90="","***TRANSLATED TEXT MISSING***",E90&IF(B90="",G90&" ",IF(OR(LEFT(B90,3)<>"CSL", AND(LEFT(B90,3)="CSL",H$522="NO"))," ["&B90&"]"&G90&" ",G90&" "))),IF(E90="","***TRANSLATED TEXT MISSING***",E90&G90&" ")) -> Water treatment chemicals [GEST21_P]. | G90: . | H90: Y
B91: GEST21_C | D91: Water treatment chemicals | E91: Water treatment chemicals | F91: =IF(AND(H91="Y",CSA!B$15="YES"),IF(E91="","***TRANSLATED TEXT MISSING***",E91&IF(B91="",G91&" ",IF(OR(LEFT(B91,3)<>"CSL", AND(LEFT(B91,3)="CSL",H$522="NO"))," ["&B91&"]"&G91&" ",G91&" "))),IF(E91="","***TRANSLATED TEXT MISSING***",E91&G91&" ")) -> Water treatment chemicals [GEST21_C]. | G91: . | H91: Y
B92: GEST22_I | D92: Mining chemicals | E92: Mining chemicals | F92: =IF(AND(H92="Y",CSA!B$15="YES"),IF(E92="","***TRANSLATED TEXT MISSING***",E92&IF(B92="",G92&" ",IF(OR(LEFT(B92,3)<>"CSL", AND(LEFT(B92,3)="CSL",H$522="NO"))," ["&B92&"]"&G92&" ",G92&" "))),IF(E92="","***TRANSLATED TEXT MISSING***",E92&G92&" ")) -> Mining chemicals [GEST22_I]. | G92: . | H92: Y
B93: GEST23_I | D93: Polymer processing | E93: Polymer processing | F93: =IF(AND(H93="Y",CSA!B$15="YES"),IF(E93="","***TRANSLATED TEXT MISSING***",E93&IF(B93="",G93&" ",IF(OR(LEFT(B93,3)<>"CSL", AND(LEFT(B93,3)="CSL",H$522="NO"))," ["&B93&"]"&G93&" ",G93&" "))),IF(E93="","***TRANSLATED TEXT MISSING***",E93&G93&" ")) -> Polymer processing [GEST23_I]. | G93: . | H93: Y
B94: GEST23_P | D94: Polymer processing | E94: Polymer processing | F94: =IF(AND(H94="Y",CSA!B$15="YES"),IF(E94="","***TRANSLATED TEXT MISSING***",E94&IF(B94="",G94&" ",IF(OR(LEFT(B94,3)<>"CSL", AND(LEFT(B94,3)="CSL",H$522="NO"))," ["&B94&"]"&G94&" ",G94&" "))),IF(E94="","***TRANSLATED TEXT MISSING***",E94&G94&" ")) -> Polymer processing [GEST23_P]. | G94: . | H94: Y
D95: Use in process chemicals | E95: Use in Process Chemicals | F95: Use in process chemicals
A96: GES scope | F96: =IF(AND(H96="Y",CSA!B$15="YES"),IF(E96="","***TRANSLATED TEXT MISSING***",E96&IF(B96="",G96&" ",IF(OR(LEFT(B96,3)<>"CSL", AND(LEFT(B96,3)="CSL",H$522="NO"))," ["&B96&"]"&G96&" ",G96&" "))),IF(E96="","***TRANSLATED TEXT MISSING***",E96&G96&" ")) -> ***TRANSLATED TEXT MISSING***
B97: GES1_I | D97: Manufacture of the substance or use as a process chemical or extraction agent. Includes recycling/ recovery, material transfers, storage, maintenance and loading (including marine vessel/barge, road/rail car and bulk container), sampling and associated laboratory activities | E97: Manufacture of the substance. Includes recycling/ recovery, material transfers, storage, maintenance and loading (including marine vessel/barge, road/rail car and bulk container), sampling and associated laboratory activities | F97: =IF(AND(H97="Y",CSA!B$15="YES"),IF(E97="","***TRANSLATED TEXT MISSING***",E97&IF(B97="",G97&" ",IF(OR(LEFT(B97,3)<>"CSL", AND(LEFT(B97,3)="CSL",H$522="NO"))," ["&B97&"]"&G97&" ",G97&" "))),IF(E97="","***TRANSLATED TEXT MISSING***",E97&G97&" ")) -> Manufacture of the substance. Includes recycling/ recovery, material transfers, storage, maintenance and loading (including marine vessel/barge, road/rail car and bulk container), sampling and associated laboratory activities [GES1_I]. | G97: . | H97: Y | M97: Reference to Intermediate deleted from scope statement. Intermediate is covered under separate title GES1B_I.
B98: GES1A_I | D98: Loading (including marine vessel/barge, rail/road car and IBC loading) and repacking (including drums and small packs) of substance, including its sampling, storage, unloading distribution and associated laboratory activities | E98: Loading (including marine vessel/barge, rail/road car and IBC loading) and repacking (including drums and small packs) of substance, including its sampling, storage, unloading distribution and associated laboratory activities | F98: =IF(AND(H98="Y",CSA!B$15="YES"),IF(E98="","***TRANSLATED TEXT MISSING***",E98&IF(B98="",G98&" ",IF(OR(LEFT(B98,3)<>"CSL", AND(LEFT(B98,3)="CSL",H$522="NO"))," ["&B98&"]"&G98&" ",G98&" "))),IF(E98="","***TRANSLATED TEXT MISSING***",E98&G98&" ")) -> Loading (including marine vessel/barge, rail/road car and IBC loading) and repacking (including drums and small packs) of substance, including its sampling, storage, unloading distribution and associated laboratory activities [GES1A_I]. | G98: . | H98: Y
B99: GES1B_I | D99: Use of substance as an intermediate (not related to Strictly Controlled Conditions). Includes recycling/ recovery, material transfers, storage, sampling, associated laboratory activities, maintenance and loading (including marine vessel/barge, road/rail car and bulk container) | E99: Use of substance as an intermediate (not related to Strictly Controlled Conditions). Includes recycling/ recovery, material transfers, storage, sampling, associated laboratory activities, maintenance and loading (including marine vessel/barge, road/rail car and bulk container) | F99: =IF(AND(H99="Y",CSA!B$15="YES"),IF(E99="","***TRANSLATED TEXT MISSING***",E99&IF(B99="",G99&" ",IF(OR(LEFT(B99,3)<>"CSL", AND(LEFT(B99,3)="CSL",H$522="NO"))," ["&B99&"]"&G99&" ",G99&" "))),IF(E99="","***TRANSLATED TEXT MISSING***",E99&G99&" ")) -> Use of substance as an intermediate (not related to Strictly Controlled Conditions). Includes recycling/ recovery, material transfers, storage, sampling, associated laboratory activities, maintenance and loading (including marine vessel/barge, road/rail car and bulk container) [GES1B_I]. | G99: . | H99: Y
B100: GES2_I | D100: Formulation, packing and re-packing of the substance and its mixtures in batch or continuous operations, including storage, materials transfers, mixing, tabletting, compression, pelletisation, extrusion, large and small scale packing, sampling, maintenance and associated laboratory activities | E100: Formulation, packing and re-packing of the substance and its mixtures in batch or continuous operations, including storage, materials transfers, mixing, tabletting, compression, pelletisation, extrusion, large and small scale packing, sampling, maintenance and associated laboratory activities | F100: =IF(AND(H100="Y",CSA!B$15="YES"),IF(E100="","***TRANSLATED TEXT MISSING***",E100&IF(B100="",G100&" ",IF(OR(LEFT(B100,3)<>"CSL", AND(LEFT(B100,3)="CSL",H$522="NO"))," ["&B100&"]"&G100&" ",G100&" "))),IF(E100="","***TRANSLATED TEXT MISSING***",E100&G100&" ")) -> Formulation, packing and re-packing of the substance and its mixtures in batch or continuous operations, including storage, materials transfers, mixing, tabletting, compression, pelletisation, extrusion, large and small scale packing, sampling, maintenance and associated laboratory activities [GES2_I]. | G100: . | H100: Y
B101: GES3_I | D101: Covers the use in coatings (paints, inks, adhesives, etc) including exposures during use (including materials receipt, storage, preparation and transfer from bulk and semi-bulk, application by spray, roller, spreader, dip, flow, fluidised bed on production lines and film formation) and equipment cleaning, maintenance and associated laboratory activities | E101: Covers the use in coatings (paints, inks, adhesives, etc) including exposures during use (including materials receipt, storage, preparation and transfer from bulk and semi-bulk, application by spray, roller, spreader, dip, flow, fluidised bed on production lines and film formation) and equipment cleaning, maintenance and associated laboratory activities | F101: =IF(AND(H101="Y",CSA!B$15="YES"),IF(E101="","***TRANSLATED TEXT MISSING***",E101&IF(B101="",G101&" ",IF(OR(LEFT(B101,3)<>"CSL", AND(LEFT(B101,3)="CSL",H$522="NO"))," ["&B101&"]"&G101&" ",G101&" "))),IF(E101="","***TRANSLATED TEXT MISSING***",E101&G101&" ")) -> Covers the use in coatings (paints, inks, adhesives, etc) including exposures during use (including materials receipt, storage, preparation and transfer from bulk and semi-bulk, application by spray, roller, spreader, dip, flow, fluidised bed on production lines and film formation) and equipment cleaning, maintenance and associated laboratory activities [GES3_I]. | G101: . | H101: Y
B102: GES3_P | D102: Covers the use in coatings (paints, inks, adhesives, etc) including exposures during use (including materials receipt, storage, preparation and transfer from bulk and semi-bulk, application by spray, roller, brush, spreader by hand or similar methods, and film formation), and equipment cleaning, maintenance and associated laboratory activities | E102: Covers the use in coatings (paints, inks, adhesives, etc) including exposures during use (including materials receipt, storage, preparation and transfer from bulk and semi-bulk, application by spray, roller, brush, spreader by hand or similar methods, and film formation), and equipment cleaning, maintenance and associated laboratory activities | F102: =IF(AND(H102="Y",CSA!B$15="YES"),IF(E102="","***TRANSLATED TEXT MISSING***",E102&IF(B102="",G102&" ",IF(OR(LEFT(B102,3)<>"CSL", AND(LEFT(B102,3)="CSL",H$522="NO"))," ["&B102&"]"&G102&" ",G102&" "))),IF(E102="","***TRANSLATED TEXT MISSING***",E102&G102&" ")) -> Covers the use in coatings (paints, inks, adhesives, etc) including exposures during use (including materials receipt, storage, preparation and transfer from bulk and semi-bulk, application by spray, roller, brush, spreader by hand or similar methods, and film formation), and equipment cleaning, maintenance and associated laboratory activities [GES3_P]. | G102: . | H102: Y
B103: GES3_C | D103: Covers the use in coatings (paints, inks, adhesives, etc) including exposures during use (including product transfer and preparation, application by brush, spray by hand or similar methods) and equipment cleaning | E103: Covers the use in coatings (paints, inks, adhesives, etc) including exposures during use (including product transfer and preparation, application by brush, spray by hand or similar methods) and equipment cleaning | F103: =IF(AND(H103="Y",CSA!B$15="YES"),IF(E103="","***TRANSLATED TEXT MISSING***",E103&IF(B103="",G103&" ",IF(OR(LEFT(B103,3)<>"CSL", AND(LEFT(B103,3)="CSL",H$522="NO"))," ["&B103&"]"&G103&" ",G103&" "))),IF(E103="","***TRANSLATED TEXT MISSING***",E103&G103&" ")) -> Covers the use in coatings (paints, inks, adhesives, etc) including exposures during use (including product transfer and preparation, application by brush, spray by hand or similar methods) and equipment cleaning [GES3_C]. | G103: . | H103: Y
B104: GES4_I | D104: Covers the use as a component of cleaning products including transfer from storage, pouring/unloading from drums or containers. Exposures during mixing/diluting in the preparatory phase and clEaning activities (including spraying, brushing, dipping, wiping, automated and by hand), related equipment cleaning and maintenance | E104: Covers the use as a component of cleaning products including transfer from storage, pouring/unloading from drums or containers. Exposures during mixing/diluting in the preparatory phase and cleaning activities (including spraying, brushing, dipping, wiping, automated and by hand), related equipment cleaning and maintenance | F104: =IF(AND(H104="Y",CSA!B$15="YES"),IF(E104="","***TRANSLATED TEXT MISSING***",E104&IF(B104="",G104&" ",IF(OR(LEFT(B104,3)<>"CSL", AND(LEFT(B104,3)="CSL",H$522="NO"))," ["&B104&"]"&G104&" ",G104&" "))),IF(E104="","***TRANSLATED TEXT MISSING***",E104&G104&" ")) -> Covers the use as a component of cleaning products including transfer from storage, pouring/unloading from drums or containers. Exposures during mixing/diluting in the preparatory phase and cleaning activities (including spraying, brushing, dipping, wiping, automated and by hand), related equipment cleaning and maintenance [GES4_I]. | G104: . | H104: Y
B105: GES4_P | D105: Covers the use as a component of cleaning products including pouring/unloading from drums or containers; and exposures during mixing/diluting in the preparatory phase and cleaning activities (including spraying, brushing, dipping, wiping automated and by hand) | E105: Covers the use as a component of cleaning products including pouring/unloading from drums or containers; and exposures during mixing/diluting in the preparatory phase and cleaning activities (including spraying, brushing, dipping, wiping automated and by hand) | F105: =IF(AND(H105="Y",CSA!B$15="YES"),IF(E105="","***TRANSLATED TEXT MISSING***",E105&IF(B105="",G105&" ",IF(OR(LEFT(B105,3)<>"CSL", AND(LEFT(B105,3)="CSL",H$522="NO"))," ["&B105&"]"&G105&" ",G105&" "))),IF(E105="","***TRANSLATED TEXT MISSING***",E105&G105&" ")) -> Covers the use as a component of cleaning products including pouring/unloading from drums or containers; and exposures during mixing/diluting in the preparatory phase and cleaning activities (including spraying, brushing, dipping, wiping automated and by hand) [GES4_P]. | G105: . | H105: Y
B106: GES4_C | D106: Covers general exposures to consumers arising from the use of household products sold as washing and cleaning products, aerosols, coatings, de-icers, lubricants and air care products | E106: Covers general exposures to consumers arising from the use of household products sold as washing and cleaning products, aerosols, coatings, de-icers, lubricants and air care products | F106: =IF(AND(H106="Y",CSA!B$15="YES"),IF(E106="","***TRANSLATED TEXT MISSING***",E106&IF(B106="",G106&" ",IF(OR(LEFT(B106,3)<>"CSL", AND(LEFT(B106,3)="CSL",H$522="NO"))," ["&B106&"]"&G106&" ",G106&" "))),IF(E106="","***TRANSLATED TEXT MISSING***",E106&G106&" ")) -> Covers general exposures to consumers arising from the use of household products sold as washing and cleaning products, aerosols, coatings, de-icers, lubricants and air care products [GES4_C]. | G106: . | H106: Y
B107: GES5_I | D107: Oil field well drilling and production operations (including drilling muds and well cleaning) including material transfers, on-site formulation, well head operations, shaker room activities and related maintenance | E107: Oil field well drilling and production operations (including drilling muds and well cleaning) including material transfers, on-site formulation, well head operations, shaker room activities and related maintenance | F107: =IF(AND(H107="Y",CSA!B$15="YES"),IF(E107="","***TRANSLATED TEXT MISSING***",E107&IF(B107="",G107&" ",IF(OR(LEFT(B107,3)<>"CSL", AND(LEFT(B107,3)="CSL",H$522="NO"))," ["&B107&"]"&G107&" ",G107&" "))),IF(E107="","***TRANSLATED TEXT MISSING***",E107&G107&" ")) -> Oil field well drilling and production operations (including drilling muds and well cleaning) including material transfers, on-site formulation, well head operations, shaker room activities and related maintenance [GES5_I]. | G107: . | H107: Y
B108: GES5_P | D108: Oil field well drilling operations (including drilling muds and well cleaning) including material transfers, on-site formulation, well head operations, shaker room activities and related maintenance. | E108: Oil field well drilling operations (including drilling muds and well cleaning) including material transfers, on-site formulation, well head operations, shaker room activities and related maintenance | F108: =IF(AND(H108="Y",CSA!B$15="YES"),IF(E108="","***TRANSLATED TEXT MISSING***",E108&IF(B108="",G108&" ",IF(OR(LEFT(B108,3)<>"CSL", AND(LEFT(B108,3)="CSL",H$522="NO"))," ["&B108&"]"&G108&" ",G108&" "))),IF(E108="","***TRANSLATED TEXT MISSING***",E108&G108&" ")) -> Oil field well drilling operations (including drilling muds and well cleaning) including material transfers, on-site formulation, well head operations, shaker room activities and related maintenance [GES5_P]. | G108: . | H108: Y
B109: GES6_I | D109: Covers the use of formulated lubricants in closed and open systems including transfer operations, operation of machinery/engines and similar articles, reworking on reject articles, equipment maintenance and disposal of wastes | E109: Covers the use of formulated lubricants in closed and open systems including transfer operations, operation of machinery/engines and similar articles, reworking on reject articles, equipment maintenance and disposal of wastes | F109: =IF(AND(H109="Y",CSA!B$15="YES"),IF(E109="","***TRANSLATED TEXT MISSING***",E109&IF(B109="",G109&" ",IF(OR(LEFT(B109,3)<>"CSL", AND(LEFT(B109,3)="CSL",H$522="NO"))," ["&B109&"]"&G109&" ",G109&" "))),IF(E109="","***TRANSLATED TEXT MISSING***",E109&G109&" ")) -> Covers the use of formulated lubricants in closed and open systems including transfer operations, operation of machinery/engines and similar articles, reworking on reject articles, equipment maintenance and disposal of wastes [GES6_I]. | G109: . | H109: Y
B110: GES6_P | D110: Covers the use of formulated lubricants in closed and open systems including transfer operations, operation of engines and similar articles, reworking on reject articles, equipment maintenance and disposal of waste oil | E110: Covers the use of formulated lubricants in closed and open systems including transfer operations, operation of engines and similar articles, reworking on reject articles, equipment maintenance and disposal of waste oil | F110: =IF(AND(H110="Y",CSA!B$15="YES"),IF(E110="","***TRANSLATED TEXT MISSING***",E110&IF(B110="",G110&" ",IF(OR(LEFT(B110,3)<>"CSL", AND(LEFT(B110,3)="CSL",H$522="NO"))," ["&B110&"]"&G110&" ",G110&" "))),IF(E110="","***TRANSLATED TEXT MISSING***",E110&G110&" ")) -> Covers the use of formulated lubricants in closed and open systems including transfer operations, operation of engines and similar articles, reworking on reject articles, equipment maintenance and disposal of waste oil [GES6_P]. | G110: . | H110: Y
B111: GES6_C | D111: Covers the consumer use of formulated lubricants in closed and open systems including transfer operations, application, operation of engines and similar articles, equipment maintenance and disposal of waste oil | E111: Covers the consumer use of formulated lubricants in closed and open systems including transfer operations, application, operation of engines and similar articles, equipment maintenance and disposal of waste oil | F111: =IF(AND(H111="Y",CSA!B$15="YES"),IF(E111="","***TRANSLATED TEXT MISSING***",E111&IF(B111="",G111&" ",IF(OR(LEFT(B111,3)<>"CSL", AND(LEFT(B111,3)="CSL",H$522="NO"))," ["&B111&"]"&G111&" ",G111&" "))),IF(E111="","***TRANSLATED TEXT MISSING***",E111&G111&" ")) -> Covers the consumer use of formulated lubricants in closed and open systems including transfer operations, application, operation of engines and similar articles, equipment maintenance and disposal of waste oil [GES6_C]. | G111: . | H111: Y
B112: GES7_I | D112: Covers the use in formulated MWFs/rolling oils including transfer operations, rolling and annealing activities, cutting/machining activities, automated and manual application of corrosion protections (including brushing, dipping and spraying), equipment maintenance, draining and disposal of waste oils | E112: Covers the use in formulated MWFs/rolling oils including transfer operations, rolling and annealing activities, cutting/machining activities, automated and manual application of corrosion protections (including brushing, dipping and spraying), equipment maintenance, draining and disposal of waste oils | F112: =IF(AND(H112="Y",CSA!B$15="YES"),IF(E112="","***TRANSLATED TEXT MISSING***",E112&IF(B112="",G112&" ",IF(OR(LEFT(B112,3)<>"CSL", AND(LEFT(B112,3)="CSL",H$522="NO"))," ["&B112&"]"&G112&" ",G112&" "))),IF(E112="","***TRANSLATED TEXT MISSING***",E112&G112&" ")) -> Covers the use in formulated MWFs/rolling oils including transfer operations, rolling and annealing activities, cutting/machining activities, automated and manual application of corrosion protections (including brushing, dipping and spraying), equipment maintenance, draining and disposal of waste oils [GES7_I]. | G112: . | H112: Y
B113: GES7_P | D113: Covers the use in formulated MWFs including transfer operations, open and contained cutting/machining activities, automated and manual application of corrosion protections, draining and working on contaminated/ reject articles, and disposal of waste oils | E113: Covers the use in formulated MWFs including transfer operations, open and contained cutting/machining activities, automated and manual application of corrosion protections, draining and working on contaminated/ reject articles, and disposal of waste oils | F113: =IF(AND(H113="Y",CSA!B$15="YES"),IF(E113="","***TRANSLATED TEXT MISSING***",E113&IF(B113="",G113&" ",IF(OR(LEFT(B113,3)<>"CSL", AND(LEFT(B113,3)="CSL",H$522="NO"))," ["&B113&"]"&G113&" ",G113&" "))),IF(E113="","***TRANSLATED TEXT MISSING***",E113&G113&" ")) -> Covers the use in formulated MWFs including transfer operations, open and contained cutting/machining activities, automated and manual application of corrosion protections, draining and working on contaminated/ reject articles, and disposal of waste oils [GES7_P]. | G113: . | H113: Y
B114: GES8_P | D114: Use as a propellant in professional aerosol products. | E114: Use as a propellant in professional aerosol products | F114: =IF(AND(H114="Y",CSA!B$15="YES"),IF(E114="","***TRANSLATED TEXT MISSING***",E114&IF(B114="",G114&" ",IF(OR(LEFT(B114,3)<>"CSL", AND(LEFT(B114,3)="CSL",H$522="NO"))," ["&B114&"]"&G114&" ",G114&" "))),IF(E114="","***TRANSLATED TEXT MISSING***",E114&G114&" ")) -> Use as a propellant in professional aerosol products [GES8_P]. | G114: . | H114: Y
B115: GES8_C | D115: Use as a propellant in household consumer aerosol products | E115: Use as a propellant in household consumer aerosol products | F115: =IF(AND(H115="Y",CSA!B$15="YES"),IF(E115="","***TRANSLATED TEXT MISSING***",E115&IF(B115="",G115&" ",IF(OR(LEFT(B115,3)<>"CSL", AND(LEFT(B115,3)="CSL",H$522="NO"))," ["&B115&"]"&G115&" ",G115&" "))),IF(E115="","***TRANSLATED TEXT MISSING***",E115&G115&" ")) -> Use as a propellant in household consumer aerosol products [GES8_C]. | G115: . | H115: Y
B116: GES9_I | D116: Use as a blowing agent for rigid and flexible foams, including material transfers, mixing and injection, curing, cutting, storage and packing | E116: Use as a blowing agent for rigid and flexible foams, including material transfers, mixing and injection, curing, cutting, storage and packing | F116: =IF(AND(H116="Y",CSA!B$15="YES"),IF(E116="","***TRANSLATED TEXT MISSING***",E116&IF(B116="",G116&" ",IF(OR(LEFT(B116,3)<>"CSL", AND(LEFT(B116,3)="CSL",H$522="NO"))," ["&B116&"]"&G116&" ",G116&" "))),IF(E116="","***TRANSLATED TEXT MISSING***",E116&G116&" ")) -> Use as a blowing agent for rigid and flexible foams, including material transfers, mixing and injection, curing, cutting, storage and packing [GES9_I]. | G116: . | H116: Y
B117: GES10_I | D117: Covers the use as binders and release agents including material transfers, mixing, application (including spraying and brushing), mould forming and casting, and handling of waste | E117: Covers the use as binders and release agents including material transfers, mixing, application (including spraying and brushing), mould forming and casting, and handling of waste | F117: =IF(AND(H117="Y",CSA!B$15="YES"),IF(E117="","***TRANSLATED TEXT MISSING***",E117&IF(B117="",G117&" ",IF(OR(LEFT(B117,3)<>"CSL", AND(LEFT(B117,3)="CSL",H$522="NO"))," ["&B117&"]"&G117&" ",G117&" "))),IF(E117="","***TRANSLATED TEXT MISSING***",E117&G117&" ")) -> Covers the use as binders and release agents including material transfers, mixing, application (including spraying and brushing), mould forming and casting, and handling of waste [GES10_I]. | G117: . | H117: Y
